Workbook

Sheet Avis à l'utilisateur
B3: Objectif
B5: Cet outil est destiné aux conseillers qui accompagnent les producteurs de vaches et de veaux. Il comporte deux onglets : un pour calculer les pâturages et un pour calculer les fourrages conservés. 1. Pâturages : permet d’estimer les besoins d’un ou de plusieurs groupes d’animaux, les superficies nécessaires et le nombre de parcelles en pâturage requises. L’estimation sera calculée en fonction d’une description du troupeau, du rendement et des pertes anticipées, de l’identification des périodes de croissance différentes au cours de la saison et selon la fréquence de déplacement souhaitée. Ce calculateur permet d’obtenir un diagnostic global afin de déterminer si les superficies détaillées, champ par champ, sont proportionnelles aux besoins. 2. Fourrages conservés : évalue les besoins en quantité et en qualité des fourrages nécessaires pendant la période d’hivernage. Un registre de suivi de paissance, une charte de pâturage et diverses références sont disponibles dans les onglets suivants, selon le besoin.
B17: Utilisation
B19: Sélectionnez l’onglet ou le bouton souhaité du chiffrier et remplissez uniquement les cases blanches. Elles permettent d’ajuster les données et d’afficher les résultats. Ceux-ci doivent être validés par l’utilisateur. Idéalement, il devrait y avoir une feuille de calcul par site de pâturage indépendant.
B22: Onglets verts | C22: Calculateurs pour les besoins en pâturages et en fourrages conservés
B23: Onglets jaune pâle | C23: Suivi de paissance et charte de pâturage
B24: Onglets bleus | C24: Références
B25: Des aides à l’utilisation et des commentaires sont disponibles pour certains paramètres et sont identifiables par leur coin rouge. Vous pouvez accéder aux différentes feuilles de calcul ou aux valeurs de référence en cliquant sur les liens correspondants ou sur les onglets.
B26: Pour toute question, contactez un conseiller de votre direction régionale du ministère de l’Agriculture, des Pêcheries et de l’Alimentation (MAPAQ).
B29: Avertissement
B31: L’utilisation de ce fichier est sous l’entière responsabilité des utilisateurs. Le MAPAQ n’est aucunement responsable de toute inexactitude, erreur, omission ou faute qui pourrait découler, directement ou indirectement, de l’utilisation du fichier. Il n’est pas responsable d’une perte de données pouvant résulter de la mauvaise utilisation du fichier. Les résultats obtenus à la suite de l’utilisation de ce chiffrier vous permettent seulement d’avoir une estimation des besoins du troupeau.
B36: Version originale
B37: Véronique Poulin, agronome retraitée, Direction régionale du Centre-du-Québec, MAPAQ
B38: Avec la collaboration de :
B39: Pierre Demers, agronome retraité, Direction régionale de l’Estrie, MAPAQ
B40: Pierre Dufort, agronome retraité, Direction régionale des Laurentides, MAPAQ
B41: Antoine Riverin, agronome retraité, Direction régionale du Saguenay-Lac Saint-Jean, MAPAQ
B43: Version finale 2026
B44: Johanne Tessier, agronome, Direction régionale du Centre-du-Québec, MAPAQ
B45: Éric Lepage, agronome, Direction régionale Gaspésie—Îles-de-la-Madeleine, MAPAQ
B46: Avec la collaboration de : Carrolyn O’Grady, agronome, Direction régionale la Montérégie, MAPAQ

Sheet Calc. Pâturages
C3: CALCULATEUR – PÂTURAGE ESTIMATION DES SUPERFICIES NÉCESSAIRES EN PÂTURAGE POUR LA PRODUCTION VACHE-VEAU | Q3: Explications liées au « Calculateur – Pâturage »
C6: Entreprise : | F6: Ferme | L6: Site :
C8: Conseiller(ère) : | F8: Prénom et nom | L8: Date :
M9: (aaaa/mm/jj)
C10: A) PÉRIODE DE PÂTURAGE | Q10: A) PÉRIODE DE PÂTURAGE
Q11: Toutes les cases blanches doivent être remplies : Printemps = date de début de pâturage; Été = date à laquelle les conditions estivales commencent à influencer les conditions de croissance (ralentissement lié à la chaleur et/ou à la sécheresse); Automne = date du retour des conditions plus fraîches et humides; Hivernage = date de fin du pâturage (début soignage); Les saisons varient selon les régions et les types de sol et marquent normalement un point tournant dans la croissance des plantes.
C12: Périodes de croissance de l’herbe : | G12: Printemps | H12: Été | I12: Automne | J12: Hivernage | L12: Références sur la productivité saisonnière des fourrages
C14: Dates (AAAA-MM-JJ) : | F14: Début → | G14: 2025-05-25 | H14: 2025-07-01 | I14: 2025-08-31 | J14: 2025-10-15 | K14: → Fin
C16: B) DESCRIPTION DU CHEPTEL ET DES BESOINS HERBAGERS | Q16: B) DESCRIPTION DU CHEPTEL ET DES BESOINS HERBAGERS
G18: NOMBRE D’ANIMAUX | Q18: Inscrire le poids moyen et la CVMS pour chaque catégorie de bovin. Pour chaque période, inscrire le nombre d’animaux présents. Inscrire le nombre moyen de veaux sous la mère dans la case correspondant à l’âge moyen des veaux pour la période donnée. Tenir compte des arrivées et des départs d’animaux pour ajuster le nombre moyen par période. Les besoins du troupeau, en kg de MS/jour, s’affichent au bas de chaque colonne. Consommation volontaire de matière sèche (CVMS) en pourcentage du poids vif de l’animal. À titre indicatif, vous pouvez utiliser l’onglet Réf CVMS ou utiliser d’autres références reconnues. La CVMS n’inclut pas les pertes (résidus laissés au champ), car celles-ci seront prises en compte dans la section C) Rendement du pâturage.
E19: Poids (kg) | F19: CVMS (%) | G19: Printemps | H19: Été | I19: Automne
C21: Vache allaitante | E21: 700 | F21: 0.025 | G21: 25 | H21: 25 | I21: 25
C22: Vache tarie | E22: 700 | F22: 0.022 | G22: 25 | H22: 25 | I22: 25
C24: Primipare allaitante | E24: 600 | F24: 0.025 | G24: 1 | H24: 1 | I24: 1
C25: Primipare tarie | E25: 600 | F25: 0.022 | G25: 1 | H25: 1 | I25: 1
C27: Génisse-taure < 24 mois | E27: 500 | F27: 0.025 | G27: 1 | H27: 1 | I27: 1
C28: Génisse < 15 mois | E28: 400 | F28: 0.022 | G28: 1 | H28: 1 | I28: 1
C30: Semi-fini groupe 1 | E30: 400 | F30: 0.026
C31: Semi-fini groupe 2 | E31: 400 | F31: 0.026
C33: Bouvillon groupe 1 | E33: 500 | F33: 0.025
C34: Bouvillon groupe 2 | E34: 500 | F34: 0.025
C36: Taureau | E36: 900 | F36: 0.02 | G36: 2 | H36: 2 | I36: 2
F37: CVMS
E38: ÂGE | F38: (kg MS/j) | Q38: Veau sous la mère (en lien avec les vaches) : Pour vous aider, consultez le tableau 1 de l’onglet Réf CVMS. Inscrire la consommation en kg de MS par jour et par veau. Vous pouvez également utiliser d’autres références reconnues.
C39: Veau sous la mère | E39: 3 mois | F39: 2 | G39: 25 | H39: 25 | I39: 25 | K39: La consommation volontaire de matière sèche (CVMS) au pâturage doit être calculée à partir d’un programme alimentaire élaboré par une ou un agronome et doit tenir compte des quantités de fourrage et de grains distribués. MS = matière sèche
C40: Pour vous aider, consultez le | E40: 4 mois | F40: 2.3
C41: tableau 1 de l’onglet Réf CVMS. | E41: 5 mois | F41: 4.1
C42: Inscrivez la consommation en kg de MS par jour et par veau. Vous pouvez également utiliser d’autres références reconnues. | E42: 6 mois | F42: 4.8
E43: 7 mois | F43: 5.9 | G43: 25 | H43: 25 | I43: 25
E44: 8 mois | F44: 7.2
E45: Total kg MS/j | G45: =($E$21*$F$21*G21)+($E$22*$F$22*G22)+($E$24*$F$24*G24)+($E$25*$F$25*G25)+($E$27*$F$27*G27)+($E$28*$F$28*G28)+($E$30*$F$30*G30)+($E$31*$F$31*G31)+($E$33*$F$33*G33)+($E$34*$F$34*G34)+($E$36*$F$36*G36)+($F$39*G39)+($F$40*G40)+($F$41*G41)+($F$42*G42)+($F$43*G43)+($F$44*G44) -> 1105.5 | H45: =($E$21*$F$21*H21)+($E$22*$F$22*H22)+($E$24*$F$24*H24)+($E$25*$F$25*H25)+($E$27*$F$27*H27)+($E$28*$F$28*H28)+($E$30*$F$30*H30)+($E$31*$F$31*H31)+($E$33*$F$33*H33)+($E$34*$F$34*H34)+($E$36*$F$36*H36)+($F$39*H39)+($F$40*H40)+($F$41*H41)+($F$42*H42)+($F$43*H43)+($F$44*H44) -> 1105.5 | I45: =($E$21*$F$21*I21)+($E$22*$F$22*I22)+($E$24*$F$24*I24)+($E$25*$F$25*I25)+($E$27*$F$27*I27)+($E$28*$F$28*I28)+($E$30*$F$30*I30)+($E$31*$F$31*I31)+($E$33*$F$33*I33)+($E$34*$F$34*I34)+($E$36*$F$36*I36)+($F$39*I39)+($F$40*I40)+($F$41*I41)+($F$42*I42)+($F$43*I43)+($F$44*I44) -> 1105.5 | K45: Références sur la CVMS
C48: C) RENDEMENT DU PÂTURAGE | Q48: C) RENDEMENT DU PÂTURAGE | U48: 1 | V48: Rendement de zone FADQ | AA48: Type de gestion | AB48: % d’utilisation
Q49: Dans cette section, il s’agit d’estimer le rendement en pâturage de l’ensemble du site où sont situés les animaux. Vous pouvez utiliser, dans la liste déroulante, ce qui devrait s’en approcher le plus, ou bien inscrire votre propre estimation en collaboration avec le producteur. À défaut de connaître le rendement, utilisez une valeur qui se rapproche du rendement de zone à La Financière agricole du Québec (FADQ) à la station de météo la plus proche. Vous devrez sélectionner le type de paissance dans la liste déroulante : en rotation ou en bandes. Un facteur de correction doit être inscrit manuellement pour tenir compte du taux de perte et du mode de gestion. | V49: Rendement historique
C50: Rendement en foin à 85 % MS (kg/ha/an) : | F50: 5000 | K50: Efficacité du pâturage selon la gestion de paissance | V50: Rendement estimé (charte) | AA50: En continu | AB50: 60
C51: Source : | K51: Gestion de pâturage | M51: % d’utilisation | AA51: Rotation | AB51: 75
F52: =IF(U48=1,"Rendements de référence FADQ","") -> Rendements de référence FADQ | K52: Continue | M52: 30 à 40 % | AA52: Bandes | AB52: 85
K53: Rotation (4 parcelles) | M53: 50 à 60 %
K54: Rotation (6 à 8 parcelles) | M54: 60 à 70 %
C55: Type de gestion et % d’utilisation : | F55: Rotation | H55: 0.7 | K55: En bande (à tous les jours) | M55: 70 à 80 % | Q55: Type de gestion et % d’utilisation : choisir l’une des trois options pour le type de gestion. Inscrire le % d’utilisation selon le mode de gestion choisi. Le tableau est fourni à titre indicatif seulement.
C57: Herbe disponible (kg MS/ha/an) : | H57: =F50*H55*0.85 -> 2975 | K57: Source : | L57: Bovins performants au pâturage : y a-t-il une stratégie gagnante? | Q57: Herbe disponible (kg MS/ha/an) : l’herbe disponible est le résultat du calcul du rendement en foin multiplié par le facteur d’ajustement.
F58: Références utilisation pâturage
C61: D) SUPERFICIE NÉCESSAIRE POUR LE TROUPEAU | Q61: D) SUPERFICIE NÉCESSAIRE POUR LE TROUPEAU | V61: 1
Q62: Dans cette section, le nombre de jours de paissance est calculé selon les dates inscrites à la section A). Vous devez inscrire le nombre de jours de repos requis par la plante ainsi que le pourcentage du rendement annuel pour la période concernée. Selon votre expérience et les plantes présentes dans le site, vous pourrez déterminer le nombre de kg de matière sèche disponible par cycle. Ces valeurs devraient être relativement semblables pour les trois périodes, en supposant que l’entrée et la sortie des animaux se font aux mêmes hauteurs d’herbe. Le deuxième tableau de cette section affiche l’unité de superficie choisie et démontre la superficie nécessaire par catégorie d’animaux, par période et au total durant la saison. Le tableau qui suit indique la superficie des parcelles selon le nombre de jours choisi par parcelle. Pour la validité des calculs, la division du nombre de jours de repos par cycle par le nombre de jours de paissance par parcelle ou bande devrait donner un nombre entier ou s’en approcher le plus possible.
H63: Printemps | I63: Été | J63: Automne | K63: Total | S63: =29.8/50 -> 0.596 | V63: Bandes | W63: 0.85
E64: Nombre de jours par période | H64: =IF(G14="",0,H14-G14) -> 37 | I64: =IF(H14="",0,I14-H14) -> 61 | J64: =IF(I14="",0,J14-I14) -> 45 | K64: =J14-G14 -> 143 | V64: Rotation | W64: 0.75
E65: Nombre de jours de repos | H65: 20 | I65: 45 | J65: 35 | L65: Références productivité | V65: En continu | W65: 0.6
E66: Nombre de passages/période | H66: =IF(H65="",0,H64/H65) -> 1.85 | I66: =IF(I65="",0,I64/I65) -> 1.355555556 | J66: 1.285714286 | L66: =IF(AND(H65="",I65="",J65=""),"",IF(OR(H66<1,I66<1,J66<1),"Viser à obtenir au moins un cycle complet","")) ->  | S66: =IF(OR((H66-TRUNC(H66))>0.15,(H66-TRUNC(H66))<0.85),"",1) -> 
E67: % du rendement annuel | H67: 0.4 | I67: 0.3 | J67: =IF(I14="",0,1-H67-I67) -> 0.3 | K67: =H67+I67+J67 -> 1 | L67: =IF(AND(H67="",I67=""),"",IF(K67<>1,"Le total doit être égale à 100%","")) -> 
E68: kg MS/ha par passage | H68: =IF($H$57=0,0,IF(I86>0,($H$57*H67)/(I86),0)) -> 643.2432432 | I68: =IF($H$57=0,0,IF(K86>0,($H$57*I67)/(K86),0)) -> 658.4016393 | J68: =IF($H$57=0,0,IF(M86>0,($H$57*J67)/(M86),0)) -> 694.1666667 | K68: =IF(OR(S68=0,T68=0),0,IF($T$68=0,(IF(OR($S$68>0.1,$S$68 <-0.1),"Les rendements par cycle devraient être semblables","")),IF(OR($S$68>0.1,$S$68<-0.1,$T$68>0.1,$T$68<-0.1)," Les rendements par cycle devraient être semblables",""))) ->  | S68: =IF(H68=0,0,IF(AND(I68=0,H68=0),0,(I68-H68)/H68)) -> 0.02356557377 | T68: =IF(I68=0,0,IF(J68=0,0,IF(I14=0,0,(J68-I68)/I68))) -> 0.05432098765 | U68: =IF(OR(S68=0,T68=0),0,IF($T$68=0,(IF(OR($S$68>0.1,$S$68 <-0.1),1,0)),IF(OR($S$68>0.1,$S$68<-0.1,$T$68>0.1,$T$68<-0.1),1,0))) -> 0 | W68: =IF(AND(J65>60,J65>J64),1) -> FALSE
H69: =IF(OR(S68=0,T68=0),0,IF($T$68=0,(IF(OR($S$68>0.1,$S$68 <-0.1),1,0)),IF(OR($S$68>0.1,$S$68<-0.1,$T$68>0.1,$T$68<-0.1),1,0))) -> 0 | I69: 0
C70: Unité de mesure des superficies | I70: Printemps | J70: =IF($S$100=1,"Hectare(s)",IF($S$100=2,"Acre(s)","Arpent(s)")) -> Hectare(s) | K70: Été | L70: =IF($S$100=1,"Hectare(s)",IF($S$100=2,"Acre(s)","Arpent(s)")) -> Hectare(s) | M70: Automne | N70: =IF($S$100=1,"Hectare(s)",IF($S$100=2,"Acre(s)","Arpent(s)")) -> Hectare(s) | Q70: Nombre de jours par période : ces résultats découlent des dates inscrites à l’étape A. | S70: =IF(OR(I65<30,I65>45,I65>I64),"",1) -> 1 | T70: =IF(OR(J65<30,J65>60,J65>J64),1,"") -> 
C71: Superficie totale par catégorie d’animaux | I71: par tête | J71: totale | K71: par tête | L71: totale | M71: par tête | N71: totale | Q71: Nombre de jours de repos : la période de repos est de 15 à 20 jours au printemps, de 20 à 30 jours au début de l’été et de 30 à 50 jours en période de sécheresse, à la fin de l’été et à l’automne.
C72: Couples vache-veau et taureaux | I72: =IF(AND(J72>0,(G21+G24+G36)>0),J72/(G21+G24+G36),0) -> 0.6475 | J72: =IF($S$100=1,W72,IF($S$100=2,W72*2.475,W72*2.92)) -> 18.13 | K72: =IF(AND(L72>0,(H21+H24+H36)>0),L72/(H21+H24+H36),0) -> 1.423333333 | L72: =IF($S$100=1,X72,IF($S$100=2,X72*2.475,X72*2.92)) -> 39.85333333 | M72: =IF(AND(N72>0,(I21+I24+I36)>0),N72/(I21+I24+I36),0) -> 1.05 | N72: =IF($S$100=1,Y72,IF($S$100=2,Y72*2.475,Y72*2.92)) -> 29.4 | Q72: Nombre de passages = nombre de jours par période / nombre de jours de repos par cycle. | W72: =IF(H64="",0,(($E$21*$F$21*G21)+($E$24*$F$24*G24)+(G39*$F$39)+(G40*$F$40)+(G41*$F$41)+(G42*$F$42)+(G43*$F$43)+(G44*$F$44)+($E$36*$F$36*G36))/(($F$50*$H$55*$H$67)/($H$64))) -> 18.13 | X72: =IF(I64="",0,(($E$21*$F$21*H21)+($E$24*$F$24*H24)+(H39*$F$39)+(H40*$F$40)+(H41*$F$41)+(H42*$F$42)+(H43*$F$43)+(H44*$F$44)+($E$36*$F$36*H36))/(($F$50*$H$55*$I$67)/($I$64))) -> 39.85333333 | Y72: =IF($J$64="",0,(($E$21*$F$21*I21)+($E$24*$F$24*I24)+(I39*$F$39)+(I40*$F$40)+(I41*$F$41)+(I42*$F$42)+(I43*$F$43)+(I44*$F$44)+($E$36*$F$36*I36))/(($F$50*$H$55*$J$67)/($J$64))) -> 29.4
C73: Vaches et primipares taries | I73: =IF(J73>0,J73/(G22+G25),0) -> 0.4047637363 | J73: 10.52385714 | K73: =IF(L73>0,L73/(H22+H25),0) -> 0.8897509158 | L73: =IF($S$100=1,X73,IF($S$100=2,X73*2.475,X73*2.92)) -> 23.13352381 | M73: =IF(N73>0,N73/(I22+I25),0) -> 0.6563736264 | N73: =IF($S$100=1,Y73,IF($S$100=2,Y73*2.475,Y73*2.92)) -> 17.06571429 | Q73: % du rendement annuel : pour préciser ce facteur, vous pouvez consulter l’onglet Réf productivité. | W73: =IF(H64="",0,(($E$22*$F$22*G22)+($E$25*$F$25*G25))/(($F$50*$H$55*$H$67)/$H$64)) -> 10.52385714 | X73: =IF(I64="",0,(($E$22*$F$22*H22)+($E$25*$F$25*H25))/(($F$50*$H$55*$I$67)/$I$64)) -> 23.13352381 | Y73: =IF($J$64="",0,(($E$22*$F$22*$I$22)+($E$25*$F$25*$I$25))/(($F$50*$H$55*$J$67)/$J$64)) -> 17.06571429
C74: Génisses | I74: =IF(J74>0,J74/(G27+G28),0) -> 0.2814642857 | J74: 0.5629285714 | K74: =IF(L74>0,L74/(H27+H28),0) -> 0.6187142857 | L74: =IF($S$100=1,X74,IF($S$100=2,X74*2.475,X74*2.92)) -> 1.237428571 | M74: =IF(N74>0,N74/(I27+I28),0) -> 0.4564285714 | N74: =IF($S$100=1,Y74,IF($S$100=2,Y74*2.475,Y74*2.92)) -> 0.9128571429 | Q74: kg MS/passage : l’ajustement par le « nombre de jours de repos/cycle », le « % rendement annuel » ou les « dates des périodes » permet d’arriver à une valeur semblable des kg MS/passage pour favoriser une bonne utilisation des parcelles. | W74: =IF(H64="",0,(($E$27*$F$27*G27)+($E$28*$F$28*G28))/(($F$50*$H$55*$H$67)/$H$64)) -> 0.5629285714 | X74: =IF($I$64="",0,(($E$27*$F$27*H27)+($E$28*$F$28*H28))/(($F$50*$H$55*$I$67)/$I$64)) -> 1.237428571 | Y74: =IF($J$64="",0,(($E$27*$F$27*I27)+($E$28*$F$28*I28))/(($F$50*$H$55*$J$67)/($J$64))) -> 0.9128571429
C75: Semi-finis | I75: =IF(J75>0,J75/(G30+G31),0) -> 0 | J75: 0 | K75: =IF(L75>0,L75/(H30+H31),0) -> 0 | L75: =IF($S$100=1,X75,IF($S$100=2,X75*2.475,X75*2.92)) -> 0 | M75: =IF(N75>0,N75/(I30+I31),0) -> 0 | N75: =IF($S$100=1,Y75,IF($S$100=2,Y75*2.475,Y75*2.92)) -> 0 | W75: =IF(H64="",0,(($E$30*$F$30*G30)+($E$31*$F$31*G31))/(($F$50*$H$55*$H$67)/$H$64)) -> 0 | X75: =IF(I64="",0,(($E$30*$F$30*H30)+($E$31*$F$31*H31))/(($F$50*$H$55*$I$67)/$I$64)) -> 0 | Y75: =IF($J$64="",0,(($E$30*$F$30*I30)+($E$31*$F$31*I31))/(($F$50*$H$55*$J$67)/($J$64))) -> 0
C76: Bouvillons | I76: =IF(J76>0,J76/(G33+G34),0) -> 0 | J76: 0 | K76: =IF(L76>0,L76/(H33+H34),0) -> 0 | L76: =IF($S$100=1,X76,IF($S$100=2,X76*2.475,X76*2.92)) -> 0 | M76: =IF(N76>0,N76/(I33+I34),0) -> 0 | N76: =IF($S$100=1,Y76,IF($S$100=2,Y76*2.475,Y76*2.92)) -> 0 | W76: =IF(H64="",0,(($E$33*$F$33*G33)+($E$34*$F$34*G34))/(($F$50*$H$55*$H$67)/$H$64)) -> 0 | X76: =IF(I64="",0,(($E$33*$F$33*H33)+($E$34*$F$34*H34))/(($F$50*$H$55*$I$67)/$I$64)) -> 0 | Y76: =IF($J$64="",0,(($E$33*$F$33*I33)+($E34*F34*I34))/(($F$50*$H$55*$J$67)/($J$64))) -> 0
J77: 29.21678571 | L77: =IF($S$100=1,AB77,IF($S$100=2,AB77*2.475,AB77*2.92)) -> 64.22428571 | N77: =IF($S$100=1,AE77,IF($S$100=2,AE77*2.475,AE77*2.92)) -> 47.37857143 | W77: =IF(H64="",0,$G$45/(($F$50*$H$55*$H$67)/$H$64)) -> 29.21678571 | AA77: été | AB77: =IF(I64="",0,$H$45/(($F$50*$H$55*$I$67)/$I$64)) -> 64.22428571 | AD77: automne | AE77: =IF(J64="",0,$I$45/(($F$50*$H$55*$J$67)/$J$64)) -> 47.37857143
V78: printemps
C79: Superficie maximale à prévoir en pâturage | M79: =MAX(J77,L77,N77) -> 64.22428571 | N79: =IF($S$100=1,"Hectares",IF($S$100=2,"Acres","Arpents")) -> Hectares | W79: =SUM(W72:W76) -> 29.21678571 | X79: =SUM(X72:X76) -> 64.22428571 | Y79: =SUM(Y72:Y76) -> 47.37857143
C82: Grandeur des parcelles ou des bandes
C83: Période | I83: Printemps | K83: Été | M83: Automne
C84: Nombre de jours de paissance/parcelle ou bande | I84: 2 | K84: 2 | M84: 2
C85: Jours de repos | I85: =H65 -> 20 | K85: =I65 -> 45 | M85: =J65 -> 35
C86: Nombre de passages | I86: =IF(H64="",0,H64/I85) -> 1.85 | K86: =IF(I64="",0,I64/I65) -> 1.355555556 | M86: =IF(J64="",0,J64/J65) -> 1.285714286
C87: Superficie nécessaire/parcelle | F87: =IF($S$100=1,"Hectare(s)",IF($S$100=2,"Acre(s)","Arpent(s)")) -> Hectare(s) | I87: =IF(I88=0,0,J77/I88) -> 2.656071429 | K87: =IF(K88=0,0,L77/K88) -> 2.732948328 | M87: =IF(M88=0,0,N77/M88) -> 2.561003861
C88: Nombre de parcelles ou de bandes | I88: =IF(I84="",0,(I85/I84)+1) -> 11 | K88: =IF(K84="",0,(K85/K84)+1) -> 23.5 | M88: =IF(M84="",0,(M85/M84)+1) -> 18.5 | Q88: Le nombre de parcelles/bandes tient compte du temps de repos choisi et est calculé selon l’approche d’André Voisin. | T88: =I85/I84 -> 10 | U88: =K85/K84 -> 22.5
V89: =M85/M84 -> 17.5
B90: Signature :
B91: Conseiller(ère) : | E91: =F8 -> Prénom et nom | L91: Date : | M91: =IF(M8="","",M8) ->  | AC91: Date : | AE91: 00:00:00
C95: E) SUPERFICIE EN PÂTURAGE DISPONIBLE SUR L’ENTREPRISE | Q95: E) SUPERFICIE EN PÂTURAGE DISPONIBLE SUR L’ENTREPRISE
Q96: Vous pouvez inscrire dans cette section les numéros de parcelles avec leur superficie. L’estimation du nombre de jours que chacune des parcelles peut supporter durant l’une ou l’autre des périodes est basée sur un rendement moyen homogène pour l’ensemble des parcelles. Le dernier tableau sommaire indique les superficies nécessaires et celles disponibles sur l’entreprise pour ce site ou pour ce(s) groupe(s) d’animaux. Vous constaterez alors les surplus ou les déficits en superficie par période de pâturage. Il est important de noter que les superficies déterminées ne tiennent pas compte du fourrage disponible en fourrage sur pied « stock piling » après la fin des pâturages et des regains.
E97: Numéro de champ | G97: Printemps | I97: Été | K97: Automne
G98: =F87 -> Hectare(s) | H98: Nbre de jours | I98: =F87 -> Hectare(s) | J98: Nbre de jours | K98: =F87 -> Hectare(s) | L98: Nbre de jours
E99: 1 | G99: 17 | H99: =IF(G99="","",(G99)/($J$77/$I$85)) -> 11.63714597 | I99: 17 | J99: =IF(I99="","",(I99)/($L$77/$K$85)) -> 11.91138199 | K99: 17 | L99: =IF(K99="","",(K99)/($N$77/$M$85)) -> 12.55842002 | N99: Convertisseur
E100: 2 | G100: 17 | H100: =IF(G100="","",(G100)/($J$77/$I$85)) -> 11.63714597 | I100: 17 | J100: =IF(I100="","",(I100)/($L$77/$K$85)) -> 11.91138199 | K100: 17 | L100: =IF(K100="","",(K100)/($N$77/$M$85)) -> 12.55842002 | N100: 1 | O100: acre | S100: 1 | T100: hectare
E101: 3 | G101: 17 | H101: 11.63714597 | I101: 17 | J101: 11.91138199 | K101: 17 | L101: 12.55842002 | N101: =N100/2.47105 -> 0.404686267 | O101: ha | Q101: Nbre de jours : estimé selon un rendement moyen des parcelles déterminé à la section C. | T101: acre
T102: arpent
N103: 1 | O103: arpent
N104: =N103/2.92505 -> 0.3418744979 | O104: ha
E130: Le nombre de jours par parcelle tient compte d’un rendement homogène par parcelle de : | K130: =H57 -> 2975 | L130: kg MS/ha/an
N131: Poids moyen des balles
E132: Sommaire | G132: Printemps | I132: Été | K132: Automne | N132: Convertisseur lb en kg
E133: Superficie disponible | G133: =SUM(G99:G129) -> 51 | I133: =SUM(I99:I129) -> 51 | K133: =SUM(K99:K129) -> 51 | N133: lb TQS | O133: kg TQS
E134: Superficie nécessaire | G134: =J77 -> 29.21678571 | I134: =L77 -> 64.22428571 | K134: =N77 -> 47.37857143 | N134: 600 | O134: =N134/2.2 -> 272.7272727
E135: Superficie surplus/(déficit) | G135: =G133-G134 -> 21.78321429 | I135: =I133-I134 -> -13.22428571 | K135: =K133-K134 -> 3.621428571 | N135: % MS | O135: kg MS
E136: T MS surplus/(déficit) | G136: =(H68*H66*G133/1000)-(G45*H64/1000) -> 19.7865 | I136: =(I68*I66*I133/1000)-(H45*I64/1000) -> -21.918 | K136: =(J68*J66*K133/1000)-(I45*J64/1000) -> -4.23 | N136: 0.85 | O136: =O134*N136 -> 231.8181818
E137: Potentiel de balles à récolter | G137: =IF((G136*1000/O136)>0,(G136*1000/O136),0) -> 85.35352941 | I137: =IF((I136*1000/O136)>0,(I136*1000/O136),0) -> 0 | K137: =IF((K136*1000/O136)>0,(K136*1000/O136),0) -> 0 | O137: lb MS
E138: Balles à prévoir en complément | G138: =IF((G136*1000/O136)>0,0,-(G136*1000/O136)) -> 0 | I138: =IF((I136*1000/O136)>0,0,-(I136*1000/O136)) -> 94.54823529 | K138: =IF((K136*1000/O136)>0,0,-(K136*1000/O136)) -> 18.24705882 | O138: =O136*2.2046 -> 511.0663636
C140: F) RECOMMANDATION(S) :
B142: Signature :
B143: Conseiller/ère : | E143: =IF(F8="","",F8) -> Prénom et nom | L143: Date: | M143: =IF(M8="","",M8) ->  | AC143: Date : | AE143: 00:00:00

Sheet Calc. Fourrages conservés
B3: CALCULATEUR – FOURRAGE CONSERVÉ ESTIMATION DES BESOINS EN FOURRAGE CONSERVÉ
Q4: Explications des différentes sections du calculateur
C7: Entreprise : | F7: Ferme | L7: Site :
C9: Conseiller(ère) : | F9: Prénom et nom | L9: Date :
M10: (aaaa/mm/jj)
C11: A) NOMBRE DE JOURS D’HIVERNAGE | Q11: A) NOMBRE DE JOURS D’HIVERNAGE
Q12: Inscrire la date de début et de fin d’hivernage pour calculer la durée d’hivernage et de paissance.
F13: Début | H13: Fin | K13: Jours totaux | M13: Jours totaux
K14: hivernement | M14: pâturage
C15: Dates d’hivernage : | F15: ='Calc. Pâturages'!J14 -> 2025-10-15 | H15: ='Calc. Pâturages'!G14+365 -> 2026-05-25 | K15: =IF(F15="","",H15-F15) -> 222 | M15: =IF(K15="","",365-K15) -> 143
C17: B) DESCRIPTION DU CHEPTEL ET DES BESOINS EN FOURRAGE | Q17: B) DESCRIPTION DU CHEPTEL ET DES BESOINS EN FOURRAGE
K18: Référence qualité | Q18: Pour les vaches et les primipares, inscrire le nombre de jours durant lesquels ces femelles seront allaitantes pendant la période d’hivernage. Le nombre de jours de tarissement durant leur confinement sera calculé automatiquement. Bien qu’il s’agisse des mêmes groupes de femelles, il est possible de faire varier le nombre pour tenir compte des réformes possibles. Les lignes suivantes, consacrées aux femelles reproductrices, peuvent servir à décrire le reste du troupeau ou d’autres groupes de vaches.
G19: Références CVMS | K19: QUALITÉ MINIMALE NÉCESSAIRE DU FOURRAGE (%)
F20: Poids (kg) | G20: % CVMS FOURRAGE | H20: Nombre d’animaux | I20: Nombre de jours | K20: Excellent | L20: Bon | M20: Moyen | N20: Pauvre
C21: Vache allaitante | F21: 700 | G21: 0.025 | H21: 50 | I21: 115 | L21: 1 | O21: =IF(AND(K21="",L21="",M21="",N21=""),"",IF(OR(K21+L21+M21+N21>1,K21+L21+M21+N21<1),"somme différente de 100%","")) -> 
C22: Vache tarie | F22: 700 | G22: 0.02 | H22: 50 | I22: =IF(K15="",0,K15-I21) -> 107 | M22: 1 | O22: =IF(AND(K22="",L22="",M22="",N22=""),"",IF(OR(K22+L22+M22+N22>1,K22+L22+M22+N22<1),"somme différente de 100%","")) ->  | Q22: Vache tarie = ce sont les mêmes vaches que les vaches allaitantes, mais à un stade différent.
C24: Primipare allaitante | F24: 600 | G24: 0.025 | H24: 3 | I24: 115 | L24: 1 | O24: =IF(AND(K24="",L24="",M24="",N24=""),"",IF(OR(K24+L24+M24+N24>1,K24+L24+M24+N24<1),"somme différente de 100%","")) ->  | Q24: Primipare tarie = ce sont les mêmes primipares que celles allaitantes, mais à un stade différent.
C25: Primipare tarie | F25: 600 | G25: 0.02 | H25: 3 | I25: =IF(K15="",0,K15-I24) -> 107 | M25: 1 | O25: =IF(AND(K25="",L25="",M25="",N25=""),"",IF(OR(K25+L25+M25+N25>1,K25+L25+M25+N25<1),"somme différente de 100%","")) -> 
C27: Génisse-taure < 24 mois | F27: 500 | G27: 0.0225 | H27: 3 | I27: 229 | L27: 1 | O27: =IF(AND(K27="",L27="",M27="",N27=""),"",IF(OR(K27+L27+M27+N27>1,K27+L27+M27+N27<1),"somme différente de 100%","")) ->  | Q27: Dans la section qualité minimale nécessaire du fourrage (%), à droite, indiquez la qualité de fourrage visée pour les différentes catégories d’animaux. Inscrire 100 pour un seul choix de fourrage. Le total doit donner 100 % si deux qualités différentes de fourrage sont utilisées. Indiquez 100 vis-à-vis la qualité du fourrage visé ou si deux fourrages sont utilisés, inscrire des fractions qui totaliseront 100 %.
C28: Génisse < 15 mois | F28: 400 | G28: 0.02 | H28: 3 | I28: 229 | K28: 1 | O28: =IF(AND(K28="",L28="",M28="",N28=""),"",IF(OR(K28+L28+M28+N28>1,K28+L28+M28+N28<1),"somme différente de 100%","")) -> 
C30: Semi-fini | O30: =IF(AND(K30="",L30="",M30="",N30=""),"",IF(OR(K30+L30+M30+N30>1,K30+L30+M30+N30<1),"somme différente de 100%","")) -> 
O31: =IF(AND(K31="",L31="",M31="",N31=""),"",IF(OR(K31+L31+M31+N31>1,K31+L31+M31+N31<1),"somme différente de 100%","")) ->  | Q31: Si le client gère plus d’un groupe de vaches, il est possible d’utiliser les cases optionnelles pour les semi-finis et les bouvillons et d’y ajouter un 2e groupe de vaches allaitantes et taries avec les périodes correspondantes.
C33: Bouvillon | O33: =IF(AND(K33="",L33="",M33="",N33=""),"",IF(OR(K33+L33+M33+N33>1,K33+L33+M33+N33<1),"somme différente de 100%","")) -> 
O34: =IF(AND(K34="",L34="",M34="",N34=""),"",IF(OR(K34+L34+M34+N34>1,K34+L34+M34+N34<1),"somme différente de 100%","")) -> 
C36: Taureau | F36: 900 | G36: 0.02 | H36: 2 | I36: 229 | L36: 1 | O36: =IF(AND(K36="",L36="",M36="",N36=""),"",IF(OR(K36+L36+M36+N36>1,K36+L36+M36+N36<1),"somme différente de 100%","")) -> 
G37: kg CVMS | H37: Nombre | I37: Nombre | O37: =IF(OR(F37="",G37="",H37="",I37=""),"",IF(OR(K37+L37+M37+N37>1,K37+L37+M37+N37<1),"somme différente de 100%","")) -> 
F38: Âge/Stade | G38: fourrage | H38: d’animaux | I38: de jours | Q38: Veau sous la mère
C39: Veau sous la mère | F39: 2 mois | G39: 1.3 | H39: 50 | I39: 30 | K39: 1 | O39: =IF(AND(K39="",L39="",M39="",N39=""),"",IF(OR(K39+L39+M39+N39>1,K39+L39+M39+N39<1),"somme différente de 100%","")) ->  | Q39: Nombre d’animaux : durant la période d’hivernement, combien de veaux passeront aux stades « 2 mois », « 3 mois », etc.
F40: 3 mois | G40: 2 | H40: 50 | I40: 30 | K40: 1 | O40: =IF(AND(K40="",L40="",M40="",N40=""),"",IF(OR(K40+L40+M40+N40>1,K40+L40+M40+N40<1),"somme différente de 100%","")) ->  | Q40: Nombre de jours par stade : 30 jours, sauf pour le stade « 8 mois et + ».
F41: 4 mois | G41: 2.3 | H41: 25 | I41: 30 | K41: 1
F42: 5 mois | G42: 4.1 | H42: 25 | I42: 30 | K42: 1
F43: 6 mois | G43: 4.8 | H43: 25 | I43: 30 | K43: 1
F44: 7 mois | G44: 5.9 | H44: 25 | I44: 30 | K44: 1
F45: 8 mois et + | G45: 7.2 | H45: 25 | I45: 42 | K45: 1 | Q45: =(($G$39*$H$39*$I$39*K39)+($G$40*$H$40*$I$40*K40)+($G$41*$H$41*$I$41*K41)+($G$42*$H$42*$I$42*K42)+($G$43*$H$43*$I$43*K43)+($G$44*$H$44*$I$44*K44)+($G$45*$H$45*$I$45*K45))/1000 -> 25.335 | R45: =(($G$39*$H$39*$I$39*L39)+($G$40*$H$40*$I$40*L40)+($G$41*$H$41*$I$41*L41)+($G$42*$H$42*$I$42*L42)+($G$43*$H$43*$I$43*L43)+($G$44*$H$44*$I$44*L44)+($G$45*$H$45*$I$45*L45))/1000 -> 0 | S45: =(($G$39*$H$39*$I$39*M39)+($G$40*$H$40*$I$40*M40)+($G$41*$H$41*$I$41*M41)+($G$42*$H$42*$I$42*M42)+($G$43*$H$43*$I$43*M43)+($G$44*$H$44*$I$44*M44)+($G$45*$H$45*$I$45*M45))/1000 -> 0 | T45: =(($G$39*$H$39*$I$39*N39)+($G$40*$H$40*$I$40*N40)+($G$41*$H$41*$I$41*N41)+($G$42*$H$42*$I$42*N42)+($G$43*$H$43*$I$43*N43)+($G$44*$H$44*$I$44*N44)+($G$45*$H$45*$I$45*N45))/1000 -> 0
I46: =SUM(I39:I45) -> 222 | J46: jours d’hivernement des veaux sous la mère
C47: C) SOMMAIRE DES BESOINS | Q47: C) SOMMAIRE DES BESOINS
Q48: Toutes les données et tous les résultats sont à 100 % de matière sèche (MS), il est donc important d’entrer le poids des balles à 100 % MS et non comme servies (TQS). À titre indicatif, des références ont été incluses pour valider le poids des balles et le pourcentage de perte.
F49: QUANTITÉ NÉCESSAIRE DU FOURRAGE (tonnes MS)
F50: Excellent | G50: Bon | H50: Moyen | I50: Pauvre
C52: Vache allaitante | F52: =IF(($F21*$G21*$H21*$I21*K21)/1000=0,"",($F21*$G21*$H21*$I21*K21)/1000) ->  | G52: =IF(($F21*$G21*$H21*$I21*L21)/1000=0,"",($F21*$G21*$H21*$I21*L21)/1000) -> 100.625 | H52: =IF(($F21*$G21*$H21*$I21*M21)/1000=0,"",($F21*$G21*$H21*$I21*M21)/1000) ->  | I52: =IF(($F21*$G21*$H21*$I21*N21)/1000=0,"",($F21*$G21*$H21*$I21*N21)/1000) -> 
C53: Vache tarie | H53: 74.9
C55: Taure allaitante | G55: 5.175
C56: Taure tarie | H56: 3.852
C58: =IF(C27="","",C27) -> Génisse-taure < 24 mois | G58: 7.72875
C59: Génisse < 15 mois | F59: 5.496
C61: =IF(C30="","",C30) -> Semi-fini
C62: =IF(C31="","",C31) -> 
C64: =IF(C33="","",C33) -> Bouvillon
C65: =IF(C34="","",C34) -> 
C67: =IF(C36="","",C36) -> Taureau | G67: =IF(($F36*$G36*$H36*$I36*L36)/1000=0,"",($F36*$G36*$H36*$I36*L36)/1000) -> 8.244 | H67: =IF(($F36*$G36*$H36*$I36*M36)/1000=0,"",($F36*$G36*$H36*$I36*M36)/1000) ->  | I67: =IF(($F36*$G36*$H36*$I36*N36)/1000=0,"",($F36*$G36*$H36*$I36*N36)/1000) -> 
C68: =IF(C37="","",C37) -> 
C69: =IF(C39="","",C39) -> Veau sous la mère | F69: =IF(Q45=0,"",Q45) -> 25.335 | G69: =IF(R45=0,"",R45) ->  | H69: =IF(S45=0,"",S45) ->  | I69: =IF(T45=0,"",T45) -> 
K70: Total
C71: Besoins totaux en MS ingérées : | F71: =SUM(F52:F70) -> 30.831 | G71: =SUM(G52:G70) -> 121.77275 | H71: =SUM(H52:H70) -> 78.752 | I71: =SUM(I52:I70) -> 0 | K71: =SUM(F71:I71) -> 231.35575
C73: Pourcentage de pertes | F73: 0.15 | G73: mangeoire, entreposage, reprise, pâturage de balles en hiver | K73: Références perte
K74: Références CVMS
C75: Ajustement CVMS | F75: 0.1 | G75: temps froid, boue, vent, précipitations
C77: Réserve/banque de fourrage | F77: 0.05
C79: Tonnage de MS à récolter | F79: =F71*(1+$F$73)*(1+$F$75)*(1+$F$77) -> 40.95127575 | G79: =G71*(1+$F$73)*(1+$F$75)*(1+$F$77) -> 161.7446552 | H79: 104.602344 | I79: 0 | K79: =SUM(F79:I79) -> 307.2982749 | M79: Convertisseur lb en kg
M80: lb TQS | N80: kg TQS
C81: Poids moyen des balles (kg MS) | F81: 231.8 | G81: 231.8 | H81: 231.8 | I81: 231.8 | K81: Références poids | M81: 600 | N81: =M81/2.2 -> 272.7272727
M82: % MS | N82: kg MS
C83: Nombre de balles | F83: =IF(F81="","",(F79*1000)/F81) -> 176.6664182 | G83: =IF(G81="","",(G79*1000)/G81) -> 697.7767696 | H83: =IF(H81="","",(H79*1000)/H81) -> 451.2611907 | I83: =IF(I81="","",(I79*1000)/I81) -> 0 | K83: =SUM(F83:I83) -> 1325.704379 | M83: 0.85 | N83: =N81*M83 -> 231.8181818
B84: Signature :
B85: Conseiller(ère) : | E85: =IF(F9="","",F9) -> Prénom et nom | L85: Date : | M85: =IF(M9="","",M9) ->  | AA85: Date : | AC85: 00:00:00

Sheet Plan et doc.
B3: Plan de paissance | N3: Exemple de plan de paissance
N4: Source : | O4: Grazing_Plan_Template_2025_FR.xlsx
B5: Connaissez-vous :
C6: Info-sols | D6: https://www.info-sols.ca/
C7: CFGA-ACPF | D7: Grazing Plan Resources
B9: insérer image(s) et légende
B11: Astuce : | C11: Allez dans insertion, puis cliquez sur « objet » à droite du bandeau et insérez votre plan de ferme comme un objet.

Sheet Suivi paissance
A2: SUIVI DE LA PAISSANCE
A4: Conseiller(ère) :
A5: Entreprise :
A6: Site :
A8: Champ no | B8: Superficie ¨ ha ¨ ac ¨ arp. | C8: Date entrée | D8: Nbre de jours | E8: Nbre de vaches | F8: Poids moyen (kg)3 | H8: État de chair moyen (1 à 5)3 | J8: Nbre d’animaux | K8: Catégorie2 | L8: Poids moyen (kg)3 | N8: Fourrage servi (kg) | O8: % matière sèche
B9: (ha) | D9: par parcelle 1 | F9: Début | G9: Fin | H9: Début | I9: Fin | L9: Début | M9: Fin
A32: (1) Si le champ est subdivisé en parcelles, indiquez le nombre de jours par subdivision du champ pour cette période (ex. : 1 jour, 5 jours, etc.).
A33: (2) Voir la feuille "ESTIMATION DES SUPERFICIES NÉCESSAIRES EN PÂTURAGE EN PRODUCTION VACHE-VEAU", section B.
A34: (3) Début = début de la saison de paissance / fin = fin de la saison de paissance.

Sheet Charte pâturage
A1: ANNÉE : | E1: PLAN DE PÂTURAGES
A2: CHAMPS-PARCELLES | E2: AVRIL | AI2: MAI | BN2: JUIN | CR2: JUILLET | DW2: AOÛT | FB2: SEPTEMBRE
A3: ESPÈCES | B3: RENDEMENT | C3: SUPERFICIE | D3: NUMÉRO OU NOM
E4: 1 | F4: 2 | G4: 3 | H4: 4 | I4: 5 | J4: 6 | K4: 7 | L4: 8 | M4: 9 | N4: 10 | O4: 11 | P4: 12 | Q4: 13 | R4: 14 | S4: 15 | T4: 16 | U4: 17 | V4: 18 | W4: 19 | X4: 20 | Y4: 21 | Z4: 22 | AA4: 23 | AB4: 24 | AC4: 25 | AD4: 26 | AE4: 27 | AF4: 28 | AG4: 29 | AH4: 30 | AI4: 1 | AJ4: 2 | AK4: 3 | AL4: 4 | AM4: 5 | AN4: 6 | AO4: 7 | AP4: 8 | AQ4: 9 | AR4: 10 | AS4: 11 | AT4: 12 | AU4: 13 | AV4: 14 | AW4: 15 | AX4: 16 | AY4: 17 | AZ4: 18 | BA4: 19 | BB4: 20 | BC4: 21 | BD4: 22 | BE4: 23 | BF4: 24 | BG4: 25 | BH4: 26 | BI4: 27 | BJ4: 28 | BK4: 29 | BL4: 30 | BM4: 31 | BN4: 1 | BO4: 2 | BP4: 3 | BQ4: 4 | BR4: 5 | BS4: 6 | BT4: 7 | BU4: 8 | BV4: 9 | BW4: 10 | BX4: 11 | BY4: 12 | BZ4: 13 | CA4: 14 | CB4: 15 | CC4: 16 | CD4: 17 | CE4: 18 | CF4: 19 | CG4: 20 | CH4: 21 | CI4: 22 | CJ4: 23 | CK4: 24 | CL4: 25 | CM4: 26 | CN4: 27 | CO4: 28 | CP4: 29 | CQ4: 30 | CR4: 1 | CS4: 2 | CT4: 3 | CU4: 4 | CV4: 5 | CW4: 6 | CX4: 7 | CY4: 8 | CZ4: 9 | DA4: 10 | DB4: 11 | DC4: 12 | DD4: 13 | DE4: 14 | DF4: 15 | DG4: 16 | DH4: 17 | DI4: 18 | DJ4: 19 | DK4: 20 | DL4: 21 | DM4: 22 | DN4: 23 | DO4: 24 | DP4: 25 | DQ4: 26 | DR4: 27 | DS4: 28 | DT4: 29 | DU4: 30 | DV4: 31 | DW4: 1 | DX4: 2 | DY4: 3 | DZ4: 4 | EA4: 5 | EB4: 6 | EC4: 7 | ED4: 8 | EE4: 9 | EF4: 10 | EG4: 11 | EH4: 12 | EI4: 13 | EJ4: 14 | EK4: 15 | EL4: 16 | EM4: 17 | EN4: 18 | EO4: 19 | EP4: 20 | EQ4: 21 | ER4: 22 | ES4: 23 | ET4: 24 | EU4: 25 | EV4: 26 | EW4: 27 | EX4: 28 | EY4: 29 | EZ4: 30 | FA4: 31 | FB4: 1 | FC4: 2 | FD4: 3 | FE4: 4 | FF4: 5 | FG4: 6 | FH4: 7 | FI4: 8 | FJ4: 9 | FK4: 10 | FL4: 11 | FM4: 12 | FN4: 13 | FO4: 14 | FP4: 15 | FQ4: 16 | FR4: 17 | FS4: 18 | FT4: 19 | FU4: 20 | FV4: 21 | FW4: 22 | FX4: 23 | FY4: 24 | FZ4: 25 | GA4: 26 | GB4: 27 | GC4: 28 | GD4: 29 | GE4: 30
D55: PRÉCIPITA-TIONS / MM
D56: NEIGE / CM
A57: MÉTÉO (°C)
A61: ANNÉE | E61: PLAN DE PÂTURAGES
A62: CHAMPS / PARCELLES | E62: OCTOBRE | AJ62: NOVEMBRE | BN62: DECEMBRE | CS62: JANVIER | DX62: FÉVRIER | EZ62: MARS
A63: ESPÈCES | B63: RENDEMENT | C63: SUPERFICIE | D63: NUMÉRO OU NOM
E64: 1 | F64: 2 | G64: 3 | H64: 4 | I64: 5 | J64: 6 | K64: 7 | L64: 8 | M64: 9 | N64: 10 | O64: 11 | P64: 12 | Q64: 13 | R64: 14 | S64: 15 | T64: 16 | U64: 17 | V64: 18 | W64: 19 | X64: 20 | Y64: 21 | Z64: 22 | AA64: 23 | AB64: 24 | AC64: 25 | AD64: 26 | AE64: 27 | AF64: 28 | AG64: 29 | AH64: 30 | AI64: 31 | AJ64: 1 | AK64: 2 | AL64: 3 | AM64: 4 | AN64: 5 | AO64: 6 | AP64: 7 | AQ64: 8 | AR64: 9 | AS64: 10 | AT64: 11 | AU64: 12 | AV64: 13 | AW64: 14 | AX64: 15 | AY64: 16 | AZ64: 17 | BA64: 18 | BB64: 19 | BC64: 20 | BD64: 21 | BE64: 22 | BF64: 23 | BG64: 24 | BH64: 25 | BI64: 26 | BJ64: 27 | BK64: 28 | BL64: 29 | BM64: 30 | BN64: 1 | BO64: 2 | BP64: 3 | BQ64: 4 | BR64: 5 | BS64: 6 | BT64: 7 | BU64: 8 | BV64: 9 | BW64: 10 | BX64: 11 | BY64: 12 | BZ64: 13 | CA64: 14 | CB64: 15 | CC64: 16 | CD64: 17 | CE64: 18 | CF64: 19 | CG64: 20 | CH64: 21 | CI64: 22 | CJ64: 23 | CK64: 24 | CL64: 25 | CM64: 26 | CN64: 27 | CO64: 28 | CP64: 29 | CQ64: 30 | CR64: 31 | CS64: 1 | CT64: 2 | CU64: 3 | CV64: 4 | CW64: 5 | CX64: 6 | CY64: 7 | CZ64: 8 | DA64: 9 | DB64: 10 | DC64: 11 | DD64: 12 | DE64: 13 | DF64: 14 | DG64: 15 | DH64: 16 | DI64: 17 | DJ64: 18 | DK64: 19 | DL64: 20 | DM64: 21 | DN64: 22 | DO64: 23 | DP64: 24 | DQ64: 25 | DR64: 26 | DS64: 27 | DT64: 28 | DU64: 29 | DV64: 30 | DW64: 31 | DX64: 1 | DY64: 2 | DZ64: 3 | EA64: 4 | EB64: 5 | EC64: 6 | ED64: 7 | EE64: 8 | EF64: 9 | EG64: 10 | EH64: 11 | EI64: 12 | EJ64: 13 | EK64: 14 | EL64: 15 | EM64: 16 | EN64: 17 | EO64: 18 | EP64: 19 | EQ64: 20 | ER64: 21 | ES64: 22 | ET64: 23 | EU64: 24 | EV64: 25 | EW64: 26 | EX64: 27 | EY64: 28 | EZ64: 1 | FA64: 2 | FB64: 3 | FC64: 4 | FD64: 5 | FE64: 6 | FF64: 7 | FG64: 8 | FH64: 9 | FI64: 10 | FJ64: 11 | FK64: 12 | FL64: 13 | FM64: 14 | FN64: 15 | FO64: 16 | FP64: 17 | FQ64: 18 | FR64: 19 | FS64: 20 | FT64: 21 | FU64: 22 | FV64: 23 | FW64: 24 | FX64: 25 | FY64: 26 | FZ64: 27 | GA64: 28 | GB64: 29 | GC64: 30 | GD64: 31
D115: PRÉCIPITA-TIONS / MM
D116: NEIGE / CM
A117: MÉTÉO (°C)

Sheet Feuil1 (hidden)
D4: 2025-01-31 | E4: 2025-02-28 | F4: 2025-03-31 | G4: 2025-04-30 | H4: 2025-05-31 | I4: 2025-06-30 | J4: 2025-07-31 | K4: 2025-08-31 | L4: 2025-09-30 | M4: 2025-10-31 | N4: 2025-11-30 | O4: 2025-12-31
A5: CVMS totale (kg) | D5: =('CVMS VV'!E15+'CVMS VV'!T15)*1000 -> 24147.76 | E5: =('CVMS VV'!F15+'CVMS VV'!U15)*1000 -> 21810.88 | F5: =('CVMS VV'!G15+'CVMS VV'!V15)*1000 -> 25824.24 | G5: =('CVMS VV'!H15+'CVMS VV'!W15)*1000 -> 28704 | H5: =('CVMS VV'!I15+'CVMS VV'!X15)*1000 -> 29257.8 | I5: =('CVMS VV'!J15+'CVMS VV'!Y15)*1000 -> 30217.2 | J5: =('CVMS VV'!K15+'CVMS VV'!Z15)*1000 -> 31901.48 | K5: =('CVMS VV'!L15+'CVMS VV'!AA15)*1000 -> 32836.44 | L5: =('CVMS VV'!M15+'CVMS VV'!AB15)*1000 -> 33384 | M5: =('CVMS VV'!N15+'CVMS VV'!AC15)*1000 -> 23583.56 | N5: =('CVMS VV'!O15+'CVMS VV'!AD15)*1000 -> 22713.6 | O5: =('CVMS VV'!P15+'CVMS VV'!AE15)*1000 -> 23696.4
A6: Nombre de jours/mois | D6: 31 | E6: 28 | F6: 31 | G6: 30 | H6: 31 | I6: 30 | J6: 31 | K6: 31 | L6: 30 | M6: 31 | N6: 30 | O6: 31
A7: CVMS totale/mois (kg) | D7: =D5/D6 -> 778.96 | E7: =E5/E6 -> 778.96 | F7: 833.04 | G7: 956.8 | H7: 943.8 | I7: 1007.24 | J7: 1029.08 | K7: 1059.24 | L7: 1112.8 | M7: 760.76 | N7: 757.12 | O7: 764.4
B9: # jours alimentés
A10: Fourrages Hiver | B10: ='Calc. Pâturages'!G14-DATE(2025,1,1) -> 144 | D10: =IF(IF($B10>D6,D6,$B10)<0,0,IF($B10>D6,D6,$B10)) -> 31 | E10: =IF(IF($B10-(D6+E6)>E6,E6,B10-(D6))<0,0,IF($B10-(D6+E6)>E6,E6,B10-(D6))) -> 28 | F10: =IF(IF($B10-(D6+E6+F6)>F6,F6,B10-(D6+E6))<0,0,IF($B10-(D6+E6+F6)>F6,F6,B10-(D6+E6))) -> 31 | G10: =IF(IF($B10-(D6+E6+F6)>G6,G6,B10-(D6+E6+F6))<0,0,IF($B10-(D6+E6+F6)>G6,G6,B10-(D6+E6+F6))) -> 30 | H10: =IF(IF($B10-(D6+E6+F6+G6)>H6,H6,B10-(D6+E6+F6+G6))<0,0,IF($B10-(D6+E6+F6+G6)>H6,H6,B10-(D6+E6+F6+G6))) -> 24 | I10: =IF(IF($B10-(D6+E6+F6+G6+H6)>I6,I6,B10-(D6+E6+F6+G6+H6))<0,0,IF($B10-(D6+E6+F6+G6+H6)>I6,I6,B10-(D6+E6+F6+G6+H6))) -> 0 | J10: =IF(IF($B10-(D6+E6+F6+G6+H6+I6)>J6,J6,B10-(D6+E6+F6+G6+H6+I6))<0,0,IF($B10-(D6+E6+F6+G6+H6+I6)>J6,J6,B10-(D6+E6+F6+G6+H6+I6))) -> 0 | K10: =IF(IF($B10-(D6+E6+F6+G6+H6+I6+J6)>K6,K6,B10-(D6+E6+F6+G6+H6+I6+J6))<0,0,IF($B10-(D6+E6+F6+G6+H6+I6+J6)>K6,K6,B10-(D6+E6+F6+G6+H6+I6+J6))) -> 0 | L10: =IF(IF($B10-(D6+E6+F6+G6+H6+I6+J6+K6)>L6,L6,B10-(D6+E6+F6+G6+H6+I6+J6+K6))<0,0,IF($B10-(D6+E6+F6+G6+H6+I6+J6+K6)>L6,L6,B10-(D6+E6+F6+G6+H6+I6+J6+K6))) -> 0 | M10: =IF(IF($B10-(D6+E6+F6+G6+H6+I6+J6+K6+L6)>M6,M6,B10-(D6+E6+F6+G6+H6+I6+J6+K6+L6))<0,0,IF($B10-(D6+E6+F6+G6+H6+I6+J6+K6+L6)>M6,M6,B10-(D6+E6+F6+G6+H6+I6+J6+K6+L6))) -> 0 | N10: =IF(IF($B10-(D6+E6+F6+G6+H6+I6+J6+K6+L6+M6)>N6,N6,B10-(D6+E6+F6+G6+H6+I6+J6+K6+L6+M6))<0,0,IF($B10-(D6+E6+F6+G6+H6+I6+J6+K6+L6+M6)>N6,N6,B10-(D6+E6+F6+G6+H6+I6+J6+K6+L6+M6))) -> 0 | O10: =IF(IF($B10-(D6+E6+F6+G6+H6+I6+J6+K6+L6+M6+N6)>O6,O6,B10-(D6+E6+F6+G6+H6+I6+J6+K6+L6+M6+N6))<0,0,IF($B10-(D6+E6+F6+G6+H6+I6+J6+K6+L6+M6+N6)>O6,O6,B10-(D6+E6+F6+G6+H6+I6+J6+K6+L6+M6+N6))) -> 0 | Q10: =SUM(D10:O10) -> 144
A11: Herbages printemps | B11: ='Calc. Pâturages'!H14-'Calc. Pâturages'!G14 -> 37 | D11: =MIN((D$6-D$10),($B$11)) -> 0 | E11: =MIN((E6-E10),($B$11-D11)) -> 0 | F11: =MIN((F6-F10),($B$11-D11-E11)) -> 0 | G11: =MIN((G6-G10),($B$11-D11-E11-F11)) -> 0 | H11: =MIN((H6-H10),($B$11-D11-E11-F11-G11)) -> 7 | I11: =MIN((I6-I10),($B$11-D11-E11-F11-G11-H11)) -> 30 | J11: =MIN((J6-J10),($B$11-D11-E11-F11-G11-H11-I11)) -> 0 | K11: =MIN((K6-K10),($B$11-D11-E11-F11-G11-H11-I11-J11)) -> 0 | L11: =MIN((L6-L10),($B$11-D11-E11-F11-G11-H11-I11-J11-K11)) -> 0 | M11: =MIN((M6-M10),($B$11-D11-E11-F11-G11-H11-I11-J11-K11-L11)) -> 0 | N11: =MIN((N6-N10),($B$11-D11-E11-F11-G11-H11-I11-J11-K11-L11-M11)) -> 0 | O11: =MIN((O6-O10),($B$11-D11-E11-F11-G11-H11-I11-J11-K11-L11-M11-N11)) -> 0 | Q11: =SUM(D11:O11) -> 37
A12: Herbages été | B12: ='Calc. Pâturages'!I14-'Calc. Pâturages'!H14 -> 61 | D12: =MIN((D$6-D$10-D$11),($B$12)) -> 0 | E12: =MIN((E$6-E$10-E$11),($B$12-D12)) -> 0 | F12: =MIN((F$6-F$10-F$11),($B$12-D12-E12)) -> 0 | G12: =MIN((G$6-G$10-G$11),($B$12-D12-E12-F12)) -> 0 | H12: =MIN((H$6-H$10-H$11),($B$12-D12-E12-F12-G12)) -> 0 | I12: =MIN((I$6-I$10-I$11),($B$12-D12-E12-F12-G12-H12)) -> 0 | J12: =MIN((J$6-J$10-J$11),($B$12-D12-E12-F12-G12-H12-I12)) -> 31 | K12: =MIN((K$6-K$10-K$11),($B$12-D12-E12-F12-G12-H12-I12-J12)) -> 30 | L12: =MIN((L$6-L$10-L$11),($B$12-D12-E12-F12-G12-H12-I12-J12-K12)) -> 0 | M12: =MIN((M$6-M$10-M$11),($B$12-D12-E12-F12-G12-H12-I12-J12-K12-L12)) -> 0 | N12: =MIN((N$6-N$10-N$11),($B$12-D12-E12-F12-G12-H12-I12-J12-K12-L12-M12)) -> 0 | O12: =MIN((O$6-O$10-O$11),($B$12-D12-E12-F12-G12-H12-I12-J12-K12-L12-M12-N12)) -> 0 | Q12: =SUM(D12:O12) -> 61
A13: Herbages automne | B13: ='Calc. Pâturages'!J14-'Calc. Pâturages'!I14 -> 45 | D13: =MIN((D$6-D$10-D$11-D$12),($B$13)) -> 0 | E13: =MIN((E$6-E$10-E$11-E$12),($B$13-D13)) -> 0 | F13: =MIN((F$6-F$10-F$11-F$12),($B$13-D13-E13)) -> 0 | G13: =MIN((G$6-G$10-G$11-G$12),($B$13-D13-E13-F13)) -> 0 | H13: =MIN((H$6-H$10-H$11-H$12),($B$13-D13-E13-F13-G13)) -> 0 | I13: =MIN((I$6-I$10-I$11-I$12),($B$13-D13-E13-F13-G13-H13)) -> 0 | J13: =MIN((J$6-J$10-J$11-J$12),($B$13-D13-E13-F13-G13-H13-I13)) -> 0 | K13: =MIN((K$6-K$10-K$11-K$12),($B$13-D13-E13-F13-G13-H13-I13-J13)) -> 1 | L13: =MIN((L$6-L$10-L$11-L$12),($B$13-D13-E13-F13-G13-H13-I13-J13-K13)) -> 30 | M13: =MIN((M$6-M$10-M$11-M$12),($B$13-D13-E13-F13-G13-H13-I13-J13-K13-L13)) -> 14 | N13: =MIN((N$6-N$10-N$11-N$12),($B$13-D13-E13-F13-G13-H13-I13-J13-K13-L13-M13)) -> 0 | O13: =MIN((O$6-O$10-O$11-O$12),($B$13-D13-E13-F13-G13-H13-I13-J13-K13-L13-M13-N13)) -> 0 | Q13: =SUM(D13:O13) -> 45
A14: Fourrages Hiver | B14: =DATE(2026,1,1)-'Calc. Pâturages'!J14 -> 78 | D14: =MIN((D$6-D$10-D$11-D$12-$D13),($B$14)) -> 0 | E14: =MIN((E$6-E$10-E$11-E$12-$E13),($B$14-D14)) -> 0 | F14: =MIN((F$6-F$10-F$11-F$12-$F13),($B$14-D14-E14)) -> 0 | G14: =MIN((G$6-G$10-G$11-G$12-$G13),($B$14-D14-E14-F14)) -> 0 | H14: =MIN((H$6-H$10-H$11-H$12-$H13),($B$14-D14-E14-F14-G14)) -> 0 | I14: =MIN((I$6-I$10-I$11-I$12-$I13),($B$14-D14-E14-F14-G14-H14)) -> 0 | J14: =MIN((J$6-J$10-J$11-J$12-$J13),($B$14-D14-E14-F14-G14-H14-I14)) -> 0 | K14: =MIN((K$6-K$10-K$11-K$12-$K13),($B$14-D14-E14-F14-G14-H14-I14-J14)) -> 0 | L14: =MIN((L$6-L$10-L$11-L$12-$L13),($B$14-D14-E14-F14-G14-H14-I14-J14-K14)) -> 0 | M14: =MIN((M$6-M$10-M$11-M$12-$M13),($B$14-D14-E14-F14-G14-H14-I14-J14-K14-L14)) -> 17 | N14: =MIN((N$6-N$10-N$11-N$12-$N13),($B$14-D14-E14-F14-G14-H14-I14-J14-K14-L14-M14)) -> 30 | O14: =MIN((O$6-O$10-O$11-O$12-$O13),($B$14-D14-E14-F14-G14-H14-I14-J14-K14-L14-M14-N14)) -> 31 | Q14: =SUM(D14:O14) -> 78
B15: =SUM(B10:B14) -> 365 | Q15: =SUM(Q10:Q14) -> 365
D19: =D4 -> 2025-01-31 | E19: =E4 -> 2025-02-28 | F19: 2025-03-31 | G19: 2025-04-30 | H19: 2025-05-31 | I19: 2025-06-30 | J19: 2025-07-31 | K19: 2025-08-31 | L19: 2025-09-30 | M19: 2025-10-31 | N19: 2025-11-30 | O19: 2025-12-31
A20: Fourrages Hiver | B20: =SUM(D20:O20) -> 123138.08 | C20: =B20/B10 -> 855.1255556 | D20: =D10*D$7 -> 24147.76 | E20: =E10*E$7 -> 21810.88 | F20: =F10*F$7 -> 25824.24 | G20: =G10*G$7 -> 28704 | H20: 22651.2 | I20: 0 | J20: 0 | K20: 0 | L20: 0 | M20: 0 | N20: 0 | O20: 0
A21: Herbages printemps | B21: =SUM(D21:O21) -> 36823.8 | C21: =B21/B11 -> 995.2378378 | D21: =D11*D$7 -> 0 | E21: 0 | F21: =F11*F$7 -> 0 | G21: 0 | H21: =H11*H$7 -> 6606.6 | I21: 30217.2 | J21: 0 | K21: 0 | L21: 0 | M21: 0 | N21: 0 | O21: 0
A22: Herbages été | B22: 63678.68 | C22: 1043.912787 | D22: 0 | E22: 0 | F22: =F12*F$7 -> 0 | G22: 0 | H22: 0 | I22: 0 | J22: 31901.48 | K22: 31777.2 | L22: 0 | M22: 0 | N22: 0 | O22: 0
A23: Herbages automne | B23: 45093.88 | C23: 1002.086222 | D23: 0 | E23: 0 | F23: =F13*F$7 -> 0 | G23: 0 | H23: 0 | I23: 0 | J23: 0 | K23: 1059.24 | L23: 33384 | M23: 10650.64 | N23: 0 | O23: 0
A24: Fourrages Hiver | B24: 59342.92 | C24: 760.8066667 | D24: 0 | E24: 0 | F24: =F14*F$7 -> 0 | G24: 0 | H24: 0 | I24: 0 | J24: 0 | K24: 0 | L24: 0 | M24: 12932.92 | N24: 22713.6 | O24: 23696.4

Sheet Calcul CVMS VV (hidden)
B2: Poids moyen des vaches (kg) : | D2: 650 | F2: Type de vaches (choisir) : | Q2: 3
B6: Copier la liste de vos vaches et date vêlage | E6: Estimation de la consommation mensuelle de matière sèche des vaches | T6: Estimation de la consommation mensuelle de matière sèche des veaux non sevrés (sevrage à 8 mois)
C7: M.S. totale | E7: =SUM(E9:E501) -> 13.65 | F7: =SUM(F9:F501) -> 97.585 | G7: 106.585 | H7: 103.52 | I7: 106.65 | J7: 103.91 | K7: 15.6 | L7: 16.51 | M7: 15.86 | N7: 15.275 | O7: 14.755 | P7: 13.715 | T7: =SUM(T9:T501) -> 554.9 | U7: =SUM(U9:U501) -> 464.8 | V7: 330.15 | W7: 162 | X7: 227.85 | Y7: 328.5 | Z7: 474.3 | AA7: 575.05 | AB7: 726 | AC7: 740.9 | AD7: 631.5 | AE7: 554.9
B8: ID vache | C8: Date vêlage (AAAA-MM-JJ) | E8: 2023-01-15 | F8: 2023-02-15 | G8: 2023-03-15 | H8: 2023-04-15 | I8: 2023-05-15 | J8: 2023-06-15 | K8: 2023-07-15 | L8: 2023-08-15 | M8: 2023-09-15 | N8: 2023-10-15 | O8: 2023-11-15 | P8: 2023-12-15 | S8: ID Veau | T8: 2023-01-15 | U8: 2023-02-15 | V8: 2023-03-15 | W8: 2023-04-15 | X8: 2023-05-15 | Y8: 2023-06-15 | Z8: 2023-07-15 | AA8: 2023-08-15 | AB8: 2023-09-15 | AC8: 2023-10-15 | AD8: 2023-11-15 | AE8: 2023-12-15
B9: 1 | C9: 2023-02-01 | E9: =IFERROR(((HLOOKUP(IF(ROUNDUP(((E$8-$C9)*12/365),FALSE)>0,ROUNDUP(((E$8-$C9)*12/365),FALSE),(ROUNDUP(((E$8-$C9)*12/365),FALSE)+12)),CVMS!$D$33:$P$42,$Q$2,FALSE))*30),"") ->  | F9: =IFERROR(((HLOOKUP(IF(ROUNDUP(((F$8-$C9)*12/365),FALSE)>0,ROUNDUP(((F$8-$C9)*12/365),FALSE),(ROUNDUP(((F$8-$C9)*12/365),FALSE)+12)),CVMS!$D$33:$P$42,$Q$2,FALSE))*28),"") -> 84 | G9: =IFERROR(((HLOOKUP(IF(ROUNDUP(((G$8-$C9)*12/365),FALSE)>0,ROUNDUP(((G$8-$C9)*12/365),FALSE),(ROUNDUP(((G$8-$C9)*12/365),FALSE)+12)),CVMS!$D$33:$P$42,$Q$2,FALSE))*31),"") ->  | H9: =IFERROR(((HLOOKUP(IF(ROUNDUP(((H$8-$C9)*12/365),FALSE)>0,ROUNDUP(((H$8-$C9)*12/365),FALSE),(ROUNDUP(((H$8-$C9)*12/365),FALSE)+12)),CVMS!$D$33:$P$42,$Q$2,FALSE))*30),"") ->  | I9: =IFERROR(((HLOOKUP(IF(ROUNDUP(((I$8-$C9)*12/365),FALSE)>0,ROUNDUP(((I$8-$C9)*12/365),FALSE),(ROUNDUP(((I$8-$C9)*12/365),FALSE)+12)),CVMS!$D$33:$P$42,$Q$2,FALSE))*31),"") ->  | J9: =IFERROR(((HLOOKUP(IF(ROUNDUP(((J$8-$C9)*12/365),FALSE)>0,ROUNDUP(((J$8-$C9)*12/365),FALSE),(ROUNDUP(((J$8-$C9)*12/365),FALSE)+12)),CVMS!$D$33:$P$42,$Q$2,FALSE))*30),"") ->  | K9: =IFERROR(((HLOOKUP(IF(ROUNDUP(((K$8-$C9)*12/365),FALSE)>0,ROUNDUP(((K$8-$C9)*12/365),FALSE),(ROUNDUP(((K$8-$C9)*12/365),FALSE)+12)),CVMS!$D$33:$P$42,$Q$2,FALSE))*31),"") ->  | L9: =IFERROR(((HLOOKUP(IF(ROUNDUP(((L$8-$C9)*12/365),FALSE)>0,ROUNDUP(((L$8-$C9)*12/365),FALSE),(ROUNDUP(((L$8-$C9)*12/365),FALSE)+12)),CVMS!$D$33:$P$42,$Q$2,FALSE))*31),"") ->  | M9: =IFERROR(((HLOOKUP(IF(ROUNDUP(((M$8-$C9)*12/365),FALSE)>0,ROUNDUP(((M$8-$C9)*12/365),FALSE),(ROUNDUP(((M$8-$C9)*12/365),FALSE)+12)),CVMS!$D$33:$P$42,$Q$2,FALSE))*30),"") ->  | N9: =IFERROR(((HLOOKUP(IF(ROUNDUP(((N$8-$C9)*12/365),FALSE)>0,ROUNDUP(((N$8-$C9)*12/365),FALSE),(ROUNDUP(((N$8-$C9)*12/365),FALSE)+12)),CVMS!$D$33:$P$42,$Q$2,FALSE))*31),"") ->  | O9: =IFERROR(((HLOOKUP(IF(ROUNDUP(((O$8-$C9)*12/365),FALSE)>0,ROUNDUP(((O$8-$C9)*12/365),FALSE),(ROUNDUP(((O$8-$C9)*12/365),FALSE)+12)),CVMS!$D$33:$P$42,$Q$2,FALSE))*30),"") ->  | P9: =IFERROR(((HLOOKUP(IF(ROUNDUP(((P$8-$C9)*12/365),FALSE)>0,ROUNDUP(((P$8-$C9)*12/365),FALSE),(ROUNDUP(((P$8-$C9)*12/365),FALSE)+12)),CVMS!$D$33:$P$42,$Q$2,FALSE))*31),"") ->  | T9: =IFERROR(((HLOOKUP(IF(ROUNDUP(((T$8-$C9)*12/365),FALSE)>0,ROUNDUP(((T$8-$C9)*12/365),FALSE),(ROUNDUP(((T$8-$C9)*12/365),FALSE)+12)),CVMS!$D$58:$Q$67,$Q$2,FALSE))*31),"") ->  | U9: =IFERROR(((HLOOKUP(IF(ROUNDUP(((U$8-$C9)*12/365),FALSE)>0,ROUNDUP(((U$8-$C9)*12/365),FALSE),(ROUNDUP(((U$8-$C9)*12/365),FALSE)+12)),CVMS!$D$58:$Q$67,$Q$2,FALSE))*28),"") -> 84 | V9: =IFERROR(((HLOOKUP(IF(ROUNDUP(((V$8-$C9)*12/365),FALSE)>0,ROUNDUP(((V$8-$C9)*12/365),FALSE),(ROUNDUP(((V$8-$C9)*12/365),FALSE)+12)),CVMS!$D$58:$Q$67,$Q$2,FALSE))*31),"") -> 26.35 | W9: =IFERROR(((HLOOKUP(IF(ROUNDUP(((W$8-$C9)*12/365),FALSE)>0,ROUNDUP(((W$8-$C9)*12/365),FALSE),(ROUNDUP(((W$8-$C9)*12/365),FALSE)+12)),CVMS!$D$58:$Q$67,$Q$2,FALSE))*30),"") -> 46.5 | X9: =IFERROR(((HLOOKUP(IF(ROUNDUP(((X$8-$C9)*12/365),FALSE)>0,ROUNDUP(((X$8-$C9)*12/365),FALSE),(ROUNDUP(((X$8-$C9)*12/365),FALSE)+12)),CVMS!$D$58:$Q$67,$Q$2,FALSE))*31),"") -> 60.45 | Y9: =IFERROR(((HLOOKUP(IF(ROUNDUP(((Y$8-$C9)*12/365),FALSE)>0,ROUNDUP(((Y$8-$C9)*12/365),FALSE),(ROUNDUP(((Y$8-$C9)*12/365),FALSE)+12)),CVMS!$D$58:$Q$67,$Q$2,FALSE))*30),"") -> 108 | Z9: =IFERROR(((HLOOKUP(IF(ROUNDUP(((Z$8-$C9)*12/365),FALSE)>0,ROUNDUP(((Z$8-$C9)*12/365),FALSE),(ROUNDUP(((Z$8-$C9)*12/365),FALSE)+12)),CVMS!$D$58:$Q$67,$Q$2,FALSE))*31),"") -> 134.85 | AA9: =IFERROR(((HLOOKUP(IF(ROUNDUP(((AA$8-$C9)*12/365),FALSE)>0,ROUNDUP(((AA$8-$C9)*12/365),FALSE),(ROUNDUP(((AA$8-$C9)*12/365),FALSE)+12)),CVMS!$D$58:$Q$67,$Q$2,FALSE))*31),"") -> 172.05 | AB9: =IFERROR(((HLOOKUP(IF(ROUNDUP(((AB$8-$C9)*12/365),FALSE)>0,ROUNDUP(((AB$8-$C9)*12/365),FALSE),(ROUNDUP(((AB$8-$C9)*12/365),FALSE)+12)),CVMS!$D$58:$Q$67,$Q$2,FALSE))*30),"") -> 204 | AC9: =IFERROR(((HLOOKUP(IF(ROUNDUP(((AC$8-$C9)*12/365),FALSE)>0,ROUNDUP(((AC$8-$C9)*12/365),FALSE),(ROUNDUP(((AC$8-$C9)*12/365),FALSE)+12)),CVMS!$D$58:$Q$67,$Q$2,FALSE))*31),"") ->  | AD9: =IFERROR(((HLOOKUP(IF(ROUNDUP(((AD$8-$C9)*12/365),FALSE)>0,ROUNDUP(((AD$8-$C9)*12/365),FALSE),(ROUNDUP(((AD$8-$C9)*12/365),FALSE)+12)),CVMS!$D$58:$Q$67,$Q$2,FALSE))*30),"") ->  | AE9: =IFERROR(((HLOOKUP(IF(ROUNDUP(((AE$8-$C9)*12/365),FALSE)>0,ROUNDUP(((AE$8-$C9)*12/365),FALSE),(ROUNDUP(((AE$8-$C9)*12/365),FALSE)+12)),CVMS!$D$58:$Q$67,$Q$2,FALSE))*31),"") -> 
B10: 2 | C10: 2023-03-01 | E10: =IFERROR(((HLOOKUP(IF(ROUNDUP(((E$8-$C10)*12/365),FALSE)>0,ROUNDUP(((E$8-$C10)*12/365),FALSE),(ROUNDUP(((E$8-$C10)*12/365),FALSE)+12)),CVMS!$D$33:$P$42,$Q$2,FALSE))*30),"") ->  | F10: =IFERROR(((HLOOKUP(IF(ROUNDUP(((F$8-$C10)*12/365),FALSE)>0,ROUNDUP(((F$8-$C10)*12/365),FALSE),(ROUNDUP(((F$8-$C10)*12/365),FALSE)+12)),CVMS!$D$33:$P$42,$Q$2,FALSE))*28),"") ->  | G10: =IFERROR(((HLOOKUP(IF(ROUNDUP(((G$8-$C10)*12/365),FALSE)>0,ROUNDUP(((G$8-$C10)*12/365),FALSE),(ROUNDUP(((G$8-$C10)*12/365),FALSE)+12)),CVMS!$D$33:$P$42,$Q$2,FALSE))*31),"") -> 93 | H10: =IFERROR(((HLOOKUP(IF(ROUNDUP(((H$8-$C10)*12/365),FALSE)>0,ROUNDUP(((H$8-$C10)*12/365),FALSE),(ROUNDUP(((H$8-$C10)*12/365),FALSE)+12)),CVMS!$D$33:$P$42,$Q$2,FALSE))*30),"") ->  | I10: =IFERROR(((HLOOKUP(IF(ROUNDUP(((I$8-$C10)*12/365),FALSE)>0,ROUNDUP(((I$8-$C10)*12/365),FALSE),(ROUNDUP(((I$8-$C10)*12/365),FALSE)+12)),CVMS!$D$33:$P$42,$Q$2,FALSE))*31),"") ->  | J10: =IFERROR(((HLOOKUP(IF(ROUNDUP(((J$8-$C10)*12/365),FALSE)>0,ROUNDUP(((J$8-$C10)*12/365),FALSE),(ROUNDUP(((J$8-$C10)*12/365),FALSE)+12)),CVMS!$D$33:$P$42,$Q$2,FALSE))*30),"") ->  | K10: =IFERROR(((HLOOKUP(IF(ROUNDUP(((K$8-$C10)*12/365),FALSE)>0,ROUNDUP(((K$8-$C10)*12/365),FALSE),(ROUNDUP(((K$8-$C10)*12/365),FALSE)+12)),CVMS!$D$33:$P$42,$Q$2,FALSE))*31),"") ->  | L10: =IFERROR(((HLOOKUP(IF(ROUNDUP(((L$8-$C10)*12/365),FALSE)>0,ROUNDUP(((L$8-$C10)*12/365),FALSE),(ROUNDUP(((L$8-$C10)*12/365),FALSE)+12)),CVMS!$D$33:$P$42,$Q$2,FALSE))*31),"") ->  | M10: =IFERROR(((HLOOKUP(IF(ROUNDUP(((M$8-$C10)*12/365),FALSE)>0,ROUNDUP(((M$8-$C10)*12/365),FALSE),(ROUNDUP(((M$8-$C10)*12/365),FALSE)+12)),CVMS!$D$33:$P$42,$Q$2,FALSE))*30),"") ->  | N10: =IFERROR(((HLOOKUP(IF(ROUNDUP(((N$8-$C10)*12/365),FALSE)>0,ROUNDUP(((N$8-$C10)*12/365),FALSE),(ROUNDUP(((N$8-$C10)*12/365),FALSE)+12)),CVMS!$D$33:$P$42,$Q$2,FALSE))*31),"") ->  | O10: =IFERROR(((HLOOKUP(IF(ROUNDUP(((O$8-$C10)*12/365),FALSE)>0,ROUNDUP(((O$8-$C10)*12/365),FALSE),(ROUNDUP(((O$8-$C10)*12/365),FALSE)+12)),CVMS!$D$33:$P$42,$Q$2,FALSE))*30),"") ->  | P10: =IFERROR(((HLOOKUP(IF(ROUNDUP(((P$8-$C10)*12/365),FALSE)>0,ROUNDUP(((P$8-$C10)*12/365),FALSE),(ROUNDUP(((P$8-$C10)*12/365),FALSE)+12)),CVMS!$D$33:$P$42,$Q$2,FALSE))*31),"") ->  | T10: =IFERROR(((HLOOKUP(IF(ROUNDUP(((T$8-$C10)*12/365),FALSE)>0,ROUNDUP(((T$8-$C10)*12/365),FALSE),(ROUNDUP(((T$8-$C10)*12/365),FALSE)+12)),CVMS!$D$58:$Q$67,$Q$2,FALSE))*31),"") ->  | U10: =IFERROR(((HLOOKUP(IF(ROUNDUP(((U$8-$C10)*12/365),FALSE)>0,ROUNDUP(((U$8-$C10)*12/365),FALSE),(ROUNDUP(((U$8-$C10)*12/365),FALSE)+12)),CVMS!$D$58:$Q$67,$Q$2,FALSE))*28),"") ->  | V10: =IFERROR(((HLOOKUP(IF(ROUNDUP(((V$8-$C10)*12/365),FALSE)>0,ROUNDUP(((V$8-$C10)*12/365),FALSE),(ROUNDUP(((V$8-$C10)*12/365),FALSE)+12)),CVMS!$D$58:$Q$67,$Q$2,FALSE))*31),"") -> 93 | W10: =IFERROR(((HLOOKUP(IF(ROUNDUP(((W$8-$C10)*12/365),FALSE)>0,ROUNDUP(((W$8-$C10)*12/365),FALSE),(ROUNDUP(((W$8-$C10)*12/365),FALSE)+12)),CVMS!$D$58:$Q$67,$Q$2,FALSE))*30),"") -> 25.5 | X10: =IFERROR(((HLOOKUP(IF(ROUNDUP(((X$8-$C10)*12/365),FALSE)>0,ROUNDUP(((X$8-$C10)*12/365),FALSE),(ROUNDUP(((X$8-$C10)*12/365),FALSE)+12)),CVMS!$D$58:$Q$67,$Q$2,FALSE))*31),"") -> 48.05 | Y10: =IFERROR(((HLOOKUP(IF(ROUNDUP(((Y$8-$C10)*12/365),FALSE)>0,ROUNDUP(((Y$8-$C10)*12/365),FALSE),(ROUNDUP(((Y$8-$C10)*12/365),FALSE)+12)),CVMS!$D$58:$Q$67,$Q$2,FALSE))*30),"") -> 58.5 | Z10: =IFERROR(((HLOOKUP(IF(ROUNDUP(((Z$8-$C10)*12/365),FALSE)>0,ROUNDUP(((Z$8-$C10)*12/365),FALSE),(ROUNDUP(((Z$8-$C10)*12/365),FALSE)+12)),CVMS!$D$58:$Q$67,$Q$2,FALSE))*31),"") -> 111.6 | AA10: =IFERROR(((HLOOKUP(IF(ROUNDUP(((AA$8-$C10)*12/365),FALSE)>0,ROUNDUP(((AA$8-$C10)*12/365),FALSE),(ROUNDUP(((AA$8-$C10)*12/365),FALSE)+12)),CVMS!$D$58:$Q$67,$Q$2,FALSE))*31),"") -> 134.85 | AB10: =IFERROR(((HLOOKUP(IF(ROUNDUP(((AB$8-$C10)*12/365),FALSE)>0,ROUNDUP(((AB$8-$C10)*12/365),FALSE),(ROUNDUP(((AB$8-$C10)*12/365),FALSE)+12)),CVMS!$D$58:$Q$67,$Q$2,FALSE))*30),"") -> 166.5 | AC10: =IFERROR(((HLOOKUP(IF(ROUNDUP(((AC$8-$C10)*12/365),FALSE)>0,ROUNDUP(((AC$8-$C10)*12/365),FALSE),(ROUNDUP(((AC$8-$C10)*12/365),FALSE)+12)),CVMS!$D$58:$Q$67,$Q$2,FALSE))*31),"") -> 210.8 | AD10: =IFERROR(((HLOOKUP(IF(ROUNDUP(((AD$8-$C10)*12/365),FALSE)>0,ROUNDUP(((AD$8-$C10)*12/365),FALSE),(ROUNDUP(((AD$8-$C10)*12/365),FALSE)+12)),CVMS!$D$58:$Q$67,$Q$2,FALSE))*30),"") ->  | AE10: =IFERROR(((HLOOKUP(IF(ROUNDUP(((AE$8-$C10)*12/365),FALSE)>0,ROUNDUP(((AE$8-$C10)*12/365),FALSE),(ROUNDUP(((AE$8-$C10)*12/365),FALSE)+12)),CVMS!$D$58:$Q$67,$Q$2,FALSE))*31),"") -> 
B11: 3 | C11: 2023-04-01 | E11: =IFERROR(((HLOOKUP(IF(ROUNDUP(((E$8-$C11)*12/365),FALSE)>0,ROUNDUP(((E$8-$C11)*12/365),FALSE),(ROUNDUP(((E$8-$C11)*12/365),FALSE)+12)),CVMS!$D$33:$P$42,$Q$2,FALSE))*30),"") ->  | F11: =IFERROR(((HLOOKUP(IF(ROUNDUP(((F$8-$C11)*12/365),FALSE)>0,ROUNDUP(((F$8-$C11)*12/365),FALSE),(ROUNDUP(((F$8-$C11)*12/365),FALSE)+12)),CVMS!$D$33:$P$42,$Q$2,FALSE))*28),"") ->  | G11: =IFERROR(((HLOOKUP(IF(ROUNDUP(((G$8-$C11)*12/365),FALSE)>0,ROUNDUP(((G$8-$C11)*12/365),FALSE),(ROUNDUP(((G$8-$C11)*12/365),FALSE)+12)),CVMS!$D$33:$P$42,$Q$2,FALSE))*31),"") ->  | H11: =IFERROR(((HLOOKUP(IF(ROUNDUP(((H$8-$C11)*12/365),FALSE)>0,ROUNDUP(((H$8-$C11)*12/365),FALSE),(ROUNDUP(((H$8-$C11)*12/365),FALSE)+12)),CVMS!$D$33:$P$42,$Q$2,FALSE))*30),"") -> 90 | I11: =IFERROR(((HLOOKUP(IF(ROUNDUP(((I$8-$C11)*12/365),FALSE)>0,ROUNDUP(((I$8-$C11)*12/365),FALSE),(ROUNDUP(((I$8-$C11)*12/365),FALSE)+12)),CVMS!$D$33:$P$42,$Q$2,FALSE))*31),"") ->  | J11: =IFERROR(((HLOOKUP(IF(ROUNDUP(((J$8-$C11)*12/365),FALSE)>0,ROUNDUP(((J$8-$C11)*12/365),FALSE),(ROUNDUP(((J$8-$C11)*12/365),FALSE)+12)),CVMS!$D$33:$P$42,$Q$2,FALSE))*30),"") ->  | K11: =IFERROR(((HLOOKUP(IF(ROUNDUP(((K$8-$C11)*12/365),FALSE)>0,ROUNDUP(((K$8-$C11)*12/365),FALSE),(ROUNDUP(((K$8-$C11)*12/365),FALSE)+12)),CVMS!$D$33:$P$42,$Q$2,FALSE))*31),"") ->  | L11: =IFERROR(((HLOOKUP(IF(ROUNDUP(((L$8-$C11)*12/365),FALSE)>0,ROUNDUP(((L$8-$C11)*12/365),FALSE),(ROUNDUP(((L$8-$C11)*12/365),FALSE)+12)),CVMS!$D$33:$P$42,$Q$2,FALSE))*31),"") ->  | M11: =IFERROR(((HLOOKUP(IF(ROUNDUP(((M$8-$C11)*12/365),FALSE)>0,ROUNDUP(((M$8-$C11)*12/365),FALSE),(ROUNDUP(((M$8-$C11)*12/365),FALSE)+12)),CVMS!$D$33:$P$42,$Q$2,FALSE))*30),"") ->  | N11: =IFERROR(((HLOOKUP(IF(ROUNDUP(((N$8-$C11)*12/365),FALSE)>0,ROUNDUP(((N$8-$C11)*12/365),FALSE),(ROUNDUP(((N$8-$C11)*12/365),FALSE)+12)),CVMS!$D$33:$P$42,$Q$2,FALSE))*31),"") ->  | O11: =IFERROR(((HLOOKUP(IF(ROUNDUP(((O$8-$C11)*12/365),FALSE)>0,ROUNDUP(((O$8-$C11)*12/365),FALSE),(ROUNDUP(((O$8-$C11)*12/365),FALSE)+12)),CVMS!$D$33:$P$42,$Q$2,FALSE))*30),"") ->  | P11: =IFERROR(((HLOOKUP(IF(ROUNDUP(((P$8-$C11)*12/365),FALSE)>0,ROUNDUP(((P$8-$C11)*12/365),FALSE),(ROUNDUP(((P$8-$C11)*12/365),FALSE)+12)),CVMS!$D$33:$P$42,$Q$2,FALSE))*31),"") ->  | T11: =IFERROR(((HLOOKUP(IF(ROUNDUP(((T$8-$C11)*12/365),FALSE)>0,ROUNDUP(((T$8-$C11)*12/365),FALSE),(ROUNDUP(((T$8-$C11)*12/365),FALSE)+12)),CVMS!$D$58:$Q$67,$Q$2,FALSE))*31),"") ->  | U11: =IFERROR(((HLOOKUP(IF(ROUNDUP(((U$8-$C11)*12/365),FALSE)>0,ROUNDUP(((U$8-$C11)*12/365),FALSE),(ROUNDUP(((U$8-$C11)*12/365),FALSE)+12)),CVMS!$D$58:$Q$67,$Q$2,FALSE))*28),"") ->  | V11: =IFERROR(((HLOOKUP(IF(ROUNDUP(((V$8-$C11)*12/365),FALSE)>0,ROUNDUP(((V$8-$C11)*12/365),FALSE),(ROUNDUP(((V$8-$C11)*12/365),FALSE)+12)),CVMS!$D$58:$Q$67,$Q$2,FALSE))*31),"") ->  | W11: =IFERROR(((HLOOKUP(IF(ROUNDUP(((W$8-$C11)*12/365),FALSE)>0,ROUNDUP(((W$8-$C11)*12/365),FALSE),(ROUNDUP(((W$8-$C11)*12/365),FALSE)+12)),CVMS!$D$58:$Q$67,$Q$2,FALSE))*30),"") -> 90 | X11: =IFERROR(((HLOOKUP(IF(ROUNDUP(((X$8-$C11)*12/365),FALSE)>0,ROUNDUP(((X$8-$C11)*12/365),FALSE),(ROUNDUP(((X$8-$C11)*12/365),FALSE)+12)),CVMS!$D$58:$Q$67,$Q$2,FALSE))*31),"") -> 26.35 | Y11: =IFERROR(((HLOOKUP(IF(ROUNDUP(((Y$8-$C11)*12/365),FALSE)>0,ROUNDUP(((Y$8-$C11)*12/365),FALSE),(ROUNDUP(((Y$8-$C11)*12/365),FALSE)+12)),CVMS!$D$58:$Q$67,$Q$2,FALSE))*30),"") -> 46.5 | Z11: =IFERROR(((HLOOKUP(IF(ROUNDUP(((Z$8-$C11)*12/365),FALSE)>0,ROUNDUP(((Z$8-$C11)*12/365),FALSE),(ROUNDUP(((Z$8-$C11)*12/365),FALSE)+12)),CVMS!$D$58:$Q$67,$Q$2,FALSE))*31),"") -> 60.45 | AA11: =IFERROR(((HLOOKUP(IF(ROUNDUP(((AA$8-$C11)*12/365),FALSE)>0,ROUNDUP(((AA$8-$C11)*12/365),FALSE),(ROUNDUP(((AA$8-$C11)*12/365),FALSE)+12)),CVMS!$D$58:$Q$67,$Q$2,FALSE))*31),"") -> 111.6 | AB11: =IFERROR(((HLOOKUP(IF(ROUNDUP(((AB$8-$C11)*12/365),FALSE)>0,ROUNDUP(((AB$8-$C11)*12/365),FALSE),(ROUNDUP(((AB$8-$C11)*12/365),FALSE)+12)),CVMS!$D$58:$Q$67,$Q$2,FALSE))*30),"") -> 130.5 | AC11: =IFERROR(((HLOOKUP(IF(ROUNDUP(((AC$8-$C11)*12/365),FALSE)>0,ROUNDUP(((AC$8-$C11)*12/365),FALSE),(ROUNDUP(((AC$8-$C11)*12/365),FALSE)+12)),CVMS!$D$58:$Q$67,$Q$2,FALSE))*31),"") -> 172.05 | AD11: =IFERROR(((HLOOKUP(IF(ROUNDUP(((AD$8-$C11)*12/365),FALSE)>0,ROUNDUP(((AD$8-$C11)*12/365),FALSE),(ROUNDUP(((AD$8-$C11)*12/365),FALSE)+12)),CVMS!$D$58:$Q$67,$Q$2,FALSE))*30),"") -> 204 | AE11: =IFERROR(((HLOOKUP(IF(ROUNDUP(((AE$8-$C11)*12/365),FALSE)>0,ROUNDUP(((AE$8-$C11)*12/365),FALSE),(ROUNDUP(((AE$8-$C11)*12/365),FALSE)+12)),CVMS!$D$58:$Q$67,$Q$2,FALSE))*31),"") -> 
B12: 4 | C12: 2023-05-01 | E12: =IFERROR(((HLOOKUP(IF(ROUNDUP(((E$8-$C12)*12/365),FALSE)>0,ROUNDUP(((E$8-$C12)*12/365),FALSE),(ROUNDUP(((E$8-$C12)*12/365),FALSE)+12)),CVMS!$D$33:$P$42,$Q$2,FALSE))*30),"") ->  | F12: =IFERROR(((HLOOKUP(IF(ROUNDUP(((F$8-$C12)*12/365),FALSE)>0,ROUNDUP(((F$8-$C12)*12/365),FALSE),(ROUNDUP(((F$8-$C12)*12/365),FALSE)+12)),CVMS!$D$33:$P$42,$Q$2,FALSE))*28),"") ->  | G12: =IFERROR(((HLOOKUP(IF(ROUNDUP(((G$8-$C12)*12/365),FALSE)>0,ROUNDUP(((G$8-$C12)*12/365),FALSE),(ROUNDUP(((G$8-$C12)*12/365),FALSE)+12)),CVMS!$D$33:$P$42,$Q$2,FALSE))*31),"") ->  | H12: =IFERROR(((HLOOKUP(IF(ROUNDUP(((H$8-$C12)*12/365),FALSE)>0,ROUNDUP(((H$8-$C12)*12/365),FALSE),(ROUNDUP(((H$8-$C12)*12/365),FALSE)+12)),CVMS!$D$33:$P$42,$Q$2,FALSE))*30),"") ->  | I12: =IFERROR(((HLOOKUP(IF(ROUNDUP(((I$8-$C12)*12/365),FALSE)>0,ROUNDUP(((I$8-$C12)*12/365),FALSE),(ROUNDUP(((I$8-$C12)*12/365),FALSE)+12)),CVMS!$D$33:$P$42,$Q$2,FALSE))*31),"") -> 93 | J12: =IFERROR(((HLOOKUP(IF(ROUNDUP(((J$8-$C12)*12/365),FALSE)>0,ROUNDUP(((J$8-$C12)*12/365),FALSE),(ROUNDUP(((J$8-$C12)*12/365),FALSE)+12)),CVMS!$D$33:$P$42,$Q$2,FALSE))*30),"") ->  | K12: =IFERROR(((HLOOKUP(IF(ROUNDUP(((K$8-$C12)*12/365),FALSE)>0,ROUNDUP(((K$8-$C12)*12/365),FALSE),(ROUNDUP(((K$8-$C12)*12/365),FALSE)+12)),CVMS!$D$33:$P$42,$Q$2,FALSE))*31),"") ->  | L12: =IFERROR(((HLOOKUP(IF(ROUNDUP(((L$8-$C12)*12/365),FALSE)>0,ROUNDUP(((L$8-$C12)*12/365),FALSE),(ROUNDUP(((L$8-$C12)*12/365),FALSE)+12)),CVMS!$D$33:$P$42,$Q$2,FALSE))*31),"") ->  | M12: =IFERROR(((HLOOKUP(IF(ROUNDUP(((M$8-$C12)*12/365),FALSE)>0,ROUNDUP(((M$8-$C12)*12/365),FALSE),(ROUNDUP(((M$8-$C12)*12/365),FALSE)+12)),CVMS!$D$33:$P$42,$Q$2,FALSE))*30),"") ->  | N12: =IFERROR(((HLOOKUP(IF(ROUNDUP(((N$8-$C12)*12/365),FALSE)>0,ROUNDUP(((N$8-$C12)*12/365),FALSE),(ROUNDUP(((N$8-$C12)*12/365),FALSE)+12)),CVMS!$D$33:$P$42,$Q$2,FALSE))*31),"") ->  | O12: =IFERROR(((HLOOKUP(IF(ROUNDUP(((O$8-$C12)*12/365),FALSE)>0,ROUNDUP(((O$8-$C12)*12/365),FALSE),(ROUNDUP(((O$8-$C12)*12/365),FALSE)+12)),CVMS!$D$33:$P$42,$Q$2,FALSE))*30),"") ->  | P12: =IFERROR(((HLOOKUP(IF(ROUNDUP(((P$8-$C12)*12/365),FALSE)>0,ROUNDUP(((P$8-$C12)*12/365),FALSE),(ROUNDUP(((P$8-$C12)*12/365),FALSE)+12)),CVMS!$D$33:$P$42,$Q$2,FALSE))*31),"") ->  | T12: =IFERROR(((HLOOKUP(IF(ROUNDUP(((T$8-$C12)*12/365),FALSE)>0,ROUNDUP(((T$8-$C12)*12/365),FALSE),(ROUNDUP(((T$8-$C12)*12/365),FALSE)+12)),CVMS!$D$58:$Q$67,$Q$2,FALSE))*31),"") -> 210.8 | U12: =IFERROR(((HLOOKUP(IF(ROUNDUP(((U$8-$C12)*12/365),FALSE)>0,ROUNDUP(((U$8-$C12)*12/365),FALSE),(ROUNDUP(((U$8-$C12)*12/365),FALSE)+12)),CVMS!$D$58:$Q$67,$Q$2,FALSE))*28),"") ->  | V12: =IFERROR(((HLOOKUP(IF(ROUNDUP(((V$8-$C12)*12/365),FALSE)>0,ROUNDUP(((V$8-$C12)*12/365),FALSE),(ROUNDUP(((V$8-$C12)*12/365),FALSE)+12)),CVMS!$D$58:$Q$67,$Q$2,FALSE))*31),"") ->  | W12: =IFERROR(((HLOOKUP(IF(ROUNDUP(((W$8-$C12)*12/365),FALSE)>0,ROUNDUP(((W$8-$C12)*12/365),FALSE),(ROUNDUP(((W$8-$C12)*12/365),FALSE)+12)),CVMS!$D$58:$Q$67,$Q$2,FALSE))*30),"") ->  | X12: =IFERROR(((HLOOKUP(IF(ROUNDUP(((X$8-$C12)*12/365),FALSE)>0,ROUNDUP(((X$8-$C12)*12/365),FALSE),(ROUNDUP(((X$8-$C12)*12/365),FALSE)+12)),CVMS!$D$58:$Q$67,$Q$2,FALSE))*31),"") -> 93 | Y12: =IFERROR(((HLOOKUP(IF(ROUNDUP(((Y$8-$C12)*12/365),FALSE)>0,ROUNDUP(((Y$8-$C12)*12/365),FALSE),(ROUNDUP(((Y$8-$C12)*12/365),FALSE)+12)),CVMS!$D$58:$Q$67,$Q$2,FALSE))*30),"") -> 25.5 | Z12: =IFERROR(((HLOOKUP(IF(ROUNDUP(((Z$8-$C12)*12/365),FALSE)>0,ROUNDUP(((Z$8-$C12)*12/365),FALSE),(ROUNDUP(((Z$8-$C12)*12/365),FALSE)+12)),CVMS!$D$58:$Q$67,$Q$2,FALSE))*31),"") -> 48.05 | AA12: =IFERROR(((HLOOKUP(IF(ROUNDUP(((AA$8-$C12)*12/365),FALSE)>0,ROUNDUP(((AA$8-$C12)*12/365),FALSE),(ROUNDUP(((AA$8-$C12)*12/365),FALSE)+12)),CVMS!$D$58:$Q$67,$Q$2,FALSE))*31),"") -> 60.45 | AB12: =IFERROR(((HLOOKUP(IF(ROUNDUP(((AB$8-$C12)*12/365),FALSE)>0,ROUNDUP(((AB$8-$C12)*12/365),FALSE),(ROUNDUP(((AB$8-$C12)*12/365),FALSE)+12)),CVMS!$D$58:$Q$67,$Q$2,FALSE))*30),"") -> 108 | AC12: =IFERROR(((HLOOKUP(IF(ROUNDUP(((AC$8-$C12)*12/365),FALSE)>0,ROUNDUP(((AC$8-$C12)*12/365),FALSE),(ROUNDUP(((AC$8-$C12)*12/365),FALSE)+12)),CVMS!$D$58:$Q$67,$Q$2,FALSE))*31),"") -> 134.85 | AD12: =IFERROR(((HLOOKUP(IF(ROUNDUP(((AD$8-$C12)*12/365),FALSE)>0,ROUNDUP(((AD$8-$C12)*12/365),FALSE),(ROUNDUP(((AD$8-$C12)*12/365),FALSE)+12)),CVMS!$D$58:$Q$67,$Q$2,FALSE))*30),"") -> 166.5 | AE12: =IFERROR(((HLOOKUP(IF(ROUNDUP(((AE$8-$C12)*12/365),FALSE)>0,ROUNDUP(((AE$8-$C12)*12/365),FALSE),(ROUNDUP(((AE$8-$C12)*12/365),FALSE)+12)),CVMS!$D$58:$Q$67,$Q$2,FALSE))*31),"") -> 210.8
B13: 5 | C13: 2023-06-01 | E13: =IFERROR(((HLOOKUP(IF(ROUNDUP(((E$8-$C13)*12/365),FALSE)>0,ROUNDUP(((E$8-$C13)*12/365),FALSE),(ROUNDUP(((E$8-$C13)*12/365),FALSE)+12)),CVMS!$D$33:$P$42,$Q$2,FALSE))*30),"") ->  | F13: =IFERROR(((HLOOKUP(IF(ROUNDUP(((F$8-$C13)*12/365),FALSE)>0,ROUNDUP(((F$8-$C13)*12/365),FALSE),(ROUNDUP(((F$8-$C13)*12/365),FALSE)+12)),CVMS!$D$33:$P$42,$Q$2,FALSE))*28),"") ->  | G13: =IFERROR(((HLOOKUP(IF(ROUNDUP(((G$8-$C13)*12/365),FALSE)>0,ROUNDUP(((G$8-$C13)*12/365),FALSE),(ROUNDUP(((G$8-$C13)*12/365),FALSE)+12)),CVMS!$D$33:$P$42,$Q$2,FALSE))*31),"") ->  | H13: =IFERROR(((HLOOKUP(IF(ROUNDUP(((H$8-$C13)*12/365),FALSE)>0,ROUNDUP(((H$8-$C13)*12/365),FALSE),(ROUNDUP(((H$8-$C13)*12/365),FALSE)+12)),CVMS!$D$33:$P$42,$Q$2,FALSE))*30),"") ->  | I13: =IFERROR(((HLOOKUP(IF(ROUNDUP(((I$8-$C13)*12/365),FALSE)>0,ROUNDUP(((I$8-$C13)*12/365),FALSE),(ROUNDUP(((I$8-$C13)*12/365),FALSE)+12)),CVMS!$D$33:$P$42,$Q$2,FALSE))*31),"") ->  | J13: =IFERROR(((HLOOKUP(IF(ROUNDUP(((J$8-$C13)*12/365),FALSE)>0,ROUNDUP(((J$8-$C13)*12/365),FALSE),(ROUNDUP(((J$8-$C13)*12/365),FALSE)+12)),CVMS!$D$33:$P$42,$Q$2,FALSE))*30),"") -> 90 | K13: =IFERROR(((HLOOKUP(IF(ROUNDUP(((K$8-$C13)*12/365),FALSE)>0,ROUNDUP(((K$8-$C13)*12/365),FALSE),(ROUNDUP(((K$8-$C13)*12/365),FALSE)+12)),CVMS!$D$33:$P$42,$Q$2,FALSE))*31),"") ->  | L13: =IFERROR(((HLOOKUP(IF(ROUNDUP(((L$8-$C13)*12/365),FALSE)>0,ROUNDUP(((L$8-$C13)*12/365),FALSE),(ROUNDUP(((L$8-$C13)*12/365),FALSE)+12)),CVMS!$D$33:$P$42,$Q$2,FALSE))*31),"") ->  | M13: =IFERROR(((HLOOKUP(IF(ROUNDUP(((M$8-$C13)*12/365),FALSE)>0,ROUNDUP(((M$8-$C13)*12/365),FALSE),(ROUNDUP(((M$8-$C13)*12/365),FALSE)+12)),CVMS!$D$33:$P$42,$Q$2,FALSE))*30),"") ->  | N13: =IFERROR(((HLOOKUP(IF(ROUNDUP(((N$8-$C13)*12/365),FALSE)>0,ROUNDUP(((N$8-$C13)*12/365),FALSE),(ROUNDUP(((N$8-$C13)*12/365),FALSE)+12)),CVMS!$D$33:$P$42,$Q$2,FALSE))*31),"") ->  | O13: =IFERROR(((HLOOKUP(IF(ROUNDUP(((O$8-$C13)*12/365),FALSE)>0,ROUNDUP(((O$8-$C13)*12/365),FALSE),(ROUNDUP(((O$8-$C13)*12/365),FALSE)+12)),CVMS!$D$33:$P$42,$Q$2,FALSE))*30),"") ->  | P13: =IFERROR(((HLOOKUP(IF(ROUNDUP(((P$8-$C13)*12/365),FALSE)>0,ROUNDUP(((P$8-$C13)*12/365),FALSE),(ROUNDUP(((P$8-$C13)*12/365),FALSE)+12)),CVMS!$D$33:$P$42,$Q$2,FALSE))*31),"") ->  | T13: =IFERROR(((HLOOKUP(IF(ROUNDUP(((T$8-$C13)*12/365),FALSE)>0,ROUNDUP(((T$8-$C13)*12/365),FALSE),(ROUNDUP(((T$8-$C13)*12/365),FALSE)+12)),CVMS!$D$58:$Q$67,$Q$2,FALSE))*31),"") -> 172.05 | U13: =IFERROR(((HLOOKUP(IF(ROUNDUP(((U$8-$C13)*12/365),FALSE)>0,ROUNDUP(((U$8-$C13)*12/365),FALSE),(ROUNDUP(((U$8-$C13)*12/365),FALSE)+12)),CVMS!$D$58:$Q$67,$Q$2,FALSE))*28),"") -> 190.4 | V13: =IFERROR(((HLOOKUP(IF(ROUNDUP(((V$8-$C13)*12/365),FALSE)>0,ROUNDUP(((V$8-$C13)*12/365),FALSE),(ROUNDUP(((V$8-$C13)*12/365),FALSE)+12)),CVMS!$D$58:$Q$67,$Q$2,FALSE))*31),"") ->  | W13: =IFERROR(((HLOOKUP(IF(ROUNDUP(((W$8-$C13)*12/365),FALSE)>0,ROUNDUP(((W$8-$C13)*12/365),FALSE),(ROUNDUP(((W$8-$C13)*12/365),FALSE)+12)),CVMS!$D$58:$Q$67,$Q$2,FALSE))*30),"") ->  | X13: =IFERROR(((HLOOKUP(IF(ROUNDUP(((X$8-$C13)*12/365),FALSE)>0,ROUNDUP(((X$8-$C13)*12/365),FALSE),(ROUNDUP(((X$8-$C13)*12/365),FALSE)+12)),CVMS!$D$58:$Q$67,$Q$2,FALSE))*31),"") ->  | Y13: =IFERROR(((HLOOKUP(IF(ROUNDUP(((Y$8-$C13)*12/365),FALSE)>0,ROUNDUP(((Y$8-$C13)*12/365),FALSE),(ROUNDUP(((Y$8-$C13)*12/365),FALSE)+12)),CVMS!$D$58:$Q$67,$Q$2,FALSE))*30),"") -> 90 | Z13: =IFERROR(((HLOOKUP(IF(ROUNDUP(((Z$8-$C13)*12/365),FALSE)>0,ROUNDUP(((Z$8-$C13)*12/365),FALSE),(ROUNDUP(((Z$8-$C13)*12/365),FALSE)+12)),CVMS!$D$58:$Q$67,$Q$2,FALSE))*31),"") -> 26.35 | AA13: =IFERROR(((HLOOKUP(IF(ROUNDUP(((AA$8-$C13)*12/365),FALSE)>0,ROUNDUP(((AA$8-$C13)*12/365),FALSE),(ROUNDUP(((AA$8-$C13)*12/365),FALSE)+12)),CVMS!$D$58:$Q$67,$Q$2,FALSE))*31),"") -> 48.05 | AB13: =IFERROR(((HLOOKUP(IF(ROUNDUP(((AB$8-$C13)*12/365),FALSE)>0,ROUNDUP(((AB$8-$C13)*12/365),FALSE),(ROUNDUP(((AB$8-$C13)*12/365),FALSE)+12)),CVMS!$D$58:$Q$67,$Q$2,FALSE))*30),"") -> 58.5 | AC13: =IFERROR(((HLOOKUP(IF(ROUNDUP(((AC$8-$C13)*12/365),FALSE)>0,ROUNDUP(((AC$8-$C13)*12/365),FALSE),(ROUNDUP(((AC$8-$C13)*12/365),FALSE)+12)),CVMS!$D$58:$Q$67,$Q$2,FALSE))*31),"") -> 111.6 | AD13: =IFERROR(((HLOOKUP(IF(ROUNDUP(((AD$8-$C13)*12/365),FALSE)>0,ROUNDUP(((AD$8-$C13)*12/365),FALSE),(ROUNDUP(((AD$8-$C13)*12/365),FALSE)+12)),CVMS!$D$58:$Q$67,$Q$2,FALSE))*30),"") -> 130.5 | AE13: =IFERROR(((HLOOKUP(IF(ROUNDUP(((AE$8-$C13)*12/365),FALSE)>0,ROUNDUP(((AE$8-$C13)*12/365),FALSE),(ROUNDUP(((AE$8-$C13)*12/365),FALSE)+12)),CVMS!$D$58:$Q$67,$Q$2,FALSE))*31),"") -> 172.05
B14: 6 | C14: 2023-06-15 | E14: =IFERROR((IF($C14="","",(HLOOKUP(ROUNDUP((IF(((E$8-$C14)/30.4)>0,((E$8-$C14)/30.4),12+((E$8-$C14)/30.4))),0),CVMS!$D$19:$P$28,'Calcul CVMS VV'!$Q$2,FALSE))))/100*$D$2,"") -> 13.65 | F14: =IFERROR((IF($C14="","",(HLOOKUP(ROUNDUP((IF(((F$8-$C14)/30.4)>0,((F$8-$C14)/30.4),12+((F$8-$C14)/30.4))),0),CVMS!$D$19:$P$28,'Calcul CVMS VV'!$Q$2,FALSE))))/100*$D$2,"") -> 13.585 | G14: =IFERROR((IF($C14="","",(HLOOKUP(ROUNDUP((IF(((G$8-$C14)/30.4)>0,((G$8-$C14)/30.4),12+((G$8-$C14)/30.4))),0),CVMS!$D$19:$P$28,'Calcul CVMS VV'!$Q$2,FALSE))))/100*$D$2,"") -> 13.585 | H14: =IFERROR((IF($C14="","",(HLOOKUP(ROUNDUP((IF(((H$8-$C14)/30.4)>0,((H$8-$C14)/30.4),12+((H$8-$C14)/30.4))),0),CVMS!$D$19:$P$28,'Calcul CVMS VV'!$Q$2,FALSE))))/100*$D$2,"") -> 13.52 | I14: =IFERROR((IF($C14="","",(HLOOKUP(ROUNDUP((IF(((I$8-$C14)/30.4)>0,((I$8-$C14)/30.4),12+((I$8-$C14)/30.4))),0),CVMS!$D$19:$P$28,'Calcul CVMS VV'!$Q$2,FALSE))))/100*$D$2,"") -> 13.65 | J14: =IFERROR((IF($C14="","",(HLOOKUP(ROUNDUP((IF(((J$8-$C14)/30.4)>0,((J$8-$C14)/30.4),12+((J$8-$C14)/30.4))),0),CVMS!$D$19:$P$28,'Calcul CVMS VV'!$Q$2,FALSE))))/100*$D$2,"") -> 13.91 | K14: =IFERROR((IF($C14="","",(HLOOKUP(ROUNDUP((IF(((K$8-$C14)/30.4)>0,((K$8-$C14)/30.4),12+((K$8-$C14)/30.4))),0),CVMS!$D$19:$P$28,'Calcul CVMS VV'!$Q$2,FALSE))))/100*$D$2,"") -> 15.6 | L14: =IFERROR((IF($C14="","",(HLOOKUP(ROUNDUP((IF(((L$8-$C14)/30.4)>0,((L$8-$C14)/30.4),12+((L$8-$C14)/30.4))),0),CVMS!$D$19:$P$28,'Calcul CVMS VV'!$Q$2,FALSE))))/100*$D$2,"") -> 16.51 | M14: =IFERROR((IF($C14="","",(HLOOKUP(ROUNDUP((IF(((M$8-$C14)/30.4)>0,((M$8-$C14)/30.4),12+((M$8-$C14)/30.4))),0),CVMS!$D$19:$P$28,'Calcul CVMS VV'!$Q$2,FALSE))))/100*$D$2,"") -> 15.86 | N14: =IFERROR((IF($C14="","",(HLOOKUP(ROUNDUP((IF(((N$8-$C14)/30.4)>0,((N$8-$C14)/30.4),12+((N$8-$C14)/30.4))),0),CVMS!$D$19:$P$28,'Calcul CVMS VV'!$Q$2,FALSE))))/100*$D$2,"") -> 15.275 | O14: =IFERROR((IF($C14="","",(HLOOKUP(ROUNDUP((IF(((O$8-$C14)/30.4)>0,((O$8-$C14)/30.4),12+((O$8-$C14)/30.4))),0),CVMS!$D$19:$P$28,'Calcul CVMS VV'!$Q$2,FALSE))))/100*$D$2,"") -> 14.755 | P14: =IFERROR((IF($C14="","",(HLOOKUP(ROUNDUP((IF(((P$8-$C14)/30.4)>0,((P$8-$C14)/30.4),12+((P$8-$C14)/30.4))),0),CVMS!$D$19:$P$28,'Calcul CVMS VV'!$Q$2,FALSE))))/100*$D$2,"") -> 13.715 | T14: =IFERROR(((HLOOKUP(IF(ROUNDUP(((T$8-$C14)*12/365),FALSE)>0,ROUNDUP(((T$8-$C14)*12/365),FALSE),(ROUNDUP(((T$8-$C14)*12/365),FALSE)+12)),CVMS!$D$58:$Q$67,$Q$2,FALSE))*31),"") -> 172.05 | U14: =IFERROR(((HLOOKUP(IF(ROUNDUP(((U$8-$C14)*12/365),FALSE)>0,ROUNDUP(((U$8-$C14)*12/365),FALSE),(ROUNDUP(((U$8-$C14)*12/365),FALSE)+12)),CVMS!$D$58:$Q$67,$Q$2,FALSE))*28),"") -> 190.4 | V14: =IFERROR(((HLOOKUP(IF(ROUNDUP(((V$8-$C14)*12/365),FALSE)>0,ROUNDUP(((V$8-$C14)*12/365),FALSE),(ROUNDUP(((V$8-$C14)*12/365),FALSE)+12)),CVMS!$D$58:$Q$67,$Q$2,FALSE))*31),"") -> 210.8 | W14: =IFERROR(((HLOOKUP(IF(ROUNDUP(((W$8-$C14)*12/365),FALSE)>0,ROUNDUP(((W$8-$C14)*12/365),FALSE),(ROUNDUP(((W$8-$C14)*12/365),FALSE)+12)),CVMS!$D$58:$Q$67,$Q$2,FALSE))*30),"") ->  | X14: =IFERROR(((HLOOKUP(IF(ROUNDUP(((X$8-$C14)*12/365),FALSE)>0,ROUNDUP(((X$8-$C14)*12/365),FALSE),(ROUNDUP(((X$8-$C14)*12/365),FALSE)+12)),CVMS!$D$58:$Q$67,$Q$2,FALSE))*31),"") ->  | Y14: =IFERROR(((HLOOKUP(IF(ROUNDUP(((Y$8-$C14)*12/365),FALSE)>0,ROUNDUP(((Y$8-$C14)*12/365),FALSE),(ROUNDUP(((Y$8-$C14)*12/365),FALSE)+12)),CVMS!$D$58:$Q$67,$Q$2,FALSE))*30),"") ->  | Z14: =IFERROR(((HLOOKUP(IF(ROUNDUP(((Z$8-$C14)*12/365),FALSE)>0,ROUNDUP(((Z$8-$C14)*12/365),FALSE),(ROUNDUP(((Z$8-$C14)*12/365),FALSE)+12)),CVMS!$D$58:$Q$67,$Q$2,FALSE))*31),"") -> 93 | AA14: =IFERROR(((HLOOKUP(IF(ROUNDUP(((AA$8-$C14)*12/365),FALSE)>0,ROUNDUP(((AA$8-$C14)*12/365),FALSE),(ROUNDUP(((AA$8-$C14)*12/365),FALSE)+12)),CVMS!$D$58:$Q$67,$Q$2,FALSE))*31),"") -> 48.05 | AB14: =IFERROR(((HLOOKUP(IF(ROUNDUP(((AB$8-$C14)*12/365),FALSE)>0,ROUNDUP(((AB$8-$C14)*12/365),FALSE),(ROUNDUP(((AB$8-$C14)*12/365),FALSE)+12)),CVMS!$D$58:$Q$67,$Q$2,FALSE))*30),"") -> 58.5 | AC14: =IFERROR(((HLOOKUP(IF(ROUNDUP(((AC$8-$C14)*12/365),FALSE)>0,ROUNDUP(((AC$8-$C14)*12/365),FALSE),(ROUNDUP(((AC$8-$C14)*12/365),FALSE)+12)),CVMS!$D$58:$Q$67,$Q$2,FALSE))*31),"") -> 111.6 | AD14: =IFERROR(((HLOOKUP(IF(ROUNDUP(((AD$8-$C14)*12/365),FALSE)>0,ROUNDUP(((AD$8-$C14)*12/365),FALSE),(ROUNDUP(((AD$8-$C14)*12/365),FALSE)+12)),CVMS!$D$58:$Q$67,$Q$2,FALSE))*30),"") -> 130.5 | AE14: =IFERROR(((HLOOKUP(IF(ROUNDUP(((AE$8-$C14)*12/365),FALSE)>0,ROUNDUP(((AE$8-$C14)*12/365),FALSE),(ROUNDUP(((AE$8-$C14)*12/365),FALSE)+12)),CVMS!$D$58:$Q$67,$Q$2,FALSE))*31),"") -> 172.05
B15: 7 | E15: =IFERROR((IF($C15="","",(HLOOKUP(ROUNDUP((IF(((E$8-$C15)/30.4)>0,((E$8-$C15)/30.4),12+((E$8-$C15)/30.4))),0),CVMS!$D$19:$P$28,'Calcul CVMS VV'!$Q$2,FALSE))))/100*$D$2,"") ->  | F15: =IFERROR((IF($C15="","",(HLOOKUP(ROUNDUP((IF(((F$8-$C15)/30.4)>0,((F$8-$C15)/30.4),12+((F$8-$C15)/30.4))),0),CVMS!$D$19:$P$28,'Calcul CVMS VV'!$Q$2,FALSE))))/100*$D$2,"") ->  | G15: =IFERROR((IF($C15="","",(HLOOKUP(ROUNDUP((IF(((G$8-$C15)/30.4)>0,((G$8-$C15)/30.4),12+((G$8-$C15)/30.4))),0),CVMS!$D$19:$P$28,'Calcul CVMS VV'!$Q$2,FALSE))))/100*$D$2,"") ->  | H15: =IFERROR((IF($C15="","",(HLOOKUP(ROUNDUP((IF(((H$8-$C15)/30.4)>0,((H$8-$C15)/30.4),12+((H$8-$C15)/30.4))),0),CVMS!$D$19:$P$28,'Calcul CVMS VV'!$Q$2,FALSE))))/100*$D$2,"") ->  | I15: =IFERROR((IF($C15="","",(HLOOKUP(ROUNDUP((IF(((I$8-$C15)/30.4)>0,((I$8-$C15)/30.4),12+((I$8-$C15)/30.4))),0),CVMS!$D$19:$P$28,'Calcul CVMS VV'!$Q$2,FALSE))))/100*$D$2,"") ->  | J15: =IFERROR((IF($C15="","",(HLOOKUP(ROUNDUP((IF(((J$8-$C15)/30.4)>0,((J$8-$C15)/30.4),12+((J$8-$C15)/30.4))),0),CVMS!$D$19:$P$28,'Calcul CVMS VV'!$Q$2,FALSE))))/100*$D$2,"") ->  | K15: =IFERROR((IF($C15="","",(HLOOKUP(ROUNDUP((IF(((K$8-$C15)/30.4)>0,((K$8-$C15)/30.4),12+((K$8-$C15)/30.4))),0),CVMS!$D$19:$P$28,'Calcul CVMS VV'!$Q$2,FALSE))))/100*$D$2,"") ->  | L15: =IFERROR((IF($C15="","",(HLOOKUP(ROUNDUP((IF(((L$8-$C15)/30.4)>0,((L$8-$C15)/30.4),12+((L$8-$C15)/30.4))),0),CVMS!$D$19:$P$28,'Calcul CVMS VV'!$Q$2,FALSE))))/100*$D$2,"") ->  | M15: =IFERROR((IF($C15="","",(HLOOKUP(ROUNDUP((IF(((M$8-$C15)/30.4)>0,((M$8-$C15)/30.4),12+((M$8-$C15)/30.4))),0),CVMS!$D$19:$P$28,'Calcul CVMS VV'!$Q$2,FALSE))))/100*$D$2,"") ->  | N15: =IFERROR((IF($C15="","",(HLOOKUP(ROUNDUP((IF(((N$8-$C15)/30.4)>0,((N$8-$C15)/30.4),12+((N$8-$C15)/30.4))),0),CVMS!$D$19:$P$28,'Calcul CVMS VV'!$Q$2,FALSE))))/100*$D$2,"") ->  | O15: =IFERROR((IF($C15="","",(HLOOKUP(ROUNDUP((IF(((O$8-$C15)/30.4)>0,((O$8-$C15)/30.4),12+((O$8-$C15)/30.4))),0),CVMS!$D$19:$P$28,'Calcul CVMS VV'!$Q$2,FALSE))))/100*$D$2,"") ->  | P15: =IFERROR((IF($C15="","",(HLOOKUP(ROUNDUP((IF(((P$8-$C15)/30.4)>0,((P$8-$C15)/30.4),12+((P$8-$C15)/30.4))),0),CVMS!$D$19:$P$28,'Calcul CVMS VV'!$Q$2,FALSE))))/100*$D$2,"") ->  | T15: =IFERROR(((HLOOKUP(IF(ROUNDUP(((T$8-$C15)*12/365),FALSE)>0,ROUNDUP(((T$8-$C15)*12/365),FALSE),(ROUNDUP(((T$8-$C15)*12/365),FALSE)+12)),CVMS!$D$58:$Q$67,$Q$2,FALSE))*31),"") ->  | U15: =IFERROR(((HLOOKUP(IF(ROUNDUP(((U$8-$C15)*12/365),FALSE)>0,ROUNDUP(((U$8-$C15)*12/365),FALSE),(ROUNDUP(((U$8-$C15)*12/365),FALSE)+12)),CVMS!$D$58:$Q$67,$Q$2,FALSE))*28),"") ->  | V15: =IFERROR(((HLOOKUP(IF(ROUNDUP(((V$8-$C15)*12/365),FALSE)>0,ROUNDUP(((V$8-$C15)*12/365),FALSE),(ROUNDUP(((V$8-$C15)*12/365),FALSE)+12)),CVMS!$D$58:$Q$67,$Q$2,FALSE))*31),"") ->  | W15: =IFERROR(((HLOOKUP(IF(ROUNDUP(((W$8-$C15)*12/365),FALSE)>0,ROUNDUP(((W$8-$C15)*12/365),FALSE),(ROUNDUP(((W$8-$C15)*12/365),FALSE)+12)),CVMS!$D$58:$Q$67,$Q$2,FALSE))*30),"") ->  | X15: =IFERROR(((HLOOKUP(IF(ROUNDUP(((X$8-$C15)*12/365),FALSE)>0,ROUNDUP(((X$8-$C15)*12/365),FALSE),(ROUNDUP(((X$8-$C15)*12/365),FALSE)+12)),CVMS!$D$58:$Q$67,$Q$2,FALSE))*31),"") ->  | Y15: =IFERROR(((HLOOKUP(IF(ROUNDUP(((Y$8-$C15)*12/365),FALSE)>0,ROUNDUP(((Y$8-$C15)*12/365),FALSE),(ROUNDUP(((Y$8-$C15)*12/365),FALSE)+12)),CVMS!$D$58:$Q$67,$Q$2,FALSE))*30),"") ->  | Z15: =IFERROR(((HLOOKUP(IF(ROUNDUP(((Z$8-$C15)*12/365),FALSE)>0,ROUNDUP(((Z$8-$C15)*12/365),FALSE),(ROUNDUP(((Z$8-$C15)*12/365),FALSE)+12)),CVMS!$D$58:$Q$67,$Q$2,FALSE))*31),"") ->  | AA15: =IFERROR(((HLOOKUP(IF(ROUNDUP(((AA$8-$C15)*12/365),FALSE)>0,ROUNDUP(((AA$8-$C15)*12/365),FALSE),(ROUNDUP(((AA$8-$C15)*12/365),FALSE)+12)),CVMS!$D$58:$Q$67,$Q$2,FALSE))*31),"") ->  | AB15: =IFERROR(((HLOOKUP(IF(ROUNDUP(((AB$8-$C15)*12/365),FALSE)>0,ROUNDUP(((AB$8-$C15)*12/365),FALSE),(ROUNDUP(((AB$8-$C15)*12/365),FALSE)+12)),CVMS!$D$58:$Q$67,$Q$2,FALSE))*30),"") ->  | AC15: =IFERROR(((HLOOKUP(IF(ROUNDUP(((AC$8-$C15)*12/365),FALSE)>0,ROUNDUP(((AC$8-$C15)*12/365),FALSE),(ROUNDUP(((AC$8-$C15)*12/365),FALSE)+12)),CVMS!$D$58:$Q$67,$Q$2,FALSE))*31),"") ->  | AD15: =IFERROR(((HLOOKUP(IF(ROUNDUP(((AD$8-$C15)*12/365),FALSE)>0,ROUNDUP(((AD$8-$C15)*12/365),FALSE),(ROUNDUP(((AD$8-$C15)*12/365),FALSE)+12)),CVMS!$D$58:$Q$67,$Q$2,FALSE))*30),"") ->  | AE15: =IFERROR(((HLOOKUP(IF(ROUNDUP(((AE$8-$C15)*12/365),FALSE)>0,ROUNDUP(((AE$8-$C15)*12/365),FALSE),(ROUNDUP(((AE$8-$C15)*12/365),FALSE)+12)),CVMS!$D$58:$Q$67,$Q$2,FALSE))*31),"") -> 
B16: 8 | E16: =IFERROR((IF($C16="","",(HLOOKUP(ROUNDUP((IF(((E$8-$C16)/30.4)>0,((E$8-$C16)/30.4),12+((E$8-$C16)/30.4))),0),CVMS!$D$19:$P$28,'Calcul CVMS VV'!$Q$2,FALSE))))/100*$D$2,"") ->  | F16: =IFERROR((IF($C16="","",(HLOOKUP(ROUNDUP((IF(((F$8-$C16)/30.4)>0,((F$8-$C16)/30.4),12+((F$8-$C16)/30.4))),0),CVMS!$D$19:$P$28,'Calcul CVMS VV'!$Q$2,FALSE))))/100*$D$2,"") ->  | G16: =IFERROR((IF($C16="","",(HLOOKUP(ROUNDUP((IF(((G$8-$C16)/30.4)>0,((G$8-$C16)/30.4),12+((G$8-$C16)/30.4))),0),CVMS!$D$19:$P$28,'Calcul CVMS VV'!$Q$2,FALSE))))/100*$D$2,"") ->  | H16: =IFERROR((IF($C16="","",(HLOOKUP(ROUNDUP((IF(((H$8-$C16)/30.4)>0,((H$8-$C16)/30.4),12+((H$8-$C16)/30.4))),0),CVMS!$D$19:$P$28,'Calcul CVMS VV'!$Q$2,FALSE))))/100*$D$2,"") ->  | I16: =IFERROR((IF($C16="","",(HLOOKUP(ROUNDUP((IF(((I$8-$C16)/30.4)>0,((I$8-$C16)/30.4),12+((I$8-$C16)/30.4))),0),CVMS!$D$19:$P$28,'Calcul CVMS VV'!$Q$2,FALSE))))/100*$D$2,"") ->  | J16: =IFERROR((IF($C16="","",(HLOOKUP(ROUNDUP((IF(((J$8-$C16)/30.4)>0,((J$8-$C16)/30.4),12+((J$8-$C16)/30.4))),0),CVMS!$D$19:$P$28,'Calcul CVMS VV'!$Q$2,FALSE))))/100*$D$2,"") ->  | K16: =IFERROR((IF($C16="","",(HLOOKUP(ROUNDUP((IF(((K$8-$C16)/30.4)>0,((K$8-$C16)/30.4),12+((K$8-$C16)/30.4))),0),CVMS!$D$19:$P$28,'Calcul CVMS VV'!$Q$2,FALSE))))/100*$D$2,"") ->  | L16: =IFERROR((IF($C16="","",(HLOOKUP(ROUNDUP((IF(((L$8-$C16)/30.4)>0,((L$8-$C16)/30.4),12+((L$8-$C16)/30.4))),0),CVMS!$D$19:$P$28,'Calcul CVMS VV'!$Q$2,FALSE))))/100*$D$2,"") ->  | M16: =IFERROR((IF($C16="","",(HLOOKUP(ROUNDUP((IF(((M$8-$C16)/30.4)>0,((M$8-$C16)/30.4),12+((M$8-$C16)/30.4))),0),CVMS!$D$19:$P$28,'Calcul CVMS VV'!$Q$2,FALSE))))/100*$D$2,"") ->  | N16: =IFERROR((IF($C16="","",(HLOOKUP(ROUNDUP((IF(((N$8-$C16)/30.4)>0,((N$8-$C16)/30.4),12+((N$8-$C16)/30.4))),0),CVMS!$D$19:$P$28,'Calcul CVMS VV'!$Q$2,FALSE))))/100*$D$2,"") ->  | O16: =IFERROR((IF($C16="","",(HLOOKUP(ROUNDUP((IF(((O$8-$C16)/30.4)>0,((O$8-$C16)/30.4),12+((O$8-$C16)/30.4))),0),CVMS!$D$19:$P$28,'Calcul CVMS VV'!$Q$2,FALSE))))/100*$D$2,"") ->  | P16: =IFERROR((IF($C16="","",(HLOOKUP(ROUNDUP((IF(((P$8-$C16)/30.4)>0,((P$8-$C16)/30.4),12+((P$8-$C16)/30.4))),0),CVMS!$D$19:$P$28,'Calcul CVMS VV'!$Q$2,FALSE))))/100*$D$2,"") ->  | T16: =IFERROR(((HLOOKUP(IF(ROUNDUP(((T$8-$C16)*12/365),FALSE)>0,ROUNDUP(((T$8-$C16)*12/365),FALSE),(ROUNDUP(((T$8-$C16)*12/365),FALSE)+12)),CVMS!$D$58:$Q$67,$Q$2,FALSE))*31),"") ->  | U16: =IFERROR(((HLOOKUP(IF(ROUNDUP(((U$8-$C16)*12/365),FALSE)>0,ROUNDUP(((U$8-$C16)*12/365),FALSE),(ROUNDUP(((U$8-$C16)*12/365),FALSE)+12)),CVMS!$D$58:$Q$67,$Q$2,FALSE))*28),"") ->  | V16: =IFERROR(((HLOOKUP(IF(ROUNDUP(((V$8-$C16)*12/365),FALSE)>0,ROUNDUP(((V$8-$C16)*12/365),FALSE),(ROUNDUP(((V$8-$C16)*12/365),FALSE)+12)),CVMS!$D$58:$Q$67,$Q$2,FALSE))*31),"") ->  | W16: =IFERROR(((HLOOKUP(IF(ROUNDUP(((W$8-$C16)*12/365),FALSE)>0,ROUNDUP(((W$8-$C16)*12/365),FALSE),(ROUNDUP(((W$8-$C16)*12/365),FALSE)+12)),CVMS!$D$58:$Q$67,$Q$2,FALSE))*30),"") ->  | X16: =IFERROR(((HLOOKUP(IF(ROUNDUP(((X$8-$C16)*12/365),FALSE)>0,ROUNDUP(((X$8-$C16)*12/365),FALSE),(ROUNDUP(((X$8-$C16)*12/365),FALSE)+12)),CVMS!$D$58:$Q$67,$Q$2,FALSE))*31),"") ->  | Y16: =IFERROR(((HLOOKUP(IF(ROUNDUP(((Y$8-$C16)*12/365),FALSE)>0,ROUNDUP(((Y$8-$C16)*12/365),FALSE),(ROUNDUP(((Y$8-$C16)*12/365),FALSE)+12)),CVMS!$D$58:$Q$67,$Q$2,FALSE))*30),"") ->  | Z16: =IFERROR(((HLOOKUP(IF(ROUNDUP(((Z$8-$C16)*12/365),FALSE)>0,ROUNDUP(((Z$8-$C16)*12/365),FALSE),(ROUNDUP(((Z$8-$C16)*12/365),FALSE)+12)),CVMS!$D$58:$Q$67,$Q$2,FALSE))*31),"") ->  | AA16: =IFERROR(((HLOOKUP(IF(ROUNDUP(((AA$8-$C16)*12/365),FALSE)>0,ROUNDUP(((AA$8-$C16)*12/365),FALSE),(ROUNDUP(((AA$8-$C16)*12/365),FALSE)+12)),CVMS!$D$58:$Q$67,$Q$2,FALSE))*31),"") ->  | AB16: =IFERROR(((HLOOKUP(IF(ROUNDUP(((AB$8-$C16)*12/365),FALSE)>0,ROUNDUP(((AB$8-$C16)*12/365),FALSE),(ROUNDUP(((AB$8-$C16)*12/365),FALSE)+12)),CVMS!$D$58:$Q$67,$Q$2,FALSE))*30),"") ->  | AC16: =IFERROR(((HLOOKUP(IF(ROUNDUP(((AC$8-$C16)*12/365),FALSE)>0,ROUNDUP(((AC$8-$C16)*12/365),FALSE),(ROUNDUP(((AC$8-$C16)*12/365),FALSE)+12)),CVMS!$D$58:$Q$67,$Q$2,FALSE))*31),"") ->  | AD16: =IFERROR(((HLOOKUP(IF(ROUNDUP(((AD$8-$C16)*12/365),FALSE)>0,ROUNDUP(((AD$8-$C16)*12/365),FALSE),(ROUNDUP(((AD$8-$C16)*12/365),FALSE)+12)),CVMS!$D$58:$Q$67,$Q$2,FALSE))*30),"") ->  | AE16: =IFERROR(((HLOOKUP(IF(ROUNDUP(((AE$8-$C16)*12/365),FALSE)>0,ROUNDUP(((AE$8-$C16)*12/365),FALSE),(ROUNDUP(((AE$8-$C16)*12/365),FALSE)+12)),CVMS!$D$58:$Q$67,$Q$2,FALSE))*31),"") -> 
B17: 9 | E17: =IFERROR((IF($C17="","",(HLOOKUP(ROUNDUP((IF(((E$8-$C17)/30.4)>0,((E$8-$C17)/30.4),12+((E$8-$C17)/30.4))),0),CVMS!$D$19:$P$28,'Calcul CVMS VV'!$Q$2,FALSE))))/100*$D$2,"") ->  | F17: =IFERROR((IF($C17="","",(HLOOKUP(ROUNDUP((IF(((F$8-$C17)/30.4)>0,((F$8-$C17)/30.4),12+((F$8-$C17)/30.4))),0),CVMS!$D$19:$P$28,'Calcul CVMS VV'!$Q$2,FALSE))))/100*$D$2,"") ->  | G17: =IFERROR((IF($C17="","",(HLOOKUP(ROUNDUP((IF(((G$8-$C17)/30.4)>0,((G$8-$C17)/30.4),12+((G$8-$C17)/30.4))),0),CVMS!$D$19:$P$28,'Calcul CVMS VV'!$Q$2,FALSE))))/100*$D$2,"") ->  | H17: =IFERROR((IF($C17="","",(HLOOKUP(ROUNDUP((IF(((H$8-$C17)/30.4)>0,((H$8-$C17)/30.4),12+((H$8-$C17)/30.4))),0),CVMS!$D$19:$P$28,'Calcul CVMS VV'!$Q$2,FALSE))))/100*$D$2,"") ->  | I17: =IFERROR((IF($C17="","",(HLOOKUP(ROUNDUP((IF(((I$8-$C17)/30.4)>0,((I$8-$C17)/30.4),12+((I$8-$C17)/30.4))),0),CVMS!$D$19:$P$28,'Calcul CVMS VV'!$Q$2,FALSE))))/100*$D$2,"") ->  | J17: =IFERROR((IF($C17="","",(HLOOKUP(ROUNDUP((IF(((J$8-$C17)/30.4)>0,((J$8-$C17)/30.4),12+((J$8-$C17)/30.4))),0),CVMS!$D$19:$P$28,'Calcul CVMS VV'!$Q$2,FALSE))))/100*$D$2,"") ->  | K17: =IFERROR((IF($C17="","",(HLOOKUP(ROUNDUP((IF(((K$8-$C17)/30.4)>0,((K$8-$C17)/30.4),12+((K$8-$C17)/30.4))),0),CVMS!$D$19:$P$28,'Calcul CVMS VV'!$Q$2,FALSE))))/100*$D$2,"") ->  | L17: =IFERROR((IF($C17="","",(HLOOKUP(ROUNDUP((IF(((L$8-$C17)/30.4)>0,((L$8-$C17)/30.4),12+((L$8-$C17)/30.4))),0),CVMS!$D$19:$P$28,'Calcul CVMS VV'!$Q$2,FALSE))))/100*$D$2,"") ->  | M17: =IFERROR((IF($C17="","",(HLOOKUP(ROUNDUP((IF(((M$8-$C17)/30.4)>0,((M$8-$C17)/30.4),12+((M$8-$C17)/30.4))),0),CVMS!$D$19:$P$28,'Calcul CVMS VV'!$Q$2,FALSE))))/100*$D$2,"") ->  | N17: =IFERROR((IF($C17="","",(HLOOKUP(ROUNDUP((IF(((N$8-$C17)/30.4)>0,((N$8-$C17)/30.4),12+((N$8-$C17)/30.4))),0),CVMS!$D$19:$P$28,'Calcul CVMS VV'!$Q$2,FALSE))))/100*$D$2,"") ->  | O17: =IFERROR((IF($C17="","",(HLOOKUP(ROUNDUP((IF(((O$8-$C17)/30.4)>0,((O$8-$C17)/30.4),12+((O$8-$C17)/30.4))),0),CVMS!$D$19:$P$28,'Calcul CVMS VV'!$Q$2,FALSE))))/100*$D$2,"") ->  | P17: =IFERROR((IF($C17="","",(HLOOKUP(ROUNDUP((IF(((P$8-$C17)/30.4)>0,((P$8-$C17)/30.4),12+((P$8-$C17)/30.4))),0),CVMS!$D$19:$P$28,'Calcul CVMS VV'!$Q$2,FALSE))))/100*$D$2,"") ->  | T17: =IFERROR(((HLOOKUP(IF(ROUNDUP(((T$8-$C17)*12/365),FALSE)>0,ROUNDUP(((T$8-$C17)*12/365),FALSE),(ROUNDUP(((T$8-$C17)*12/365),FALSE)+12)),CVMS!$D$58:$Q$67,$Q$2,FALSE))*31),"") ->  | U17: =IFERROR(((HLOOKUP(IF(ROUNDUP(((U$8-$C17)*12/365),FALSE)>0,ROUNDUP(((U$8-$C17)*12/365),FALSE),(ROUNDUP(((U$8-$C17)*12/365),FALSE)+12)),CVMS!$D$58:$Q$67,$Q$2,FALSE))*28),"") ->  | V17: =IFERROR(((HLOOKUP(IF(ROUNDUP(((V$8-$C17)*12/365),FALSE)>0,ROUNDUP(((V$8-$C17)*12/365),FALSE),(ROUNDUP(((V$8-$C17)*12/365),FALSE)+12)),CVMS!$D$58:$Q$67,$Q$2,FALSE))*31),"") ->  | W17: =IFERROR(((HLOOKUP(IF(ROUNDUP(((W$8-$C17)*12/365),FALSE)>0,ROUNDUP(((W$8-$C17)*12/365),FALSE),(ROUNDUP(((W$8-$C17)*12/365),FALSE)+12)),CVMS!$D$58:$Q$67,$Q$2,FALSE))*30),"") ->  | X17: =IFERROR(((HLOOKUP(IF(ROUNDUP(((X$8-$C17)*12/365),FALSE)>0,ROUNDUP(((X$8-$C17)*12/365),FALSE),(ROUNDUP(((X$8-$C17)*12/365),FALSE)+12)),CVMS!$D$58:$Q$67,$Q$2,FALSE))*31),"") ->  | Y17: =IFERROR(((HLOOKUP(IF(ROUNDUP(((Y$8-$C17)*12/365),FALSE)>0,ROUNDUP(((Y$8-$C17)*12/365),FALSE),(ROUNDUP(((Y$8-$C17)*12/365),FALSE)+12)),CVMS!$D$58:$Q$67,$Q$2,FALSE))*30),"") ->  | Z17: =IFERROR(((HLOOKUP(IF(ROUNDUP(((Z$8-$C17)*12/365),FALSE)>0,ROUNDUP(((Z$8-$C17)*12/365),FALSE),(ROUNDUP(((Z$8-$C17)*12/365),FALSE)+12)),CVMS!$D$58:$Q$67,$Q$2,FALSE))*31),"") ->  | AA17: =IFERROR(((HLOOKUP(IF(ROUNDUP(((AA$8-$C17)*12/365),FALSE)>0,ROUNDUP(((AA$8-$C17)*12/365),FALSE),(ROUNDUP(((AA$8-$C17)*12/365),FALSE)+12)),CVMS!$D$58:$Q$67,$Q$2,FALSE))*31),"") ->  | AB17: =IFERROR(((HLOOKUP(IF(ROUNDUP(((AB$8-$C17)*12/365),FALSE)>0,ROUNDUP(((AB$8-$C17)*12/365),FALSE),(ROUNDUP(((AB$8-$C17)*12/365),FALSE)+12)),CVMS!$D$58:$Q$67,$Q$2,FALSE))*30),"") ->  | AC17: =IFERROR(((HLOOKUP(IF(ROUNDUP(((AC$8-$C17)*12/365),FALSE)>0,ROUNDUP(((AC$8-$C17)*12/365),FALSE),(ROUNDUP(((AC$8-$C17)*12/365),FALSE)+12)),CVMS!$D$58:$Q$67,$Q$2,FALSE))*31),"") ->  | AD17: =IFERROR(((HLOOKUP(IF(ROUNDUP(((AD$8-$C17)*12/365),FALSE)>0,ROUNDUP(((AD$8-$C17)*12/365),FALSE),(ROUNDUP(((AD$8-$C17)*12/365),FALSE)+12)),CVMS!$D$58:$Q$67,$Q$2,FALSE))*30),"") ->  | AE17: =IFERROR(((HLOOKUP(IF(ROUNDUP(((AE$8-$C17)*12/365),FALSE)>0,ROUNDUP(((AE$8-$C17)*12/365),FALSE),(ROUNDUP(((AE$8-$C17)*12/365),FALSE)+12)),CVMS!$D$58:$Q$67,$Q$2,FALSE))*31),"") -> 
B18: 10 | E18: =IFERROR((IF($C18="","",(HLOOKUP(ROUNDUP((IF(((E$8-$C18)/30.4)>0,((E$8-$C18)/30.4),12+((E$8-$C18)/30.4))),0),CVMS!$D$19:$P$28,'Calcul CVMS VV'!$Q$2,FALSE))))/100*$D$2,"") ->  | F18: =IFERROR((IF($C18="","",(HLOOKUP(ROUNDUP((IF(((F$8-$C18)/30.4)>0,((F$8-$C18)/30.4),12+((F$8-$C18)/30.4))),0),CVMS!$D$19:$P$28,'Calcul CVMS VV'!$Q$2,FALSE))))/100*$D$2,"") ->  | G18: =IFERROR((IF($C18="","",(HLOOKUP(ROUNDUP((IF(((G$8-$C18)/30.4)>0,((G$8-$C18)/30.4),12+((G$8-$C18)/30.4))),0),CVMS!$D$19:$P$28,'Calcul CVMS VV'!$Q$2,FALSE))))/100*$D$2,"") ->  | H18: =IFERROR((IF($C18="","",(HLOOKUP(ROUNDUP((IF(((H$8-$C18)/30.4)>0,((H$8-$C18)/30.4),12+((H$8-$C18)/30.4))),0),CVMS!$D$19:$P$28,'Calcul CVMS VV'!$Q$2,FALSE))))/100*$D$2,"") ->  | I18: =IFERROR((IF($C18="","",(HLOOKUP(ROUNDUP((IF(((I$8-$C18)/30.4)>0,((I$8-$C18)/30.4),12+((I$8-$C18)/30.4))),0),CVMS!$D$19:$P$28,'Calcul CVMS VV'!$Q$2,FALSE))))/100*$D$2,"") ->  | J18: =IFERROR((IF($C18="","",(HLOOKUP(ROUNDUP((IF(((J$8-$C18)/30.4)>0,((J$8-$C18)/30.4),12+((J$8-$C18)/30.4))),0),CVMS!$D$19:$P$28,'Calcul CVMS VV'!$Q$2,FALSE))))/100*$D$2,"") ->  | K18: =IFERROR((IF($C18="","",(HLOOKUP(ROUNDUP((IF(((K$8-$C18)/30.4)>0,((K$8-$C18)/30.4),12+((K$8-$C18)/30.4))),0),CVMS!$D$19:$P$28,'Calcul CVMS VV'!$Q$2,FALSE))))/100*$D$2,"") ->  | L18: =IFERROR((IF($C18="","",(HLOOKUP(ROUNDUP((IF(((L$8-$C18)/30.4)>0,((L$8-$C18)/30.4),12+((L$8-$C18)/30.4))),0),CVMS!$D$19:$P$28,'Calcul CVMS VV'!$Q$2,FALSE))))/100*$D$2,"") ->  | M18: =IFERROR((IF($C18="","",(HLOOKUP(ROUNDUP((IF(((M$8-$C18)/30.4)>0,((M$8-$C18)/30.4),12+((M$8-$C18)/30.4))),0),CVMS!$D$19:$P$28,'Calcul CVMS VV'!$Q$2,FALSE))))/100*$D$2,"") ->  | N18: =IFERROR((IF($C18="","",(HLOOKUP(ROUNDUP((IF(((N$8-$C18)/30.4)>0,((N$8-$C18)/30.4),12+((N$8-$C18)/30.4))),0),CVMS!$D$19:$P$28,'Calcul CVMS VV'!$Q$2,FALSE))))/100*$D$2,"") ->  | O18: =IFERROR((IF($C18="","",(HLOOKUP(ROUNDUP((IF(((O$8-$C18)/30.4)>0,((O$8-$C18)/30.4),12+((O$8-$C18)/30.4))),0),CVMS!$D$19:$P$28,'Calcul CVMS VV'!$Q$2,FALSE))))/100*$D$2,"") ->  | P18: =IFERROR((IF($C18="","",(HLOOKUP(ROUNDUP((IF(((P$8-$C18)/30.4)>0,((P$8-$C18)/30.4),12+((P$8-$C18)/30.4))),0),CVMS!$D$19:$P$28,'Calcul CVMS VV'!$Q$2,FALSE))))/100*$D$2,"") ->  | T18: =IFERROR(((HLOOKUP(IF(ROUNDUP(((T$8-$C18)*12/365),FALSE)>0,ROUNDUP(((T$8-$C18)*12/365),FALSE),(ROUNDUP(((T$8-$C18)*12/365),FALSE)+12)),CVMS!$D$58:$Q$67,$Q$2,FALSE))*31),"") ->  | U18: =IFERROR(((HLOOKUP(IF(ROUNDUP(((U$8-$C18)*12/365),FALSE)>0,ROUNDUP(((U$8-$C18)*12/365),FALSE),(ROUNDUP(((U$8-$C18)*12/365),FALSE)+12)),CVMS!$D$58:$Q$67,$Q$2,FALSE))*28),"") ->  | V18: =IFERROR(((HLOOKUP(IF(ROUNDUP(((V$8-$C18)*12/365),FALSE)>0,ROUNDUP(((V$8-$C18)*12/365),FALSE),(ROUNDUP(((V$8-$C18)*12/365),FALSE)+12)),CVMS!$D$58:$Q$67,$Q$2,FALSE))*31),"") ->  | W18: =IFERROR(((HLOOKUP(IF(ROUNDUP(((W$8-$C18)*12/365),FALSE)>0,ROUNDUP(((W$8-$C18)*12/365),FALSE),(ROUNDUP(((W$8-$C18)*12/365),FALSE)+12)),CVMS!$D$58:$Q$67,$Q$2,FALSE))*30),"") ->  | X18: =IFERROR(((HLOOKUP(IF(ROUNDUP(((X$8-$C18)*12/365),FALSE)>0,ROUNDUP(((X$8-$C18)*12/365),FALSE),(ROUNDUP(((X$8-$C18)*12/365),FALSE)+12)),CVMS!$D$58:$Q$67,$Q$2,FALSE))*31),"") ->  | Y18: =IFERROR(((HLOOKUP(IF(ROUNDUP(((Y$8-$C18)*12/365),FALSE)>0,ROUNDUP(((Y$8-$C18)*12/365),FALSE),(ROUNDUP(((Y$8-$C18)*12/365),FALSE)+12)),CVMS!$D$58:$Q$67,$Q$2,FALSE))*30),"") ->  | Z18: =IFERROR(((HLOOKUP(IF(ROUNDUP(((Z$8-$C18)*12/365),FALSE)>0,ROUNDUP(((Z$8-$C18)*12/365),FALSE),(ROUNDUP(((Z$8-$C18)*12/365),FALSE)+12)),CVMS!$D$58:$Q$67,$Q$2,FALSE))*31),"") ->  | AA18: =IFERROR(((HLOOKUP(IF(ROUNDUP(((AA$8-$C18)*12/365),FALSE)>0,ROUNDUP(((AA$8-$C18)*12/365),FALSE),(ROUNDUP(((AA$8-$C18)*12/365),FALSE)+12)),CVMS!$D$58:$Q$67,$Q$2,FALSE))*31),"") ->  | AB18: =IFERROR(((HLOOKUP(IF(ROUNDUP(((AB$8-$C18)*12/365),FALSE)>0,ROUNDUP(((AB$8-$C18)*12/365),FALSE),(ROUNDUP(((AB$8-$C18)*12/365),FALSE)+12)),CVMS!$D$58:$Q$67,$Q$2,FALSE))*30),"") ->  | AC18: =IFERROR(((HLOOKUP(IF(ROUNDUP(((AC$8-$C18)*12/365),FALSE)>0,ROUNDUP(((AC$8-$C18)*12/365),FALSE),(ROUNDUP(((AC$8-$C18)*12/365),FALSE)+12)),CVMS!$D$58:$Q$67,$Q$2,FALSE))*31),"") ->  | AD18: =IFERROR(((HLOOKUP(IF(ROUNDUP(((AD$8-$C18)*12/365),FALSE)>0,ROUNDUP(((AD$8-$C18)*12/365),FALSE),(ROUNDUP(((AD$8-$C18)*12/365),FALSE)+12)),CVMS!$D$58:$Q$67,$Q$2,FALSE))*30),"") ->  | AE18: =IFERROR(((HLOOKUP(IF(ROUNDUP(((AE$8-$C18)*12/365),FALSE)>0,ROUNDUP(((AE$8-$C18)*12/365),FALSE),(ROUNDUP(((AE$8-$C18)*12/365),FALSE)+12)),CVMS!$D$58:$Q$67,$Q$2,FALSE))*31),"") -> 
E19: =IFERROR((IF($C19="","",(HLOOKUP(ROUNDUP((IF(((E$8-$C19)/30.4)>0,((E$8-$C19)/30.4),12+((E$8-$C19)/30.4))),0),CVMS!$D$19:$P$28,'Calcul CVMS VV'!$Q$2,FALSE))))/100*$D$2,"") ->  | F19: =IFERROR((IF($C19="","",(HLOOKUP(ROUNDUP((IF(((F$8-$C19)/30.4)>0,((F$8-$C19)/30.4),12+((F$8-$C19)/30.4))),0),CVMS!$D$19:$P$28,'Calcul CVMS VV'!$Q$2,FALSE))))/100*$D$2,"") ->  | G19: =IFERROR((IF($C19="","",(HLOOKUP(ROUNDUP((IF(((G$8-$C19)/30.4)>0,((G$8-$C19)/30.4),12+((G$8-$C19)/30.4))),0),CVMS!$D$19:$P$28,'Calcul CVMS VV'!$Q$2,FALSE))))/100*$D$2,"") ->  | H19: =IFERROR((IF($C19="","",(HLOOKUP(ROUNDUP((IF(((H$8-$C19)/30.4)>0,((H$8-$C19)/30.4),12+((H$8-$C19)/30.4))),0),CVMS!$D$19:$P$28,'Calcul CVMS VV'!$Q$2,FALSE))))/100*$D$2,"") ->  | I19: =IFERROR((IF($C19="","",(HLOOKUP(ROUNDUP((IF(((I$8-$C19)/30.4)>0,((I$8-$C19)/30.4),12+((I$8-$C19)/30.4))),0),CVMS!$D$19:$P$28,'Calcul CVMS VV'!$Q$2,FALSE))))/100*$D$2,"") ->  | J19: =IFERROR((IF($C19="","",(HLOOKUP(ROUNDUP((IF(((J$8-$C19)/30.4)>0,((J$8-$C19)/30.4),12+((J$8-$C19)/30.4))),0),CVMS!$D$19:$P$28,'Calcul CVMS VV'!$Q$2,FALSE))))/100*$D$2,"") ->  | K19: =IFERROR((IF($C19="","",(HLOOKUP(ROUNDUP((IF(((K$8-$C19)/30.4)>0,((K$8-$C19)/30.4),12+((K$8-$C19)/30.4))),0),CVMS!$D$19:$P$28,'Calcul CVMS VV'!$Q$2,FALSE))))/100*$D$2,"") ->  | L19: =IFERROR((IF($C19="","",(HLOOKUP(ROUNDUP((IF(((L$8-$C19)/30.4)>0,((L$8-$C19)/30.4),12+((L$8-$C19)/30.4))),0),CVMS!$D$19:$P$28,'Calcul CVMS VV'!$Q$2,FALSE))))/100*$D$2,"") ->  | M19: =IFERROR((IF($C19="","",(HLOOKUP(ROUNDUP((IF(((M$8-$C19)/30.4)>0,((M$8-$C19)/30.4),12+((M$8-$C19)/30.4))),0),CVMS!$D$19:$P$28,'Calcul CVMS VV'!$Q$2,FALSE))))/100*$D$2,"") ->  | N19: =IFERROR((IF($C19="","",(HLOOKUP(ROUNDUP((IF(((N$8-$C19)/30.4)>0,((N$8-$C19)/30.4),12+((N$8-$C19)/30.4))),0),CVMS!$D$19:$P$28,'Calcul CVMS VV'!$Q$2,FALSE))))/100*$D$2,"") ->  | O19: =IFERROR((IF($C19="","",(HLOOKUP(ROUNDUP((IF(((O$8-$C19)/30.4)>0,((O$8-$C19)/30.4),12+((O$8-$C19)/30.4))),0),CVMS!$D$19:$P$28,'Calcul CVMS VV'!$Q$2,FALSE))))/100*$D$2,"") ->  | P19: =IFERROR((IF($C19="","",(HLOOKUP(ROUNDUP((IF(((P$8-$C19)/30.4)>0,((P$8-$C19)/30.4),12+((P$8-$C19)/30.4))),0),CVMS!$D$19:$P$28,'Calcul CVMS VV'!$Q$2,FALSE))))/100*$D$2,"") ->  | T19: =IFERROR(((HLOOKUP(IF(ROUNDUP(((T$8-$C19)*12/365),FALSE)>0,ROUNDUP(((T$8-$C19)*12/365),FALSE),(ROUNDUP(((T$8-$C19)*12/365),FALSE)+12)),CVMS!$D$58:$Q$67,$Q$2,FALSE))*31),"") ->  | U19: =IFERROR(((HLOOKUP(IF(ROUNDUP(((U$8-$C19)*12/365),FALSE)>0,ROUNDUP(((U$8-$C19)*12/365),FALSE),(ROUNDUP(((U$8-$C19)*12/365),FALSE)+12)),CVMS!$D$58:$Q$67,$Q$2,FALSE))*28),"") ->  | V19: =IFERROR(((HLOOKUP(IF(ROUNDUP(((V$8-$C19)*12/365),FALSE)>0,ROUNDUP(((V$8-$C19)*12/365),FALSE),(ROUNDUP(((V$8-$C19)*12/365),FALSE)+12)),CVMS!$D$58:$Q$67,$Q$2,FALSE))*31),"") ->  | W19: =IFERROR(((HLOOKUP(IF(ROUNDUP(((W$8-$C19)*12/365),FALSE)>0,ROUNDUP(((W$8-$C19)*12/365),FALSE),(ROUNDUP(((W$8-$C19)*12/365),FALSE)+12)),CVMS!$D$58:$Q$67,$Q$2,FALSE))*30),"") ->  | X19: =IFERROR(((HLOOKUP(IF(ROUNDUP(((X$8-$C19)*12/365),FALSE)>0,ROUNDUP(((X$8-$C19)*12/365),FALSE),(ROUNDUP(((X$8-$C19)*12/365),FALSE)+12)),CVMS!$D$58:$Q$67,$Q$2,FALSE))*31),"") ->  | Y19: =IFERROR(((HLOOKUP(IF(ROUNDUP(((Y$8-$C19)*12/365),FALSE)>0,ROUNDUP(((Y$8-$C19)*12/365),FALSE),(ROUNDUP(((Y$8-$C19)*12/365),FALSE)+12)),CVMS!$D$58:$Q$67,$Q$2,FALSE))*30),"") ->  | Z19: =IFERROR(((HLOOKUP(IF(ROUNDUP(((Z$8-$C19)*12/365),FALSE)>0,ROUNDUP(((Z$8-$C19)*12/365),FALSE),(ROUNDUP(((Z$8-$C19)*12/365),FALSE)+12)),CVMS!$D$58:$Q$67,$Q$2,FALSE))*31),"") ->  | AA19: =IFERROR(((HLOOKUP(IF(ROUNDUP(((AA$8-$C19)*12/365),FALSE)>0,ROUNDUP(((AA$8-$C19)*12/365),FALSE),(ROUNDUP(((AA$8-$C19)*12/365),FALSE)+12)),CVMS!$D$58:$Q$67,$Q$2,FALSE))*31),"") ->  | AB19: =IFERROR(((HLOOKUP(IF(ROUNDUP(((AB$8-$C19)*12/365),FALSE)>0,ROUNDUP(((AB$8-$C19)*12/365),FALSE),(ROUNDUP(((AB$8-$C19)*12/365),FALSE)+12)),CVMS!$D$58:$Q$67,$Q$2,FALSE))*30),"") ->  | AC19: =IFERROR(((HLOOKUP(IF(ROUNDUP(((AC$8-$C19)*12/365),FALSE)>0,ROUNDUP(((AC$8-$C19)*12/365),FALSE),(ROUNDUP(((AC$8-$C19)*12/365),FALSE)+12)),CVMS!$D$58:$Q$67,$Q$2,FALSE))*31),"") ->  | AD19: =IFERROR(((HLOOKUP(IF(ROUNDUP(((AD$8-$C19)*12/365),FALSE)>0,ROUNDUP(((AD$8-$C19)*12/365),FALSE),(ROUNDUP(((AD$8-$C19)*12/365),FALSE)+12)),CVMS!$D$58:$Q$67,$Q$2,FALSE))*30),"") ->  | AE19: =IFERROR(((HLOOKUP(IF(ROUNDUP(((AE$8-$C19)*12/365),FALSE)>0,ROUNDUP(((AE$8-$C19)*12/365),FALSE),(ROUNDUP(((AE$8-$C19)*12/365),FALSE)+12)),CVMS!$D$58:$Q$67,$Q$2,FALSE))*31),"") -> 
E20: =IFERROR((IF($C20="","",(HLOOKUP(ROUNDUP((IF(((E$8-$C20)/30.4)>0,((E$8-$C20)/30.4),12+((E$8-$C20)/30.4))),0),CVMS!$D$19:$P$28,'Calcul CVMS VV'!$Q$2,FALSE))))/100*$D$2,"") ->  | F20: =IFERROR((IF($C20="","",(HLOOKUP(ROUNDUP((IF(((F$8-$C20)/30.4)>0,((F$8-$C20)/30.4),12+((F$8-$C20)/30.4))),0),CVMS!$D$19:$P$28,'Calcul CVMS VV'!$Q$2,FALSE))))/100*$D$2,"") ->  | G20: =IFERROR((IF($C20="","",(HLOOKUP(ROUNDUP((IF(((G$8-$C20)/30.4)>0,((G$8-$C20)/30.4),12+((G$8-$C20)/30.4))),0),CVMS!$D$19:$P$28,'Calcul CVMS VV'!$Q$2,FALSE))))/100*$D$2,"") ->  | H20: =IFERROR((IF($C20="","",(HLOOKUP(ROUNDUP((IF(((H$8-$C20)/30.4)>0,((H$8-$C20)/30.4),12+((H$8-$C20)/30.4))),0),CVMS!$D$19:$P$28,'Calcul CVMS VV'!$Q$2,FALSE))))/100*$D$2,"") ->  | I20: =IFERROR((IF($C20="","",(HLOOKUP(ROUNDUP((IF(((I$8-$C20)/30.4)>0,((I$8-$C20)/30.4),12+((I$8-$C20)/30.4))),0),CVMS!$D$19:$P$28,'Calcul CVMS VV'!$Q$2,FALSE))))/100*$D$2,"") ->  | J20: =IFERROR((IF($C20="","",(HLOOKUP(ROUNDUP((IF(((J$8-$C20)/30.4)>0,((J$8-$C20)/30.4),12+((J$8-$C20)/30.4))),0),CVMS!$D$19:$P$28,'Calcul CVMS VV'!$Q$2,FALSE))))/100*$D$2,"") ->  | K20: =IFERROR((IF($C20="","",(HLOOKUP(ROUNDUP((IF(((K$8-$C20)/30.4)>0,((K$8-$C20)/30.4),12+((K$8-$C20)/30.4))),0),CVMS!$D$19:$P$28,'Calcul CVMS VV'!$Q$2,FALSE))))/100*$D$2,"") ->  | L20: =IFERROR((IF($C20="","",(HLOOKUP(ROUNDUP((IF(((L$8-$C20)/30.4)>0,((L$8-$C20)/30.4),12+((L$8-$C20)/30.4))),0),CVMS!$D$19:$P$28,'Calcul CVMS VV'!$Q$2,FALSE))))/100*$D$2,"") ->  | M20: =IFERROR((IF($C20="","",(HLOOKUP(ROUNDUP((IF(((M$8-$C20)/30.4)>0,((M$8-$C20)/30.4),12+((M$8-$C20)/30.4))),0),CVMS!$D$19:$P$28,'Calcul CVMS VV'!$Q$2,FALSE))))/100*$D$2,"") ->  | N20: =IFERROR((IF($C20="","",(HLOOKUP(ROUNDUP((IF(((N$8-$C20)/30.4)>0,((N$8-$C20)/30.4),12+((N$8-$C20)/30.4))),0),CVMS!$D$19:$P$28,'Calcul CVMS VV'!$Q$2,FALSE))))/100*$D$2,"") ->  | O20: =IFERROR((IF($C20="","",(HLOOKUP(ROUNDUP((IF(((O$8-$C20)/30.4)>0,((O$8-$C20)/30.4),12+((O$8-$C20)/30.4))),0),CVMS!$D$19:$P$28,'Calcul CVMS VV'!$Q$2,FALSE))))/100*$D$2,"") ->  | P20: =IFERROR((IF($C20="","",(HLOOKUP(ROUNDUP((IF(((P$8-$C20)/30.4)>0,((P$8-$C20)/30.4),12+((P$8-$C20)/30.4))),0),CVMS!$D$19:$P$28,'Calcul CVMS VV'!$Q$2,FALSE))))/100*$D$2,"") ->  | T20: =IFERROR(((HLOOKUP(IF(ROUNDUP(((T$8-$C20)*12/365),FALSE)>0,ROUNDUP(((T$8-$C20)*12/365),FALSE),(ROUNDUP(((T$8-$C20)*12/365),FALSE)+12)),CVMS!$D$58:$Q$67,$Q$2,FALSE))*31),"") ->  | U20: =IFERROR(((HLOOKUP(IF(ROUNDUP(((U$8-$C20)*12/365),FALSE)>0,ROUNDUP(((U$8-$C20)*12/365),FALSE),(ROUNDUP(((U$8-$C20)*12/365),FALSE)+12)),CVMS!$D$58:$Q$67,$Q$2,FALSE))*28),"") ->  | V20: =IFERROR(((HLOOKUP(IF(ROUNDUP(((V$8-$C20)*12/365),FALSE)>0,ROUNDUP(((V$8-$C20)*12/365),FALSE),(ROUNDUP(((V$8-$C20)*12/365),FALSE)+12)),CVMS!$D$58:$Q$67,$Q$2,FALSE))*31),"") ->  | W20: =IFERROR(((HLOOKUP(IF(ROUNDUP(((W$8-$C20)*12/365),FALSE)>0,ROUNDUP(((W$8-$C20)*12/365),FALSE),(ROUNDUP(((W$8-$C20)*12/365),FALSE)+12)),CVMS!$D$58:$Q$67,$Q$2,FALSE))*30),"") ->  | X20: =IFERROR(((HLOOKUP(IF(ROUNDUP(((X$8-$C20)*12/365),FALSE)>0,ROUNDUP(((X$8-$C20)*12/365),FALSE),(ROUNDUP(((X$8-$C20)*12/365),FALSE)+12)),CVMS!$D$58:$Q$67,$Q$2,FALSE))*31),"") ->  | Y20: =IFERROR(((HLOOKUP(IF(ROUNDUP(((Y$8-$C20)*12/365),FALSE)>0,ROUNDUP(((Y$8-$C20)*12/365),FALSE),(ROUNDUP(((Y$8-$C20)*12/365),FALSE)+12)),CVMS!$D$58:$Q$67,$Q$2,FALSE))*30),"") ->  | Z20: =IFERROR(((HLOOKUP(IF(ROUNDUP(((Z$8-$C20)*12/365),FALSE)>0,ROUNDUP(((Z$8-$C20)*12/365),FALSE),(ROUNDUP(((Z$8-$C20)*12/365),FALSE)+12)),CVMS!$D$58:$Q$67,$Q$2,FALSE))*31),"") ->  | AA20: =IFERROR(((HLOOKUP(IF(ROUNDUP(((AA$8-$C20)*12/365),FALSE)>0,ROUNDUP(((AA$8-$C20)*12/365),FALSE),(ROUNDUP(((AA$8-$C20)*12/365),FALSE)+12)),CVMS!$D$58:$Q$67,$Q$2,FALSE))*31),"") ->  | AB20: =IFERROR(((HLOOKUP(IF(ROUNDUP(((AB$8-$C20)*12/365),FALSE)>0,ROUNDUP(((AB$8-$C20)*12/365),FALSE),(ROUNDUP(((AB$8-$C20)*12/365),FALSE)+12)),CVMS!$D$58:$Q$67,$Q$2,FALSE))*30),"") ->  | AC20: =IFERROR(((HLOOKUP(IF(ROUNDUP(((AC$8-$C20)*12/365),FALSE)>0,ROUNDUP(((AC$8-$C20)*12/365),FALSE),(ROUNDUP(((AC$8-$C20)*12/365),FALSE)+12)),CVMS!$D$58:$Q$67,$Q$2,FALSE))*31),"") ->  | AD20: =IFERROR(((HLOOKUP(IF(ROUNDUP(((AD$8-$C20)*12/365),FALSE)>0,ROUNDUP(((AD$8-$C20)*12/365),FALSE),(ROUNDUP(((AD$8-$C20)*12/365),FALSE)+12)),CVMS!$D$58:$Q$67,$Q$2,FALSE))*30),"") ->  | AE20: =IFERROR(((HLOOKUP(IF(ROUNDUP(((AE$8-$C20)*12/365),FALSE)>0,ROUNDUP(((AE$8-$C20)*12/365),FALSE),(ROUNDUP(((AE$8-$C20)*12/365),FALSE)+12)),CVMS!$D$58:$Q$67,$Q$2,FALSE))*31),"") -> 
E21: =IFERROR((IF($C21="","",(HLOOKUP(ROUNDUP((IF(((E$8-$C21)/30.4)>0,((E$8-$C21)/30.4),12+((E$8-$C21)/30.4))),0),CVMS!$D$19:$P$28,'Calcul CVMS VV'!$Q$2,FALSE))))/100*$D$2,"") ->  | F21: =IFERROR((IF($C21="","",(HLOOKUP(ROUNDUP((IF(((F$8-$C21)/30.4)>0,((F$8-$C21)/30.4),12+((F$8-$C21)/30.4))),0),CVMS!$D$19:$P$28,'Calcul CVMS VV'!$Q$2,FALSE))))/100*$D$2,"") ->  | G21: =IFERROR((IF($C21="","",(HLOOKUP(ROUNDUP((IF(((G$8-$C21)/30.4)>0,((G$8-$C21)/30.4),12+((G$8-$C21)/30.4))),0),CVMS!$D$19:$P$28,'Calcul CVMS VV'!$Q$2,FALSE))))/100*$D$2,"") ->  | H21: =IFERROR((IF($C21="","",(HLOOKUP(ROUNDUP((IF(((H$8-$C21)/30.4)>0,((H$8-$C21)/30.4),12+((H$8-$C21)/30.4))),0),CVMS!$D$19:$P$28,'Calcul CVMS VV'!$Q$2,FALSE))))/100*$D$2,"") ->  | I21: =IFERROR((IF($C21="","",(HLOOKUP(ROUNDUP((IF(((I$8-$C21)/30.4)>0,((I$8-$C21)/30.4),12+((I$8-$C21)/30.4))),0),CVMS!$D$19:$P$28,'Calcul CVMS VV'!$Q$2,FALSE))))/100*$D$2,"") ->  | J21: =IFERROR((IF($C21="","",(HLOOKUP(ROUNDUP((IF(((J$8-$C21)/30.4)>0,((J$8-$C21)/30.4),12+((J$8-$C21)/30.4))),0),CVMS!$D$19:$P$28,'Calcul CVMS VV'!$Q$2,FALSE))))/100*$D$2,"") ->  | K21: =IFERROR((IF($C21="","",(HLOOKUP(ROUNDUP((IF(((K$8-$C21)/30.4)>0,((K$8-$C21)/30.4),12+((K$8-$C21)/30.4))),0),CVMS!$D$19:$P$28,'Calcul CVMS VV'!$Q$2,FALSE))))/100*$D$2,"") ->  | L21: =IFERROR((IF($C21="","",(HLOOKUP(ROUNDUP((IF(((L$8-$C21)/30.4)>0,((L$8-$C21)/30.4),12+((L$8-$C21)/30.4))),0),CVMS!$D$19:$P$28,'Calcul CVMS VV'!$Q$2,FALSE))))/100*$D$2,"") ->  | M21: =IFERROR((IF($C21="","",(HLOOKUP(ROUNDUP((IF(((M$8-$C21)/30.4)>0,((M$8-$C21)/30.4),12+((M$8-$C21)/30.4))),0),CVMS!$D$19:$P$28,'Calcul CVMS VV'!$Q$2,FALSE))))/100*$D$2,"") ->  | N21: =IFERROR((IF($C21="","",(HLOOKUP(ROUNDUP((IF(((N$8-$C21)/30.4)>0,((N$8-$C21)/30.4),12+((N$8-$C21)/30.4))),0),CVMS!$D$19:$P$28,'Calcul CVMS VV'!$Q$2,FALSE))))/100*$D$2,"") ->  | O21: =IFERROR((IF($C21="","",(HLOOKUP(ROUNDUP((IF(((O$8-$C21)/30.4)>0,((O$8-$C21)/30.4),12+((O$8-$C21)/30.4))),0),CVMS!$D$19:$P$28,'Calcul CVMS VV'!$Q$2,FALSE))))/100*$D$2,"") ->  | P21: =IFERROR((IF($C21="","",(HLOOKUP(ROUNDUP((IF(((P$8-$C21)/30.4)>0,((P$8-$C21)/30.4),12+((P$8-$C21)/30.4))),0),CVMS!$D$19:$P$28,'Calcul CVMS VV'!$Q$2,FALSE))))/100*$D$2,"") ->  | T21: =IFERROR(((HLOOKUP(IF(ROUNDUP(((T$8-$C21)*12/365),FALSE)>0,ROUNDUP(((T$8-$C21)*12/365),FALSE),(ROUNDUP(((T$8-$C21)*12/365),FALSE)+12)),CVMS!$D$58:$Q$67,$Q$2,FALSE))*31),"") ->  | U21: =IFERROR(((HLOOKUP(IF(ROUNDUP(((U$8-$C21)*12/365),FALSE)>0,ROUNDUP(((U$8-$C21)*12/365),FALSE),(ROUNDUP(((U$8-$C21)*12/365),FALSE)+12)),CVMS!$D$58:$Q$67,$Q$2,FALSE))*28),"") ->  | V21: =IFERROR(((HLOOKUP(IF(ROUNDUP(((V$8-$C21)*12/365),FALSE)>0,ROUNDUP(((V$8-$C21)*12/365),FALSE),(ROUNDUP(((V$8-$C21)*12/365),FALSE)+12)),CVMS!$D$58:$Q$67,$Q$2,FALSE))*31),"") ->  | W21: =IFERROR(((HLOOKUP(IF(ROUNDUP(((W$8-$C21)*12/365),FALSE)>0,ROUNDUP(((W$8-$C21)*12/365),FALSE),(ROUNDUP(((W$8-$C21)*12/365),FALSE)+12)),CVMS!$D$58:$Q$67,$Q$2,FALSE))*30),"") ->  | X21: =IFERROR(((HLOOKUP(IF(ROUNDUP(((X$8-$C21)*12/365),FALSE)>0,ROUNDUP(((X$8-$C21)*12/365),FALSE),(ROUNDUP(((X$8-$C21)*12/365),FALSE)+12)),CVMS!$D$58:$Q$67,$Q$2,FALSE))*31),"") ->  | Y21: =IFERROR(((HLOOKUP(IF(ROUNDUP(((Y$8-$C21)*12/365),FALSE)>0,ROUNDUP(((Y$8-$C21)*12/365),FALSE),(ROUNDUP(((Y$8-$C21)*12/365),FALSE)+12)),CVMS!$D$58:$Q$67,$Q$2,FALSE))*30),"") ->  | Z21: =IFERROR(((HLOOKUP(IF(ROUNDUP(((Z$8-$C21)*12/365),FALSE)>0,ROUNDUP(((Z$8-$C21)*12/365),FALSE),(ROUNDUP(((Z$8-$C21)*12/365),FALSE)+12)),CVMS!$D$58:$Q$67,$Q$2,FALSE))*31),"") ->  | AA21: =IFERROR(((HLOOKUP(IF(ROUNDUP(((AA$8-$C21)*12/365),FALSE)>0,ROUNDUP(((AA$8-$C21)*12/365),FALSE),(ROUNDUP(((AA$8-$C21)*12/365),FALSE)+12)),CVMS!$D$58:$Q$67,$Q$2,FALSE))*31),"") ->  | AB21: =IFERROR(((HLOOKUP(IF(ROUNDUP(((AB$8-$C21)*12/365),FALSE)>0,ROUNDUP(((AB$8-$C21)*12/365),FALSE),(ROUNDUP(((AB$8-$C21)*12/365),FALSE)+12)),CVMS!$D$58:$Q$67,$Q$2,FALSE))*30),"") ->  | AC21: =IFERROR(((HLOOKUP(IF(ROUNDUP(((AC$8-$C21)*12/365),FALSE)>0,ROUNDUP(((AC$8-$C21)*12/365),FALSE),(ROUNDUP(((AC$8-$C21)*12/365),FALSE)+12)),CVMS!$D$58:$Q$67,$Q$2,FALSE))*31),"") ->  | AD21: =IFERROR(((HLOOKUP(IF(ROUNDUP(((AD$8-$C21)*12/365),FALSE)>0,ROUNDUP(((AD$8-$C21)*12/365),FALSE),(ROUNDUP(((AD$8-$C21)*12/365),FALSE)+12)),CVMS!$D$58:$Q$67,$Q$2,FALSE))*30),"") ->  | AE21: =IFERROR(((HLOOKUP(IF(ROUNDUP(((AE$8-$C21)*12/365),FALSE)>0,ROUNDUP(((AE$8-$C21)*12/365),FALSE),(ROUNDUP(((AE$8-$C21)*12/365),FALSE)+12)),CVMS!$D$58:$Q$67,$Q$2,FALSE))*31),"") -> 
E22: =IFERROR((IF($C22="","",(HLOOKUP(ROUNDUP((IF(((E$8-$C22)/30.4)>0,((E$8-$C22)/30.4),12+((E$8-$C22)/30.4))),0),CVMS!$D$19:$P$28,'Calcul CVMS VV'!$Q$2,FALSE))))/100*$D$2,"") ->  | F22: =IFERROR((IF($C22="","",(HLOOKUP(ROUNDUP((IF(((F$8-$C22)/30.4)>0,((F$8-$C22)/30.4),12+((F$8-$C22)/30.4))),0),CVMS!$D$19:$P$28,'Calcul CVMS VV'!$Q$2,FALSE))))/100*$D$2,"") ->  | G22: =IFERROR((IF($C22="","",(HLOOKUP(ROUNDUP((IF(((G$8-$C22)/30.4)>0,((G$8-$C22)/30.4),12+((G$8-$C22)/30.4))),0),CVMS!$D$19:$P$28,'Calcul CVMS VV'!$Q$2,FALSE))))/100*$D$2,"") ->  | H22: =IFERROR((IF($C22="","",(HLOOKUP(ROUNDUP((IF(((H$8-$C22)/30.4)>0,((H$8-$C22)/30.4),12+((H$8-$C22)/30.4))),0),CVMS!$D$19:$P$28,'Calcul CVMS VV'!$Q$2,FALSE))))/100*$D$2,"") ->  | I22: =IFERROR((IF($C22="","",(HLOOKUP(ROUNDUP((IF(((I$8-$C22)/30.4)>0,((I$8-$C22)/30.4),12+((I$8-$C22)/30.4))),0),CVMS!$D$19:$P$28,'Calcul CVMS VV'!$Q$2,FALSE))))/100*$D$2,"") ->  | J22: =IFERROR((IF($C22="","",(HLOOKUP(ROUNDUP((IF(((J$8-$C22)/30.4)>0,((J$8-$C22)/30.4),12+((J$8-$C22)/30.4))),0),CVMS!$D$19:$P$28,'Calcul CVMS VV'!$Q$2,FALSE))))/100*$D$2,"") ->  | K22: =IFERROR((IF($C22="","",(HLOOKUP(ROUNDUP((IF(((K$8-$C22)/30.4)>0,((K$8-$C22)/30.4),12+((K$8-$C22)/30.4))),0),CVMS!$D$19:$P$28,'Calcul CVMS VV'!$Q$2,FALSE))))/100*$D$2,"") ->  | L22: =IFERROR((IF($C22="","",(HLOOKUP(ROUNDUP((IF(((L$8-$C22)/30.4)>0,((L$8-$C22)/30.4),12+((L$8-$C22)/30.4))),0),CVMS!$D$19:$P$28,'Calcul CVMS VV'!$Q$2,FALSE))))/100*$D$2,"") ->  | M22: =IFERROR((IF($C22="","",(HLOOKUP(ROUNDUP((IF(((M$8-$C22)/30.4)>0,((M$8-$C22)/30.4),12+((M$8-$C22)/30.4))),0),CVMS!$D$19:$P$28,'Calcul CVMS VV'!$Q$2,FALSE))))/100*$D$2,"") ->  | N22: =IFERROR((IF($C22="","",(HLOOKUP(ROUNDUP((IF(((N$8-$C22)/30.4)>0,((N$8-$C22)/30.4),12+((N$8-$C22)/30.4))),0),CVMS!$D$19:$P$28,'Calcul CVMS VV'!$Q$2,FALSE))))/100*$D$2,"") ->  | O22: =IFERROR((IF($C22="","",(HLOOKUP(ROUNDUP((IF(((O$8-$C22)/30.4)>0,((O$8-$C22)/30.4),12+((O$8-$C22)/30.4))),0),CVMS!$D$19:$P$28,'Calcul CVMS VV'!$Q$2,FALSE))))/100*$D$2,"") ->  | P22: =IFERROR((IF($C22="","",(HLOOKUP(ROUNDUP((IF(((P$8-$C22)/30.4)>0,((P$8-$C22)/30.4),12+((P$8-$C22)/30.4))),0),CVMS!$D$19:$P$28,'Calcul CVMS VV'!$Q$2,FALSE))))/100*$D$2,"") ->  | T22: =IFERROR(((HLOOKUP(IF(ROUNDUP(((T$8-$C22)*12/365),FALSE)>0,ROUNDUP(((T$8-$C22)*12/365),FALSE),(ROUNDUP(((T$8-$C22)*12/365),FALSE)+12)),CVMS!$D$58:$Q$67,$Q$2,FALSE))*31),"") ->  | U22: =IFERROR(((HLOOKUP(IF(ROUNDUP(((U$8-$C22)*12/365),FALSE)>0,ROUNDUP(((U$8-$C22)*12/365),FALSE),(ROUNDUP(((U$8-$C22)*12/365),FALSE)+12)),CVMS!$D$58:$Q$67,$Q$2,FALSE))*28),"") ->  | V22: =IFERROR(((HLOOKUP(IF(ROUNDUP(((V$8-$C22)*12/365),FALSE)>0,ROUNDUP(((V$8-$C22)*12/365),FALSE),(ROUNDUP(((V$8-$C22)*12/365),FALSE)+12)),CVMS!$D$58:$Q$67,$Q$2,FALSE))*31),"") ->  | W22: =IFERROR(((HLOOKUP(IF(ROUNDUP(((W$8-$C22)*12/365),FALSE)>0,ROUNDUP(((W$8-$C22)*12/365),FALSE),(ROUNDUP(((W$8-$C22)*12/365),FALSE)+12)),CVMS!$D$58:$Q$67,$Q$2,FALSE))*30),"") ->  | X22: =IFERROR(((HLOOKUP(IF(ROUNDUP(((X$8-$C22)*12/365),FALSE)>0,ROUNDUP(((X$8-$C22)*12/365),FALSE),(ROUNDUP(((X$8-$C22)*12/365),FALSE)+12)),CVMS!$D$58:$Q$67,$Q$2,FALSE))*31),"") ->  | Y22: =IFERROR(((HLOOKUP(IF(ROUNDUP(((Y$8-$C22)*12/365),FALSE)>0,ROUNDUP(((Y$8-$C22)*12/365),FALSE),(ROUNDUP(((Y$8-$C22)*12/365),FALSE)+12)),CVMS!$D$58:$Q$67,$Q$2,FALSE))*30),"") ->  | Z22: =IFERROR(((HLOOKUP(IF(ROUNDUP(((Z$8-$C22)*12/365),FALSE)>0,ROUNDUP(((Z$8-$C22)*12/365),FALSE),(ROUNDUP(((Z$8-$C22)*12/365),FALSE)+12)),CVMS!$D$58:$Q$67,$Q$2,FALSE))*31),"") ->  | AA22: =IFERROR(((HLOOKUP(IF(ROUNDUP(((AA$8-$C22)*12/365),FALSE)>0,ROUNDUP(((AA$8-$C22)*12/365),FALSE),(ROUNDUP(((AA$8-$C22)*12/365),FALSE)+12)),CVMS!$D$58:$Q$67,$Q$2,FALSE))*31),"") ->  | AB22: =IFERROR(((HLOOKUP(IF(ROUNDUP(((AB$8-$C22)*12/365),FALSE)>0,ROUNDUP(((AB$8-$C22)*12/365),FALSE),(ROUNDUP(((AB$8-$C22)*12/365),FALSE)+12)),CVMS!$D$58:$Q$67,$Q$2,FALSE))*30),"") ->  | AC22: =IFERROR(((HLOOKUP(IF(ROUNDUP(((AC$8-$C22)*12/365),FALSE)>0,ROUNDUP(((AC$8-$C22)*12/365),FALSE),(ROUNDUP(((AC$8-$C22)*12/365),FALSE)+12)),CVMS!$D$58:$Q$67,$Q$2,FALSE))*31),"") ->  | AD22: =IFERROR(((HLOOKUP(IF(ROUNDUP(((AD$8-$C22)*12/365),FALSE)>0,ROUNDUP(((AD$8-$C22)*12/365),FALSE),(ROUNDUP(((AD$8-$C22)*12/365),FALSE)+12)),CVMS!$D$58:$Q$67,$Q$2,FALSE))*30),"") ->  | AE22: =IFERROR(((HLOOKUP(IF(ROUNDUP(((AE$8-$C22)*12/365),FALSE)>0,ROUNDUP(((AE$8-$C22)*12/365),FALSE),(ROUNDUP(((AE$8-$C22)*12/365),FALSE)+12)),CVMS!$D$58:$Q$67,$Q$2,FALSE))*31),"") -> 
E23: =IFERROR((IF($C23="","",(HLOOKUP(ROUNDUP((IF(((E$8-$C23)/30.4)>0,((E$8-$C23)/30.4),12+((E$8-$C23)/30.4))),0),CVMS!$D$19:$P$28,'Calcul CVMS VV'!$Q$2,FALSE))))/100*$D$2,"") ->  | F23: =IFERROR((IF($C23="","",(HLOOKUP(ROUNDUP((IF(((F$8-$C23)/30.4)>0,((F$8-$C23)/30.4),12+((F$8-$C23)/30.4))),0),CVMS!$D$19:$P$28,'Calcul CVMS VV'!$Q$2,FALSE))))/100*$D$2,"") ->  | G23: =IFERROR((IF($C23="","",(HLOOKUP(ROUNDUP((IF(((G$8-$C23)/30.4)>0,((G$8-$C23)/30.4),12+((G$8-$C23)/30.4))),0),CVMS!$D$19:$P$28,'Calcul CVMS VV'!$Q$2,FALSE))))/100*$D$2,"") ->  | H23: =IFERROR((IF($C23="","",(HLOOKUP(ROUNDUP((IF(((H$8-$C23)/30.4)>0,((H$8-$C23)/30.4),12+((H$8-$C23)/30.4))),0),CVMS!$D$19:$P$28,'Calcul CVMS VV'!$Q$2,FALSE))))/100*$D$2,"") ->  | I23: =IFERROR((IF($C23="","",(HLOOKUP(ROUNDUP((IF(((I$8-$C23)/30.4)>0,((I$8-$C23)/30.4),12+((I$8-$C23)/30.4))),0),CVMS!$D$19:$P$28,'Calcul CVMS VV'!$Q$2,FALSE))))/100*$D$2,"") ->  | J23: =IFERROR((IF($C23="","",(HLOOKUP(ROUNDUP((IF(((J$8-$C23)/30.4)>0,((J$8-$C23)/30.4),12+((J$8-$C23)/30.4))),0),CVMS!$D$19:$P$28,'Calcul CVMS VV'!$Q$2,FALSE))))/100*$D$2,"") ->  | K23: =IFERROR((IF($C23="","",(HLOOKUP(ROUNDUP((IF(((K$8-$C23)/30.4)>0,((K$8-$C23)/30.4),12+((K$8-$C23)/30.4))),0),CVMS!$D$19:$P$28,'Calcul CVMS VV'!$Q$2,FALSE))))/100*$D$2,"") ->  | L23: =IFERROR((IF($C23="","",(HLOOKUP(ROUNDUP((IF(((L$8-$C23)/30.4)>0,((L$8-$C23)/30.4),12+((L$8-$C23)/30.4))),0),CVMS!$D$19:$P$28,'Calcul CVMS VV'!$Q$2,FALSE))))/100*$D$2,"") ->  | M23: =IFERROR((IF($C23="","",(HLOOKUP(ROUNDUP((IF(((M$8-$C23)/30.4)>0,((M$8-$C23)/30.4),12+((M$8-$C23)/30.4))),0),CVMS!$D$19:$P$28,'Calcul CVMS VV'!$Q$2,FALSE))))/100*$D$2,"") ->  | N23: =IFERROR((IF($C23="","",(HLOOKUP(ROUNDUP((IF(((N$8-$C23)/30.4)>0,((N$8-$C23)/30.4),12+((N$8-$C23)/30.4))),0),CVMS!$D$19:$P$28,'Calcul CVMS VV'!$Q$2,FALSE))))/100*$D$2,"") ->  | O23: =IFERROR((IF($C23="","",(HLOOKUP(ROUNDUP((IF(((O$8-$C23)/30.4)>0,((O$8-$C23)/30.4),12+((O$8-$C23)/30.4))),0),CVMS!$D$19:$P$28,'Calcul CVMS VV'!$Q$2,FALSE))))/100*$D$2,"") ->  | P23: =IFERROR((IF($C23="","",(HLOOKUP(ROUNDUP((IF(((P$8-$C23)/30.4)>0,((P$8-$C23)/30.4),12+((P$8-$C23)/30.4))),0),CVMS!$D$19:$P$28,'Calcul CVMS VV'!$Q$2,FALSE))))/100*$D$2,"") ->  | T23: =IFERROR(((HLOOKUP(IF(ROUNDUP(((T$8-$C23)*12/365),FALSE)>0,ROUNDUP(((T$8-$C23)*12/365),FALSE),(ROUNDUP(((T$8-$C23)*12/365),FALSE)+12)),CVMS!$D$58:$Q$67,$Q$2,FALSE))*31),"") ->  | U23: =IFERROR(((HLOOKUP(IF(ROUNDUP(((U$8-$C23)*12/365),FALSE)>0,ROUNDUP(((U$8-$C23)*12/365),FALSE),(ROUNDUP(((U$8-$C23)*12/365),FALSE)+12)),CVMS!$D$58:$Q$67,$Q$2,FALSE))*28),"") ->  | V23: =IFERROR(((HLOOKUP(IF(ROUNDUP(((V$8-$C23)*12/365),FALSE)>0,ROUNDUP(((V$8-$C23)*12/365),FALSE),(ROUNDUP(((V$8-$C23)*12/365),FALSE)+12)),CVMS!$D$58:$Q$67,$Q$2,FALSE))*31),"") ->  | W23: =IFERROR(((HLOOKUP(IF(ROUNDUP(((W$8-$C23)*12/365),FALSE)>0,ROUNDUP(((W$8-$C23)*12/365),FALSE),(ROUNDUP(((W$8-$C23)*12/365),FALSE)+12)),CVMS!$D$58:$Q$67,$Q$2,FALSE))*30),"") ->  | X23: =IFERROR(((HLOOKUP(IF(ROUNDUP(((X$8-$C23)*12/365),FALSE)>0,ROUNDUP(((X$8-$C23)*12/365),FALSE),(ROUNDUP(((X$8-$C23)*12/365),FALSE)+12)),CVMS!$D$58:$Q$67,$Q$2,FALSE))*31),"") ->  | Y23: =IFERROR(((HLOOKUP(IF(ROUNDUP(((Y$8-$C23)*12/365),FALSE)>0,ROUNDUP(((Y$8-$C23)*12/365),FALSE),(ROUNDUP(((Y$8-$C23)*12/365),FALSE)+12)),CVMS!$D$58:$Q$67,$Q$2,FALSE))*30),"") ->  | Z23: =IFERROR(((HLOOKUP(IF(ROUNDUP(((Z$8-$C23)*12/365),FALSE)>0,ROUNDUP(((Z$8-$C23)*12/365),FALSE),(ROUNDUP(((Z$8-$C23)*12/365),FALSE)+12)),CVMS!$D$58:$Q$67,$Q$2,FALSE))*31),"") ->  | AA23: =IFERROR(((HLOOKUP(IF(ROUNDUP(((AA$8-$C23)*12/365),FALSE)>0,ROUNDUP(((AA$8-$C23)*12/365),FALSE),(ROUNDUP(((AA$8-$C23)*12/365),FALSE)+12)),CVMS!$D$58:$Q$67,$Q$2,FALSE))*31),"") ->  | AB23: =IFERROR(((HLOOKUP(IF(ROUNDUP(((AB$8-$C23)*12/365),FALSE)>0,ROUNDUP(((AB$8-$C23)*12/365),FALSE),(ROUNDUP(((AB$8-$C23)*12/365),FALSE)+12)),CVMS!$D$58:$Q$67,$Q$2,FALSE))*30),"") ->  | AC23: =IFERROR(((HLOOKUP(IF(ROUNDUP(((AC$8-$C23)*12/365),FALSE)>0,ROUNDUP(((AC$8-$C23)*12/365),FALSE),(ROUNDUP(((AC$8-$C23)*12/365),FALSE)+12)),CVMS!$D$58:$Q$67,$Q$2,FALSE))*31),"") ->  | AD23: =IFERROR(((HLOOKUP(IF(ROUNDUP(((AD$8-$C23)*12/365),FALSE)>0,ROUNDUP(((AD$8-$C23)*12/365),FALSE),(ROUNDUP(((AD$8-$C23)*12/365),FALSE)+12)),CVMS!$D$58:$Q$67,$Q$2,FALSE))*30),"") ->  | AE23: =IFERROR(((HLOOKUP(IF(ROUNDUP(((AE$8-$C23)*12/365),FALSE)>0,ROUNDUP(((AE$8-$C23)*12/365),FALSE),(ROUNDUP(((AE$8-$C23)*12/365),FALSE)+12)),CVMS!$D$58:$Q$67,$Q$2,FALSE))*31),"") -> 
E24: =IFERROR((IF($C24="","",(HLOOKUP(ROUNDUP((IF(((E$8-$C24)/30.4)>0,((E$8-$C24)/30.4),12+((E$8-$C24)/30.4))),0),CVMS!$D$19:$P$28,'Calcul CVMS VV'!$Q$2,FALSE))))/100*$D$2,"") ->  | F24: =IFERROR((IF($C24="","",(HLOOKUP(ROUNDUP((IF(((F$8-$C24)/30.4)>0,((F$8-$C24)/30.4),12+((F$8-$C24)/30.4))),0),CVMS!$D$19:$P$28,'Calcul CVMS VV'!$Q$2,FALSE))))/100*$D$2,"") ->  | G24: =IFERROR((IF($C24="","",(HLOOKUP(ROUNDUP((IF(((G$8-$C24)/30.4)>0,((G$8-$C24)/30.4),12+((G$8-$C24)/30.4))),0),CVMS!$D$19:$P$28,'Calcul CVMS VV'!$Q$2,FALSE))))/100*$D$2,"") ->  | H24: =IFERROR((IF($C24="","",(HLOOKUP(ROUNDUP((IF(((H$8-$C24)/30.4)>0,((H$8-$C24)/30.4),12+((H$8-$C24)/30.4))),0),CVMS!$D$19:$P$28,'Calcul CVMS VV'!$Q$2,FALSE))))/100*$D$2,"") ->  | I24: =IFERROR((IF($C24="","",(HLOOKUP(ROUNDUP((IF(((I$8-$C24)/30.4)>0,((I$8-$C24)/30.4),12+((I$8-$C24)/30.4))),0),CVMS!$D$19:$P$28,'Calcul CVMS VV'!$Q$2,FALSE))))/100*$D$2,"") ->  | J24: =IFERROR((IF($C24="","",(HLOOKUP(ROUNDUP((IF(((J$8-$C24)/30.4)>0,((J$8-$C24)/30.4),12+((J$8-$C24)/30.4))),0),CVMS!$D$19:$P$28,'Calcul CVMS VV'!$Q$2,FALSE))))/100*$D$2,"") ->  | K24: =IFERROR((IF($C24="","",(HLOOKUP(ROUNDUP((IF(((K$8-$C24)/30.4)>0,((K$8-$C24)/30.4),12+((K$8-$C24)/30.4))),0),CVMS!$D$19:$P$28,'Calcul CVMS VV'!$Q$2,FALSE))))/100*$D$2,"") ->  | L24: =IFERROR((IF($C24="","",(HLOOKUP(ROUNDUP((IF(((L$8-$C24)/30.4)>0,((L$8-$C24)/30.4),12+((L$8-$C24)/30.4))),0),CVMS!$D$19:$P$28,'Calcul CVMS VV'!$Q$2,FALSE))))/100*$D$2,"") ->  | M24: =IFERROR((IF($C24="","",(HLOOKUP(ROUNDUP((IF(((M$8-$C24)/30.4)>0,((M$8-$C24)/30.4),12+((M$8-$C24)/30.4))),0),CVMS!$D$19:$P$28,'Calcul CVMS VV'!$Q$2,FALSE))))/100*$D$2,"") ->  | N24: =IFERROR((IF($C24="","",(HLOOKUP(ROUNDUP((IF(((N$8-$C24)/30.4)>0,((N$8-$C24)/30.4),12+((N$8-$C24)/30.4))),0),CVMS!$D$19:$P$28,'Calcul CVMS VV'!$Q$2,FALSE))))/100*$D$2,"") ->  | O24: =IFERROR((IF($C24="","",(HLOOKUP(ROUNDUP((IF(((O$8-$C24)/30.4)>0,((O$8-$C24)/30.4),12+((O$8-$C24)/30.4))),0),CVMS!$D$19:$P$28,'Calcul CVMS VV'!$Q$2,FALSE))))/100*$D$2,"") ->  | P24: =IFERROR((IF($C24="","",(HLOOKUP(ROUNDUP((IF(((P$8-$C24)/30.4)>0,((P$8-$C24)/30.4),12+((P$8-$C24)/30.4))),0),CVMS!$D$19:$P$28,'Calcul CVMS VV'!$Q$2,FALSE))))/100*$D$2,"") ->  | T24: =IFERROR(((HLOOKUP(IF(ROUNDUP(((T$8-$C24)*12/365),FALSE)>0,ROUNDUP(((T$8-$C24)*12/365),FALSE),(ROUNDUP(((T$8-$C24)*12/365),FALSE)+12)),CVMS!$D$58:$Q$67,$Q$2,FALSE))*31),"") ->  | U24: =IFERROR(((HLOOKUP(IF(ROUNDUP(((U$8-$C24)*12/365),FALSE)>0,ROUNDUP(((U$8-$C24)*12/365),FALSE),(ROUNDUP(((U$8-$C24)*12/365),FALSE)+12)),CVMS!$D$58:$Q$67,$Q$2,FALSE))*28),"") ->  | V24: =IFERROR(((HLOOKUP(IF(ROUNDUP(((V$8-$C24)*12/365),FALSE)>0,ROUNDUP(((V$8-$C24)*12/365),FALSE),(ROUNDUP(((V$8-$C24)*12/365),FALSE)+12)),CVMS!$D$58:$Q$67,$Q$2,FALSE))*31),"") ->  | W24: =IFERROR(((HLOOKUP(IF(ROUNDUP(((W$8-$C24)*12/365),FALSE)>0,ROUNDUP(((W$8-$C24)*12/365),FALSE),(ROUNDUP(((W$8-$C24)*12/365),FALSE)+12)),CVMS!$D$58:$Q$67,$Q$2,FALSE))*30),"") ->  | X24: =IFERROR(((HLOOKUP(IF(ROUNDUP(((X$8-$C24)*12/365),FALSE)>0,ROUNDUP(((X$8-$C24)*12/365),FALSE),(ROUNDUP(((X$8-$C24)*12/365),FALSE)+12)),CVMS!$D$58:$Q$67,$Q$2,FALSE))*31),"") ->  | Y24: =IFERROR(((HLOOKUP(IF(ROUNDUP(((Y$8-$C24)*12/365),FALSE)>0,ROUNDUP(((Y$8-$C24)*12/365),FALSE),(ROUNDUP(((Y$8-$C24)*12/365),FALSE)+12)),CVMS!$D$58:$Q$67,$Q$2,FALSE))*30),"") ->  | Z24: =IFERROR(((HLOOKUP(IF(ROUNDUP(((Z$8-$C24)*12/365),FALSE)>0,ROUNDUP(((Z$8-$C24)*12/365),FALSE),(ROUNDUP(((Z$8-$C24)*12/365),FALSE)+12)),CVMS!$D$58:$Q$67,$Q$2,FALSE))*31),"") ->  | AA24: =IFERROR(((HLOOKUP(IF(ROUNDUP(((AA$8-$C24)*12/365),FALSE)>0,ROUNDUP(((AA$8-$C24)*12/365),FALSE),(ROUNDUP(((AA$8-$C24)*12/365),FALSE)+12)),CVMS!$D$58:$Q$67,$Q$2,FALSE))*31),"") ->  | AB24: =IFERROR(((HLOOKUP(IF(ROUNDUP(((AB$8-$C24)*12/365),FALSE)>0,ROUNDUP(((AB$8-$C24)*12/365),FALSE),(ROUNDUP(((AB$8-$C24)*12/365),FALSE)+12)),CVMS!$D$58:$Q$67,$Q$2,FALSE))*30),"") ->  | AC24: =IFERROR(((HLOOKUP(IF(ROUNDUP(((AC$8-$C24)*12/365),FALSE)>0,ROUNDUP(((AC$8-$C24)*12/365),FALSE),(ROUNDUP(((AC$8-$C24)*12/365),FALSE)+12)),CVMS!$D$58:$Q$67,$Q$2,FALSE))*31),"") ->  | AD24: =IFERROR(((HLOOKUP(IF(ROUNDUP(((AD$8-$C24)*12/365),FALSE)>0,ROUNDUP(((AD$8-$C24)*12/365),FALSE),(ROUNDUP(((AD$8-$C24)*12/365),FALSE)+12)),CVMS!$D$58:$Q$67,$Q$2,FALSE))*30),"") ->  | AE24: =IFERROR(((HLOOKUP(IF(ROUNDUP(((AE$8-$C24)*12/365),FALSE)>0,ROUNDUP(((AE$8-$C24)*12/365),FALSE),(ROUNDUP(((AE$8-$C24)*12/365),FALSE)+12)),CVMS!$D$58:$Q$67,$Q$2,FALSE))*31),"") -> 
E25: =IFERROR((IF($C25="","",(HLOOKUP(ROUNDUP((IF(((E$8-$C25)/30.4)>0,((E$8-$C25)/30.4),12+((E$8-$C25)/30.4))),0),CVMS!$D$19:$P$28,'Calcul CVMS VV'!$Q$2,FALSE))))/100*$D$2,"") ->  | F25: =IFERROR((IF($C25="","",(HLOOKUP(ROUNDUP((IF(((F$8-$C25)/30.4)>0,((F$8-$C25)/30.4),12+((F$8-$C25)/30.4))),0),CVMS!$D$19:$P$28,'Calcul CVMS VV'!$Q$2,FALSE))))/100*$D$2,"") ->  | G25: =IFERROR((IF($C25="","",(HLOOKUP(ROUNDUP((IF(((G$8-$C25)/30.4)>0,((G$8-$C25)/30.4),12+((G$8-$C25)/30.4))),0),CVMS!$D$19:$P$28,'Calcul CVMS VV'!$Q$2,FALSE))))/100*$D$2,"") ->  | H25: =IFERROR((IF($C25="","",(HLOOKUP(ROUNDUP((IF(((H$8-$C25)/30.4)>0,((H$8-$C25)/30.4),12+((H$8-$C25)/30.4))),0),CVMS!$D$19:$P$28,'Calcul CVMS VV'!$Q$2,FALSE))))/100*$D$2,"") ->  | I25: =IFERROR((IF($C25="","",(HLOOKUP(ROUNDUP((IF(((I$8-$C25)/30.4)>0,((I$8-$C25)/30.4),12+((I$8-$C25)/30.4))),0),CVMS!$D$19:$P$28,'Calcul CVMS VV'!$Q$2,FALSE))))/100*$D$2,"") ->  | J25: =IFERROR((IF($C25="","",(HLOOKUP(ROUNDUP((IF(((J$8-$C25)/30.4)>0,((J$8-$C25)/30.4),12+((J$8-$C25)/30.4))),0),CVMS!$D$19:$P$28,'Calcul CVMS VV'!$Q$2,FALSE))))/100*$D$2,"") ->  | K25: =IFERROR((IF($C25="","",(HLOOKUP(ROUNDUP((IF(((K$8-$C25)/30.4)>0,((K$8-$C25)/30.4),12+((K$8-$C25)/30.4))),0),CVMS!$D$19:$P$28,'Calcul CVMS VV'!$Q$2,FALSE))))/100*$D$2,"") ->  | L25: =IFERROR((IF($C25="","",(HLOOKUP(ROUNDUP((IF(((L$8-$C25)/30.4)>0,((L$8-$C25)/30.4),12+((L$8-$C25)/30.4))),0),CVMS!$D$19:$P$28,'Calcul CVMS VV'!$Q$2,FALSE))))/100*$D$2,"") ->  | M25: =IFERROR((IF($C25="","",(HLOOKUP(ROUNDUP((IF(((M$8-$C25)/30.4)>0,((M$8-$C25)/30.4),12+((M$8-$C25)/30.4))),0),CVMS!$D$19:$P$28,'Calcul CVMS VV'!$Q$2,FALSE))))/100*$D$2,"") ->  | N25: =IFERROR((IF($C25="","",(HLOOKUP(ROUNDUP((IF(((N$8-$C25)/30.4)>0,((N$8-$C25)/30.4),12+((N$8-$C25)/30.4))),0),CVMS!$D$19:$P$28,'Calcul CVMS VV'!$Q$2,FALSE))))/100*$D$2,"") ->  | O25: =IFERROR((IF($C25="","",(HLOOKUP(ROUNDUP((IF(((O$8-$C25)/30.4)>0,((O$8-$C25)/30.4),12+((O$8-$C25)/30.4))),0),CVMS!$D$19:$P$28,'Calcul CVMS VV'!$Q$2,FALSE))))/100*$D$2,"") ->  | P25: =IFERROR((IF($C25="","",(HLOOKUP(ROUNDUP((IF(((P$8-$C25)/30.4)>0,((P$8-$C25)/30.4),12+((P$8-$C25)/30.4))),0),CVMS!$D$19:$P$28,'Calcul CVMS VV'!$Q$2,FALSE))))/100*$D$2,"") ->  | T25: =IFERROR(((HLOOKUP(IF(ROUNDUP(((T$8-$C25)*12/365),FALSE)>0,ROUNDUP(((T$8-$C25)*12/365),FALSE),(ROUNDUP(((T$8-$C25)*12/365),FALSE)+12)),CVMS!$D$58:$Q$67,$Q$2,FALSE))*31),"") ->  | U25: =IFERROR(((HLOOKUP(IF(ROUNDUP(((U$8-$C25)*12/365),FALSE)>0,ROUNDUP(((U$8-$C25)*12/365),FALSE),(ROUNDUP(((U$8-$C25)*12/365),FALSE)+12)),CVMS!$D$58:$Q$67,$Q$2,FALSE))*28),"") ->  | V25: =IFERROR(((HLOOKUP(IF(ROUNDUP(((V$8-$C25)*12/365),FALSE)>0,ROUNDUP(((V$8-$C25)*12/365),FALSE),(ROUNDUP(((V$8-$C25)*12/365),FALSE)+12)),CVMS!$D$58:$Q$67,$Q$2,FALSE))*31),"") ->  | W25: =IFERROR(((HLOOKUP(IF(ROUNDUP(((W$8-$C25)*12/365),FALSE)>0,ROUNDUP(((W$8-$C25)*12/365),FALSE),(ROUNDUP(((W$8-$C25)*12/365),FALSE)+12)),CVMS!$D$58:$Q$67,$Q$2,FALSE))*30),"") ->  | X25: =IFERROR(((HLOOKUP(IF(ROUNDUP(((X$8-$C25)*12/365),FALSE)>0,ROUNDUP(((X$8-$C25)*12/365),FALSE),(ROUNDUP(((X$8-$C25)*12/365),FALSE)+12)),CVMS!$D$58:$Q$67,$Q$2,FALSE))*31),"") ->  | Y25: =IFERROR(((HLOOKUP(IF(ROUNDUP(((Y$8-$C25)*12/365),FALSE)>0,ROUNDUP(((Y$8-$C25)*12/365),FALSE),(ROUNDUP(((Y$8-$C25)*12/365),FALSE)+12)),CVMS!$D$58:$Q$67,$Q$2,FALSE))*30),"") ->  | Z25: =IFERROR(((HLOOKUP(IF(ROUNDUP(((Z$8-$C25)*12/365),FALSE)>0,ROUNDUP(((Z$8-$C25)*12/365),FALSE),(ROUNDUP(((Z$8-$C25)*12/365),FALSE)+12)),CVMS!$D$58:$Q$67,$Q$2,FALSE))*31),"") ->  | AA25: =IFERROR(((HLOOKUP(IF(ROUNDUP(((AA$8-$C25)*12/365),FALSE)>0,ROUNDUP(((AA$8-$C25)*12/365),FALSE),(ROUNDUP(((AA$8-$C25)*12/365),FALSE)+12)),CVMS!$D$58:$Q$67,$Q$2,FALSE))*31),"") ->  | AB25: =IFERROR(((HLOOKUP(IF(ROUNDUP(((AB$8-$C25)*12/365),FALSE)>0,ROUNDUP(((AB$8-$C25)*12/365),FALSE),(ROUNDUP(((AB$8-$C25)*12/365),FALSE)+12)),CVMS!$D$58:$Q$67,$Q$2,FALSE))*30),"") ->  | AC25: =IFERROR(((HLOOKUP(IF(ROUNDUP(((AC$8-$C25)*12/365),FALSE)>0,ROUNDUP(((AC$8-$C25)*12/365),FALSE),(ROUNDUP(((AC$8-$C25)*12/365),FALSE)+12)),CVMS!$D$58:$Q$67,$Q$2,FALSE))*31),"") ->  | AD25: =IFERROR(((HLOOKUP(IF(ROUNDUP(((AD$8-$C25)*12/365),FALSE)>0,ROUNDUP(((AD$8-$C25)*12/365),FALSE),(ROUNDUP(((AD$8-$C25)*12/365),FALSE)+12)),CVMS!$D$58:$Q$67,$Q$2,FALSE))*30),"") ->  | AE25: =IFERROR(((HLOOKUP(IF(ROUNDUP(((AE$8-$C25)*12/365),FALSE)>0,ROUNDUP(((AE$8-$C25)*12/365),FALSE),(ROUNDUP(((AE$8-$C25)*12/365),FALSE)+12)),CVMS!$D$58:$Q$67,$Q$2,FALSE))*31),"") -> 
E26: =IFERROR((IF($C26="","",(HLOOKUP(ROUNDUP((IF(((E$8-$C26)/30.4)>0,((E$8-$C26)/30.4),12+((E$8-$C26)/30.4))),0),CVMS!$D$19:$P$28,'Calcul CVMS VV'!$Q$2,FALSE))))/100*$D$2,"") ->  | F26: =IFERROR((IF($C26="","",(HLOOKUP(ROUNDUP((IF(((F$8-$C26)/30.4)>0,((F$8-$C26)/30.4),12+((F$8-$C26)/30.4))),0),CVMS!$D$19:$P$28,'Calcul CVMS VV'!$Q$2,FALSE))))/100*$D$2,"") ->  | G26: =IFERROR((IF($C26="","",(HLOOKUP(ROUNDUP((IF(((G$8-$C26)/30.4)>0,((G$8-$C26)/30.4),12+((G$8-$C26)/30.4))),0),CVMS!$D$19:$P$28,'Calcul CVMS VV'!$Q$2,FALSE))))/100*$D$2,"") ->  | H26: =IFERROR((IF($C26="","",(HLOOKUP(ROUNDUP((IF(((H$8-$C26)/30.4)>0,((H$8-$C26)/30.4),12+((H$8-$C26)/30.4))),0),CVMS!$D$19:$P$28,'Calcul CVMS VV'!$Q$2,FALSE))))/100*$D$2,"") ->  | I26: =IFERROR((IF($C26="","",(HLOOKUP(ROUNDUP((IF(((I$8-$C26)/30.4)>0,((I$8-$C26)/30.4),12+((I$8-$C26)/30.4))),0),CVMS!$D$19:$P$28,'Calcul CVMS VV'!$Q$2,FALSE))))/100*$D$2,"") ->  | J26: =IFERROR((IF($C26="","",(HLOOKUP(ROUNDUP((IF(((J$8-$C26)/30.4)>0,((J$8-$C26)/30.4),12+((J$8-$C26)/30.4))),0),CVMS!$D$19:$P$28,'Calcul CVMS VV'!$Q$2,FALSE))))/100*$D$2,"") ->  | K26: =IFERROR((IF($C26="","",(HLOOKUP(ROUNDUP((IF(((K$8-$C26)/30.4)>0,((K$8-$C26)/30.4),12+((K$8-$C26)/30.4))),0),CVMS!$D$19:$P$28,'Calcul CVMS VV'!$Q$2,FALSE))))/100*$D$2,"") ->  | L26: =IFERROR((IF($C26="","",(HLOOKUP(ROUNDUP((IF(((L$8-$C26)/30.4)>0,((L$8-$C26)/30.4),12+((L$8-$C26)/30.4))),0),CVMS!$D$19:$P$28,'Calcul CVMS VV'!$Q$2,FALSE))))/100*$D$2,"") ->  | M26: =IFERROR((IF($C26="","",(HLOOKUP(ROUNDUP((IF(((M$8-$C26)/30.4)>0,((M$8-$C26)/30.4),12+((M$8-$C26)/30.4))),0),CVMS!$D$19:$P$28,'Calcul CVMS VV'!$Q$2,FALSE))))/100*$D$2,"") ->  | N26: =IFERROR((IF($C26="","",(HLOOKUP(ROUNDUP((IF(((N$8-$C26)/30.4)>0,((N$8-$C26)/30.4),12+((N$8-$C26)/30.4))),0),CVMS!$D$19:$P$28,'Calcul CVMS VV'!$Q$2,FALSE))))/100*$D$2,"") ->  | O26: =IFERROR((IF($C26="","",(HLOOKUP(ROUNDUP((IF(((O$8-$C26)/30.4)>0,((O$8-$C26)/30.4),12+((O$8-$C26)/30.4))),0),CVMS!$D$19:$P$28,'Calcul CVMS VV'!$Q$2,FALSE))))/100*$D$2,"") ->  | P26: =IFERROR((IF($C26="","",(HLOOKUP(ROUNDUP((IF(((P$8-$C26)/30.4)>0,((P$8-$C26)/30.4),12+((P$8-$C26)/30.4))),0),CVMS!$D$19:$P$28,'Calcul CVMS VV'!$Q$2,FALSE))))/100*$D$2,"") ->  | T26: =IFERROR(((HLOOKUP(IF(ROUNDUP(((T$8-$C26)*12/365),FALSE)>0,ROUNDUP(((T$8-$C26)*12/365),FALSE),(ROUNDUP(((T$8-$C26)*12/365),FALSE)+12)),CVMS!$D$58:$Q$67,$Q$2,FALSE))*31),"") ->  | U26: =IFERROR(((HLOOKUP(IF(ROUNDUP(((U$8-$C26)*12/365),FALSE)>0,ROUNDUP(((U$8-$C26)*12/365),FALSE),(ROUNDUP(((U$8-$C26)*12/365),FALSE)+12)),CVMS!$D$58:$Q$67,$Q$2,FALSE))*28),"") ->  | V26: =IFERROR(((HLOOKUP(IF(ROUNDUP(((V$8-$C26)*12/365),FALSE)>0,ROUNDUP(((V$8-$C26)*12/365),FALSE),(ROUNDUP(((V$8-$C26)*12/365),FALSE)+12)),CVMS!$D$58:$Q$67,$Q$2,FALSE))*31),"") ->  | W26: =IFERROR(((HLOOKUP(IF(ROUNDUP(((W$8-$C26)*12/365),FALSE)>0,ROUNDUP(((W$8-$C26)*12/365),FALSE),(ROUNDUP(((W$8-$C26)*12/365),FALSE)+12)),CVMS!$D$58:$Q$67,$Q$2,FALSE))*30),"") ->  | X26: =IFERROR(((HLOOKUP(IF(ROUNDUP(((X$8-$C26)*12/365),FALSE)>0,ROUNDUP(((X$8-$C26)*12/365),FALSE),(ROUNDUP(((X$8-$C26)*12/365),FALSE)+12)),CVMS!$D$58:$Q$67,$Q$2,FALSE))*31),"") ->  | Y26: =IFERROR(((HLOOKUP(IF(ROUNDUP(((Y$8-$C26)*12/365),FALSE)>0,ROUNDUP(((Y$8-$C26)*12/365),FALSE),(ROUNDUP(((Y$8-$C26)*12/365),FALSE)+12)),CVMS!$D$58:$Q$67,$Q$2,FALSE))*30),"") ->  | Z26: =IFERROR(((HLOOKUP(IF(ROUNDUP(((Z$8-$C26)*12/365),FALSE)>0,ROUNDUP(((Z$8-$C26)*12/365),FALSE),(ROUNDUP(((Z$8-$C26)*12/365),FALSE)+12)),CVMS!$D$58:$Q$67,$Q$2,FALSE))*31),"") ->  | AA26: =IFERROR(((HLOOKUP(IF(ROUNDUP(((AA$8-$C26)*12/365),FALSE)>0,ROUNDUP(((AA$8-$C26)*12/365),FALSE),(ROUNDUP(((AA$8-$C26)*12/365),FALSE)+12)),CVMS!$D$58:$Q$67,$Q$2,FALSE))*31),"") ->  | AB26: =IFERROR(((HLOOKUP(IF(ROUNDUP(((AB$8-$C26)*12/365),FALSE)>0,ROUNDUP(((AB$8-$C26)*12/365),FALSE),(ROUNDUP(((AB$8-$C26)*12/365),FALSE)+12)),CVMS!$D$58:$Q$67,$Q$2,FALSE))*30),"") ->  | AC26: =IFERROR(((HLOOKUP(IF(ROUNDUP(((AC$8-$C26)*12/365),FALSE)>0,ROUNDUP(((AC$8-$C26)*12/365),FALSE),(ROUNDUP(((AC$8-$C26)*12/365),FALSE)+12)),CVMS!$D$58:$Q$67,$Q$2,FALSE))*31),"") ->  | AD26: =IFERROR(((HLOOKUP(IF(ROUNDUP(((AD$8-$C26)*12/365),FALSE)>0,ROUNDUP(((AD$8-$C26)*12/365),FALSE),(ROUNDUP(((AD$8-$C26)*12/365),FALSE)+12)),CVMS!$D$58:$Q$67,$Q$2,FALSE))*30),"") ->  | AE26: =IFERROR(((HLOOKUP(IF(ROUNDUP(((AE$8-$C26)*12/365),FALSE)>0,ROUNDUP(((AE$8-$C26)*12/365),FALSE),(ROUNDUP(((AE$8-$C26)*12/365),FALSE)+12)),CVMS!$D$58:$Q$67,$Q$2,FALSE))*31),"") -> 
E27: =IFERROR((IF($C27="","",(HLOOKUP(ROUNDUP((IF(((E$8-$C27)/30.4)>0,((E$8-$C27)/30.4),12+((E$8-$C27)/30.4))),0),CVMS!$D$19:$P$28,'Calcul CVMS VV'!$Q$2,FALSE))))/100*$D$2,"") ->  | F27: =IFERROR((IF($C27="","",(HLOOKUP(ROUNDUP((IF(((F$8-$C27)/30.4)>0,((F$8-$C27)/30.4),12+((F$8-$C27)/30.4))),0),CVMS!$D$19:$P$28,'Calcul CVMS VV'!$Q$2,FALSE))))/100*$D$2,"") ->  | G27: =IFERROR((IF($C27="","",(HLOOKUP(ROUNDUP((IF(((G$8-$C27)/30.4)>0,((G$8-$C27)/30.4),12+((G$8-$C27)/30.4))),0),CVMS!$D$19:$P$28,'Calcul CVMS VV'!$Q$2,FALSE))))/100*$D$2,"") ->  | H27: =IFERROR((IF($C27="","",(HLOOKUP(ROUNDUP((IF(((H$8-$C27)/30.4)>0,((H$8-$C27)/30.4),12+((H$8-$C27)/30.4))),0),CVMS!$D$19:$P$28,'Calcul CVMS VV'!$Q$2,FALSE))))/100*$D$2,"") ->  | I27: =IFERROR((IF($C27="","",(HLOOKUP(ROUNDUP((IF(((I$8-$C27)/30.4)>0,((I$8-$C27)/30.4),12+((I$8-$C27)/30.4))),0),CVMS!$D$19:$P$28,'Calcul CVMS VV'!$Q$2,FALSE))))/100*$D$2,"") ->  | J27: =IFERROR((IF($C27="","",(HLOOKUP(ROUNDUP((IF(((J$8-$C27)/30.4)>0,((J$8-$C27)/30.4),12+((J$8-$C27)/30.4))),0),CVMS!$D$19:$P$28,'Calcul CVMS VV'!$Q$2,FALSE))))/100*$D$2,"") ->  | K27: =IFERROR((IF($C27="","",(HLOOKUP(ROUNDUP((IF(((K$8-$C27)/30.4)>0,((K$8-$C27)/30.4),12+((K$8-$C27)/30.4))),0),CVMS!$D$19:$P$28,'Calcul CVMS VV'!$Q$2,FALSE))))/100*$D$2,"") ->  | L27: =IFERROR((IF($C27="","",(HLOOKUP(ROUNDUP((IF(((L$8-$C27)/30.4)>0,((L$8-$C27)/30.4),12+((L$8-$C27)/30.4))),0),CVMS!$D$19:$P$28,'Calcul CVMS VV'!$Q$2,FALSE))))/100*$D$2,"") ->  | M27: =IFERROR((IF($C27="","",(HLOOKUP(ROUNDUP((IF(((M$8-$C27)/30.4)>0,((M$8-$C27)/30.4),12+((M$8-$C27)/30.4))),0),CVMS!$D$19:$P$28,'Calcul CVMS VV'!$Q$2,FALSE))))/100*$D$2,"") ->  | N27: =IFERROR((IF($C27="","",(HLOOKUP(ROUNDUP((IF(((N$8-$C27)/30.4)>0,((N$8-$C27)/30.4),12+((N$8-$C27)/30.4))),0),CVMS!$D$19:$P$28,'Calcul CVMS VV'!$Q$2,FALSE))))/100*$D$2,"") ->  | O27: =IFERROR((IF($C27="","",(HLOOKUP(ROUNDUP((IF(((O$8-$C27)/30.4)>0,((O$8-$C27)/30.4),12+((O$8-$C27)/30.4))),0),CVMS!$D$19:$P$28,'Calcul CVMS VV'!$Q$2,FALSE))))/100*$D$2,"") ->  | P27: =IFERROR((IF($C27="","",(HLOOKUP(ROUNDUP((IF(((P$8-$C27)/30.4)>0,((P$8-$C27)/30.4),12+((P$8-$C27)/30.4))),0),CVMS!$D$19:$P$28,'Calcul CVMS VV'!$Q$2,FALSE))))/100*$D$2,"") ->  | T27: =IFERROR(((HLOOKUP(IF(ROUNDUP(((T$8-$C27)*12/365),FALSE)>0,ROUNDUP(((T$8-$C27)*12/365),FALSE),(ROUNDUP(((T$8-$C27)*12/365),FALSE)+12)),CVMS!$D$58:$Q$67,$Q$2,FALSE))*31),"") ->  | U27: =IFERROR(((HLOOKUP(IF(ROUNDUP(((U$8-$C27)*12/365),FALSE)>0,ROUNDUP(((U$8-$C27)*12/365),FALSE),(ROUNDUP(((U$8-$C27)*12/365),FALSE)+12)),CVMS!$D$58:$Q$67,$Q$2,FALSE))*28),"") ->  | V27: =IFERROR(((HLOOKUP(IF(ROUNDUP(((V$8-$C27)*12/365),FALSE)>0,ROUNDUP(((V$8-$C27)*12/365),FALSE),(ROUNDUP(((V$8-$C27)*12/365),FALSE)+12)),CVMS!$D$58:$Q$67,$Q$2,FALSE))*31),"") ->  | W27: =IFERROR(((HLOOKUP(IF(ROUNDUP(((W$8-$C27)*12/365),FALSE)>0,ROUNDUP(((W$8-$C27)*12/365),FALSE),(ROUNDUP(((W$8-$C27)*12/365),FALSE)+12)),CVMS!$D$58:$Q$67,$Q$2,FALSE))*30),"") ->  | X27: =IFERROR(((HLOOKUP(IF(ROUNDUP(((X$8-$C27)*12/365),FALSE)>0,ROUNDUP(((X$8-$C27)*12/365),FALSE),(ROUNDUP(((X$8-$C27)*12/365),FALSE)+12)),CVMS!$D$58:$Q$67,$Q$2,FALSE))*31),"") ->  | Y27: =IFERROR(((HLOOKUP(IF(ROUNDUP(((Y$8-$C27)*12/365),FALSE)>0,ROUNDUP(((Y$8-$C27)*12/365),FALSE),(ROUNDUP(((Y$8-$C27)*12/365),FALSE)+12)),CVMS!$D$58:$Q$67,$Q$2,FALSE))*30),"") ->  | Z27: =IFERROR(((HLOOKUP(IF(ROUNDUP(((Z$8-$C27)*12/365),FALSE)>0,ROUNDUP(((Z$8-$C27)*12/365),FALSE),(ROUNDUP(((Z$8-$C27)*12/365),FALSE)+12)),CVMS!$D$58:$Q$67,$Q$2,FALSE))*31),"") ->  | AA27: =IFERROR(((HLOOKUP(IF(ROUNDUP(((AA$8-$C27)*12/365),FALSE)>0,ROUNDUP(((AA$8-$C27)*12/365),FALSE),(ROUNDUP(((AA$8-$C27)*12/365),FALSE)+12)),CVMS!$D$58:$Q$67,$Q$2,FALSE))*31),"") ->  | AB27: =IFERROR(((HLOOKUP(IF(ROUNDUP(((AB$8-$C27)*12/365),FALSE)>0,ROUNDUP(((AB$8-$C27)*12/365),FALSE),(ROUNDUP(((AB$8-$C27)*12/365),FALSE)+12)),CVMS!$D$58:$Q$67,$Q$2,FALSE))*30),"") ->  | AC27: =IFERROR(((HLOOKUP(IF(ROUNDUP(((AC$8-$C27)*12/365),FALSE)>0,ROUNDUP(((AC$8-$C27)*12/365),FALSE),(ROUNDUP(((AC$8-$C27)*12/365),FALSE)+12)),CVMS!$D$58:$Q$67,$Q$2,FALSE))*31),"") ->  | AD27: =IFERROR(((HLOOKUP(IF(ROUNDUP(((AD$8-$C27)*12/365),FALSE)>0,ROUNDUP(((AD$8-$C27)*12/365),FALSE),(ROUNDUP(((AD$8-$C27)*12/365),FALSE)+12)),CVMS!$D$58:$Q$67,$Q$2,FALSE))*30),"") ->  | AE27: =IFERROR(((HLOOKUP(IF(ROUNDUP(((AE$8-$C27)*12/365),FALSE)>0,ROUNDUP(((AE$8-$C27)*12/365),FALSE),(ROUNDUP(((AE$8-$C27)*12/365),FALSE)+12)),CVMS!$D$58:$Q$67,$Q$2,FALSE))*31),"") -> 
E28: =IFERROR((IF($C28="","",(HLOOKUP(ROUNDUP((IF(((E$8-$C28)/30.4)>0,((E$8-$C28)/30.4),12+((E$8-$C28)/30.4))),0),CVMS!$D$19:$P$28,'Calcul CVMS VV'!$Q$2,FALSE))))/100*$D$2,"") ->  | F28: =IFERROR((IF($C28="","",(HLOOKUP(ROUNDUP((IF(((F$8-$C28)/30.4)>0,((F$8-$C28)/30.4),12+((F$8-$C28)/30.4))),0),CVMS!$D$19:$P$28,'Calcul CVMS VV'!$Q$2,FALSE))))/100*$D$2,"") ->  | G28: =IFERROR((IF($C28="","",(HLOOKUP(ROUNDUP((IF(((G$8-$C28)/30.4)>0,((G$8-$C28)/30.4),12+((G$8-$C28)/30.4))),0),CVMS!$D$19:$P$28,'Calcul CVMS VV'!$Q$2,FALSE))))/100*$D$2,"") ->  | H28: =IFERROR((IF($C28="","",(HLOOKUP(ROUNDUP((IF(((H$8-$C28)/30.4)>0,((H$8-$C28)/30.4),12+((H$8-$C28)/30.4))),0),CVMS!$D$19:$P$28,'Calcul CVMS VV'!$Q$2,FALSE))))/100*$D$2,"") ->  | I28: =IFERROR((IF($C28="","",(HLOOKUP(ROUNDUP((IF(((I$8-$C28)/30.4)>0,((I$8-$C28)/30.4),12+((I$8-$C28)/30.4))),0),CVMS!$D$19:$P$28,'Calcul CVMS VV'!$Q$2,FALSE))))/100*$D$2,"") ->  | J28: =IFERROR((IF($C28="","",(HLOOKUP(ROUNDUP((IF(((J$8-$C28)/30.4)>0,((J$8-$C28)/30.4),12+((J$8-$C28)/30.4))),0),CVMS!$D$19:$P$28,'Calcul CVMS VV'!$Q$2,FALSE))))/100*$D$2,"") ->  | K28: =IFERROR((IF($C28="","",(HLOOKUP(ROUNDUP((IF(((K$8-$C28)/30.4)>0,((K$8-$C28)/30.4),12+((K$8-$C28)/30.4))),0),CVMS!$D$19:$P$28,'Calcul CVMS VV'!$Q$2,FALSE))))/100*$D$2,"") ->  | L28: =IFERROR((IF($C28="","",(HLOOKUP(ROUNDUP((IF(((L$8-$C28)/30.4)>0,((L$8-$C28)/30.4),12+((L$8-$C28)/30.4))),0),CVMS!$D$19:$P$28,'Calcul CVMS VV'!$Q$2,FALSE))))/100*$D$2,"") ->  | M28: =IFERROR((IF($C28="","",(HLOOKUP(ROUNDUP((IF(((M$8-$C28)/30.4)>0,((M$8-$C28)/30.4),12+((M$8-$C28)/30.4))),0),CVMS!$D$19:$P$28,'Calcul CVMS VV'!$Q$2,FALSE))))/100*$D$2,"") ->  | N28: =IFERROR((IF($C28="","",(HLOOKUP(ROUNDUP((IF(((N$8-$C28)/30.4)>0,((N$8-$C28)/30.4),12+((N$8-$C28)/30.4))),0),CVMS!$D$19:$P$28,'Calcul CVMS VV'!$Q$2,FALSE))))/100*$D$2,"") ->  | O28: =IFERROR((IF($C28="","",(HLOOKUP(ROUNDUP((IF(((O$8-$C28)/30.4)>0,((O$8-$C28)/30.4),12+((O$8-$C28)/30.4))),0),CVMS!$D$19:$P$28,'Calcul CVMS VV'!$Q$2,FALSE))))/100*$D$2,"") ->  | P28: =IFERROR((IF($C28="","",(HLOOKUP(ROUNDUP((IF(((P$8-$C28)/30.4)>0,((P$8-$C28)/30.4),12+((P$8-$C28)/30.4))),0),CVMS!$D$19:$P$28,'Calcul CVMS VV'!$Q$2,FALSE))))/100*$D$2,"") ->  | T28: =IFERROR(((HLOOKUP(IF(ROUNDUP(((T$8-$C28)*12/365),FALSE)>0,ROUNDUP(((T$8-$C28)*12/365),FALSE),(ROUNDUP(((T$8-$C28)*12/365),FALSE)+12)),CVMS!$D$58:$Q$67,$Q$2,FALSE))*31),"") ->  | U28: =IFERROR(((HLOOKUP(IF(ROUNDUP(((U$8-$C28)*12/365),FALSE)>0,ROUNDUP(((U$8-$C28)*12/365),FALSE),(ROUNDUP(((U$8-$C28)*12/365),FALSE)+12)),CVMS!$D$58:$Q$67,$Q$2,FALSE))*28),"") ->  | V28: =IFERROR(((HLOOKUP(IF(ROUNDUP(((V$8-$C28)*12/365),FALSE)>0,ROUNDUP(((V$8-$C28)*12/365),FALSE),(ROUNDUP(((V$8-$C28)*12/365),FALSE)+12)),CVMS!$D$58:$Q$67,$Q$2,FALSE))*31),"") ->  | W28: =IFERROR(((HLOOKUP(IF(ROUNDUP(((W$8-$C28)*12/365),FALSE)>0,ROUNDUP(((W$8-$C28)*12/365),FALSE),(ROUNDUP(((W$8-$C28)*12/365),FALSE)+12)),CVMS!$D$58:$Q$67,$Q$2,FALSE))*30),"") ->  | X28: =IFERROR(((HLOOKUP(IF(ROUNDUP(((X$8-$C28)*12/365),FALSE)>0,ROUNDUP(((X$8-$C28)*12/365),FALSE),(ROUNDUP(((X$8-$C28)*12/365),FALSE)+12)),CVMS!$D$58:$Q$67,$Q$2,FALSE))*31),"") ->  | Y28: =IFERROR(((HLOOKUP(IF(ROUNDUP(((Y$8-$C28)*12/365),FALSE)>0,ROUNDUP(((Y$8-$C28)*12/365),FALSE),(ROUNDUP(((Y$8-$C28)*12/365),FALSE)+12)),CVMS!$D$58:$Q$67,$Q$2,FALSE))*30),"") ->  | Z28: =IFERROR(((HLOOKUP(IF(ROUNDUP(((Z$8-$C28)*12/365),FALSE)>0,ROUNDUP(((Z$8-$C28)*12/365),FALSE),(ROUNDUP(((Z$8-$C28)*12/365),FALSE)+12)),CVMS!$D$58:$Q$67,$Q$2,FALSE))*31),"") ->  | AA28: =IFERROR(((HLOOKUP(IF(ROUNDUP(((AA$8-$C28)*12/365),FALSE)>0,ROUNDUP(((AA$8-$C28)*12/365),FALSE),(ROUNDUP(((AA$8-$C28)*12/365),FALSE)+12)),CVMS!$D$58:$Q$67,$Q$2,FALSE))*31),"") ->  | AB28: =IFERROR(((HLOOKUP(IF(ROUNDUP(((AB$8-$C28)*12/365),FALSE)>0,ROUNDUP(((AB$8-$C28)*12/365),FALSE),(ROUNDUP(((AB$8-$C28)*12/365),FALSE)+12)),CVMS!$D$58:$Q$67,$Q$2,FALSE))*30),"") ->  | AC28: =IFERROR(((HLOOKUP(IF(ROUNDUP(((AC$8-$C28)*12/365),FALSE)>0,ROUNDUP(((AC$8-$C28)*12/365),FALSE),(ROUNDUP(((AC$8-$C28)*12/365),FALSE)+12)),CVMS!$D$58:$Q$67,$Q$2,FALSE))*31),"") ->  | AD28: =IFERROR(((HLOOKUP(IF(ROUNDUP(((AD$8-$C28)*12/365),FALSE)>0,ROUNDUP(((AD$8-$C28)*12/365),FALSE),(ROUNDUP(((AD$8-$C28)*12/365),FALSE)+12)),CVMS!$D$58:$Q$67,$Q$2,FALSE))*30),"") ->  | AE28: =IFERROR(((HLOOKUP(IF(ROUNDUP(((AE$8-$C28)*12/365),FALSE)>0,ROUNDUP(((AE$8-$C28)*12/365),FALSE),(ROUNDUP(((AE$8-$C28)*12/365),FALSE)+12)),CVMS!$D$58:$Q$67,$Q$2,FALSE))*31),"") -> 
E29: =IFERROR((IF($C29="","",(HLOOKUP(ROUNDUP((IF(((E$8-$C29)/30.4)>0,((E$8-$C29)/30.4),12+((E$8-$C29)/30.4))),0),CVMS!$D$19:$P$28,'Calcul CVMS VV'!$Q$2,FALSE))))/100*$D$2,"") ->  | F29: =IFERROR((IF($C29="","",(HLOOKUP(ROUNDUP((IF(((F$8-$C29)/30.4)>0,((F$8-$C29)/30.4),12+((F$8-$C29)/30.4))),0),CVMS!$D$19:$P$28,'Calcul CVMS VV'!$Q$2,FALSE))))/100*$D$2,"") ->  | G29: =IFERROR((IF($C29="","",(HLOOKUP(ROUNDUP((IF(((G$8-$C29)/30.4)>0,((G$8-$C29)/30.4),12+((G$8-$C29)/30.4))),0),CVMS!$D$19:$P$28,'Calcul CVMS VV'!$Q$2,FALSE))))/100*$D$2,"") ->  | H29: =IFERROR((IF($C29="","",(HLOOKUP(ROUNDUP((IF(((H$8-$C29)/30.4)>0,((H$8-$C29)/30.4),12+((H$8-$C29)/30.4))),0),CVMS!$D$19:$P$28,'Calcul CVMS VV'!$Q$2,FALSE))))/100*$D$2,"") ->  | I29: =IFERROR((IF($C29="","",(HLOOKUP(ROUNDUP((IF(((I$8-$C29)/30.4)>0,((I$8-$C29)/30.4),12+((I$8-$C29)/30.4))),0),CVMS!$D$19:$P$28,'Calcul CVMS VV'!$Q$2,FALSE))))/100*$D$2,"") ->  | J29: =IFERROR((IF($C29="","",(HLOOKUP(ROUNDUP((IF(((J$8-$C29)/30.4)>0,((J$8-$C29)/30.4),12+((J$8-$C29)/30.4))),0),CVMS!$D$19:$P$28,'Calcul CVMS VV'!$Q$2,FALSE))))/100*$D$2,"") ->  | K29: =IFERROR((IF($C29="","",(HLOOKUP(ROUNDUP((IF(((K$8-$C29)/30.4)>0,((K$8-$C29)/30.4),12+((K$8-$C29)/30.4))),0),CVMS!$D$19:$P$28,'Calcul CVMS VV'!$Q$2,FALSE))))/100*$D$2,"") ->  | L29: =IFERROR((IF($C29="","",(HLOOKUP(ROUNDUP((IF(((L$8-$C29)/30.4)>0,((L$8-$C29)/30.4),12+((L$8-$C29)/30.4))),0),CVMS!$D$19:$P$28,'Calcul CVMS VV'!$Q$2,FALSE))))/100*$D$2,"") ->  | M29: =IFERROR((IF($C29="","",(HLOOKUP(ROUNDUP((IF(((M$8-$C29)/30.4)>0,((M$8-$C29)/30.4),12+((M$8-$C29)/30.4))),0),CVMS!$D$19:$P$28,'Calcul CVMS VV'!$Q$2,FALSE))))/100*$D$2,"") ->  | N29: =IFERROR((IF($C29="","",(HLOOKUP(ROUNDUP((IF(((N$8-$C29)/30.4)>0,((N$8-$C29)/30.4),12+((N$8-$C29)/30.4))),0),CVMS!$D$19:$P$28,'Calcul CVMS VV'!$Q$2,FALSE))))/100*$D$2,"") ->  | O29: =IFERROR((IF($C29="","",(HLOOKUP(ROUNDUP((IF(((O$8-$C29)/30.4)>0,((O$8-$C29)/30.4),12+((O$8-$C29)/30.4))),0),CVMS!$D$19:$P$28,'Calcul CVMS VV'!$Q$2,FALSE))))/100*$D$2,"") ->  | P29: =IFERROR((IF($C29="","",(HLOOKUP(ROUNDUP((IF(((P$8-$C29)/30.4)>0,((P$8-$C29)/30.4),12+((P$8-$C29)/30.4))),0),CVMS!$D$19:$P$28,'Calcul CVMS VV'!$Q$2,FALSE))))/100*$D$2,"") ->  | T29: =IFERROR(((HLOOKUP(IF(ROUNDUP(((T$8-$C29)*12/365),FALSE)>0,ROUNDUP(((T$8-$C29)*12/365),FALSE),(ROUNDUP(((T$8-$C29)*12/365),FALSE)+12)),CVMS!$D$58:$Q$67,$Q$2,FALSE))*31),"") ->  | U29: =IFERROR(((HLOOKUP(IF(ROUNDUP(((U$8-$C29)*12/365),FALSE)>0,ROUNDUP(((U$8-$C29)*12/365),FALSE),(ROUNDUP(((U$8-$C29)*12/365),FALSE)+12)),CVMS!$D$58:$Q$67,$Q$2,FALSE))*28),"") ->  | V29: =IFERROR(((HLOOKUP(IF(ROUNDUP(((V$8-$C29)*12/365),FALSE)>0,ROUNDUP(((V$8-$C29)*12/365),FALSE),(ROUNDUP(((V$8-$C29)*12/365),FALSE)+12)),CVMS!$D$58:$Q$67,$Q$2,FALSE))*31),"") ->  | W29: =IFERROR(((HLOOKUP(IF(ROUNDUP(((W$8-$C29)*12/365),FALSE)>0,ROUNDUP(((W$8-$C29)*12/365),FALSE),(ROUNDUP(((W$8-$C29)*12/365),FALSE)+12)),CVMS!$D$58:$Q$67,$Q$2,FALSE))*30),"") ->  | X29: =IFERROR(((HLOOKUP(IF(ROUNDUP(((X$8-$C29)*12/365),FALSE)>0,ROUNDUP(((X$8-$C29)*12/365),FALSE),(ROUNDUP(((X$8-$C29)*12/365),FALSE)+12)),CVMS!$D$58:$Q$67,$Q$2,FALSE))*31),"") ->  | Y29: =IFERROR(((HLOOKUP(IF(ROUNDUP(((Y$8-$C29)*12/365),FALSE)>0,ROUNDUP(((Y$8-$C29)*12/365),FALSE),(ROUNDUP(((Y$8-$C29)*12/365),FALSE)+12)),CVMS!$D$58:$Q$67,$Q$2,FALSE))*30),"") ->  | Z29: =IFERROR(((HLOOKUP(IF(ROUNDUP(((Z$8-$C29)*12/365),FALSE)>0,ROUNDUP(((Z$8-$C29)*12/365),FALSE),(ROUNDUP(((Z$8-$C29)*12/365),FALSE)+12)),CVMS!$D$58:$Q$67,$Q$2,FALSE))*31),"") ->  | AA29: =IFERROR(((HLOOKUP(IF(ROUNDUP(((AA$8-$C29)*12/365),FALSE)>0,ROUNDUP(((AA$8-$C29)*12/365),FALSE),(ROUNDUP(((AA$8-$C29)*12/365),FALSE)+12)),CVMS!$D$58:$Q$67,$Q$2,FALSE))*31),"") ->  | AB29: =IFERROR(((HLOOKUP(IF(ROUNDUP(((AB$8-$C29)*12/365),FALSE)>0,ROUNDUP(((AB$8-$C29)*12/365),FALSE),(ROUNDUP(((AB$8-$C29)*12/365),FALSE)+12)),CVMS!$D$58:$Q$67,$Q$2,FALSE))*30),"") ->  | AC29: =IFERROR(((HLOOKUP(IF(ROUNDUP(((AC$8-$C29)*12/365),FALSE)>0,ROUNDUP(((AC$8-$C29)*12/365),FALSE),(ROUNDUP(((AC$8-$C29)*12/365),FALSE)+12)),CVMS!$D$58:$Q$67,$Q$2,FALSE))*31),"") ->  | AD29: =IFERROR(((HLOOKUP(IF(ROUNDUP(((AD$8-$C29)*12/365),FALSE)>0,ROUNDUP(((AD$8-$C29)*12/365),FALSE),(ROUNDUP(((AD$8-$C29)*12/365),FALSE)+12)),CVMS!$D$58:$Q$67,$Q$2,FALSE))*30),"") ->  | AE29: =IFERROR(((HLOOKUP(IF(ROUNDUP(((AE$8-$C29)*12/365),FALSE)>0,ROUNDUP(((AE$8-$C29)*12/365),FALSE),(ROUNDUP(((AE$8-$C29)*12/365),FALSE)+12)),CVMS!$D$58:$Q$67,$Q$2,FALSE))*31),"") -> 
E30: =IFERROR((IF($C30="","",(HLOOKUP(ROUNDUP((IF(((E$8-$C30)/30.4)>0,((E$8-$C30)/30.4),12+((E$8-$C30)/30.4))),0),CVMS!$D$19:$P$28,'Calcul CVMS VV'!$Q$2,FALSE))))/100*$D$2,"") ->  | F30: =IFERROR((IF($C30="","",(HLOOKUP(ROUNDUP((IF(((F$8-$C30)/30.4)>0,((F$8-$C30)/30.4),12+((F$8-$C30)/30.4))),0),CVMS!$D$19:$P$28,'Calcul CVMS VV'!$Q$2,FALSE))))/100*$D$2,"") ->  | G30: =IFERROR((IF($C30="","",(HLOOKUP(ROUNDUP((IF(((G$8-$C30)/30.4)>0,((G$8-$C30)/30.4),12+((G$8-$C30)/30.4))),0),CVMS!$D$19:$P$28,'Calcul CVMS VV'!$Q$2,FALSE))))/100*$D$2,"") ->  | H30: =IFERROR((IF($C30="","",(HLOOKUP(ROUNDUP((IF(((H$8-$C30)/30.4)>0,((H$8-$C30)/30.4),12+((H$8-$C30)/30.4))),0),CVMS!$D$19:$P$28,'Calcul CVMS VV'!$Q$2,FALSE))))/100*$D$2,"") ->  | I30: =IFERROR((IF($C30="","",(HLOOKUP(ROUNDUP((IF(((I$8-$C30)/30.4)>0,((I$8-$C30)/30.4),12+((I$8-$C30)/30.4))),0),CVMS!$D$19:$P$28,'Calcul CVMS VV'!$Q$2,FALSE))))/100*$D$2,"") ->  | J30: =IFERROR((IF($C30="","",(HLOOKUP(ROUNDUP((IF(((J$8-$C30)/30.4)>0,((J$8-$C30)/30.4),12+((J$8-$C30)/30.4))),0),CVMS!$D$19:$P$28,'Calcul CVMS VV'!$Q$2,FALSE))))/100*$D$2,"") ->  | K30: =IFERROR((IF($C30="","",(HLOOKUP(ROUNDUP((IF(((K$8-$C30)/30.4)>0,((K$8-$C30)/30.4),12+((K$8-$C30)/30.4))),0),CVMS!$D$19:$P$28,'Calcul CVMS VV'!$Q$2,FALSE))))/100*$D$2,"") ->  | L30: =IFERROR((IF($C30="","",(HLOOKUP(ROUNDUP((IF(((L$8-$C30)/30.4)>0,((L$8-$C30)/30.4),12+((L$8-$C30)/30.4))),0),CVMS!$D$19:$P$28,'Calcul CVMS VV'!$Q$2,FALSE))))/100*$D$2,"") ->  | M30: =IFERROR((IF($C30="","",(HLOOKUP(ROUNDUP((IF(((M$8-$C30)/30.4)>0,((M$8-$C30)/30.4),12+((M$8-$C30)/30.4))),0),CVMS!$D$19:$P$28,'Calcul CVMS VV'!$Q$2,FALSE))))/100*$D$2,"") ->  | N30: =IFERROR((IF($C30="","",(HLOOKUP(ROUNDUP((IF(((N$8-$C30)/30.4)>0,((N$8-$C30)/30.4),12+((N$8-$C30)/30.4))),0),CVMS!$D$19:$P$28,'Calcul CVMS VV'!$Q$2,FALSE))))/100*$D$2,"") ->  | O30: =IFERROR((IF($C30="","",(HLOOKUP(ROUNDUP((IF(((O$8-$C30)/30.4)>0,((O$8-$C30)/30.4),12+((O$8-$C30)/30.4))),0),CVMS!$D$19:$P$28,'Calcul CVMS VV'!$Q$2,FALSE))))/100*$D$2,"") ->  | P30: =IFERROR((IF($C30="","",(HLOOKUP(ROUNDUP((IF(((P$8-$C30)/30.4)>0,((P$8-$C30)/30.4),12+((P$8-$C30)/30.4))),0),CVMS!$D$19:$P$28,'Calcul CVMS VV'!$Q$2,FALSE))))/100*$D$2,"") ->  | T30: =IFERROR(((HLOOKUP(IF(ROUNDUP(((T$8-$C30)*12/365),FALSE)>0,ROUNDUP(((T$8-$C30)*12/365),FALSE),(ROUNDUP(((T$8-$C30)*12/365),FALSE)+12)),CVMS!$D$58:$Q$67,$Q$2,FALSE))*31),"") ->  | U30: =IFERROR(((HLOOKUP(IF(ROUNDUP(((U$8-$C30)*12/365),FALSE)>0,ROUNDUP(((U$8-$C30)*12/365),FALSE),(ROUNDUP(((U$8-$C30)*12/365),FALSE)+12)),CVMS!$D$58:$Q$67,$Q$2,FALSE))*28),"") ->  | V30: =IFERROR(((HLOOKUP(IF(ROUNDUP(((V$8-$C30)*12/365),FALSE)>0,ROUNDUP(((V$8-$C30)*12/365),FALSE),(ROUNDUP(((V$8-$C30)*12/365),FALSE)+12)),CVMS!$D$58:$Q$67,$Q$2,FALSE))*31),"") ->  | W30: =IFERROR(((HLOOKUP(IF(ROUNDUP(((W$8-$C30)*12/365),FALSE)>0,ROUNDUP(((W$8-$C30)*12/365),FALSE),(ROUNDUP(((W$8-$C30)*12/365),FALSE)+12)),CVMS!$D$58:$Q$67,$Q$2,FALSE))*30),"") ->  | X30: =IFERROR(((HLOOKUP(IF(ROUNDUP(((X$8-$C30)*12/365),FALSE)>0,ROUNDUP(((X$8-$C30)*12/365),FALSE),(ROUNDUP(((X$8-$C30)*12/365),FALSE)+12)),CVMS!$D$58:$Q$67,$Q$2,FALSE))*31),"") ->  | Y30: =IFERROR(((HLOOKUP(IF(ROUNDUP(((Y$8-$C30)*12/365),FALSE)>0,ROUNDUP(((Y$8-$C30)*12/365),FALSE),(ROUNDUP(((Y$8-$C30)*12/365),FALSE)+12)),CVMS!$D$58:$Q$67,$Q$2,FALSE))*30),"") ->  | Z30: =IFERROR(((HLOOKUP(IF(ROUNDUP(((Z$8-$C30)*12/365),FALSE)>0,ROUNDUP(((Z$8-$C30)*12/365),FALSE),(ROUNDUP(((Z$8-$C30)*12/365),FALSE)+12)),CVMS!$D$58:$Q$67,$Q$2,FALSE))*31),"") ->  | AA30: =IFERROR(((HLOOKUP(IF(ROUNDUP(((AA$8-$C30)*12/365),FALSE)>0,ROUNDUP(((AA$8-$C30)*12/365),FALSE),(ROUNDUP(((AA$8-$C30)*12/365),FALSE)+12)),CVMS!$D$58:$Q$67,$Q$2,FALSE))*31),"") ->  | AB30: =IFERROR(((HLOOKUP(IF(ROUNDUP(((AB$8-$C30)*12/365),FALSE)>0,ROUNDUP(((AB$8-$C30)*12/365),FALSE),(ROUNDUP(((AB$8-$C30)*12/365),FALSE)+12)),CVMS!$D$58:$Q$67,$Q$2,FALSE))*30),"") ->  | AC30: =IFERROR(((HLOOKUP(IF(ROUNDUP(((AC$8-$C30)*12/365),FALSE)>0,ROUNDUP(((AC$8-$C30)*12/365),FALSE),(ROUNDUP(((AC$8-$C30)*12/365),FALSE)+12)),CVMS!$D$58:$Q$67,$Q$2,FALSE))*31),"") ->  | AD30: =IFERROR(((HLOOKUP(IF(ROUNDUP(((AD$8-$C30)*12/365),FALSE)>0,ROUNDUP(((AD$8-$C30)*12/365),FALSE),(ROUNDUP(((AD$8-$C30)*12/365),FALSE)+12)),CVMS!$D$58:$Q$67,$Q$2,FALSE))*30),"") ->  | AE30: =IFERROR(((HLOOKUP(IF(ROUNDUP(((AE$8-$C30)*12/365),FALSE)>0,ROUNDUP(((AE$8-$C30)*12/365),FALSE),(ROUNDUP(((AE$8-$C30)*12/365),FALSE)+12)),CVMS!$D$58:$Q$67,$Q$2,FALSE))*31),"") -> 
E31: =IFERROR((IF($C31="","",(HLOOKUP(ROUNDUP((IF(((E$8-$C31)/30.4)>0,((E$8-$C31)/30.4),12+((E$8-$C31)/30.4))),0),CVMS!$D$19:$P$28,'Calcul CVMS VV'!$Q$2,FALSE))))/100*$D$2,"") ->  | F31: =IFERROR((IF($C31="","",(HLOOKUP(ROUNDUP((IF(((F$8-$C31)/30.4)>0,((F$8-$C31)/30.4),12+((F$8-$C31)/30.4))),0),CVMS!$D$19:$P$28,'Calcul CVMS VV'!$Q$2,FALSE))))/100*$D$2,"") ->  | G31: =IFERROR((IF($C31="","",(HLOOKUP(ROUNDUP((IF(((G$8-$C31)/30.4)>0,((G$8-$C31)/30.4),12+((G$8-$C31)/30.4))),0),CVMS!$D$19:$P$28,'Calcul CVMS VV'!$Q$2,FALSE))))/100*$D$2,"") ->  | H31: =IFERROR((IF($C31="","",(HLOOKUP(ROUNDUP((IF(((H$8-$C31)/30.4)>0,((H$8-$C31)/30.4),12+((H$8-$C31)/30.4))),0),CVMS!$D$19:$P$28,'Calcul CVMS VV'!$Q$2,FALSE))))/100*$D$2,"") ->  | I31: =IFERROR((IF($C31="","",(HLOOKUP(ROUNDUP((IF(((I$8-$C31)/30.4)>0,((I$8-$C31)/30.4),12+((I$8-$C31)/30.4))),0),CVMS!$D$19:$P$28,'Calcul CVMS VV'!$Q$2,FALSE))))/100*$D$2,"") ->  | J31: =IFERROR((IF($C31="","",(HLOOKUP(ROUNDUP((IF(((J$8-$C31)/30.4)>0,((J$8-$C31)/30.4),12+((J$8-$C31)/30.4))),0),CVMS!$D$19:$P$28,'Calcul CVMS VV'!$Q$2,FALSE))))/100*$D$2,"") ->  | K31: =IFERROR((IF($C31="","",(HLOOKUP(ROUNDUP((IF(((K$8-$C31)/30.4)>0,((K$8-$C31)/30.4),12+((K$8-$C31)/30.4))),0),CVMS!$D$19:$P$28,'Calcul CVMS VV'!$Q$2,FALSE))))/100*$D$2,"") ->  | L31: =IFERROR((IF($C31="","",(HLOOKUP(ROUNDUP((IF(((L$8-$C31)/30.4)>0,((L$8-$C31)/30.4),12+((L$8-$C31)/30.4))),0),CVMS!$D$19:$P$28,'Calcul CVMS VV'!$Q$2,FALSE))))/100*$D$2,"") ->  | M31: =IFERROR((IF($C31="","",(HLOOKUP(ROUNDUP((IF(((M$8-$C31)/30.4)>0,((M$8-$C31)/30.4),12+((M$8-$C31)/30.4))),0),CVMS!$D$19:$P$28,'Calcul CVMS VV'!$Q$2,FALSE))))/100*$D$2,"") ->  | N31: =IFERROR((IF($C31="","",(HLOOKUP(ROUNDUP((IF(((N$8-$C31)/30.4)>0,((N$8-$C31)/30.4),12+((N$8-$C31)/30.4))),0),CVMS!$D$19:$P$28,'Calcul CVMS VV'!$Q$2,FALSE))))/100*$D$2,"") ->  | O31: =IFERROR((IF($C31="","",(HLOOKUP(ROUNDUP((IF(((O$8-$C31)/30.4)>0,((O$8-$C31)/30.4),12+((O$8-$C31)/30.4))),0),CVMS!$D$19:$P$28,'Calcul CVMS VV'!$Q$2,FALSE))))/100*$D$2,"") ->  | P31: =IFERROR((IF($C31="","",(HLOOKUP(ROUNDUP((IF(((P$8-$C31)/30.4)>0,((P$8-$C31)/30.4),12+((P$8-$C31)/30.4))),0),CVMS!$D$19:$P$28,'Calcul CVMS VV'!$Q$2,FALSE))))/100*$D$2,"") ->  | T31: =IFERROR(((HLOOKUP(IF(ROUNDUP(((T$8-$C31)*12/365),FALSE)>0,ROUNDUP(((T$8-$C31)*12/365),FALSE),(ROUNDUP(((T$8-$C31)*12/365),FALSE)+12)),CVMS!$D$58:$Q$67,$Q$2,FALSE))*31),"") ->  | U31: =IFERROR(((HLOOKUP(IF(ROUNDUP(((U$8-$C31)*12/365),FALSE)>0,ROUNDUP(((U$8-$C31)*12/365),FALSE),(ROUNDUP(((U$8-$C31)*12/365),FALSE)+12)),CVMS!$D$58:$Q$67,$Q$2,FALSE))*28),"") ->  | V31: =IFERROR(((HLOOKUP(IF(ROUNDUP(((V$8-$C31)*12/365),FALSE)>0,ROUNDUP(((V$8-$C31)*12/365),FALSE),(ROUNDUP(((V$8-$C31)*12/365),FALSE)+12)),CVMS!$D$58:$Q$67,$Q$2,FALSE))*31),"") ->  | W31: =IFERROR(((HLOOKUP(IF(ROUNDUP(((W$8-$C31)*12/365),FALSE)>0,ROUNDUP(((W$8-$C31)*12/365),FALSE),(ROUNDUP(((W$8-$C31)*12/365),FALSE)+12)),CVMS!$D$58:$Q$67,$Q$2,FALSE))*30),"") ->  | X31: =IFERROR(((HLOOKUP(IF(ROUNDUP(((X$8-$C31)*12/365),FALSE)>0,ROUNDUP(((X$8-$C31)*12/365),FALSE),(ROUNDUP(((X$8-$C31)*12/365),FALSE)+12)),CVMS!$D$58:$Q$67,$Q$2,FALSE))*31),"") ->  | Y31: =IFERROR(((HLOOKUP(IF(ROUNDUP(((Y$8-$C31)*12/365),FALSE)>0,ROUNDUP(((Y$8-$C31)*12/365),FALSE),(ROUNDUP(((Y$8-$C31)*12/365),FALSE)+12)),CVMS!$D$58:$Q$67,$Q$2,FALSE))*30),"") ->  | Z31: =IFERROR(((HLOOKUP(IF(ROUNDUP(((Z$8-$C31)*12/365),FALSE)>0,ROUNDUP(((Z$8-$C31)*12/365),FALSE),(ROUNDUP(((Z$8-$C31)*12/365),FALSE)+12)),CVMS!$D$58:$Q$67,$Q$2,FALSE))*31),"") ->  | AA31: =IFERROR(((HLOOKUP(IF(ROUNDUP(((AA$8-$C31)*12/365),FALSE)>0,ROUNDUP(((AA$8-$C31)*12/365),FALSE),(ROUNDUP(((AA$8-$C31)*12/365),FALSE)+12)),CVMS!$D$58:$Q$67,$Q$2,FALSE))*31),"") ->  | AB31: =IFERROR(((HLOOKUP(IF(ROUNDUP(((AB$8-$C31)*12/365),FALSE)>0,ROUNDUP(((AB$8-$C31)*12/365),FALSE),(ROUNDUP(((AB$8-$C31)*12/365),FALSE)+12)),CVMS!$D$58:$Q$67,$Q$2,FALSE))*30),"") ->  | AC31: =IFERROR(((HLOOKUP(IF(ROUNDUP(((AC$8-$C31)*12/365),FALSE)>0,ROUNDUP(((AC$8-$C31)*12/365),FALSE),(ROUNDUP(((AC$8-$C31)*12/365),FALSE)+12)),CVMS!$D$58:$Q$67,$Q$2,FALSE))*31),"") ->  | AD31: =IFERROR(((HLOOKUP(IF(ROUNDUP(((AD$8-$C31)*12/365),FALSE)>0,ROUNDUP(((AD$8-$C31)*12/365),FALSE),(ROUNDUP(((AD$8-$C31)*12/365),FALSE)+12)),CVMS!$D$58:$Q$67,$Q$2,FALSE))*30),"") ->  | AE31: =IFERROR(((HLOOKUP(IF(ROUNDUP(((AE$8-$C31)*12/365),FALSE)>0,ROUNDUP(((AE$8-$C31)*12/365),FALSE),(ROUNDUP(((AE$8-$C31)*12/365),FALSE)+12)),CVMS!$D$58:$Q$67,$Q$2,FALSE))*31),"") -> 
E32: =IFERROR((IF($C32="","",(HLOOKUP(ROUNDUP((IF(((E$8-$C32)/30.4)>0,((E$8-$C32)/30.4),12+((E$8-$C32)/30.4))),0),CVMS!$D$19:$P$28,'Calcul CVMS VV'!$Q$2,FALSE))))/100*$D$2,"") ->  | F32: =IFERROR((IF($C32="","",(HLOOKUP(ROUNDUP((IF(((F$8-$C32)/30.4)>0,((F$8-$C32)/30.4),12+((F$8-$C32)/30.4))),0),CVMS!$D$19:$P$28,'Calcul CVMS VV'!$Q$2,FALSE))))/100*$D$2,"") ->  | G32: =IFERROR((IF($C32="","",(HLOOKUP(ROUNDUP((IF(((G$8-$C32)/30.4)>0,((G$8-$C32)/30.4),12+((G$8-$C32)/30.4))),0),CVMS!$D$19:$P$28,'Calcul CVMS VV'!$Q$2,FALSE))))/100*$D$2,"") ->  | H32: =IFERROR((IF($C32="","",(HLOOKUP(ROUNDUP((IF(((H$8-$C32)/30.4)>0,((H$8-$C32)/30.4),12+((H$8-$C32)/30.4))),0),CVMS!$D$19:$P$28,'Calcul CVMS VV'!$Q$2,FALSE))))/100*$D$2,"") ->  | I32: =IFERROR((IF($C32="","",(HLOOKUP(ROUNDUP((IF(((I$8-$C32)/30.4)>0,((I$8-$C32)/30.4),12+((I$8-$C32)/30.4))),0),CVMS!$D$19:$P$28,'Calcul CVMS VV'!$Q$2,FALSE))))/100*$D$2,"") ->  | J32: =IFERROR((IF($C32="","",(HLOOKUP(ROUNDUP((IF(((J$8-$C32)/30.4)>0,((J$8-$C32)/30.4),12+((J$8-$C32)/30.4))),0),CVMS!$D$19:$P$28,'Calcul CVMS VV'!$Q$2,FALSE))))/100*$D$2,"") ->  | K32: =IFERROR((IF($C32="","",(HLOOKUP(ROUNDUP((IF(((K$8-$C32)/30.4)>0,((K$8-$C32)/30.4),12+((K$8-$C32)/30.4))),0),CVMS!$D$19:$P$28,'Calcul CVMS VV'!$Q$2,FALSE))))/100*$D$2,"") ->  | L32: =IFERROR((IF($C32="","",(HLOOKUP(ROUNDUP((IF(((L$8-$C32)/30.4)>0,((L$8-$C32)/30.4),12+((L$8-$C32)/30.4))),0),CVMS!$D$19:$P$28,'Calcul CVMS VV'!$Q$2,FALSE))))/100*$D$2,"") ->  | M32: =IFERROR((IF($C32="","",(HLOOKUP(ROUNDUP((IF(((M$8-$C32)/30.4)>0,((M$8-$C32)/30.4),12+((M$8-$C32)/30.4))),0),CVMS!$D$19:$P$28,'Calcul CVMS VV'!$Q$2,FALSE))))/100*$D$2,"") ->  | N32: =IFERROR((IF($C32="","",(HLOOKUP(ROUNDUP((IF(((N$8-$C32)/30.4)>0,((N$8-$C32)/30.4),12+((N$8-$C32)/30.4))),0),CVMS!$D$19:$P$28,'Calcul CVMS VV'!$Q$2,FALSE))))/100*$D$2,"") ->  | O32: =IFERROR((IF($C32="","",(HLOOKUP(ROUNDUP((IF(((O$8-$C32)/30.4)>0,((O$8-$C32)/30.4),12+((O$8-$C32)/30.4))),0),CVMS!$D$19:$P$28,'Calcul CVMS VV'!$Q$2,FALSE))))/100*$D$2,"") ->  | P32: =IFERROR((IF($C32="","",(HLOOKUP(ROUNDUP((IF(((P$8-$C32)/30.4)>0,((P$8-$C32)/30.4),12+((P$8-$C32)/30.4))),0),CVMS!$D$19:$P$28,'Calcul CVMS VV'!$Q$2,FALSE))))/100*$D$2,"") ->  | T32: =IFERROR(((HLOOKUP(IF(ROUNDUP(((T$8-$C32)*12/365),FALSE)>0,ROUNDUP(((T$8-$C32)*12/365),FALSE),(ROUNDUP(((T$8-$C32)*12/365),FALSE)+12)),CVMS!$D$58:$Q$67,$Q$2,FALSE))*31),"") ->  | U32: =IFERROR(((HLOOKUP(IF(ROUNDUP(((U$8-$C32)*12/365),FALSE)>0,ROUNDUP(((U$8-$C32)*12/365),FALSE),(ROUNDUP(((U$8-$C32)*12/365),FALSE)+12)),CVMS!$D$58:$Q$67,$Q$2,FALSE))*28),"") ->  | V32: =IFERROR(((HLOOKUP(IF(ROUNDUP(((V$8-$C32)*12/365),FALSE)>0,ROUNDUP(((V$8-$C32)*12/365),FALSE),(ROUNDUP(((V$8-$C32)*12/365),FALSE)+12)),CVMS!$D$58:$Q$67,$Q$2,FALSE))*31),"") ->  | W32: =IFERROR(((HLOOKUP(IF(ROUNDUP(((W$8-$C32)*12/365),FALSE)>0,ROUNDUP(((W$8-$C32)*12/365),FALSE),(ROUNDUP(((W$8-$C32)*12/365),FALSE)+12)),CVMS!$D$58:$Q$67,$Q$2,FALSE))*30),"") ->  | X32: =IFERROR(((HLOOKUP(IF(ROUNDUP(((X$8-$C32)*12/365),FALSE)>0,ROUNDUP(((X$8-$C32)*12/365),FALSE),(ROUNDUP(((X$8-$C32)*12/365),FALSE)+12)),CVMS!$D$58:$Q$67,$Q$2,FALSE))*31),"") ->  | Y32: =IFERROR(((HLOOKUP(IF(ROUNDUP(((Y$8-$C32)*12/365),FALSE)>0,ROUNDUP(((Y$8-$C32)*12/365),FALSE),(ROUNDUP(((Y$8-$C32)*12/365),FALSE)+12)),CVMS!$D$58:$Q$67,$Q$2,FALSE))*30),"") ->  | Z32: =IFERROR(((HLOOKUP(IF(ROUNDUP(((Z$8-$C32)*12/365),FALSE)>0,ROUNDUP(((Z$8-$C32)*12/365),FALSE),(ROUNDUP(((Z$8-$C32)*12/365),FALSE)+12)),CVMS!$D$58:$Q$67,$Q$2,FALSE))*31),"") ->  | AA32: =IFERROR(((HLOOKUP(IF(ROUNDUP(((AA$8-$C32)*12/365),FALSE)>0,ROUNDUP(((AA$8-$C32)*12/365),FALSE),(ROUNDUP(((AA$8-$C32)*12/365),FALSE)+12)),CVMS!$D$58:$Q$67,$Q$2,FALSE))*31),"") ->  | AB32: =IFERROR(((HLOOKUP(IF(ROUNDUP(((AB$8-$C32)*12/365),FALSE)>0,ROUNDUP(((AB$8-$C32)*12/365),FALSE),(ROUNDUP(((AB$8-$C32)*12/365),FALSE)+12)),CVMS!$D$58:$Q$67,$Q$2,FALSE))*30),"") ->  | AC32: =IFERROR(((HLOOKUP(IF(ROUNDUP(((AC$8-$C32)*12/365),FALSE)>0,ROUNDUP(((AC$8-$C32)*12/365),FALSE),(ROUNDUP(((AC$8-$C32)*12/365),FALSE)+12)),CVMS!$D$58:$Q$67,$Q$2,FALSE))*31),"") ->  | AD32: =IFERROR(((HLOOKUP(IF(ROUNDUP(((AD$8-$C32)*12/365),FALSE)>0,ROUNDUP(((AD$8-$C32)*12/365),FALSE),(ROUNDUP(((AD$8-$C32)*12/365),FALSE)+12)),CVMS!$D$58:$Q$67,$Q$2,FALSE))*30),"") ->  | AE32: =IFERROR(((HLOOKUP(IF(ROUNDUP(((AE$8-$C32)*12/365),FALSE)>0,ROUNDUP(((AE$8-$C32)*12/365),FALSE),(ROUNDUP(((AE$8-$C32)*12/365),FALSE)+12)),CVMS!$D$58:$Q$67,$Q$2,FALSE))*31),"") -> 
E33: =IFERROR((IF($C33="","",(HLOOKUP(ROUNDUP((IF(((E$8-$C33)/30.4)>0,((E$8-$C33)/30.4),12+((E$8-$C33)/30.4))),0),CVMS!$D$19:$P$28,'Calcul CVMS VV'!$Q$2,FALSE))))/100*$D$2,"") ->  | F33: =IFERROR((IF($C33="","",(HLOOKUP(ROUNDUP((IF(((F$8-$C33)/30.4)>0,((F$8-$C33)/30.4),12+((F$8-$C33)/30.4))),0),CVMS!$D$19:$P$28,'Calcul CVMS VV'!$Q$2,FALSE))))/100*$D$2,"") ->  | G33: =IFERROR((IF($C33="","",(HLOOKUP(ROUNDUP((IF(((G$8-$C33)/30.4)>0,((G$8-$C33)/30.4),12+((G$8-$C33)/30.4))),0),CVMS!$D$19:$P$28,'Calcul CVMS VV'!$Q$2,FALSE))))/100*$D$2,"") ->  | H33: =IFERROR((IF($C33="","",(HLOOKUP(ROUNDUP((IF(((H$8-$C33)/30.4)>0,((H$8-$C33)/30.4),12+((H$8-$C33)/30.4))),0),CVMS!$D$19:$P$28,'Calcul CVMS VV'!$Q$2,FALSE))))/100*$D$2,"") ->  | I33: =IFERROR((IF($C33="","",(HLOOKUP(ROUNDUP((IF(((I$8-$C33)/30.4)>0,((I$8-$C33)/30.4),12+((I$8-$C33)/30.4))),0),CVMS!$D$19:$P$28,'Calcul CVMS VV'!$Q$2,FALSE))))/100*$D$2,"") ->  | J33: =IFERROR((IF($C33="","",(HLOOKUP(ROUNDUP((IF(((J$8-$C33)/30.4)>0,((J$8-$C33)/30.4),12+((J$8-$C33)/30.4))),0),CVMS!$D$19:$P$28,'Calcul CVMS VV'!$Q$2,FALSE))))/100*$D$2,"") ->  | K33: =IFERROR((IF($C33="","",(HLOOKUP(ROUNDUP((IF(((K$8-$C33)/30.4)>0,((K$8-$C33)/30.4),12+((K$8-$C33)/30.4))),0),CVMS!$D$19:$P$28,'Calcul CVMS VV'!$Q$2,FALSE))))/100*$D$2,"") ->  | L33: =IFERROR((IF($C33="","",(HLOOKUP(ROUNDUP((IF(((L$8-$C33)/30.4)>0,((L$8-$C33)/30.4),12+((L$8-$C33)/30.4))),0),CVMS!$D$19:$P$28,'Calcul CVMS VV'!$Q$2,FALSE))))/100*$D$2,"") ->  | M33: =IFERROR((IF($C33="","",(HLOOKUP(ROUNDUP((IF(((M$8-$C33)/30.4)>0,((M$8-$C33)/30.4),12+((M$8-$C33)/30.4))),0),CVMS!$D$19:$P$28,'Calcul CVMS VV'!$Q$2,FALSE))))/100*$D$2,"") ->  | N33: =IFERROR((IF($C33="","",(HLOOKUP(ROUNDUP((IF(((N$8-$C33)/30.4)>0,((N$8-$C33)/30.4),12+((N$8-$C33)/30.4))),0),CVMS!$D$19:$P$28,'Calcul CVMS VV'!$Q$2,FALSE))))/100*$D$2,"") ->  | O33: =IFERROR((IF($C33="","",(HLOOKUP(ROUNDUP((IF(((O$8-$C33)/30.4)>0,((O$8-$C33)/30.4),12+((O$8-$C33)/30.4))),0),CVMS!$D$19:$P$28,'Calcul CVMS VV'!$Q$2,FALSE))))/100*$D$2,"") ->  | P33: =IFERROR((IF($C33="","",(HLOOKUP(ROUNDUP((IF(((P$8-$C33)/30.4)>0,((P$8-$C33)/30.4),12+((P$8-$C33)/30.4))),0),CVMS!$D$19:$P$28,'Calcul CVMS VV'!$Q$2,FALSE))))/100*$D$2,"") ->  | T33: =IFERROR(((HLOOKUP(IF(ROUNDUP(((T$8-$C33)*12/365),FALSE)>0,ROUNDUP(((T$8-$C33)*12/365),FALSE),(ROUNDUP(((T$8-$C33)*12/365),FALSE)+12)),CVMS!$D$58:$Q$67,$Q$2,FALSE))*31),"") ->  | U33: =IFERROR(((HLOOKUP(IF(ROUNDUP(((U$8-$C33)*12/365),FALSE)>0,ROUNDUP(((U$8-$C33)*12/365),FALSE),(ROUNDUP(((U$8-$C33)*12/365),FALSE)+12)),CVMS!$D$58:$Q$67,$Q$2,FALSE))*28),"") ->  | V33: =IFERROR(((HLOOKUP(IF(ROUNDUP(((V$8-$C33)*12/365),FALSE)>0,ROUNDUP(((V$8-$C33)*12/365),FALSE),(ROUNDUP(((V$8-$C33)*12/365),FALSE)+12)),CVMS!$D$58:$Q$67,$Q$2,FALSE))*31),"") ->  | W33: =IFERROR(((HLOOKUP(IF(ROUNDUP(((W$8-$C33)*12/365),FALSE)>0,ROUNDUP(((W$8-$C33)*12/365),FALSE),(ROUNDUP(((W$8-$C33)*12/365),FALSE)+12)),CVMS!$D$58:$Q$67,$Q$2,FALSE))*30),"") ->  | X33: =IFERROR(((HLOOKUP(IF(ROUNDUP(((X$8-$C33)*12/365),FALSE)>0,ROUNDUP(((X$8-$C33)*12/365),FALSE),(ROUNDUP(((X$8-$C33)*12/365),FALSE)+12)),CVMS!$D$58:$Q$67,$Q$2,FALSE))*31),"") ->  | Y33: =IFERROR(((HLOOKUP(IF(ROUNDUP(((Y$8-$C33)*12/365),FALSE)>0,ROUNDUP(((Y$8-$C33)*12/365),FALSE),(ROUNDUP(((Y$8-$C33)*12/365),FALSE)+12)),CVMS!$D$58:$Q$67,$Q$2,FALSE))*30),"") ->  | Z33: =IFERROR(((HLOOKUP(IF(ROUNDUP(((Z$8-$C33)*12/365),FALSE)>0,ROUNDUP(((Z$8-$C33)*12/365),FALSE),(ROUNDUP(((Z$8-$C33)*12/365),FALSE)+12)),CVMS!$D$58:$Q$67,$Q$2,FALSE))*31),"") ->  | AA33: =IFERROR(((HLOOKUP(IF(ROUNDUP(((AA$8-$C33)*12/365),FALSE)>0,ROUNDUP(((AA$8-$C33)*12/365),FALSE),(ROUNDUP(((AA$8-$C33)*12/365),FALSE)+12)),CVMS!$D$58:$Q$67,$Q$2,FALSE))*31),"") ->  | AB33: =IFERROR(((HLOOKUP(IF(ROUNDUP(((AB$8-$C33)*12/365),FALSE)>0,ROUNDUP(((AB$8-$C33)*12/365),FALSE),(ROUNDUP(((AB$8-$C33)*12/365),FALSE)+12)),CVMS!$D$58:$Q$67,$Q$2,FALSE))*30),"") ->  | AC33: =IFERROR(((HLOOKUP(IF(ROUNDUP(((AC$8-$C33)*12/365),FALSE)>0,ROUNDUP(((AC$8-$C33)*12/365),FALSE),(ROUNDUP(((AC$8-$C33)*12/365),FALSE)+12)),CVMS!$D$58:$Q$67,$Q$2,FALSE))*31),"") ->  | AD33: =IFERROR(((HLOOKUP(IF(ROUNDUP(((AD$8-$C33)*12/365),FALSE)>0,ROUNDUP(((AD$8-$C33)*12/365),FALSE),(ROUNDUP(((AD$8-$C33)*12/365),FALSE)+12)),CVMS!$D$58:$Q$67,$Q$2,FALSE))*30),"") ->  | AE33: =IFERROR(((HLOOKUP(IF(ROUNDUP(((AE$8-$C33)*12/365),FALSE)>0,ROUNDUP(((AE$8-$C33)*12/365),FALSE),(ROUNDUP(((AE$8-$C33)*12/365),FALSE)+12)),CVMS!$D$58:$Q$67,$Q$2,FALSE))*31),"") -> 
E34: =IFERROR((IF($C34="","",(HLOOKUP(ROUNDUP((IF(((E$8-$C34)/30.4)>0,((E$8-$C34)/30.4),12+((E$8-$C34)/30.4))),0),CVMS!$D$19:$P$28,'Calcul CVMS VV'!$Q$2,FALSE))))/100*$D$2,"") ->  | F34: =IFERROR((IF($C34="","",(HLOOKUP(ROUNDUP((IF(((F$8-$C34)/30.4)>0,((F$8-$C34)/30.4),12+((F$8-$C34)/30.4))),0),CVMS!$D$19:$P$28,'Calcul CVMS VV'!$Q$2,FALSE))))/100*$D$2,"") ->  | G34: =IFERROR((IF($C34="","",(HLOOKUP(ROUNDUP((IF(((G$8-$C34)/30.4)>0,((G$8-$C34)/30.4),12+((G$8-$C34)/30.4))),0),CVMS!$D$19:$P$28,'Calcul CVMS VV'!$Q$2,FALSE))))/100*$D$2,"") ->  | H34: =IFERROR((IF($C34="","",(HLOOKUP(ROUNDUP((IF(((H$8-$C34)/30.4)>0,((H$8-$C34)/30.4),12+((H$8-$C34)/30.4))),0),CVMS!$D$19:$P$28,'Calcul CVMS VV'!$Q$2,FALSE))))/100*$D$2,"") ->  | I34: =IFERROR((IF($C34="","",(HLOOKUP(ROUNDUP((IF(((I$8-$C34)/30.4)>0,((I$8-$C34)/30.4),12+((I$8-$C34)/30.4))),0),CVMS!$D$19:$P$28,'Calcul CVMS VV'!$Q$2,FALSE))))/100*$D$2,"") ->  | J34: =IFERROR((IF($C34="","",(HLOOKUP(ROUNDUP((IF(((J$8-$C34)/30.4)>0,((J$8-$C34)/30.4),12+((J$8-$C34)/30.4))),0),CVMS!$D$19:$P$28,'Calcul CVMS VV'!$Q$2,FALSE))))/100*$D$2,"") ->  | K34: =IFERROR((IF($C34="","",(HLOOKUP(ROUNDUP((IF(((K$8-$C34)/30.4)>0,((K$8-$C34)/30.4),12+((K$8-$C34)/30.4))),0),CVMS!$D$19:$P$28,'Calcul CVMS VV'!$Q$2,FALSE))))/100*$D$2,"") ->  | L34: =IFERROR((IF($C34="","",(HLOOKUP(ROUNDUP((IF(((L$8-$C34)/30.4)>0,((L$8-$C34)/30.4),12+((L$8-$C34)/30.4))),0),CVMS!$D$19:$P$28,'Calcul CVMS VV'!$Q$2,FALSE))))/100*$D$2,"") ->  | M34: =IFERROR((IF($C34="","",(HLOOKUP(ROUNDUP((IF(((M$8-$C34)/30.4)>0,((M$8-$C34)/30.4),12+((M$8-$C34)/30.4))),0),CVMS!$D$19:$P$28,'Calcul CVMS VV'!$Q$2,FALSE))))/100*$D$2,"") ->  | N34: =IFERROR((IF($C34="","",(HLOOKUP(ROUNDUP((IF(((N$8-$C34)/30.4)>0,((N$8-$C34)/30.4),12+((N$8-$C34)/30.4))),0),CVMS!$D$19:$P$28,'Calcul CVMS VV'!$Q$2,FALSE))))/100*$D$2,"") ->  | O34: =IFERROR((IF($C34="","",(HLOOKUP(ROUNDUP((IF(((O$8-$C34)/30.4)>0,((O$8-$C34)/30.4),12+((O$8-$C34)/30.4))),0),CVMS!$D$19:$P$28,'Calcul CVMS VV'!$Q$2,FALSE))))/100*$D$2,"") ->  | P34: =IFERROR((IF($C34="","",(HLOOKUP(ROUNDUP((IF(((P$8-$C34)/30.4)>0,((P$8-$C34)/30.4),12+((P$8-$C34)/30.4))),0),CVMS!$D$19:$P$28,'Calcul CVMS VV'!$Q$2,FALSE))))/100*$D$2,"") ->  | T34: =IFERROR(((HLOOKUP(IF(ROUNDUP(((T$8-$C34)*12/365),FALSE)>0,ROUNDUP(((T$8-$C34)*12/365),FALSE),(ROUNDUP(((T$8-$C34)*12/365),FALSE)+12)),CVMS!$D$58:$Q$67,$Q$2,FALSE))*31),"") ->  | U34: =IFERROR(((HLOOKUP(IF(ROUNDUP(((U$8-$C34)*12/365),FALSE)>0,ROUNDUP(((U$8-$C34)*12/365),FALSE),(ROUNDUP(((U$8-$C34)*12/365),FALSE)+12)),CVMS!$D$58:$Q$67,$Q$2,FALSE))*28),"") ->  | V34: =IFERROR(((HLOOKUP(IF(ROUNDUP(((V$8-$C34)*12/365),FALSE)>0,ROUNDUP(((V$8-$C34)*12/365),FALSE),(ROUNDUP(((V$8-$C34)*12/365),FALSE)+12)),CVMS!$D$58:$Q$67,$Q$2,FALSE))*31),"") ->  | W34: =IFERROR(((HLOOKUP(IF(ROUNDUP(((W$8-$C34)*12/365),FALSE)>0,ROUNDUP(((W$8-$C34)*12/365),FALSE),(ROUNDUP(((W$8-$C34)*12/365),FALSE)+12)),CVMS!$D$58:$Q$67,$Q$2,FALSE))*30),"") ->  | X34: =IFERROR(((HLOOKUP(IF(ROUNDUP(((X$8-$C34)*12/365),FALSE)>0,ROUNDUP(((X$8-$C34)*12/365),FALSE),(ROUNDUP(((X$8-$C34)*12/365),FALSE)+12)),CVMS!$D$58:$Q$67,$Q$2,FALSE))*31),"") ->  | Y34: =IFERROR(((HLOOKUP(IF(ROUNDUP(((Y$8-$C34)*12/365),FALSE)>0,ROUNDUP(((Y$8-$C34)*12/365),FALSE),(ROUNDUP(((Y$8-$C34)*12/365),FALSE)+12)),CVMS!$D$58:$Q$67,$Q$2,FALSE))*30),"") ->  | Z34: =IFERROR(((HLOOKUP(IF(ROUNDUP(((Z$8-$C34)*12/365),FALSE)>0,ROUNDUP(((Z$8-$C34)*12/365),FALSE),(ROUNDUP(((Z$8-$C34)*12/365),FALSE)+12)),CVMS!$D$58:$Q$67,$Q$2,FALSE))*31),"") ->  | AA34: =IFERROR(((HLOOKUP(IF(ROUNDUP(((AA$8-$C34)*12/365),FALSE)>0,ROUNDUP(((AA$8-$C34)*12/365),FALSE),(ROUNDUP(((AA$8-$C34)*12/365),FALSE)+12)),CVMS!$D$58:$Q$67,$Q$2,FALSE))*31),"") ->  | AB34: =IFERROR(((HLOOKUP(IF(ROUNDUP(((AB$8-$C34)*12/365),FALSE)>0,ROUNDUP(((AB$8-$C34)*12/365),FALSE),(ROUNDUP(((AB$8-$C34)*12/365),FALSE)+12)),CVMS!$D$58:$Q$67,$Q$2,FALSE))*30),"") ->  | AC34: =IFERROR(((HLOOKUP(IF(ROUNDUP(((AC$8-$C34)*12/365),FALSE)>0,ROUNDUP(((AC$8-$C34)*12/365),FALSE),(ROUNDUP(((AC$8-$C34)*12/365),FALSE)+12)),CVMS!$D$58:$Q$67,$Q$2,FALSE))*31),"") ->  | AD34: =IFERROR(((HLOOKUP(IF(ROUNDUP(((AD$8-$C34)*12/365),FALSE)>0,ROUNDUP(((AD$8-$C34)*12/365),FALSE),(ROUNDUP(((AD$8-$C34)*12/365),FALSE)+12)),CVMS!$D$58:$Q$67,$Q$2,FALSE))*30),"") ->  | AE34: =IFERROR(((HLOOKUP(IF(ROUNDUP(((AE$8-$C34)*12/365),FALSE)>0,ROUNDUP(((AE$8-$C34)*12/365),FALSE),(ROUNDUP(((AE$8-$C34)*12/365),FALSE)+12)),CVMS!$D$58:$Q$67,$Q$2,FALSE))*31),"") -> 
E35: =IFERROR((IF($C35="","",(HLOOKUP(ROUNDUP((IF(((E$8-$C35)/30.4)>0,((E$8-$C35)/30.4),12+((E$8-$C35)/30.4))),0),CVMS!$D$19:$P$28,'Calcul CVMS VV'!$Q$2,FALSE))))/100*$D$2,"") ->  | F35: =IFERROR((IF($C35="","",(HLOOKUP(ROUNDUP((IF(((F$8-$C35)/30.4)>0,((F$8-$C35)/30.4),12+((F$8-$C35)/30.4))),0),CVMS!$D$19:$P$28,'Calcul CVMS VV'!$Q$2,FALSE))))/100*$D$2,"") ->  | G35: =IFERROR((IF($C35="","",(HLOOKUP(ROUNDUP((IF(((G$8-$C35)/30.4)>0,((G$8-$C35)/30.4),12+((G$8-$C35)/30.4))),0),CVMS!$D$19:$P$28,'Calcul CVMS VV'!$Q$2,FALSE))))/100*$D$2,"") ->  | H35: =IFERROR((IF($C35="","",(HLOOKUP(ROUNDUP((IF(((H$8-$C35)/30.4)>0,((H$8-$C35)/30.4),12+((H$8-$C35)/30.4))),0),CVMS!$D$19:$P$28,'Calcul CVMS VV'!$Q$2,FALSE))))/100*$D$2,"") ->  | I35: =IFERROR((IF($C35="","",(HLOOKUP(ROUNDUP((IF(((I$8-$C35)/30.4)>0,((I$8-$C35)/30.4),12+((I$8-$C35)/30.4))),0),CVMS!$D$19:$P$28,'Calcul CVMS VV'!$Q$2,FALSE))))/100*$D$2,"") ->  | J35: =IFERROR((IF($C35="","",(HLOOKUP(ROUNDUP((IF(((J$8-$C35)/30.4)>0,((J$8-$C35)/30.4),12+((J$8-$C35)/30.4))),0),CVMS!$D$19:$P$28,'Calcul CVMS VV'!$Q$2,FALSE))))/100*$D$2,"") ->  | K35: =IFERROR((IF($C35="","",(HLOOKUP(ROUNDUP((IF(((K$8-$C35)/30.4)>0,((K$8-$C35)/30.4),12+((K$8-$C35)/30.4))),0),CVMS!$D$19:$P$28,'Calcul CVMS VV'!$Q$2,FALSE))))/100*$D$2,"") ->  | L35: =IFERROR((IF($C35="","",(HLOOKUP(ROUNDUP((IF(((L$8-$C35)/30.4)>0,((L$8-$C35)/30.4),12+((L$8-$C35)/30.4))),0),CVMS!$D$19:$P$28,'Calcul CVMS VV'!$Q$2,FALSE))))/100*$D$2,"") ->  | M35: =IFERROR((IF($C35="","",(HLOOKUP(ROUNDUP((IF(((M$8-$C35)/30.4)>0,((M$8-$C35)/30.4),12+((M$8-$C35)/30.4))),0),CVMS!$D$19:$P$28,'Calcul CVMS VV'!$Q$2,FALSE))))/100*$D$2,"") ->  | N35: =IFERROR((IF($C35="","",(HLOOKUP(ROUNDUP((IF(((N$8-$C35)/30.4)>0,((N$8-$C35)/30.4),12+((N$8-$C35)/30.4))),0),CVMS!$D$19:$P$28,'Calcul CVMS VV'!$Q$2,FALSE))))/100*$D$2,"") ->  | O35: =IFERROR((IF($C35="","",(HLOOKUP(ROUNDUP((IF(((O$8-$C35)/30.4)>0,((O$8-$C35)/30.4),12+((O$8-$C35)/30.4))),0),CVMS!$D$19:$P$28,'Calcul CVMS VV'!$Q$2,FALSE))))/100*$D$2,"") ->  | P35: =IFERROR((IF($C35="","",(HLOOKUP(ROUNDUP((IF(((P$8-$C35)/30.4)>0,((P$8-$C35)/30.4),12+((P$8-$C35)/30.4))),0),CVMS!$D$19:$P$28,'Calcul CVMS VV'!$Q$2,FALSE))))/100*$D$2,"") ->  | T35: =IFERROR(((HLOOKUP(IF(ROUNDUP(((T$8-$C35)*12/365),FALSE)>0,ROUNDUP(((T$8-$C35)*12/365),FALSE),(ROUNDUP(((T$8-$C35)*12/365),FALSE)+12)),CVMS!$D$58:$Q$67,$Q$2,FALSE))*31),"") ->  | U35: =IFERROR(((HLOOKUP(IF(ROUNDUP(((U$8-$C35)*12/365),FALSE)>0,ROUNDUP(((U$8-$C35)*12/365),FALSE),(ROUNDUP(((U$8-$C35)*12/365),FALSE)+12)),CVMS!$D$58:$Q$67,$Q$2,FALSE))*28),"") ->  | V35: =IFERROR(((HLOOKUP(IF(ROUNDUP(((V$8-$C35)*12/365),FALSE)>0,ROUNDUP(((V$8-$C35)*12/365),FALSE),(ROUNDUP(((V$8-$C35)*12/365),FALSE)+12)),CVMS!$D$58:$Q$67,$Q$2,FALSE))*31),"") ->  | W35: =IFERROR(((HLOOKUP(IF(ROUNDUP(((W$8-$C35)*12/365),FALSE)>0,ROUNDUP(((W$8-$C35)*12/365),FALSE),(ROUNDUP(((W$8-$C35)*12/365),FALSE)+12)),CVMS!$D$58:$Q$67,$Q$2,FALSE))*30),"") ->  | X35: =IFERROR(((HLOOKUP(IF(ROUNDUP(((X$8-$C35)*12/365),FALSE)>0,ROUNDUP(((X$8-$C35)*12/365),FALSE),(ROUNDUP(((X$8-$C35)*12/365),FALSE)+12)),CVMS!$D$58:$Q$67,$Q$2,FALSE))*31),"") ->  | Y35: =IFERROR(((HLOOKUP(IF(ROUNDUP(((Y$8-$C35)*12/365),FALSE)>0,ROUNDUP(((Y$8-$C35)*12/365),FALSE),(ROUNDUP(((Y$8-$C35)*12/365),FALSE)+12)),CVMS!$D$58:$Q$67,$Q$2,FALSE))*30),"") ->  | Z35: =IFERROR(((HLOOKUP(IF(ROUNDUP(((Z$8-$C35)*12/365),FALSE)>0,ROUNDUP(((Z$8-$C35)*12/365),FALSE),(ROUNDUP(((Z$8-$C35)*12/365),FALSE)+12)),CVMS!$D$58:$Q$67,$Q$2,FALSE))*31),"") ->  | AA35: =IFERROR(((HLOOKUP(IF(ROUNDUP(((AA$8-$C35)*12/365),FALSE)>0,ROUNDUP(((AA$8-$C35)*12/365),FALSE),(ROUNDUP(((AA$8-$C35)*12/365),FALSE)+12)),CVMS!$D$58:$Q$67,$Q$2,FALSE))*31),"") ->  | AB35: =IFERROR(((HLOOKUP(IF(ROUNDUP(((AB$8-$C35)*12/365),FALSE)>0,ROUNDUP(((AB$8-$C35)*12/365),FALSE),(ROUNDUP(((AB$8-$C35)*12/365),FALSE)+12)),CVMS!$D$58:$Q$67,$Q$2,FALSE))*30),"") ->  | AC35: =IFERROR(((HLOOKUP(IF(ROUNDUP(((AC$8-$C35)*12/365),FALSE)>0,ROUNDUP(((AC$8-$C35)*12/365),FALSE),(ROUNDUP(((AC$8-$C35)*12/365),FALSE)+12)),CVMS!$D$58:$Q$67,$Q$2,FALSE))*31),"") ->  | AD35: =IFERROR(((HLOOKUP(IF(ROUNDUP(((AD$8-$C35)*12/365),FALSE)>0,ROUNDUP(((AD$8-$C35)*12/365),FALSE),(ROUNDUP(((AD$8-$C35)*12/365),FALSE)+12)),CVMS!$D$58:$Q$67,$Q$2,FALSE))*30),"") ->  | AE35: =IFERROR(((HLOOKUP(IF(ROUNDUP(((AE$8-$C35)*12/365),FALSE)>0,ROUNDUP(((AE$8-$C35)*12/365),FALSE),(ROUNDUP(((AE$8-$C35)*12/365),FALSE)+12)),CVMS!$D$58:$Q$67,$Q$2,FALSE))*31),"") -> 
E36: =IFERROR((IF($C36="","",(HLOOKUP(ROUNDUP((IF(((E$8-$C36)/30.4)>0,((E$8-$C36)/30.4),12+((E$8-$C36)/30.4))),0),CVMS!$D$19:$P$28,'Calcul CVMS VV'!$Q$2,FALSE))))/100*$D$2,"") ->  | F36: =IFERROR((IF($C36="","",(HLOOKUP(ROUNDUP((IF(((F$8-$C36)/30.4)>0,((F$8-$C36)/30.4),12+((F$8-$C36)/30.4))),0),CVMS!$D$19:$P$28,'Calcul CVMS VV'!$Q$2,FALSE))))/100*$D$2,"") ->  | G36: =IFERROR((IF($C36="","",(HLOOKUP(ROUNDUP((IF(((G$8-$C36)/30.4)>0,((G$8-$C36)/30.4),12+((G$8-$C36)/30.4))),0),CVMS!$D$19:$P$28,'Calcul CVMS VV'!$Q$2,FALSE))))/100*$D$2,"") ->  | H36: =IFERROR((IF($C36="","",(HLOOKUP(ROUNDUP((IF(((H$8-$C36)/30.4)>0,((H$8-$C36)/30.4),12+((H$8-$C36)/30.4))),0),CVMS!$D$19:$P$28,'Calcul CVMS VV'!$Q$2,FALSE))))/100*$D$2,"") ->  | I36: =IFERROR((IF($C36="","",(HLOOKUP(ROUNDUP((IF(((I$8-$C36)/30.4)>0,((I$8-$C36)/30.4),12+((I$8-$C36)/30.4))),0),CVMS!$D$19:$P$28,'Calcul CVMS VV'!$Q$2,FALSE))))/100*$D$2,"") ->  | J36: =IFERROR((IF($C36="","",(HLOOKUP(ROUNDUP((IF(((J$8-$C36)/30.4)>0,((J$8-$C36)/30.4),12+((J$8-$C36)/30.4))),0),CVMS!$D$19:$P$28,'Calcul CVMS VV'!$Q$2,FALSE))))/100*$D$2,"") ->  | K36: =IFERROR((IF($C36="","",(HLOOKUP(ROUNDUP((IF(((K$8-$C36)/30.4)>0,((K$8-$C36)/30.4),12+((K$8-$C36)/30.4))),0),CVMS!$D$19:$P$28,'Calcul CVMS VV'!$Q$2,FALSE))))/100*$D$2,"") ->  | L36: =IFERROR((IF($C36="","",(HLOOKUP(ROUNDUP((IF(((L$8-$C36)/30.4)>0,((L$8-$C36)/30.4),12+((L$8-$C36)/30.4))),0),CVMS!$D$19:$P$28,'Calcul CVMS VV'!$Q$2,FALSE))))/100*$D$2,"") ->  | M36: =IFERROR((IF($C36="","",(HLOOKUP(ROUNDUP((IF(((M$8-$C36)/30.4)>0,((M$8-$C36)/30.4),12+((M$8-$C36)/30.4))),0),CVMS!$D$19:$P$28,'Calcul CVMS VV'!$Q$2,FALSE))))/100*$D$2,"") ->  | N36: =IFERROR((IF($C36="","",(HLOOKUP(ROUNDUP((IF(((N$8-$C36)/30.4)>0,((N$8-$C36)/30.4),12+((N$8-$C36)/30.4))),0),CVMS!$D$19:$P$28,'Calcul CVMS VV'!$Q$2,FALSE))))/100*$D$2,"") ->  | O36: =IFERROR((IF($C36="","",(HLOOKUP(ROUNDUP((IF(((O$8-$C36)/30.4)>0,((O$8-$C36)/30.4),12+((O$8-$C36)/30.4))),0),CVMS!$D$19:$P$28,'Calcul CVMS VV'!$Q$2,FALSE))))/100*$D$2,"") ->  | P36: =IFERROR((IF($C36="","",(HLOOKUP(ROUNDUP((IF(((P$8-$C36)/30.4)>0,((P$8-$C36)/30.4),12+((P$8-$C36)/30.4))),0),CVMS!$D$19:$P$28,'Calcul CVMS VV'!$Q$2,FALSE))))/100*$D$2,"") ->  | T36: =IFERROR(((HLOOKUP(IF(ROUNDUP(((T$8-$C36)*12/365),FALSE)>0,ROUNDUP(((T$8-$C36)*12/365),FALSE),(ROUNDUP(((T$8-$C36)*12/365),FALSE)+12)),CVMS!$D$58:$Q$67,$Q$2,FALSE))*31),"") ->  | U36: =IFERROR(((HLOOKUP(IF(ROUNDUP(((U$8-$C36)*12/365),FALSE)>0,ROUNDUP(((U$8-$C36)*12/365),FALSE),(ROUNDUP(((U$8-$C36)*12/365),FALSE)+12)),CVMS!$D$58:$Q$67,$Q$2,FALSE))*28),"") ->  | V36: =IFERROR(((HLOOKUP(IF(ROUNDUP(((V$8-$C36)*12/365),FALSE)>0,ROUNDUP(((V$8-$C36)*12/365),FALSE),(ROUNDUP(((V$8-$C36)*12/365),FALSE)+12)),CVMS!$D$58:$Q$67,$Q$2,FALSE))*31),"") ->  | W36: =IFERROR(((HLOOKUP(IF(ROUNDUP(((W$8-$C36)*12/365),FALSE)>0,ROUNDUP(((W$8-$C36)*12/365),FALSE),(ROUNDUP(((W$8-$C36)*12/365),FALSE)+12)),CVMS!$D$58:$Q$67,$Q$2,FALSE))*30),"") ->  | X36: =IFERROR(((HLOOKUP(IF(ROUNDUP(((X$8-$C36)*12/365),FALSE)>0,ROUNDUP(((X$8-$C36)*12/365),FALSE),(ROUNDUP(((X$8-$C36)*12/365),FALSE)+12)),CVMS!$D$58:$Q$67,$Q$2,FALSE))*31),"") ->  | Y36: =IFERROR(((HLOOKUP(IF(ROUNDUP(((Y$8-$C36)*12/365),FALSE)>0,ROUNDUP(((Y$8-$C36)*12/365),FALSE),(ROUNDUP(((Y$8-$C36)*12/365),FALSE)+12)),CVMS!$D$58:$Q$67,$Q$2,FALSE))*30),"") ->  | Z36: =IFERROR(((HLOOKUP(IF(ROUNDUP(((Z$8-$C36)*12/365),FALSE)>0,ROUNDUP(((Z$8-$C36)*12/365),FALSE),(ROUNDUP(((Z$8-$C36)*12/365),FALSE)+12)),CVMS!$D$58:$Q$67,$Q$2,FALSE))*31),"") ->  | AA36: =IFERROR(((HLOOKUP(IF(ROUNDUP(((AA$8-$C36)*12/365),FALSE)>0,ROUNDUP(((AA$8-$C36)*12/365),FALSE),(ROUNDUP(((AA$8-$C36)*12/365),FALSE)+12)),CVMS!$D$58:$Q$67,$Q$2,FALSE))*31),"") ->  | AB36: =IFERROR(((HLOOKUP(IF(ROUNDUP(((AB$8-$C36)*12/365),FALSE)>0,ROUNDUP(((AB$8-$C36)*12/365),FALSE),(ROUNDUP(((AB$8-$C36)*12/365),FALSE)+12)),CVMS!$D$58:$Q$67,$Q$2,FALSE))*30),"") ->  | AC36: =IFERROR(((HLOOKUP(IF(ROUNDUP(((AC$8-$C36)*12/365),FALSE)>0,ROUNDUP(((AC$8-$C36)*12/365),FALSE),(ROUNDUP(((AC$8-$C36)*12/365),FALSE)+12)),CVMS!$D$58:$Q$67,$Q$2,FALSE))*31),"") ->  | AD36: =IFERROR(((HLOOKUP(IF(ROUNDUP(((AD$8-$C36)*12/365),FALSE)>0,ROUNDUP(((AD$8-$C36)*12/365),FALSE),(ROUNDUP(((AD$8-$C36)*12/365),FALSE)+12)),CVMS!$D$58:$Q$67,$Q$2,FALSE))*30),"") ->  | AE36: =IFERROR(((HLOOKUP(IF(ROUNDUP(((AE$8-$C36)*12/365),FALSE)>0,ROUNDUP(((AE$8-$C36)*12/365),FALSE),(ROUNDUP(((AE$8-$C36)*12/365),FALSE)+12)),CVMS!$D$58:$Q$67,$Q$2,FALSE))*31),"") -> 
E37: =IFERROR((IF($C37="","",(HLOOKUP(ROUNDUP((IF(((E$8-$C37)/30.4)>0,((E$8-$C37)/30.4),12+((E$8-$C37)/30.4))),0),CVMS!$D$19:$P$28,'Calcul CVMS VV'!$Q$2,FALSE))))/100*$D$2,"") ->  | F37: =IFERROR((IF($C37="","",(HLOOKUP(ROUNDUP((IF(((F$8-$C37)/30.4)>0,((F$8-$C37)/30.4),12+((F$8-$C37)/30.4))),0),CVMS!$D$19:$P$28,'Calcul CVMS VV'!$Q$2,FALSE))))/100*$D$2,"") ->  | G37: =IFERROR((IF($C37="","",(HLOOKUP(ROUNDUP((IF(((G$8-$C37)/30.4)>0,((G$8-$C37)/30.4),12+((G$8-$C37)/30.4))),0),CVMS!$D$19:$P$28,'Calcul CVMS VV'!$Q$2,FALSE))))/100*$D$2,"") ->  | H37: =IFERROR((IF($C37="","",(HLOOKUP(ROUNDUP((IF(((H$8-$C37)/30.4)>0,((H$8-$C37)/30.4),12+((H$8-$C37)/30.4))),0),CVMS!$D$19:$P$28,'Calcul CVMS VV'!$Q$2,FALSE))))/100*$D$2,"") ->  | I37: =IFERROR((IF($C37="","",(HLOOKUP(ROUNDUP((IF(((I$8-$C37)/30.4)>0,((I$8-$C37)/30.4),12+((I$8-$C37)/30.4))),0),CVMS!$D$19:$P$28,'Calcul CVMS VV'!$Q$2,FALSE))))/100*$D$2,"") ->  | J37: =IFERROR((IF($C37="","",(HLOOKUP(ROUNDUP((IF(((J$8-$C37)/30.4)>0,((J$8-$C37)/30.4),12+((J$8-$C37)/30.4))),0),CVMS!$D$19:$P$28,'Calcul CVMS VV'!$Q$2,FALSE))))/100*$D$2,"") ->  | K37: =IFERROR((IF($C37="","",(HLOOKUP(ROUNDUP((IF(((K$8-$C37)/30.4)>0,((K$8-$C37)/30.4),12+((K$8-$C37)/30.4))),0),CVMS!$D$19:$P$28,'Calcul CVMS VV'!$Q$2,FALSE))))/100*$D$2,"") ->  | L37: =IFERROR((IF($C37="","",(HLOOKUP(ROUNDUP((IF(((L$8-$C37)/30.4)>0,((L$8-$C37)/30.4),12+((L$8-$C37)/30.4))),0),CVMS!$D$19:$P$28,'Calcul CVMS VV'!$Q$2,FALSE))))/100*$D$2,"") ->  | M37: =IFERROR((IF($C37="","",(HLOOKUP(ROUNDUP((IF(((M$8-$C37)/30.4)>0,((M$8-$C37)/30.4),12+((M$8-$C37)/30.4))),0),CVMS!$D$19:$P$28,'Calcul CVMS VV'!$Q$2,FALSE))))/100*$D$2,"") ->  | N37: =IFERROR((IF($C37="","",(HLOOKUP(ROUNDUP((IF(((N$8-$C37)/30.4)>0,((N$8-$C37)/30.4),12+((N$8-$C37)/30.4))),0),CVMS!$D$19:$P$28,'Calcul CVMS VV'!$Q$2,FALSE))))/100*$D$2,"") ->  | O37: =IFERROR((IF($C37="","",(HLOOKUP(ROUNDUP((IF(((O$8-$C37)/30.4)>0,((O$8-$C37)/30.4),12+((O$8-$C37)/30.4))),0),CVMS!$D$19:$P$28,'Calcul CVMS VV'!$Q$2,FALSE))))/100*$D$2,"") ->  | P37: =IFERROR((IF($C37="","",(HLOOKUP(ROUNDUP((IF(((P$8-$C37)/30.4)>0,((P$8-$C37)/30.4),12+((P$8-$C37)/30.4))),0),CVMS!$D$19:$P$28,'Calcul CVMS VV'!$Q$2,FALSE))))/100*$D$2,"") ->  | T37: =IFERROR(((HLOOKUP(IF(ROUNDUP(((T$8-$C37)*12/365),FALSE)>0,ROUNDUP(((T$8-$C37)*12/365),FALSE),(ROUNDUP(((T$8-$C37)*12/365),FALSE)+12)),CVMS!$D$58:$Q$67,$Q$2,FALSE))*31),"") ->  | U37: =IFERROR(((HLOOKUP(IF(ROUNDUP(((U$8-$C37)*12/365),FALSE)>0,ROUNDUP(((U$8-$C37)*12/365),FALSE),(ROUNDUP(((U$8-$C37)*12/365),FALSE)+12)),CVMS!$D$58:$Q$67,$Q$2,FALSE))*28),"") ->  | V37: =IFERROR(((HLOOKUP(IF(ROUNDUP(((V$8-$C37)*12/365),FALSE)>0,ROUNDUP(((V$8-$C37)*12/365),FALSE),(ROUNDUP(((V$8-$C37)*12/365),FALSE)+12)),CVMS!$D$58:$Q$67,$Q$2,FALSE))*31),"") ->  | W37: =IFERROR(((HLOOKUP(IF(ROUNDUP(((W$8-$C37)*12/365),FALSE)>0,ROUNDUP(((W$8-$C37)*12/365),FALSE),(ROUNDUP(((W$8-$C37)*12/365),FALSE)+12)),CVMS!$D$58:$Q$67,$Q$2,FALSE))*30),"") ->  | X37: =IFERROR(((HLOOKUP(IF(ROUNDUP(((X$8-$C37)*12/365),FALSE)>0,ROUNDUP(((X$8-$C37)*12/365),FALSE),(ROUNDUP(((X$8-$C37)*12/365),FALSE)+12)),CVMS!$D$58:$Q$67,$Q$2,FALSE))*31),"") ->  | Y37: =IFERROR(((HLOOKUP(IF(ROUNDUP(((Y$8-$C37)*12/365),FALSE)>0,ROUNDUP(((Y$8-$C37)*12/365),FALSE),(ROUNDUP(((Y$8-$C37)*12/365),FALSE)+12)),CVMS!$D$58:$Q$67,$Q$2,FALSE))*30),"") ->  | Z37: =IFERROR(((HLOOKUP(IF(ROUNDUP(((Z$8-$C37)*12/365),FALSE)>0,ROUNDUP(((Z$8-$C37)*12/365),FALSE),(ROUNDUP(((Z$8-$C37)*12/365),FALSE)+12)),CVMS!$D$58:$Q$67,$Q$2,FALSE))*31),"") ->  | AA37: =IFERROR(((HLOOKUP(IF(ROUNDUP(((AA$8-$C37)*12/365),FALSE)>0,ROUNDUP(((AA$8-$C37)*12/365),FALSE),(ROUNDUP(((AA$8-$C37)*12/365),FALSE)+12)),CVMS!$D$58:$Q$67,$Q$2,FALSE))*31),"") ->  | AB37: =IFERROR(((HLOOKUP(IF(ROUNDUP(((AB$8-$C37)*12/365),FALSE)>0,ROUNDUP(((AB$8-$C37)*12/365),FALSE),(ROUNDUP(((AB$8-$C37)*12/365),FALSE)+12)),CVMS!$D$58:$Q$67,$Q$2,FALSE))*30),"") ->  | AC37: =IFERROR(((HLOOKUP(IF(ROUNDUP(((AC$8-$C37)*12/365),FALSE)>0,ROUNDUP(((AC$8-$C37)*12/365),FALSE),(ROUNDUP(((AC$8-$C37)*12/365),FALSE)+12)),CVMS!$D$58:$Q$67,$Q$2,FALSE))*31),"") ->  | AD37: =IFERROR(((HLOOKUP(IF(ROUNDUP(((AD$8-$C37)*12/365),FALSE)>0,ROUNDUP(((AD$8-$C37)*12/365),FALSE),(ROUNDUP(((AD$8-$C37)*12/365),FALSE)+12)),CVMS!$D$58:$Q$67,$Q$2,FALSE))*30),"") ->  | AE37: =IFERROR(((HLOOKUP(IF(ROUNDUP(((AE$8-$C37)*12/365),FALSE)>0,ROUNDUP(((AE$8-$C37)*12/365),FALSE),(ROUNDUP(((AE$8-$C37)*12/365),FALSE)+12)),CVMS!$D$58:$Q$67,$Q$2,FALSE))*31),"") -> 
E38: =IFERROR((IF($C38="","",(HLOOKUP(ROUNDUP((IF(((E$8-$C38)/30.4)>0,((E$8-$C38)/30.4),12+((E$8-$C38)/30.4))),0),CVMS!$D$19:$P$28,'Calcul CVMS VV'!$Q$2,FALSE))))/100*$D$2,"") ->  | F38: =IFERROR((IF($C38="","",(HLOOKUP(ROUNDUP((IF(((F$8-$C38)/30.4)>0,((F$8-$C38)/30.4),12+((F$8-$C38)/30.4))),0),CVMS!$D$19:$P$28,'Calcul CVMS VV'!$Q$2,FALSE))))/100*$D$2,"") ->  | G38: =IFERROR((IF($C38="","",(HLOOKUP(ROUNDUP((IF(((G$8-$C38)/30.4)>0,((G$8-$C38)/30.4),12+((G$8-$C38)/30.4))),0),CVMS!$D$19:$P$28,'Calcul CVMS VV'!$Q$2,FALSE))))/100*$D$2,"") ->  | H38: =IFERROR((IF($C38="","",(HLOOKUP(ROUNDUP((IF(((H$8-$C38)/30.4)>0,((H$8-$C38)/30.4),12+((H$8-$C38)/30.4))),0),CVMS!$D$19:$P$28,'Calcul CVMS VV'!$Q$2,FALSE))))/100*$D$2,"") ->  | I38: =IFERROR((IF($C38="","",(HLOOKUP(ROUNDUP((IF(((I$8-$C38)/30.4)>0,((I$8-$C38)/30.4),12+((I$8-$C38)/30.4))),0),CVMS!$D$19:$P$28,'Calcul CVMS VV'!$Q$2,FALSE))))/100*$D$2,"") ->  | J38: =IFERROR((IF($C38="","",(HLOOKUP(ROUNDUP((IF(((J$8-$C38)/30.4)>0,((J$8-$C38)/30.4),12+((J$8-$C38)/30.4))),0),CVMS!$D$19:$P$28,'Calcul CVMS VV'!$Q$2,FALSE))))/100*$D$2,"") ->  | K38: =IFERROR((IF($C38="","",(HLOOKUP(ROUNDUP((IF(((K$8-$C38)/30.4)>0,((K$8-$C38)/30.4),12+((K$8-$C38)/30.4))),0),CVMS!$D$19:$P$28,'Calcul CVMS VV'!$Q$2,FALSE))))/100*$D$2,"") ->  | L38: =IFERROR((IF($C38="","",(HLOOKUP(ROUNDUP((IF(((L$8-$C38)/30.4)>0,((L$8-$C38)/30.4),12+((L$8-$C38)/30.4))),0),CVMS!$D$19:$P$28,'Calcul CVMS VV'!$Q$2,FALSE))))/100*$D$2,"") ->  | M38: =IFERROR((IF($C38="","",(HLOOKUP(ROUNDUP((IF(((M$8-$C38)/30.4)>0,((M$8-$C38)/30.4),12+((M$8-$C38)/30.4))),0),CVMS!$D$19:$P$28,'Calcul CVMS VV'!$Q$2,FALSE))))/100*$D$2,"") ->  | N38: =IFERROR((IF($C38="","",(HLOOKUP(ROUNDUP((IF(((N$8-$C38)/30.4)>0,((N$8-$C38)/30.4),12+((N$8-$C38)/30.4))),0),CVMS!$D$19:$P$28,'Calcul CVMS VV'!$Q$2,FALSE))))/100*$D$2,"") ->  | O38: =IFERROR((IF($C38="","",(HLOOKUP(ROUNDUP((IF(((O$8-$C38)/30.4)>0,((O$8-$C38)/30.4),12+((O$8-$C38)/30.4))),0),CVMS!$D$19:$P$28,'Calcul CVMS VV'!$Q$2,FALSE))))/100*$D$2,"") ->  | P38: =IFERROR((IF($C38="","",(HLOOKUP(ROUNDUP((IF(((P$8-$C38)/30.4)>0,((P$8-$C38)/30.4),12+((P$8-$C38)/30.4))),0),CVMS!$D$19:$P$28,'Calcul CVMS VV'!$Q$2,FALSE))))/100*$D$2,"") ->  | T38: =IFERROR(((HLOOKUP(IF(ROUNDUP(((T$8-$C38)*12/365),FALSE)>0,ROUNDUP(((T$8-$C38)*12/365),FALSE),(ROUNDUP(((T$8-$C38)*12/365),FALSE)+12)),CVMS!$D$58:$Q$67,$Q$2,FALSE))*31),"") ->  | U38: =IFERROR(((HLOOKUP(IF(ROUNDUP(((U$8-$C38)*12/365),FALSE)>0,ROUNDUP(((U$8-$C38)*12/365),FALSE),(ROUNDUP(((U$8-$C38)*12/365),FALSE)+12)),CVMS!$D$58:$Q$67,$Q$2,FALSE))*28),"") ->  | V38: =IFERROR(((HLOOKUP(IF(ROUNDUP(((V$8-$C38)*12/365),FALSE)>0,ROUNDUP(((V$8-$C38)*12/365),FALSE),(ROUNDUP(((V$8-$C38)*12/365),FALSE)+12)),CVMS!$D$58:$Q$67,$Q$2,FALSE))*31),"") ->  | W38: =IFERROR(((HLOOKUP(IF(ROUNDUP(((W$8-$C38)*12/365),FALSE)>0,ROUNDUP(((W$8-$C38)*12/365),FALSE),(ROUNDUP(((W$8-$C38)*12/365),FALSE)+12)),CVMS!$D$58:$Q$67,$Q$2,FALSE))*30),"") ->  | X38: =IFERROR(((HLOOKUP(IF(ROUNDUP(((X$8-$C38)*12/365),FALSE)>0,ROUNDUP(((X$8-$C38)*12/365),FALSE),(ROUNDUP(((X$8-$C38)*12/365),FALSE)+12)),CVMS!$D$58:$Q$67,$Q$2,FALSE))*31),"") ->  | Y38: =IFERROR(((HLOOKUP(IF(ROUNDUP(((Y$8-$C38)*12/365),FALSE)>0,ROUNDUP(((Y$8-$C38)*12/365),FALSE),(ROUNDUP(((Y$8-$C38)*12/365),FALSE)+12)),CVMS!$D$58:$Q$67,$Q$2,FALSE))*30),"") ->  | Z38: =IFERROR(((HLOOKUP(IF(ROUNDUP(((Z$8-$C38)*12/365),FALSE)>0,ROUNDUP(((Z$8-$C38)*12/365),FALSE),(ROUNDUP(((Z$8-$C38)*12/365),FALSE)+12)),CVMS!$D$58:$Q$67,$Q$2,FALSE))*31),"") ->  | AA38: =IFERROR(((HLOOKUP(IF(ROUNDUP(((AA$8-$C38)*12/365),FALSE)>0,ROUNDUP(((AA$8-$C38)*12/365),FALSE),(ROUNDUP(((AA$8-$C38)*12/365),FALSE)+12)),CVMS!$D$58:$Q$67,$Q$2,FALSE))*31),"") ->  | AB38: =IFERROR(((HLOOKUP(IF(ROUNDUP(((AB$8-$C38)*12/365),FALSE)>0,ROUNDUP(((AB$8-$C38)*12/365),FALSE),(ROUNDUP(((AB$8-$C38)*12/365),FALSE)+12)),CVMS!$D$58:$Q$67,$Q$2,FALSE))*30),"") ->  | AC38: =IFERROR(((HLOOKUP(IF(ROUNDUP(((AC$8-$C38)*12/365),FALSE)>0,ROUNDUP(((AC$8-$C38)*12/365),FALSE),(ROUNDUP(((AC$8-$C38)*12/365),FALSE)+12)),CVMS!$D$58:$Q$67,$Q$2,FALSE))*31),"") ->  | AD38: =IFERROR(((HLOOKUP(IF(ROUNDUP(((AD$8-$C38)*12/365),FALSE)>0,ROUNDUP(((AD$8-$C38)*12/365),FALSE),(ROUNDUP(((AD$8-$C38)*12/365),FALSE)+12)),CVMS!$D$58:$Q$67,$Q$2,FALSE))*30),"") ->  | AE38: =IFERROR(((HLOOKUP(IF(ROUNDUP(((AE$8-$C38)*12/365),FALSE)>0,ROUNDUP(((AE$8-$C38)*12/365),FALSE),(ROUNDUP(((AE$8-$C38)*12/365),FALSE)+12)),CVMS!$D$58:$Q$67,$Q$2,FALSE))*31),"") -> 
E39: =IFERROR((IF($C39="","",(HLOOKUP(ROUNDUP((IF(((E$8-$C39)/30.4)>0,((E$8-$C39)/30.4),12+((E$8-$C39)/30.4))),0),CVMS!$D$19:$P$28,'Calcul CVMS VV'!$Q$2,FALSE))))/100*$D$2,"") ->  | F39: =IFERROR((IF($C39="","",(HLOOKUP(ROUNDUP((IF(((F$8-$C39)/30.4)>0,((F$8-$C39)/30.4),12+((F$8-$C39)/30.4))),0),CVMS!$D$19:$P$28,'Calcul CVMS VV'!$Q$2,FALSE))))/100*$D$2,"") ->  | G39: =IFERROR((IF($C39="","",(HLOOKUP(ROUNDUP((IF(((G$8-$C39)/30.4)>0,((G$8-$C39)/30.4),12+((G$8-$C39)/30.4))),0),CVMS!$D$19:$P$28,'Calcul CVMS VV'!$Q$2,FALSE))))/100*$D$2,"") ->  | H39: =IFERROR((IF($C39="","",(HLOOKUP(ROUNDUP((IF(((H$8-$C39)/30.4)>0,((H$8-$C39)/30.4),12+((H$8-$C39)/30.4))),0),CVMS!$D$19:$P$28,'Calcul CVMS VV'!$Q$2,FALSE))))/100*$D$2,"") ->  | I39: =IFERROR((IF($C39="","",(HLOOKUP(ROUNDUP((IF(((I$8-$C39)/30.4)>0,((I$8-$C39)/30.4),12+((I$8-$C39)/30.4))),0),CVMS!$D$19:$P$28,'Calcul CVMS VV'!$Q$2,FALSE))))/100*$D$2,"") ->  | J39: =IFERROR((IF($C39="","",(HLOOKUP(ROUNDUP((IF(((J$8-$C39)/30.4)>0,((J$8-$C39)/30.4),12+((J$8-$C39)/30.4))),0),CVMS!$D$19:$P$28,'Calcul CVMS VV'!$Q$2,FALSE))))/100*$D$2,"") ->  | K39: =IFERROR((IF($C39="","",(HLOOKUP(ROUNDUP((IF(((K$8-$C39)/30.4)>0,((K$8-$C39)/30.4),12+((K$8-$C39)/30.4))),0),CVMS!$D$19:$P$28,'Calcul CVMS VV'!$Q$2,FALSE))))/100*$D$2,"") ->  | L39: =IFERROR((IF($C39="","",(HLOOKUP(ROUNDUP((IF(((L$8-$C39)/30.4)>0,((L$8-$C39)/30.4),12+((L$8-$C39)/30.4))),0),CVMS!$D$19:$P$28,'Calcul CVMS VV'!$Q$2,FALSE))))/100*$D$2,"") ->  | M39: =IFERROR((IF($C39="","",(HLOOKUP(ROUNDUP((IF(((M$8-$C39)/30.4)>0,((M$8-$C39)/30.4),12+((M$8-$C39)/30.4))),0),CVMS!$D$19:$P$28,'Calcul CVMS VV'!$Q$2,FALSE))))/100*$D$2,"") ->  | N39: =IFERROR((IF($C39="","",(HLOOKUP(ROUNDUP((IF(((N$8-$C39)/30.4)>0,((N$8-$C39)/30.4),12+((N$8-$C39)/30.4))),0),CVMS!$D$19:$P$28,'Calcul CVMS VV'!$Q$2,FALSE))))/100*$D$2,"") ->  | O39: =IFERROR((IF($C39="","",(HLOOKUP(ROUNDUP((IF(((O$8-$C39)/30.4)>0,((O$8-$C39)/30.4),12+((O$8-$C39)/30.4))),0),CVMS!$D$19:$P$28,'Calcul CVMS VV'!$Q$2,FALSE))))/100*$D$2,"") ->  | P39: =IFERROR((IF($C39="","",(HLOOKUP(ROUNDUP((IF(((P$8-$C39)/30.4)>0,((P$8-$C39)/30.4),12+((P$8-$C39)/30.4))),0),CVMS!$D$19:$P$28,'Calcul CVMS VV'!$Q$2,FALSE))))/100*$D$2,"") ->  | T39: =IFERROR(((HLOOKUP(IF(ROUNDUP(((T$8-$C39)*12/365),FALSE)>0,ROUNDUP(((T$8-$C39)*12/365),FALSE),(ROUNDUP(((T$8-$C39)*12/365),FALSE)+12)),CVMS!$D$58:$Q$67,$Q$2,FALSE))*31),"") ->  | U39: =IFERROR(((HLOOKUP(IF(ROUNDUP(((U$8-$C39)*12/365),FALSE)>0,ROUNDUP(((U$8-$C39)*12/365),FALSE),(ROUNDUP(((U$8-$C39)*12/365),FALSE)+12)),CVMS!$D$58:$Q$67,$Q$2,FALSE))*28),"") ->  | V39: =IFERROR(((HLOOKUP(IF(ROUNDUP(((V$8-$C39)*12/365),FALSE)>0,ROUNDUP(((V$8-$C39)*12/365),FALSE),(ROUNDUP(((V$8-$C39)*12/365),FALSE)+12)),CVMS!$D$58:$Q$67,$Q$2,FALSE))*31),"") ->  | W39: =IFERROR(((HLOOKUP(IF(ROUNDUP(((W$8-$C39)*12/365),FALSE)>0,ROUNDUP(((W$8-$C39)*12/365),FALSE),(ROUNDUP(((W$8-$C39)*12/365),FALSE)+12)),CVMS!$D$58:$Q$67,$Q$2,FALSE))*30),"") ->  | X39: =IFERROR(((HLOOKUP(IF(ROUNDUP(((X$8-$C39)*12/365),FALSE)>0,ROUNDUP(((X$8-$C39)*12/365),FALSE),(ROUNDUP(((X$8-$C39)*12/365),FALSE)+12)),CVMS!$D$58:$Q$67,$Q$2,FALSE))*31),"") ->  | Y39: =IFERROR(((HLOOKUP(IF(ROUNDUP(((Y$8-$C39)*12/365),FALSE)>0,ROUNDUP(((Y$8-$C39)*12/365),FALSE),(ROUNDUP(((Y$8-$C39)*12/365),FALSE)+12)),CVMS!$D$58:$Q$67,$Q$2,FALSE))*30),"") ->  | Z39: =IFERROR(((HLOOKUP(IF(ROUNDUP(((Z$8-$C39)*12/365),FALSE)>0,ROUNDUP(((Z$8-$C39)*12/365),FALSE),(ROUNDUP(((Z$8-$C39)*12/365),FALSE)+12)),CVMS!$D$58:$Q$67,$Q$2,FALSE))*31),"") ->  | AA39: =IFERROR(((HLOOKUP(IF(ROUNDUP(((AA$8-$C39)*12/365),FALSE)>0,ROUNDUP(((AA$8-$C39)*12/365),FALSE),(ROUNDUP(((AA$8-$C39)*12/365),FALSE)+12)),CVMS!$D$58:$Q$67,$Q$2,FALSE))*31),"") ->  | AB39: =IFERROR(((HLOOKUP(IF(ROUNDUP(((AB$8-$C39)*12/365),FALSE)>0,ROUNDUP(((AB$8-$C39)*12/365),FALSE),(ROUNDUP(((AB$8-$C39)*12/365),FALSE)+12)),CVMS!$D$58:$Q$67,$Q$2,FALSE))*30),"") ->  | AC39: =IFERROR(((HLOOKUP(IF(ROUNDUP(((AC$8-$C39)*12/365),FALSE)>0,ROUNDUP(((AC$8-$C39)*12/365),FALSE),(ROUNDUP(((AC$8-$C39)*12/365),FALSE)+12)),CVMS!$D$58:$Q$67,$Q$2,FALSE))*31),"") ->  | AD39: =IFERROR(((HLOOKUP(IF(ROUNDUP(((AD$8-$C39)*12/365),FALSE)>0,ROUNDUP(((AD$8-$C39)*12/365),FALSE),(ROUNDUP(((AD$8-$C39)*12/365),FALSE)+12)),CVMS!$D$58:$Q$67,$Q$2,FALSE))*30),"") ->  | AE39: =IFERROR(((HLOOKUP(IF(ROUNDUP(((AE$8-$C39)*12/365),FALSE)>0,ROUNDUP(((AE$8-$C39)*12/365),FALSE),(ROUNDUP(((AE$8-$C39)*12/365),FALSE)+12)),CVMS!$D$58:$Q$67,$Q$2,FALSE))*31),"") -> 
E40: =IFERROR((IF($C40="","",(HLOOKUP(ROUNDUP((IF(((E$8-$C40)/30.4)>0,((E$8-$C40)/30.4),12+((E$8-$C40)/30.4))),0),CVMS!$D$19:$P$28,'Calcul CVMS VV'!$Q$2,FALSE))))/100*$D$2,"") ->  | F40: =IFERROR((IF($C40="","",(HLOOKUP(ROUNDUP((IF(((F$8-$C40)/30.4)>0,((F$8-$C40)/30.4),12+((F$8-$C40)/30.4))),0),CVMS!$D$19:$P$28,'Calcul CVMS VV'!$Q$2,FALSE))))/100*$D$2,"") ->  | G40: =IFERROR((IF($C40="","",(HLOOKUP(ROUNDUP((IF(((G$8-$C40)/30.4)>0,((G$8-$C40)/30.4),12+((G$8-$C40)/30.4))),0),CVMS!$D$19:$P$28,'Calcul CVMS VV'!$Q$2,FALSE))))/100*$D$2,"") ->  | H40: =IFERROR((IF($C40="","",(HLOOKUP(ROUNDUP((IF(((H$8-$C40)/30.4)>0,((H$8-$C40)/30.4),12+((H$8-$C40)/30.4))),0),CVMS!$D$19:$P$28,'Calcul CVMS VV'!$Q$2,FALSE))))/100*$D$2,"") ->  | I40: =IFERROR((IF($C40="","",(HLOOKUP(ROUNDUP((IF(((I$8-$C40)/30.4)>0,((I$8-$C40)/30.4),12+((I$8-$C40)/30.4))),0),CVMS!$D$19:$P$28,'Calcul CVMS VV'!$Q$2,FALSE))))/100*$D$2,"") ->  | J40: =IFERROR((IF($C40="","",(HLOOKUP(ROUNDUP((IF(((J$8-$C40)/30.4)>0,((J$8-$C40)/30.4),12+((J$8-$C40)/30.4))),0),CVMS!$D$19:$P$28,'Calcul CVMS VV'!$Q$2,FALSE))))/100*$D$2,"") ->  | K40: =IFERROR((IF($C40="","",(HLOOKUP(ROUNDUP((IF(((K$8-$C40)/30.4)>0,((K$8-$C40)/30.4),12+((K$8-$C40)/30.4))),0),CVMS!$D$19:$P$28,'Calcul CVMS VV'!$Q$2,FALSE))))/100*$D$2,"") ->  | L40: =IFERROR((IF($C40="","",(HLOOKUP(ROUNDUP((IF(((L$8-$C40)/30.4)>0,((L$8-$C40)/30.4),12+((L$8-$C40)/30.4))),0),CVMS!$D$19:$P$28,'Calcul CVMS VV'!$Q$2,FALSE))))/100*$D$2,"") ->  | M40: =IFERROR((IF($C40="","",(HLOOKUP(ROUNDUP((IF(((M$8-$C40)/30.4)>0,((M$8-$C40)/30.4),12+((M$8-$C40)/30.4))),0),CVMS!$D$19:$P$28,'Calcul CVMS VV'!$Q$2,FALSE))))/100*$D$2,"") ->  | N40: =IFERROR((IF($C40="","",(HLOOKUP(ROUNDUP((IF(((N$8-$C40)/30.4)>0,((N$8-$C40)/30.4),12+((N$8-$C40)/30.4))),0),CVMS!$D$19:$P$28,'Calcul CVMS VV'!$Q$2,FALSE))))/100*$D$2,"") ->  | O40: =IFERROR((IF($C40="","",(HLOOKUP(ROUNDUP((IF(((O$8-$C40)/30.4)>0,((O$8-$C40)/30.4),12+((O$8-$C40)/30.4))),0),CVMS!$D$19:$P$28,'Calcul CVMS VV'!$Q$2,FALSE))))/100*$D$2,"") ->  | P40: =IFERROR((IF($C40="","",(HLOOKUP(ROUNDUP((IF(((P$8-$C40)/30.4)>0,((P$8-$C40)/30.4),12+((P$8-$C40)/30.4))),0),CVMS!$D$19:$P$28,'Calcul CVMS VV'!$Q$2,FALSE))))/100*$D$2,"") ->  | T40: =IFERROR(((HLOOKUP(IF(ROUNDUP(((T$8-$C40)*12/365),FALSE)>0,ROUNDUP(((T$8-$C40)*12/365),FALSE),(ROUNDUP(((T$8-$C40)*12/365),FALSE)+12)),CVMS!$D$58:$Q$67,$Q$2,FALSE))*31),"") ->  | U40: =IFERROR(((HLOOKUP(IF(ROUNDUP(((U$8-$C40)*12/365),FALSE)>0,ROUNDUP(((U$8-$C40)*12/365),FALSE),(ROUNDUP(((U$8-$C40)*12/365),FALSE)+12)),CVMS!$D$58:$Q$67,$Q$2,FALSE))*28),"") ->  | V40: =IFERROR(((HLOOKUP(IF(ROUNDUP(((V$8-$C40)*12/365),FALSE)>0,ROUNDUP(((V$8-$C40)*12/365),FALSE),(ROUNDUP(((V$8-$C40)*12/365),FALSE)+12)),CVMS!$D$58:$Q$67,$Q$2,FALSE))*31),"") ->  | W40: =IFERROR(((HLOOKUP(IF(ROUNDUP(((W$8-$C40)*12/365),FALSE)>0,ROUNDUP(((W$8-$C40)*12/365),FALSE),(ROUNDUP(((W$8-$C40)*12/365),FALSE)+12)),CVMS!$D$58:$Q$67,$Q$2,FALSE))*30),"") ->  | X40: =IFERROR(((HLOOKUP(IF(ROUNDUP(((X$8-$C40)*12/365),FALSE)>0,ROUNDUP(((X$8-$C40)*12/365),FALSE),(ROUNDUP(((X$8-$C40)*12/365),FALSE)+12)),CVMS!$D$58:$Q$67,$Q$2,FALSE))*31),"") ->  | Y40: =IFERROR(((HLOOKUP(IF(ROUNDUP(((Y$8-$C40)*12/365),FALSE)>0,ROUNDUP(((Y$8-$C40)*12/365),FALSE),(ROUNDUP(((Y$8-$C40)*12/365),FALSE)+12)),CVMS!$D$58:$Q$67,$Q$2,FALSE))*30),"") ->  | Z40: =IFERROR(((HLOOKUP(IF(ROUNDUP(((Z$8-$C40)*12/365),FALSE)>0,ROUNDUP(((Z$8-$C40)*12/365),FALSE),(ROUNDUP(((Z$8-$C40)*12/365),FALSE)+12)),CVMS!$D$58:$Q$67,$Q$2,FALSE))*31),"") ->  | AA40: =IFERROR(((HLOOKUP(IF(ROUNDUP(((AA$8-$C40)*12/365),FALSE)>0,ROUNDUP(((AA$8-$C40)*12/365),FALSE),(ROUNDUP(((AA$8-$C40)*12/365),FALSE)+12)),CVMS!$D$58:$Q$67,$Q$2,FALSE))*31),"") ->  | AB40: =IFERROR(((HLOOKUP(IF(ROUNDUP(((AB$8-$C40)*12/365),FALSE)>0,ROUNDUP(((AB$8-$C40)*12/365),FALSE),(ROUNDUP(((AB$8-$C40)*12/365),FALSE)+12)),CVMS!$D$58:$Q$67,$Q$2,FALSE))*30),"") ->  | AC40: =IFERROR(((HLOOKUP(IF(ROUNDUP(((AC$8-$C40)*12/365),FALSE)>0,ROUNDUP(((AC$8-$C40)*12/365),FALSE),(ROUNDUP(((AC$8-$C40)*12/365),FALSE)+12)),CVMS!$D$58:$Q$67,$Q$2,FALSE))*31),"") ->  | AD40: =IFERROR(((HLOOKUP(IF(ROUNDUP(((AD$8-$C40)*12/365),FALSE)>0,ROUNDUP(((AD$8-$C40)*12/365),FALSE),(ROUNDUP(((AD$8-$C40)*12/365),FALSE)+12)),CVMS!$D$58:$Q$67,$Q$2,FALSE))*30),"") ->  | AE40: =IFERROR(((HLOOKUP(IF(ROUNDUP(((AE$8-$C40)*12/365),FALSE)>0,ROUNDUP(((AE$8-$C40)*12/365),FALSE),(ROUNDUP(((AE$8-$C40)*12/365),FALSE)+12)),CVMS!$D$58:$Q$67,$Q$2,FALSE))*31),"") -> 
E41: =IFERROR((IF($C41="","",(HLOOKUP(ROUNDUP((IF(((E$8-$C41)/30.4)>0,((E$8-$C41)/30.4),12+((E$8-$C41)/30.4))),0),CVMS!$D$19:$P$28,'Calcul CVMS VV'!$Q$2,FALSE))))/100*$D$2,"") ->  | F41: =IFERROR((IF($C41="","",(HLOOKUP(ROUNDUP((IF(((F$8-$C41)/30.4)>0,((F$8-$C41)/30.4),12+((F$8-$C41)/30.4))),0),CVMS!$D$19:$P$28,'Calcul CVMS VV'!$Q$2,FALSE))))/100*$D$2,"") ->  | G41: =IFERROR((IF($C41="","",(HLOOKUP(ROUNDUP((IF(((G$8-$C41)/30.4)>0,((G$8-$C41)/30.4),12+((G$8-$C41)/30.4))),0),CVMS!$D$19:$P$28,'Calcul CVMS VV'!$Q$2,FALSE))))/100*$D$2,"") ->  | H41: =IFERROR((IF($C41="","",(HLOOKUP(ROUNDUP((IF(((H$8-$C41)/30.4)>0,((H$8-$C41)/30.4),12+((H$8-$C41)/30.4))),0),CVMS!$D$19:$P$28,'Calcul CVMS VV'!$Q$2,FALSE))))/100*$D$2,"") ->  | I41: =IFERROR((IF($C41="","",(HLOOKUP(ROUNDUP((IF(((I$8-$C41)/30.4)>0,((I$8-$C41)/30.4),12+((I$8-$C41)/30.4))),0),CVMS!$D$19:$P$28,'Calcul CVMS VV'!$Q$2,FALSE))))/100*$D$2,"") ->  | J41: =IFERROR((IF($C41="","",(HLOOKUP(ROUNDUP((IF(((J$8-$C41)/30.4)>0,((J$8-$C41)/30.4),12+((J$8-$C41)/30.4))),0),CVMS!$D$19:$P$28,'Calcul CVMS VV'!$Q$2,FALSE))))/100*$D$2,"") ->  | K41: =IFERROR((IF($C41="","",(HLOOKUP(ROUNDUP((IF(((K$8-$C41)/30.4)>0,((K$8-$C41)/30.4),12+((K$8-$C41)/30.4))),0),CVMS!$D$19:$P$28,'Calcul CVMS VV'!$Q$2,FALSE))))/100*$D$2,"") ->  | L41: =IFERROR((IF($C41="","",(HLOOKUP(ROUNDUP((IF(((L$8-$C41)/30.4)>0,((L$8-$C41)/30.4),12+((L$8-$C41)/30.4))),0),CVMS!$D$19:$P$28,'Calcul CVMS VV'!$Q$2,FALSE))))/100*$D$2,"") ->  | M41: =IFERROR((IF($C41="","",(HLOOKUP(ROUNDUP((IF(((M$8-$C41)/30.4)>0,((M$8-$C41)/30.4),12+((M$8-$C41)/30.4))),0),CVMS!$D$19:$P$28,'Calcul CVMS VV'!$Q$2,FALSE))))/100*$D$2,"") ->  | N41: =IFERROR((IF($C41="","",(HLOOKUP(ROUNDUP((IF(((N$8-$C41)/30.4)>0,((N$8-$C41)/30.4),12+((N$8-$C41)/30.4))),0),CVMS!$D$19:$P$28,'Calcul CVMS VV'!$Q$2,FALSE))))/100*$D$2,"") ->  | O41: =IFERROR((IF($C41="","",(HLOOKUP(ROUNDUP((IF(((O$8-$C41)/30.4)>0,((O$8-$C41)/30.4),12+((O$8-$C41)/30.4))),0),CVMS!$D$19:$P$28,'Calcul CVMS VV'!$Q$2,FALSE))))/100*$D$2,"") ->  | P41: =IFERROR((IF($C41="","",(HLOOKUP(ROUNDUP((IF(((P$8-$C41)/30.4)>0,((P$8-$C41)/30.4),12+((P$8-$C41)/30.4))),0),CVMS!$D$19:$P$28,'Calcul CVMS VV'!$Q$2,FALSE))))/100*$D$2,"") ->  | T41: =IFERROR(((HLOOKUP(IF(ROUNDUP(((T$8-$C41)*12/365),FALSE)>0,ROUNDUP(((T$8-$C41)*12/365),FALSE),(ROUNDUP(((T$8-$C41)*12/365),FALSE)+12)),CVMS!$D$58:$Q$67,$Q$2,FALSE))*31),"") ->  | U41: =IFERROR(((HLOOKUP(IF(ROUNDUP(((U$8-$C41)*12/365),FALSE)>0,ROUNDUP(((U$8-$C41)*12/365),FALSE),(ROUNDUP(((U$8-$C41)*12/365),FALSE)+12)),CVMS!$D$58:$Q$67,$Q$2,FALSE))*28),"") ->  | V41: =IFERROR(((HLOOKUP(IF(ROUNDUP(((V$8-$C41)*12/365),FALSE)>0,ROUNDUP(((V$8-$C41)*12/365),FALSE),(ROUNDUP(((V$8-$C41)*12/365),FALSE)+12)),CVMS!$D$58:$Q$67,$Q$2,FALSE))*31),"") ->  | W41: =IFERROR(((HLOOKUP(IF(ROUNDUP(((W$8-$C41)*12/365),FALSE)>0,ROUNDUP(((W$8-$C41)*12/365),FALSE),(ROUNDUP(((W$8-$C41)*12/365),FALSE)+12)),CVMS!$D$58:$Q$67,$Q$2,FALSE))*30),"") ->  | X41: =IFERROR(((HLOOKUP(IF(ROUNDUP(((X$8-$C41)*12/365),FALSE)>0,ROUNDUP(((X$8-$C41)*12/365),FALSE),(ROUNDUP(((X$8-$C41)*12/365),FALSE)+12)),CVMS!$D$58:$Q$67,$Q$2,FALSE))*31),"") ->  | Y41: =IFERROR(((HLOOKUP(IF(ROUNDUP(((Y$8-$C41)*12/365),FALSE)>0,ROUNDUP(((Y$8-$C41)*12/365),FALSE),(ROUNDUP(((Y$8-$C41)*12/365),FALSE)+12)),CVMS!$D$58:$Q$67,$Q$2,FALSE))*30),"") ->  | Z41: =IFERROR(((HLOOKUP(IF(ROUNDUP(((Z$8-$C41)*12/365),FALSE)>0,ROUNDUP(((Z$8-$C41)*12/365),FALSE),(ROUNDUP(((Z$8-$C41)*12/365),FALSE)+12)),CVMS!$D$58:$Q$67,$Q$2,FALSE))*31),"") ->  | AA41: =IFERROR(((HLOOKUP(IF(ROUNDUP(((AA$8-$C41)*12/365),FALSE)>0,ROUNDUP(((AA$8-$C41)*12/365),FALSE),(ROUNDUP(((AA$8-$C41)*12/365),FALSE)+12)),CVMS!$D$58:$Q$67,$Q$2,FALSE))*31),"") ->  | AB41: =IFERROR(((HLOOKUP(IF(ROUNDUP(((AB$8-$C41)*12/365),FALSE)>0,ROUNDUP(((AB$8-$C41)*12/365),FALSE),(ROUNDUP(((AB$8-$C41)*12/365),FALSE)+12)),CVMS!$D$58:$Q$67,$Q$2,FALSE))*30),"") ->  | AC41: =IFERROR(((HLOOKUP(IF(ROUNDUP(((AC$8-$C41)*12/365),FALSE)>0,ROUNDUP(((AC$8-$C41)*12/365),FALSE),(ROUNDUP(((AC$8-$C41)*12/365),FALSE)+12)),CVMS!$D$58:$Q$67,$Q$2,FALSE))*31),"") ->  | AD41: =IFERROR(((HLOOKUP(IF(ROUNDUP(((AD$8-$C41)*12/365),FALSE)>0,ROUNDUP(((AD$8-$C41)*12/365),FALSE),(ROUNDUP(((AD$8-$C41)*12/365),FALSE)+12)),CVMS!$D$58:$Q$67,$Q$2,FALSE))*30),"") ->  | AE41: =IFERROR(((HLOOKUP(IF(ROUNDUP(((AE$8-$C41)*12/365),FALSE)>0,ROUNDUP(((AE$8-$C41)*12/365),FALSE),(ROUNDUP(((AE$8-$C41)*12/365),FALSE)+12)),CVMS!$D$58:$Q$67,$Q$2,FALSE))*31),"") -> 
E42: =IFERROR((IF($C42="","",(HLOOKUP(ROUNDUP((IF(((E$8-$C42)/30.4)>0,((E$8-$C42)/30.4),12+((E$8-$C42)/30.4))),0),CVMS!$D$19:$P$28,'Calcul CVMS VV'!$Q$2,FALSE))))/100*$D$2,"") ->  | F42: =IFERROR((IF($C42="","",(HLOOKUP(ROUNDUP((IF(((F$8-$C42)/30.4)>0,((F$8-$C42)/30.4),12+((F$8-$C42)/30.4))),0),CVMS!$D$19:$P$28,'Calcul CVMS VV'!$Q$2,FALSE))))/100*$D$2,"") ->  | G42: =IFERROR((IF($C42="","",(HLOOKUP(ROUNDUP((IF(((G$8-$C42)/30.4)>0,((G$8-$C42)/30.4),12+((G$8-$C42)/30.4))),0),CVMS!$D$19:$P$28,'Calcul CVMS VV'!$Q$2,FALSE))))/100*$D$2,"") ->  | H42: =IFERROR((IF($C42="","",(HLOOKUP(ROUNDUP((IF(((H$8-$C42)/30.4)>0,((H$8-$C42)/30.4),12+((H$8-$C42)/30.4))),0),CVMS!$D$19:$P$28,'Calcul CVMS VV'!$Q$2,FALSE))))/100*$D$2,"") ->  | I42: =IFERROR((IF($C42="","",(HLOOKUP(ROUNDUP((IF(((I$8-$C42)/30.4)>0,((I$8-$C42)/30.4),12+((I$8-$C42)/30.4))),0),CVMS!$D$19:$P$28,'Calcul CVMS VV'!$Q$2,FALSE))))/100*$D$2,"") ->  | J42: =IFERROR((IF($C42="","",(HLOOKUP(ROUNDUP((IF(((J$8-$C42)/30.4)>0,((J$8-$C42)/30.4),12+((J$8-$C42)/30.4))),0),CVMS!$D$19:$P$28,'Calcul CVMS VV'!$Q$2,FALSE))))/100*$D$2,"") ->  | K42: =IFERROR((IF($C42="","",(HLOOKUP(ROUNDUP((IF(((K$8-$C42)/30.4)>0,((K$8-$C42)/30.4),12+((K$8-$C42)/30.4))),0),CVMS!$D$19:$P$28,'Calcul CVMS VV'!$Q$2,FALSE))))/100*$D$2,"") ->  | L42: =IFERROR((IF($C42="","",(HLOOKUP(ROUNDUP((IF(((L$8-$C42)/30.4)>0,((L$8-$C42)/30.4),12+((L$8-$C42)/30.4))),0),CVMS!$D$19:$P$28,'Calcul CVMS VV'!$Q$2,FALSE))))/100*$D$2,"") ->  | M42: =IFERROR((IF($C42="","",(HLOOKUP(ROUNDUP((IF(((M$8-$C42)/30.4)>0,((M$8-$C42)/30.4),12+((M$8-$C42)/30.4))),0),CVMS!$D$19:$P$28,'Calcul CVMS VV'!$Q$2,FALSE))))/100*$D$2,"") ->  | N42: =IFERROR((IF($C42="","",(HLOOKUP(ROUNDUP((IF(((N$8-$C42)/30.4)>0,((N$8-$C42)/30.4),12+((N$8-$C42)/30.4))),0),CVMS!$D$19:$P$28,'Calcul CVMS VV'!$Q$2,FALSE))))/100*$D$2,"") ->  | O42: =IFERROR((IF($C42="","",(HLOOKUP(ROUNDUP((IF(((O$8-$C42)/30.4)>0,((O$8-$C42)/30.4),12+((O$8-$C42)/30.4))),0),CVMS!$D$19:$P$28,'Calcul CVMS VV'!$Q$2,FALSE))))/100*$D$2,"") ->  | P42: =IFERROR((IF($C42="","",(HLOOKUP(ROUNDUP((IF(((P$8-$C42)/30.4)>0,((P$8-$C42)/30.4),12+((P$8-$C42)/30.4))),0),CVMS!$D$19:$P$28,'Calcul CVMS VV'!$Q$2,FALSE))))/100*$D$2,"") ->  | T42: =IFERROR(((HLOOKUP(IF(ROUNDUP(((T$8-$C42)*12/365),FALSE)>0,ROUNDUP(((T$8-$C42)*12/365),FALSE),(ROUNDUP(((T$8-$C42)*12/365),FALSE)+12)),CVMS!$D$58:$Q$67,$Q$2,FALSE))*31),"") ->  | U42: =IFERROR(((HLOOKUP(IF(ROUNDUP(((U$8-$C42)*12/365),FALSE)>0,ROUNDUP(((U$8-$C42)*12/365),FALSE),(ROUNDUP(((U$8-$C42)*12/365),FALSE)+12)),CVMS!$D$58:$Q$67,$Q$2,FALSE))*28),"") ->  | V42: =IFERROR(((HLOOKUP(IF(ROUNDUP(((V$8-$C42)*12/365),FALSE)>0,ROUNDUP(((V$8-$C42)*12/365),FALSE),(ROUNDUP(((V$8-$C42)*12/365),FALSE)+12)),CVMS!$D$58:$Q$67,$Q$2,FALSE))*31),"") ->  | W42: =IFERROR(((HLOOKUP(IF(ROUNDUP(((W$8-$C42)*12/365),FALSE)>0,ROUNDUP(((W$8-$C42)*12/365),FALSE),(ROUNDUP(((W$8-$C42)*12/365),FALSE)+12)),CVMS!$D$58:$Q$67,$Q$2,FALSE))*30),"") ->  | X42: =IFERROR(((HLOOKUP(IF(ROUNDUP(((X$8-$C42)*12/365),FALSE)>0,ROUNDUP(((X$8-$C42)*12/365),FALSE),(ROUNDUP(((X$8-$C42)*12/365),FALSE)+12)),CVMS!$D$58:$Q$67,$Q$2,FALSE))*31),"") ->  | Y42: =IFERROR(((HLOOKUP(IF(ROUNDUP(((Y$8-$C42)*12/365),FALSE)>0,ROUNDUP(((Y$8-$C42)*12/365),FALSE),(ROUNDUP(((Y$8-$C42)*12/365),FALSE)+12)),CVMS!$D$58:$Q$67,$Q$2,FALSE))*30),"") ->  | Z42: =IFERROR(((HLOOKUP(IF(ROUNDUP(((Z$8-$C42)*12/365),FALSE)>0,ROUNDUP(((Z$8-$C42)*12/365),FALSE),(ROUNDUP(((Z$8-$C42)*12/365),FALSE)+12)),CVMS!$D$58:$Q$67,$Q$2,FALSE))*31),"") ->  | AA42: =IFERROR(((HLOOKUP(IF(ROUNDUP(((AA$8-$C42)*12/365),FALSE)>0,ROUNDUP(((AA$8-$C42)*12/365),FALSE),(ROUNDUP(((AA$8-$C42)*12/365),FALSE)+12)),CVMS!$D$58:$Q$67,$Q$2,FALSE))*31),"") ->  | AB42: =IFERROR(((HLOOKUP(IF(ROUNDUP(((AB$8-$C42)*12/365),FALSE)>0,ROUNDUP(((AB$8-$C42)*12/365),FALSE),(ROUNDUP(((AB$8-$C42)*12/365),FALSE)+12)),CVMS!$D$58:$Q$67,$Q$2,FALSE))*30),"") ->  | AC42: =IFERROR(((HLOOKUP(IF(ROUNDUP(((AC$8-$C42)*12/365),FALSE)>0,ROUNDUP(((AC$8-$C42)*12/365),FALSE),(ROUNDUP(((AC$8-$C42)*12/365),FALSE)+12)),CVMS!$D$58:$Q$67,$Q$2,FALSE))*31),"") ->  | AD42: =IFERROR(((HLOOKUP(IF(ROUNDUP(((AD$8-$C42)*12/365),FALSE)>0,ROUNDUP(((AD$8-$C42)*12/365),FALSE),(ROUNDUP(((AD$8-$C42)*12/365),FALSE)+12)),CVMS!$D$58:$Q$67,$Q$2,FALSE))*30),"") ->  | AE42: =IFERROR(((HLOOKUP(IF(ROUNDUP(((AE$8-$C42)*12/365),FALSE)>0,ROUNDUP(((AE$8-$C42)*12/365),FALSE),(ROUNDUP(((AE$8-$C42)*12/365),FALSE)+12)),CVMS!$D$58:$Q$67,$Q$2,FALSE))*31),"") -> 
E43: =IFERROR((IF($C43="","",(HLOOKUP(ROUNDUP((IF(((E$8-$C43)/30.4)>0,((E$8-$C43)/30.4),12+((E$8-$C43)/30.4))),0),CVMS!$D$19:$P$28,'Calcul CVMS VV'!$Q$2,FALSE))))/100*$D$2,"") ->  | F43: =IFERROR((IF($C43="","",(HLOOKUP(ROUNDUP((IF(((F$8-$C43)/30.4)>0,((F$8-$C43)/30.4),12+((F$8-$C43)/30.4))),0),CVMS!$D$19:$P$28,'Calcul CVMS VV'!$Q$2,FALSE))))/100*$D$2,"") ->  | G43: =IFERROR((IF($C43="","",(HLOOKUP(ROUNDUP((IF(((G$8-$C43)/30.4)>0,((G$8-$C43)/30.4),12+((G$8-$C43)/30.4))),0),CVMS!$D$19:$P$28,'Calcul CVMS VV'!$Q$2,FALSE))))/100*$D$2,"") ->  | H43: =IFERROR((IF($C43="","",(HLOOKUP(ROUNDUP((IF(((H$8-$C43)/30.4)>0,((H$8-$C43)/30.4),12+((H$8-$C43)/30.4))),0),CVMS!$D$19:$P$28,'Calcul CVMS VV'!$Q$2,FALSE))))/100*$D$2,"") ->  | I43: =IFERROR((IF($C43="","",(HLOOKUP(ROUNDUP((IF(((I$8-$C43)/30.4)>0,((I$8-$C43)/30.4),12+((I$8-$C43)/30.4))),0),CVMS!$D$19:$P$28,'Calcul CVMS VV'!$Q$2,FALSE))))/100*$D$2,"") ->  | J43: =IFERROR((IF($C43="","",(HLOOKUP(ROUNDUP((IF(((J$8-$C43)/30.4)>0,((J$8-$C43)/30.4),12+((J$8-$C43)/30.4))),0),CVMS!$D$19:$P$28,'Calcul CVMS VV'!$Q$2,FALSE))))/100*$D$2,"") ->  | K43: =IFERROR((IF($C43="","",(HLOOKUP(ROUNDUP((IF(((K$8-$C43)/30.4)>0,((K$8-$C43)/30.4),12+((K$8-$C43)/30.4))),0),CVMS!$D$19:$P$28,'Calcul CVMS VV'!$Q$2,FALSE))))/100*$D$2,"") ->  | L43: =IFERROR((IF($C43="","",(HLOOKUP(ROUNDUP((IF(((L$8-$C43)/30.4)>0,((L$8-$C43)/30.4),12+((L$8-$C43)/30.4))),0),CVMS!$D$19:$P$28,'Calcul CVMS VV'!$Q$2,FALSE))))/100*$D$2,"") ->  | M43: =IFERROR((IF($C43="","",(HLOOKUP(ROUNDUP((IF(((M$8-$C43)/30.4)>0,((M$8-$C43)/30.4),12+((M$8-$C43)/30.4))),0),CVMS!$D$19:$P$28,'Calcul CVMS VV'!$Q$2,FALSE))))/100*$D$2,"") ->  | N43: =IFERROR((IF($C43="","",(HLOOKUP(ROUNDUP((IF(((N$8-$C43)/30.4)>0,((N$8-$C43)/30.4),12+((N$8-$C43)/30.4))),0),CVMS!$D$19:$P$28,'Calcul CVMS VV'!$Q$2,FALSE))))/100*$D$2,"") ->  | O43: =IFERROR((IF($C43="","",(HLOOKUP(ROUNDUP((IF(((O$8-$C43)/30.4)>0,((O$8-$C43)/30.4),12+((O$8-$C43)/30.4))),0),CVMS!$D$19:$P$28,'Calcul CVMS VV'!$Q$2,FALSE))))/100*$D$2,"") ->  | P43: =IFERROR((IF($C43="","",(HLOOKUP(ROUNDUP((IF(((P$8-$C43)/30.4)>0,((P$8-$C43)/30.4),12+((P$8-$C43)/30.4))),0),CVMS!$D$19:$P$28,'Calcul CVMS VV'!$Q$2,FALSE))))/100*$D$2,"") ->  | T43: =IFERROR(((HLOOKUP(IF(ROUNDUP(((T$8-$C43)*12/365),FALSE)>0,ROUNDUP(((T$8-$C43)*12/365),FALSE),(ROUNDUP(((T$8-$C43)*12/365),FALSE)+12)),CVMS!$D$58:$Q$67,$Q$2,FALSE))*31),"") ->  | U43: =IFERROR(((HLOOKUP(IF(ROUNDUP(((U$8-$C43)*12/365),FALSE)>0,ROUNDUP(((U$8-$C43)*12/365),FALSE),(ROUNDUP(((U$8-$C43)*12/365),FALSE)+12)),CVMS!$D$58:$Q$67,$Q$2,FALSE))*28),"") ->  | V43: =IFERROR(((HLOOKUP(IF(ROUNDUP(((V$8-$C43)*12/365),FALSE)>0,ROUNDUP(((V$8-$C43)*12/365),FALSE),(ROUNDUP(((V$8-$C43)*12/365),FALSE)+12)),CVMS!$D$58:$Q$67,$Q$2,FALSE))*31),"") ->  | W43: =IFERROR(((HLOOKUP(IF(ROUNDUP(((W$8-$C43)*12/365),FALSE)>0,ROUNDUP(((W$8-$C43)*12/365),FALSE),(ROUNDUP(((W$8-$C43)*12/365),FALSE)+12)),CVMS!$D$58:$Q$67,$Q$2,FALSE))*30),"") ->  | X43: =IFERROR(((HLOOKUP(IF(ROUNDUP(((X$8-$C43)*12/365),FALSE)>0,ROUNDUP(((X$8-$C43)*12/365),FALSE),(ROUNDUP(((X$8-$C43)*12/365),FALSE)+12)),CVMS!$D$58:$Q$67,$Q$2,FALSE))*31),"") ->  | Y43: =IFERROR(((HLOOKUP(IF(ROUNDUP(((Y$8-$C43)*12/365),FALSE)>0,ROUNDUP(((Y$8-$C43)*12/365),FALSE),(ROUNDUP(((Y$8-$C43)*12/365),FALSE)+12)),CVMS!$D$58:$Q$67,$Q$2,FALSE))*30),"") ->  | Z43: =IFERROR(((HLOOKUP(IF(ROUNDUP(((Z$8-$C43)*12/365),FALSE)>0,ROUNDUP(((Z$8-$C43)*12/365),FALSE),(ROUNDUP(((Z$8-$C43)*12/365),FALSE)+12)),CVMS!$D$58:$Q$67,$Q$2,FALSE))*31),"") ->  | AA43: =IFERROR(((HLOOKUP(IF(ROUNDUP(((AA$8-$C43)*12/365),FALSE)>0,ROUNDUP(((AA$8-$C43)*12/365),FALSE),(ROUNDUP(((AA$8-$C43)*12/365),FALSE)+12)),CVMS!$D$58:$Q$67,$Q$2,FALSE))*31),"") ->  | AB43: =IFERROR(((HLOOKUP(IF(ROUNDUP(((AB$8-$C43)*12/365),FALSE)>0,ROUNDUP(((AB$8-$C43)*12/365),FALSE),(ROUNDUP(((AB$8-$C43)*12/365),FALSE)+12)),CVMS!$D$58:$Q$67,$Q$2,FALSE))*30),"") ->  | AC43: =IFERROR(((HLOOKUP(IF(ROUNDUP(((AC$8-$C43)*12/365),FALSE)>0,ROUNDUP(((AC$8-$C43)*12/365),FALSE),(ROUNDUP(((AC$8-$C43)*12/365),FALSE)+12)),CVMS!$D$58:$Q$67,$Q$2,FALSE))*31),"") ->  | AD43: =IFERROR(((HLOOKUP(IF(ROUNDUP(((AD$8-$C43)*12/365),FALSE)>0,ROUNDUP(((AD$8-$C43)*12/365),FALSE),(ROUNDUP(((AD$8-$C43)*12/365),FALSE)+12)),CVMS!$D$58:$Q$67,$Q$2,FALSE))*30),"") ->  | AE43: =IFERROR(((HLOOKUP(IF(ROUNDUP(((AE$8-$C43)*12/365),FALSE)>0,ROUNDUP(((AE$8-$C43)*12/365),FALSE),(ROUNDUP(((AE$8-$C43)*12/365),FALSE)+12)),CVMS!$D$58:$Q$67,$Q$2,FALSE))*31),"") -> 
E44: =IFERROR((IF($C44="","",(HLOOKUP(ROUNDUP((IF(((E$8-$C44)/30.4)>0,((E$8-$C44)/30.4),12+((E$8-$C44)/30.4))),0),CVMS!$D$19:$P$28,'Calcul CVMS VV'!$Q$2,FALSE))))/100*$D$2,"") ->  | F44: =IFERROR((IF($C44="","",(HLOOKUP(ROUNDUP((IF(((F$8-$C44)/30.4)>0,((F$8-$C44)/30.4),12+((F$8-$C44)/30.4))),0),CVMS!$D$19:$P$28,'Calcul CVMS VV'!$Q$2,FALSE))))/100*$D$2,"") ->  | G44: =IFERROR((IF($C44="","",(HLOOKUP(ROUNDUP((IF(((G$8-$C44)/30.4)>0,((G$8-$C44)/30.4),12+((G$8-$C44)/30.4))),0),CVMS!$D$19:$P$28,'Calcul CVMS VV'!$Q$2,FALSE))))/100*$D$2,"") ->  | H44: =IFERROR((IF($C44="","",(HLOOKUP(ROUNDUP((IF(((H$8-$C44)/30.4)>0,((H$8-$C44)/30.4),12+((H$8-$C44)/30.4))),0),CVMS!$D$19:$P$28,'Calcul CVMS VV'!$Q$2,FALSE))))/100*$D$2,"") ->  | I44: =IFERROR((IF($C44="","",(HLOOKUP(ROUNDUP((IF(((I$8-$C44)/30.4)>0,((I$8-$C44)/30.4),12+((I$8-$C44)/30.4))),0),CVMS!$D$19:$P$28,'Calcul CVMS VV'!$Q$2,FALSE))))/100*$D$2,"") ->  | J44: =IFERROR((IF($C44="","",(HLOOKUP(ROUNDUP((IF(((J$8-$C44)/30.4)>0,((J$8-$C44)/30.4),12+((J$8-$C44)/30.4))),0),CVMS!$D$19:$P$28,'Calcul CVMS VV'!$Q$2,FALSE))))/100*$D$2,"") ->  | K44: =IFERROR((IF($C44="","",(HLOOKUP(ROUNDUP((IF(((K$8-$C44)/30.4)>0,((K$8-$C44)/30.4),12+((K$8-$C44)/30.4))),0),CVMS!$D$19:$P$28,'Calcul CVMS VV'!$Q$2,FALSE))))/100*$D$2,"") ->  | L44: =IFERROR((IF($C44="","",(HLOOKUP(ROUNDUP((IF(((L$8-$C44)/30.4)>0,((L$8-$C44)/30.4),12+((L$8-$C44)/30.4))),0),CVMS!$D$19:$P$28,'Calcul CVMS VV'!$Q$2,FALSE))))/100*$D$2,"") ->  | M44: =IFERROR((IF($C44="","",(HLOOKUP(ROUNDUP((IF(((M$8-$C44)/30.4)>0,((M$8-$C44)/30.4),12+((M$8-$C44)/30.4))),0),CVMS!$D$19:$P$28,'Calcul CVMS VV'!$Q$2,FALSE))))/100*$D$2,"") ->  | N44: =IFERROR((IF($C44="","",(HLOOKUP(ROUNDUP((IF(((N$8-$C44)/30.4)>0,((N$8-$C44)/30.4),12+((N$8-$C44)/30.4))),0),CVMS!$D$19:$P$28,'Calcul CVMS VV'!$Q$2,FALSE))))/100*$D$2,"") ->  | O44: =IFERROR((IF($C44="","",(HLOOKUP(ROUNDUP((IF(((O$8-$C44)/30.4)>0,((O$8-$C44)/30.4),12+((O$8-$C44)/30.4))),0),CVMS!$D$19:$P$28,'Calcul CVMS VV'!$Q$2,FALSE))))/100*$D$2,"") ->  | P44: =IFERROR((IF($C44="","",(HLOOKUP(ROUNDUP((IF(((P$8-$C44)/30.4)>0,((P$8-$C44)/30.4),12+((P$8-$C44)/30.4))),0),CVMS!$D$19:$P$28,'Calcul CVMS VV'!$Q$2,FALSE))))/100*$D$2,"") ->  | T44: =IFERROR(((HLOOKUP(IF(ROUNDUP(((T$8-$C44)*12/365),FALSE)>0,ROUNDUP(((T$8-$C44)*12/365),FALSE),(ROUNDUP(((T$8-$C44)*12/365),FALSE)+12)),CVMS!$D$58:$Q$67,$Q$2,FALSE))*31),"") ->  | U44: =IFERROR(((HLOOKUP(IF(ROUNDUP(((U$8-$C44)*12/365),FALSE)>0,ROUNDUP(((U$8-$C44)*12/365),FALSE),(ROUNDUP(((U$8-$C44)*12/365),FALSE)+12)),CVMS!$D$58:$Q$67,$Q$2,FALSE))*28),"") ->  | V44: =IFERROR(((HLOOKUP(IF(ROUNDUP(((V$8-$C44)*12/365),FALSE)>0,ROUNDUP(((V$8-$C44)*12/365),FALSE),(ROUNDUP(((V$8-$C44)*12/365),FALSE)+12)),CVMS!$D$58:$Q$67,$Q$2,FALSE))*31),"") ->  | W44: =IFERROR(((HLOOKUP(IF(ROUNDUP(((W$8-$C44)*12/365),FALSE)>0,ROUNDUP(((W$8-$C44)*12/365),FALSE),(ROUNDUP(((W$8-$C44)*12/365),FALSE)+12)),CVMS!$D$58:$Q$67,$Q$2,FALSE))*30),"") ->  | X44: =IFERROR(((HLOOKUP(IF(ROUNDUP(((X$8-$C44)*12/365),FALSE)>0,ROUNDUP(((X$8-$C44)*12/365),FALSE),(ROUNDUP(((X$8-$C44)*12/365),FALSE)+12)),CVMS!$D$58:$Q$67,$Q$2,FALSE))*31),"") ->  | Y44: =IFERROR(((HLOOKUP(IF(ROUNDUP(((Y$8-$C44)*12/365),FALSE)>0,ROUNDUP(((Y$8-$C44)*12/365),FALSE),(ROUNDUP(((Y$8-$C44)*12/365),FALSE)+12)),CVMS!$D$58:$Q$67,$Q$2,FALSE))*30),"") ->  | Z44: =IFERROR(((HLOOKUP(IF(ROUNDUP(((Z$8-$C44)*12/365),FALSE)>0,ROUNDUP(((Z$8-$C44)*12/365),FALSE),(ROUNDUP(((Z$8-$C44)*12/365),FALSE)+12)),CVMS!$D$58:$Q$67,$Q$2,FALSE))*31),"") ->  | AA44: =IFERROR(((HLOOKUP(IF(ROUNDUP(((AA$8-$C44)*12/365),FALSE)>0,ROUNDUP(((AA$8-$C44)*12/365),FALSE),(ROUNDUP(((AA$8-$C44)*12/365),FALSE)+12)),CVMS!$D$58:$Q$67,$Q$2,FALSE))*31),"") ->  | AB44: =IFERROR(((HLOOKUP(IF(ROUNDUP(((AB$8-$C44)*12/365),FALSE)>0,ROUNDUP(((AB$8-$C44)*12/365),FALSE),(ROUNDUP(((AB$8-$C44)*12/365),FALSE)+12)),CVMS!$D$58:$Q$67,$Q$2,FALSE))*30),"") ->  | AC44: =IFERROR(((HLOOKUP(IF(ROUNDUP(((AC$8-$C44)*12/365),FALSE)>0,ROUNDUP(((AC$8-$C44)*12/365),FALSE),(ROUNDUP(((AC$8-$C44)*12/365),FALSE)+12)),CVMS!$D$58:$Q$67,$Q$2,FALSE))*31),"") ->  | AD44: =IFERROR(((HLOOKUP(IF(ROUNDUP(((AD$8-$C44)*12/365),FALSE)>0,ROUNDUP(((AD$8-$C44)*12/365),FALSE),(ROUNDUP(((AD$8-$C44)*12/365),FALSE)+12)),CVMS!$D$58:$Q$67,$Q$2,FALSE))*30),"") ->  | AE44: =IFERROR(((HLOOKUP(IF(ROUNDUP(((AE$8-$C44)*12/365),FALSE)>0,ROUNDUP(((AE$8-$C44)*12/365),FALSE),(ROUNDUP(((AE$8-$C44)*12/365),FALSE)+12)),CVMS!$D$58:$Q$67,$Q$2,FALSE))*31),"") -> 
E45: =IFERROR((IF($C45="","",(HLOOKUP(ROUNDUP((IF(((E$8-$C45)/30.4)>0,((E$8-$C45)/30.4),12+((E$8-$C45)/30.4))),0),CVMS!$D$19:$P$28,'Calcul CVMS VV'!$Q$2,FALSE))))/100*$D$2,"") ->  | F45: =IFERROR((IF($C45="","",(HLOOKUP(ROUNDUP((IF(((F$8-$C45)/30.4)>0,((F$8-$C45)/30.4),12+((F$8-$C45)/30.4))),0),CVMS!$D$19:$P$28,'Calcul CVMS VV'!$Q$2,FALSE))))/100*$D$2,"") ->  | G45: =IFERROR((IF($C45="","",(HLOOKUP(ROUNDUP((IF(((G$8-$C45)/30.4)>0,((G$8-$C45)/30.4),12+((G$8-$C45)/30.4))),0),CVMS!$D$19:$P$28,'Calcul CVMS VV'!$Q$2,FALSE))))/100*$D$2,"") ->  | H45: =IFERROR((IF($C45="","",(HLOOKUP(ROUNDUP((IF(((H$8-$C45)/30.4)>0,((H$8-$C45)/30.4),12+((H$8-$C45)/30.4))),0),CVMS!$D$19:$P$28,'Calcul CVMS VV'!$Q$2,FALSE))))/100*$D$2,"") ->  | I45: =IFERROR((IF($C45="","",(HLOOKUP(ROUNDUP((IF(((I$8-$C45)/30.4)>0,((I$8-$C45)/30.4),12+((I$8-$C45)/30.4))),0),CVMS!$D$19:$P$28,'Calcul CVMS VV'!$Q$2,FALSE))))/100*$D$2,"") ->  | J45: =IFERROR((IF($C45="","",(HLOOKUP(ROUNDUP((IF(((J$8-$C45)/30.4)>0,((J$8-$C45)/30.4),12+((J$8-$C45)/30.4))),0),CVMS!$D$19:$P$28,'Calcul CVMS VV'!$Q$2,FALSE))))/100*$D$2,"") ->  | K45: =IFERROR((IF($C45="","",(HLOOKUP(ROUNDUP((IF(((K$8-$C45)/30.4)>0,((K$8-$C45)/30.4),12+((K$8-$C45)/30.4))),0),CVMS!$D$19:$P$28,'Calcul CVMS VV'!$Q$2,FALSE))))/100*$D$2,"") ->  | L45: =IFERROR((IF($C45="","",(HLOOKUP(ROUNDUP((IF(((L$8-$C45)/30.4)>0,((L$8-$C45)/30.4),12+((L$8-$C45)/30.4))),0),CVMS!$D$19:$P$28,'Calcul CVMS VV'!$Q$2,FALSE))))/100*$D$2,"") ->  | M45: =IFERROR((IF($C45="","",(HLOOKUP(ROUNDUP((IF(((M$8-$C45)/30.4)>0,((M$8-$C45)/30.4),12+((M$8-$C45)/30.4))),0),CVMS!$D$19:$P$28,'Calcul CVMS VV'!$Q$2,FALSE))))/100*$D$2,"") ->  | N45: =IFERROR((IF($C45="","",(HLOOKUP(ROUNDUP((IF(((N$8-$C45)/30.4)>0,((N$8-$C45)/30.4),12+((N$8-$C45)/30.4))),0),CVMS!$D$19:$P$28,'Calcul CVMS VV'!$Q$2,FALSE))))/100*$D$2,"") ->  | O45: =IFERROR((IF($C45="","",(HLOOKUP(ROUNDUP((IF(((O$8-$C45)/30.4)>0,((O$8-$C45)/30.4),12+((O$8-$C45)/30.4))),0),CVMS!$D$19:$P$28,'Calcul CVMS VV'!$Q$2,FALSE))))/100*$D$2,"") ->  | P45: =IFERROR((IF($C45="","",(HLOOKUP(ROUNDUP((IF(((P$8-$C45)/30.4)>0,((P$8-$C45)/30.4),12+((P$8-$C45)/30.4))),0),CVMS!$D$19:$P$28,'Calcul CVMS VV'!$Q$2,FALSE))))/100*$D$2,"") ->  | T45: =IFERROR(((HLOOKUP(IF(ROUNDUP(((T$8-$C45)*12/365),FALSE)>0,ROUNDUP(((T$8-$C45)*12/365),FALSE),(ROUNDUP(((T$8-$C45)*12/365),FALSE)+12)),CVMS!$D$58:$Q$67,$Q$2,FALSE))*31),"") ->  | U45: =IFERROR(((HLOOKUP(IF(ROUNDUP(((U$8-$C45)*12/365),FALSE)>0,ROUNDUP(((U$8-$C45)*12/365),FALSE),(ROUNDUP(((U$8-$C45)*12/365),FALSE)+12)),CVMS!$D$58:$Q$67,$Q$2,FALSE))*28),"") ->  | V45: =IFERROR(((HLOOKUP(IF(ROUNDUP(((V$8-$C45)*12/365),FALSE)>0,ROUNDUP(((V$8-$C45)*12/365),FALSE),(ROUNDUP(((V$8-$C45)*12/365),FALSE)+12)),CVMS!$D$58:$Q$67,$Q$2,FALSE))*31),"") ->  | W45: =IFERROR(((HLOOKUP(IF(ROUNDUP(((W$8-$C45)*12/365),FALSE)>0,ROUNDUP(((W$8-$C45)*12/365),FALSE),(ROUNDUP(((W$8-$C45)*12/365),FALSE)+12)),CVMS!$D$58:$Q$67,$Q$2,FALSE))*30),"") ->  | X45: =IFERROR(((HLOOKUP(IF(ROUNDUP(((X$8-$C45)*12/365),FALSE)>0,ROUNDUP(((X$8-$C45)*12/365),FALSE),(ROUNDUP(((X$8-$C45)*12/365),FALSE)+12)),CVMS!$D$58:$Q$67,$Q$2,FALSE))*31),"") ->  | Y45: =IFERROR(((HLOOKUP(IF(ROUNDUP(((Y$8-$C45)*12/365),FALSE)>0,ROUNDUP(((Y$8-$C45)*12/365),FALSE),(ROUNDUP(((Y$8-$C45)*12/365),FALSE)+12)),CVMS!$D$58:$Q$67,$Q$2,FALSE))*30),"") ->  | Z45: =IFERROR(((HLOOKUP(IF(ROUNDUP(((Z$8-$C45)*12/365),FALSE)>0,ROUNDUP(((Z$8-$C45)*12/365),FALSE),(ROUNDUP(((Z$8-$C45)*12/365),FALSE)+12)),CVMS!$D$58:$Q$67,$Q$2,FALSE))*31),"") ->  | AA45: =IFERROR(((HLOOKUP(IF(ROUNDUP(((AA$8-$C45)*12/365),FALSE)>0,ROUNDUP(((AA$8-$C45)*12/365),FALSE),(ROUNDUP(((AA$8-$C45)*12/365),FALSE)+12)),CVMS!$D$58:$Q$67,$Q$2,FALSE))*31),"") ->  | AB45: =IFERROR(((HLOOKUP(IF(ROUNDUP(((AB$8-$C45)*12/365),FALSE)>0,ROUNDUP(((AB$8-$C45)*12/365),FALSE),(ROUNDUP(((AB$8-$C45)*12/365),FALSE)+12)),CVMS!$D$58:$Q$67,$Q$2,FALSE))*30),"") ->  | AC45: =IFERROR(((HLOOKUP(IF(ROUNDUP(((AC$8-$C45)*12/365),FALSE)>0,ROUNDUP(((AC$8-$C45)*12/365),FALSE),(ROUNDUP(((AC$8-$C45)*12/365),FALSE)+12)),CVMS!$D$58:$Q$67,$Q$2,FALSE))*31),"") ->  | AD45: =IFERROR(((HLOOKUP(IF(ROUNDUP(((AD$8-$C45)*12/365),FALSE)>0,ROUNDUP(((AD$8-$C45)*12/365),FALSE),(ROUNDUP(((AD$8-$C45)*12/365),FALSE)+12)),CVMS!$D$58:$Q$67,$Q$2,FALSE))*30),"") ->  | AE45: =IFERROR(((HLOOKUP(IF(ROUNDUP(((AE$8-$C45)*12/365),FALSE)>0,ROUNDUP(((AE$8-$C45)*12/365),FALSE),(ROUNDUP(((AE$8-$C45)*12/365),FALSE)+12)),CVMS!$D$58:$Q$67,$Q$2,FALSE))*31),"") -> 
E46: =IFERROR((IF($C46="","",(HLOOKUP(ROUNDUP((IF(((E$8-$C46)/30.4)>0,((E$8-$C46)/30.4),12+((E$8-$C46)/30.4))),0),CVMS!$D$19:$P$28,'Calcul CVMS VV'!$Q$2,FALSE))))/100*$D$2,"") ->  | F46: =IFERROR((IF($C46="","",(HLOOKUP(ROUNDUP((IF(((F$8-$C46)/30.4)>0,((F$8-$C46)/30.4),12+((F$8-$C46)/30.4))),0),CVMS!$D$19:$P$28,'Calcul CVMS VV'!$Q$2,FALSE))))/100*$D$2,"") ->  | G46: =IFERROR((IF($C46="","",(HLOOKUP(ROUNDUP((IF(((G$8-$C46)/30.4)>0,((G$8-$C46)/30.4),12+((G$8-$C46)/30.4))),0),CVMS!$D$19:$P$28,'Calcul CVMS VV'!$Q$2,FALSE))))/100*$D$2,"") ->  | H46: =IFERROR((IF($C46="","",(HLOOKUP(ROUNDUP((IF(((H$8-$C46)/30.4)>0,((H$8-$C46)/30.4),12+((H$8-$C46)/30.4))),0),CVMS!$D$19:$P$28,'Calcul CVMS VV'!$Q$2,FALSE))))/100*$D$2,"") ->  | I46: =IFERROR((IF($C46="","",(HLOOKUP(ROUNDUP((IF(((I$8-$C46)/30.4)>0,((I$8-$C46)/30.4),12+((I$8-$C46)/30.4))),0),CVMS!$D$19:$P$28,'Calcul CVMS VV'!$Q$2,FALSE))))/100*$D$2,"") ->  | J46: =IFERROR((IF($C46="","",(HLOOKUP(ROUNDUP((IF(((J$8-$C46)/30.4)>0,((J$8-$C46)/30.4),12+((J$8-$C46)/30.4))),0),CVMS!$D$19:$P$28,'Calcul CVMS VV'!$Q$2,FALSE))))/100*$D$2,"") ->  | K46: =IFERROR((IF($C46="","",(HLOOKUP(ROUNDUP((IF(((K$8-$C46)/30.4)>0,((K$8-$C46)/30.4),12+((K$8-$C46)/30.4))),0),CVMS!$D$19:$P$28,'Calcul CVMS VV'!$Q$2,FALSE))))/100*$D$2,"") ->  | L46: =IFERROR((IF($C46="","",(HLOOKUP(ROUNDUP((IF(((L$8-$C46)/30.4)>0,((L$8-$C46)/30.4),12+((L$8-$C46)/30.4))),0),CVMS!$D$19:$P$28,'Calcul CVMS VV'!$Q$2,FALSE))))/100*$D$2,"") ->  | M46: =IFERROR((IF($C46="","",(HLOOKUP(ROUNDUP((IF(((M$8-$C46)/30.4)>0,((M$8-$C46)/30.4),12+((M$8-$C46)/30.4))),0),CVMS!$D$19:$P$28,'Calcul CVMS VV'!$Q$2,FALSE))))/100*$D$2,"") ->  | N46: =IFERROR((IF($C46="","",(HLOOKUP(ROUNDUP((IF(((N$8-$C46)/30.4)>0,((N$8-$C46)/30.4),12+((N$8-$C46)/30.4))),0),CVMS!$D$19:$P$28,'Calcul CVMS VV'!$Q$2,FALSE))))/100*$D$2,"") ->  | O46: =IFERROR((IF($C46="","",(HLOOKUP(ROUNDUP((IF(((O$8-$C46)/30.4)>0,((O$8-$C46)/30.4),12+((O$8-$C46)/30.4))),0),CVMS!$D$19:$P$28,'Calcul CVMS VV'!$Q$2,FALSE))))/100*$D$2,"") ->  | P46: =IFERROR((IF($C46="","",(HLOOKUP(ROUNDUP((IF(((P$8-$C46)/30.4)>0,((P$8-$C46)/30.4),12+((P$8-$C46)/30.4))),0),CVMS!$D$19:$P$28,'Calcul CVMS VV'!$Q$2,FALSE))))/100*$D$2,"") -> 
E47: =IFERROR((IF($C47="","",(HLOOKUP(ROUNDUP((IF(((E$8-$C47)/30.4)>0,((E$8-$C47)/30.4),12+((E$8-$C47)/30.4))),0),CVMS!$D$19:$P$28,'Calcul CVMS VV'!$Q$2,FALSE))))/100*$D$2,"") ->  | F47: =IFERROR((IF($C47="","",(HLOOKUP(ROUNDUP((IF(((F$8-$C47)/30.4)>0,((F$8-$C47)/30.4),12+((F$8-$C47)/30.4))),0),CVMS!$D$19:$P$28,'Calcul CVMS VV'!$Q$2,FALSE))))/100*$D$2,"") ->  | G47: =IFERROR((IF($C47="","",(HLOOKUP(ROUNDUP((IF(((G$8-$C47)/30.4)>0,((G$8-$C47)/30.4),12+((G$8-$C47)/30.4))),0),CVMS!$D$19:$P$28,'Calcul CVMS VV'!$Q$2,FALSE))))/100*$D$2,"") ->  | H47: =IFERROR((IF($C47="","",(HLOOKUP(ROUNDUP((IF(((H$8-$C47)/30.4)>0,((H$8-$C47)/30.4),12+((H$8-$C47)/30.4))),0),CVMS!$D$19:$P$28,'Calcul CVMS VV'!$Q$2,FALSE))))/100*$D$2,"") ->  | I47: =IFERROR((IF($C47="","",(HLOOKUP(ROUNDUP((IF(((I$8-$C47)/30.4)>0,((I$8-$C47)/30.4),12+((I$8-$C47)/30.4))),0),CVMS!$D$19:$P$28,'Calcul CVMS VV'!$Q$2,FALSE))))/100*$D$2,"") ->  | J47: =IFERROR((IF($C47="","",(HLOOKUP(ROUNDUP((IF(((J$8-$C47)/30.4)>0,((J$8-$C47)/30.4),12+((J$8-$C47)/30.4))),0),CVMS!$D$19:$P$28,'Calcul CVMS VV'!$Q$2,FALSE))))/100*$D$2,"") ->  | K47: =IFERROR((IF($C47="","",(HLOOKUP(ROUNDUP((IF(((K$8-$C47)/30.4)>0,((K$8-$C47)/30.4),12+((K$8-$C47)/30.4))),0),CVMS!$D$19:$P$28,'Calcul CVMS VV'!$Q$2,FALSE))))/100*$D$2,"") ->  | L47: =IFERROR((IF($C47="","",(HLOOKUP(ROUNDUP((IF(((L$8-$C47)/30.4)>0,((L$8-$C47)/30.4),12+((L$8-$C47)/30.4))),0),CVMS!$D$19:$P$28,'Calcul CVMS VV'!$Q$2,FALSE))))/100*$D$2,"") ->  | M47: =IFERROR((IF($C47="","",(HLOOKUP(ROUNDUP((IF(((M$8-$C47)/30.4)>0,((M$8-$C47)/30.4),12+((M$8-$C47)/30.4))),0),CVMS!$D$19:$P$28,'Calcul CVMS VV'!$Q$2,FALSE))))/100*$D$2,"") ->  | N47: =IFERROR((IF($C47="","",(HLOOKUP(ROUNDUP((IF(((N$8-$C47)/30.4)>0,((N$8-$C47)/30.4),12+((N$8-$C47)/30.4))),0),CVMS!$D$19:$P$28,'Calcul CVMS VV'!$Q$2,FALSE))))/100*$D$2,"") ->  | O47: =IFERROR((IF($C47="","",(HLOOKUP(ROUNDUP((IF(((O$8-$C47)/30.4)>0,((O$8-$C47)/30.4),12+((O$8-$C47)/30.4))),0),CVMS!$D$19:$P$28,'Calcul CVMS VV'!$Q$2,FALSE))))/100*$D$2,"") ->  | P47: =IFERROR((IF($C47="","",(HLOOKUP(ROUNDUP((IF(((P$8-$C47)/30.4)>0,((P$8-$C47)/30.4),12+((P$8-$C47)/30.4))),0),CVMS!$D$19:$P$28,'Calcul CVMS VV'!$Q$2,FALSE))))/100*$D$2,"") -> 
E48: =IFERROR((IF($C48="","",(HLOOKUP(ROUNDUP((IF(((E$8-$C48)/30.4)>0,((E$8-$C48)/30.4),12+((E$8-$C48)/30.4))),0),CVMS!$D$19:$P$28,'Calcul CVMS VV'!$Q$2,FALSE))))/100*$D$2,"") ->  | F48: =IFERROR((IF($C48="","",(HLOOKUP(ROUNDUP((IF(((F$8-$C48)/30.4)>0,((F$8-$C48)/30.4),12+((F$8-$C48)/30.4))),0),CVMS!$D$19:$P$28,'Calcul CVMS VV'!$Q$2,FALSE))))/100*$D$2,"") ->  | G48: =IFERROR((IF($C48="","",(HLOOKUP(ROUNDUP((IF(((G$8-$C48)/30.4)>0,((G$8-$C48)/30.4),12+((G$8-$C48)/30.4))),0),CVMS!$D$19:$P$28,'Calcul CVMS VV'!$Q$2,FALSE))))/100*$D$2,"") ->  | H48: =IFERROR((IF($C48="","",(HLOOKUP(ROUNDUP((IF(((H$8-$C48)/30.4)>0,((H$8-$C48)/30.4),12+((H$8-$C48)/30.4))),0),CVMS!$D$19:$P$28,'Calcul CVMS VV'!$Q$2,FALSE))))/100*$D$2,"") ->  | I48: =IFERROR((IF($C48="","",(HLOOKUP(ROUNDUP((IF(((I$8-$C48)/30.4)>0,((I$8-$C48)/30.4),12+((I$8-$C48)/30.4))),0),CVMS!$D$19:$P$28,'Calcul CVMS VV'!$Q$2,FALSE))))/100*$D$2,"") ->  | J48: =IFERROR((IF($C48="","",(HLOOKUP(ROUNDUP((IF(((J$8-$C48)/30.4)>0,((J$8-$C48)/30.4),12+((J$8-$C48)/30.4))),0),CVMS!$D$19:$P$28,'Calcul CVMS VV'!$Q$2,FALSE))))/100*$D$2,"") ->  | K48: =IFERROR((IF($C48="","",(HLOOKUP(ROUNDUP((IF(((K$8-$C48)/30.4)>0,((K$8-$C48)/30.4),12+((K$8-$C48)/30.4))),0),CVMS!$D$19:$P$28,'Calcul CVMS VV'!$Q$2,FALSE))))/100*$D$2,"") ->  | L48: =IFERROR((IF($C48="","",(HLOOKUP(ROUNDUP((IF(((L$8-$C48)/30.4)>0,((L$8-$C48)/30.4),12+((L$8-$C48)/30.4))),0),CVMS!$D$19:$P$28,'Calcul CVMS VV'!$Q$2,FALSE))))/100*$D$2,"") ->  | M48: =IFERROR((IF($C48="","",(HLOOKUP(ROUNDUP((IF(((M$8-$C48)/30.4)>0,((M$8-$C48)/30.4),12+((M$8-$C48)/30.4))),0),CVMS!$D$19:$P$28,'Calcul CVMS VV'!$Q$2,FALSE))))/100*$D$2,"") ->  | N48: =IFERROR((IF($C48="","",(HLOOKUP(ROUNDUP((IF(((N$8-$C48)/30.4)>0,((N$8-$C48)/30.4),12+((N$8-$C48)/30.4))),0),CVMS!$D$19:$P$28,'Calcul CVMS VV'!$Q$2,FALSE))))/100*$D$2,"") ->  | O48: =IFERROR((IF($C48="","",(HLOOKUP(ROUNDUP((IF(((O$8-$C48)/30.4)>0,((O$8-$C48)/30.4),12+((O$8-$C48)/30.4))),0),CVMS!$D$19:$P$28,'Calcul CVMS VV'!$Q$2,FALSE))))/100*$D$2,"") ->  | P48: =IFERROR((IF($C48="","",(HLOOKUP(ROUNDUP((IF(((P$8-$C48)/30.4)>0,((P$8-$C48)/30.4),12+((P$8-$C48)/30.4))),0),CVMS!$D$19:$P$28,'Calcul CVMS VV'!$Q$2,FALSE))))/100*$D$2,"") -> 
E49: =IFERROR((IF($C49="","",(HLOOKUP(ROUNDUP((IF(((E$8-$C49)/30.4)>0,((E$8-$C49)/30.4),12+((E$8-$C49)/30.4))),0),CVMS!$D$19:$P$28,'Calcul CVMS VV'!$Q$2,FALSE))))/100*$D$2,"") ->  | F49: =IFERROR((IF($C49="","",(HLOOKUP(ROUNDUP((IF(((F$8-$C49)/30.4)>0,((F$8-$C49)/30.4),12+((F$8-$C49)/30.4))),0),CVMS!$D$19:$P$28,'Calcul CVMS VV'!$Q$2,FALSE))))/100*$D$2,"") ->  | G49: =IFERROR((IF($C49="","",(HLOOKUP(ROUNDUP((IF(((G$8-$C49)/30.4)>0,((G$8-$C49)/30.4),12+((G$8-$C49)/30.4))),0),CVMS!$D$19:$P$28,'Calcul CVMS VV'!$Q$2,FALSE))))/100*$D$2,"") ->  | H49: =IFERROR((IF($C49="","",(HLOOKUP(ROUNDUP((IF(((H$8-$C49)/30.4)>0,((H$8-$C49)/30.4),12+((H$8-$C49)/30.4))),0),CVMS!$D$19:$P$28,'Calcul CVMS VV'!$Q$2,FALSE))))/100*$D$2,"") ->  | I49: =IFERROR((IF($C49="","",(HLOOKUP(ROUNDUP((IF(((I$8-$C49)/30.4)>0,((I$8-$C49)/30.4),12+((I$8-$C49)/30.4))),0),CVMS!$D$19:$P$28,'Calcul CVMS VV'!$Q$2,FALSE))))/100*$D$2,"") ->  | J49: =IFERROR((IF($C49="","",(HLOOKUP(ROUNDUP((IF(((J$8-$C49)/30.4)>0,((J$8-$C49)/30.4),12+((J$8-$C49)/30.4))),0),CVMS!$D$19:$P$28,'Calcul CVMS VV'!$Q$2,FALSE))))/100*$D$2,"") ->  | K49: =IFERROR((IF($C49="","",(HLOOKUP(ROUNDUP((IF(((K$8-$C49)/30.4)>0,((K$8-$C49)/30.4),12+((K$8-$C49)/30.4))),0),CVMS!$D$19:$P$28,'Calcul CVMS VV'!$Q$2,FALSE))))/100*$D$2,"") ->  | L49: =IFERROR((IF($C49="","",(HLOOKUP(ROUNDUP((IF(((L$8-$C49)/30.4)>0,((L$8-$C49)/30.4),12+((L$8-$C49)/30.4))),0),CVMS!$D$19:$P$28,'Calcul CVMS VV'!$Q$2,FALSE))))/100*$D$2,"") ->  | M49: =IFERROR((IF($C49="","",(HLOOKUP(ROUNDUP((IF(((M$8-$C49)/30.4)>0,((M$8-$C49)/30.4),12+((M$8-$C49)/30.4))),0),CVMS!$D$19:$P$28,'Calcul CVMS VV'!$Q$2,FALSE))))/100*$D$2,"") ->  | N49: =IFERROR((IF($C49="","",(HLOOKUP(ROUNDUP((IF(((N$8-$C49)/30.4)>0,((N$8-$C49)/30.4),12+((N$8-$C49)/30.4))),0),CVMS!$D$19:$P$28,'Calcul CVMS VV'!$Q$2,FALSE))))/100*$D$2,"") ->  | O49: =IFERROR((IF($C49="","",(HLOOKUP(ROUNDUP((IF(((O$8-$C49)/30.4)>0,((O$8-$C49)/30.4),12+((O$8-$C49)/30.4))),0),CVMS!$D$19:$P$28,'Calcul CVMS VV'!$Q$2,FALSE))))/100*$D$2,"") ->  | P49: =IFERROR((IF($C49="","",(HLOOKUP(ROUNDUP((IF(((P$8-$C49)/30.4)>0,((P$8-$C49)/30.4),12+((P$8-$C49)/30.4))),0),CVMS!$D$19:$P$28,'Calcul CVMS VV'!$Q$2,FALSE))))/100*$D$2,"") -> 
E50: =IFERROR((IF($C50="","",(HLOOKUP(ROUNDUP((IF(((E$8-$C50)/30.4)>0,((E$8-$C50)/30.4),12+((E$8-$C50)/30.4))),0),CVMS!$D$19:$P$28,'Calcul CVMS VV'!$Q$2,FALSE))))/100*$D$2,"") ->  | F50: =IFERROR((IF($C50="","",(HLOOKUP(ROUNDUP((IF(((F$8-$C50)/30.4)>0,((F$8-$C50)/30.4),12+((F$8-$C50)/30.4))),0),CVMS!$D$19:$P$28,'Calcul CVMS VV'!$Q$2,FALSE))))/100*$D$2,"") ->  | G50: =IFERROR((IF($C50="","",(HLOOKUP(ROUNDUP((IF(((G$8-$C50)/30.4)>0,((G$8-$C50)/30.4),12+((G$8-$C50)/30.4))),0),CVMS!$D$19:$P$28,'Calcul CVMS VV'!$Q$2,FALSE))))/100*$D$2,"") ->  | H50: =IFERROR((IF($C50="","",(HLOOKUP(ROUNDUP((IF(((H$8-$C50)/30.4)>0,((H$8-$C50)/30.4),12+((H$8-$C50)/30.4))),0),CVMS!$D$19:$P$28,'Calcul CVMS VV'!$Q$2,FALSE))))/100*$D$2,"") ->  | I50: =IFERROR((IF($C50="","",(HLOOKUP(ROUNDUP((IF(((I$8-$C50)/30.4)>0,((I$8-$C50)/30.4),12+((I$8-$C50)/30.4))),0),CVMS!$D$19:$P$28,'Calcul CVMS VV'!$Q$2,FALSE))))/100*$D$2,"") ->  | J50: =IFERROR((IF($C50="","",(HLOOKUP(ROUNDUP((IF(((J$8-$C50)/30.4)>0,((J$8-$C50)/30.4),12+((J$8-$C50)/30.4))),0),CVMS!$D$19:$P$28,'Calcul CVMS VV'!$Q$2,FALSE))))/100*$D$2,"") ->  | K50: =IFERROR((IF($C50="","",(HLOOKUP(ROUNDUP((IF(((K$8-$C50)/30.4)>0,((K$8-$C50)/30.4),12+((K$8-$C50)/30.4))),0),CVMS!$D$19:$P$28,'Calcul CVMS VV'!$Q$2,FALSE))))/100*$D$2,"") ->  | L50: =IFERROR((IF($C50="","",(HLOOKUP(ROUNDUP((IF(((L$8-$C50)/30.4)>0,((L$8-$C50)/30.4),12+((L$8-$C50)/30.4))),0),CVMS!$D$19:$P$28,'Calcul CVMS VV'!$Q$2,FALSE))))/100*$D$2,"") ->  | M50: =IFERROR((IF($C50="","",(HLOOKUP(ROUNDUP((IF(((M$8-$C50)/30.4)>0,((M$8-$C50)/30.4),12+((M$8-$C50)/30.4))),0),CVMS!$D$19:$P$28,'Calcul CVMS VV'!$Q$2,FALSE))))/100*$D$2,"") ->  | N50: =IFERROR((IF($C50="","",(HLOOKUP(ROUNDUP((IF(((N$8-$C50)/30.4)>0,((N$8-$C50)/30.4),12+((N$8-$C50)/30.4))),0),CVMS!$D$19:$P$28,'Calcul CVMS VV'!$Q$2,FALSE))))/100*$D$2,"") ->  | O50: =IFERROR((IF($C50="","",(HLOOKUP(ROUNDUP((IF(((O$8-$C50)/30.4)>0,((O$8-$C50)/30.4),12+((O$8-$C50)/30.4))),0),CVMS!$D$19:$P$28,'Calcul CVMS VV'!$Q$2,FALSE))))/100*$D$2,"") ->  | P50: =IFERROR((IF($C50="","",(HLOOKUP(ROUNDUP((IF(((P$8-$C50)/30.4)>0,((P$8-$C50)/30.4),12+((P$8-$C50)/30.4))),0),CVMS!$D$19:$P$28,'Calcul CVMS VV'!$Q$2,FALSE))))/100*$D$2,"") -> 
E51: =IFERROR((IF($C51="","",(HLOOKUP(ROUNDUP((IF(((E$8-$C51)/30.4)>0,((E$8-$C51)/30.4),12+((E$8-$C51)/30.4))),0),CVMS!$D$19:$P$28,'Calcul CVMS VV'!$Q$2,FALSE))))/100*$D$2,"") ->  | F51: =IFERROR((IF($C51="","",(HLOOKUP(ROUNDUP((IF(((F$8-$C51)/30.4)>0,((F$8-$C51)/30.4),12+((F$8-$C51)/30.4))),0),CVMS!$D$19:$P$28,'Calcul CVMS VV'!$Q$2,FALSE))))/100*$D$2,"") ->  | G51: =IFERROR((IF($C51="","",(HLOOKUP(ROUNDUP((IF(((G$8-$C51)/30.4)>0,((G$8-$C51)/30.4),12+((G$8-$C51)/30.4))),0),CVMS!$D$19:$P$28,'Calcul CVMS VV'!$Q$2,FALSE))))/100*$D$2,"") ->  | H51: =IFERROR((IF($C51="","",(HLOOKUP(ROUNDUP((IF(((H$8-$C51)/30.4)>0,((H$8-$C51)/30.4),12+((H$8-$C51)/30.4))),0),CVMS!$D$19:$P$28,'Calcul CVMS VV'!$Q$2,FALSE))))/100*$D$2,"") ->  | I51: =IFERROR((IF($C51="","",(HLOOKUP(ROUNDUP((IF(((I$8-$C51)/30.4)>0,((I$8-$C51)/30.4),12+((I$8-$C51)/30.4))),0),CVMS!$D$19:$P$28,'Calcul CVMS VV'!$Q$2,FALSE))))/100*$D$2,"") ->  | J51: =IFERROR((IF($C51="","",(HLOOKUP(ROUNDUP((IF(((J$8-$C51)/30.4)>0,((J$8-$C51)/30.4),12+((J$8-$C51)/30.4))),0),CVMS!$D$19:$P$28,'Calcul CVMS VV'!$Q$2,FALSE))))/100*$D$2,"") ->  | K51: =IFERROR((IF($C51="","",(HLOOKUP(ROUNDUP((IF(((K$8-$C51)/30.4)>0,((K$8-$C51)/30.4),12+((K$8-$C51)/30.4))),0),CVMS!$D$19:$P$28,'Calcul CVMS VV'!$Q$2,FALSE))))/100*$D$2,"") ->  | L51: =IFERROR((IF($C51="","",(HLOOKUP(ROUNDUP((IF(((L$8-$C51)/30.4)>0,((L$8-$C51)/30.4),12+((L$8-$C51)/30.4))),0),CVMS!$D$19:$P$28,'Calcul CVMS VV'!$Q$2,FALSE))))/100*$D$2,"") ->  | M51: =IFERROR((IF($C51="","",(HLOOKUP(ROUNDUP((IF(((M$8-$C51)/30.4)>0,((M$8-$C51)/30.4),12+((M$8-$C51)/30.4))),0),CVMS!$D$19:$P$28,'Calcul CVMS VV'!$Q$2,FALSE))))/100*$D$2,"") ->  | N51: =IFERROR((IF($C51="","",(HLOOKUP(ROUNDUP((IF(((N$8-$C51)/30.4)>0,((N$8-$C51)/30.4),12+((N$8-$C51)/30.4))),0),CVMS!$D$19:$P$28,'Calcul CVMS VV'!$Q$2,FALSE))))/100*$D$2,"") ->  | O51: =IFERROR((IF($C51="","",(HLOOKUP(ROUNDUP((IF(((O$8-$C51)/30.4)>0,((O$8-$C51)/30.4),12+((O$8-$C51)/30.4))),0),CVMS!$D$19:$P$28,'Calcul CVMS VV'!$Q$2,FALSE))))/100*$D$2,"") ->  | P51: =IFERROR((IF($C51="","",(HLOOKUP(ROUNDUP((IF(((P$8-$C51)/30.4)>0,((P$8-$C51)/30.4),12+((P$8-$C51)/30.4))),0),CVMS!$D$19:$P$28,'Calcul CVMS VV'!$Q$2,FALSE))))/100*$D$2,"") -> 
E52: =IFERROR((IF($C52="","",(HLOOKUP(ROUNDUP((IF(((E$8-$C52)/30.4)>0,((E$8-$C52)/30.4),12+((E$8-$C52)/30.4))),0),CVMS!$D$19:$P$28,'Calcul CVMS VV'!$Q$2,FALSE))))/100*$D$2,"") ->  | F52: =IFERROR((IF($C52="","",(HLOOKUP(ROUNDUP((IF(((F$8-$C52)/30.4)>0,((F$8-$C52)/30.4),12+((F$8-$C52)/30.4))),0),CVMS!$D$19:$P$28,'Calcul CVMS VV'!$Q$2,FALSE))))/100*$D$2,"") ->  | G52: =IFERROR((IF($C52="","",(HLOOKUP(ROUNDUP((IF(((G$8-$C52)/30.4)>0,((G$8-$C52)/30.4),12+((G$8-$C52)/30.4))),0),CVMS!$D$19:$P$28,'Calcul CVMS VV'!$Q$2,FALSE))))/100*$D$2,"") ->  | H52: =IFERROR((IF($C52="","",(HLOOKUP(ROUNDUP((IF(((H$8-$C52)/30.4)>0,((H$8-$C52)/30.4),12+((H$8-$C52)/30.4))),0),CVMS!$D$19:$P$28,'Calcul CVMS VV'!$Q$2,FALSE))))/100*$D$2,"") ->  | I52: =IFERROR((IF($C52="","",(HLOOKUP(ROUNDUP((IF(((I$8-$C52)/30.4)>0,((I$8-$C52)/30.4),12+((I$8-$C52)/30.4))),0),CVMS!$D$19:$P$28,'Calcul CVMS VV'!$Q$2,FALSE))))/100*$D$2,"") ->  | J52: =IFERROR((IF($C52="","",(HLOOKUP(ROUNDUP((IF(((J$8-$C52)/30.4)>0,((J$8-$C52)/30.4),12+((J$8-$C52)/30.4))),0),CVMS!$D$19:$P$28,'Calcul CVMS VV'!$Q$2,FALSE))))/100*$D$2,"") ->  | K52: =IFERROR((IF($C52="","",(HLOOKUP(ROUNDUP((IF(((K$8-$C52)/30.4)>0,((K$8-$C52)/30.4),12+((K$8-$C52)/30.4))),0),CVMS!$D$19:$P$28,'Calcul CVMS VV'!$Q$2,FALSE))))/100*$D$2,"") ->  | L52: =IFERROR((IF($C52="","",(HLOOKUP(ROUNDUP((IF(((L$8-$C52)/30.4)>0,((L$8-$C52)/30.4),12+((L$8-$C52)/30.4))),0),CVMS!$D$19:$P$28,'Calcul CVMS VV'!$Q$2,FALSE))))/100*$D$2,"") ->  | M52: =IFERROR((IF($C52="","",(HLOOKUP(ROUNDUP((IF(((M$8-$C52)/30.4)>0,((M$8-$C52)/30.4),12+((M$8-$C52)/30.4))),0),CVMS!$D$19:$P$28,'Calcul CVMS VV'!$Q$2,FALSE))))/100*$D$2,"") ->  | N52: =IFERROR((IF($C52="","",(HLOOKUP(ROUNDUP((IF(((N$8-$C52)/30.4)>0,((N$8-$C52)/30.4),12+((N$8-$C52)/30.4))),0),CVMS!$D$19:$P$28,'Calcul CVMS VV'!$Q$2,FALSE))))/100*$D$2,"") ->  | O52: =IFERROR((IF($C52="","",(HLOOKUP(ROUNDUP((IF(((O$8-$C52)/30.4)>0,((O$8-$C52)/30.4),12+((O$8-$C52)/30.4))),0),CVMS!$D$19:$P$28,'Calcul CVMS VV'!$Q$2,FALSE))))/100*$D$2,"") ->  | P52: =IFERROR((IF($C52="","",(HLOOKUP(ROUNDUP((IF(((P$8-$C52)/30.4)>0,((P$8-$C52)/30.4),12+((P$8-$C52)/30.4))),0),CVMS!$D$19:$P$28,'Calcul CVMS VV'!$Q$2,FALSE))))/100*$D$2,"") -> 
E53: =IFERROR((IF($C53="","",(HLOOKUP(ROUNDUP((IF(((E$8-$C53)/30.4)>0,((E$8-$C53)/30.4),12+((E$8-$C53)/30.4))),0),CVMS!$D$19:$P$28,'Calcul CVMS VV'!$Q$2,FALSE))))/100*$D$2,"") ->  | F53: =IFERROR((IF($C53="","",(HLOOKUP(ROUNDUP((IF(((F$8-$C53)/30.4)>0,((F$8-$C53)/30.4),12+((F$8-$C53)/30.4))),0),CVMS!$D$19:$P$28,'Calcul CVMS VV'!$Q$2,FALSE))))/100*$D$2,"") ->  | G53: =IFERROR((IF($C53="","",(HLOOKUP(ROUNDUP((IF(((G$8-$C53)/30.4)>0,((G$8-$C53)/30.4),12+((G$8-$C53)/30.4))),0),CVMS!$D$19:$P$28,'Calcul CVMS VV'!$Q$2,FALSE))))/100*$D$2,"") ->  | H53: =IFERROR((IF($C53="","",(HLOOKUP(ROUNDUP((IF(((H$8-$C53)/30.4)>0,((H$8-$C53)/30.4),12+((H$8-$C53)/30.4))),0),CVMS!$D$19:$P$28,'Calcul CVMS VV'!$Q$2,FALSE))))/100*$D$2,"") ->  | I53: =IFERROR((IF($C53="","",(HLOOKUP(ROUNDUP((IF(((I$8-$C53)/30.4)>0,((I$8-$C53)/30.4),12+((I$8-$C53)/30.4))),0),CVMS!$D$19:$P$28,'Calcul CVMS VV'!$Q$2,FALSE))))/100*$D$2,"") ->  | J53: =IFERROR((IF($C53="","",(HLOOKUP(ROUNDUP((IF(((J$8-$C53)/30.4)>0,((J$8-$C53)/30.4),12+((J$8-$C53)/30.4))),0),CVMS!$D$19:$P$28,'Calcul CVMS VV'!$Q$2,FALSE))))/100*$D$2,"") ->  | K53: =IFERROR((IF($C53="","",(HLOOKUP(ROUNDUP((IF(((K$8-$C53)/30.4)>0,((K$8-$C53)/30.4),12+((K$8-$C53)/30.4))),0),CVMS!$D$19:$P$28,'Calcul CVMS VV'!$Q$2,FALSE))))/100*$D$2,"") ->  | L53: =IFERROR((IF($C53="","",(HLOOKUP(ROUNDUP((IF(((L$8-$C53)/30.4)>0,((L$8-$C53)/30.4),12+((L$8-$C53)/30.4))),0),CVMS!$D$19:$P$28,'Calcul CVMS VV'!$Q$2,FALSE))))/100*$D$2,"") ->  | M53: =IFERROR((IF($C53="","",(HLOOKUP(ROUNDUP((IF(((M$8-$C53)/30.4)>0,((M$8-$C53)/30.4),12+((M$8-$C53)/30.4))),0),CVMS!$D$19:$P$28,'Calcul CVMS VV'!$Q$2,FALSE))))/100*$D$2,"") ->  | N53: =IFERROR((IF($C53="","",(HLOOKUP(ROUNDUP((IF(((N$8-$C53)/30.4)>0,((N$8-$C53)/30.4),12+((N$8-$C53)/30.4))),0),CVMS!$D$19:$P$28,'Calcul CVMS VV'!$Q$2,FALSE))))/100*$D$2,"") ->  | O53: =IFERROR((IF($C53="","",(HLOOKUP(ROUNDUP((IF(((O$8-$C53)/30.4)>0,((O$8-$C53)/30.4),12+((O$8-$C53)/30.4))),0),CVMS!$D$19:$P$28,'Calcul CVMS VV'!$Q$2,FALSE))))/100*$D$2,"") ->  | P53: =IFERROR((IF($C53="","",(HLOOKUP(ROUNDUP((IF(((P$8-$C53)/30.4)>0,((P$8-$C53)/30.4),12+((P$8-$C53)/30.4))),0),CVMS!$D$19:$P$28,'Calcul CVMS VV'!$Q$2,FALSE))))/100*$D$2,"") -> 
E54: =IFERROR((IF($C54="","",(HLOOKUP(ROUNDUP((IF(((E$8-$C54)/30.4)>0,((E$8-$C54)/30.4),12+((E$8-$C54)/30.4))),0),CVMS!$D$19:$P$28,'Calcul CVMS VV'!$Q$2,FALSE))))/100*$D$2,"") ->  | F54: =IFERROR((IF($C54="","",(HLOOKUP(ROUNDUP((IF(((F$8-$C54)/30.4)>0,((F$8-$C54)/30.4),12+((F$8-$C54)/30.4))),0),CVMS!$D$19:$P$28,'Calcul CVMS VV'!$Q$2,FALSE))))/100*$D$2,"") ->  | G54: =IFERROR((IF($C54="","",(HLOOKUP(ROUNDUP((IF(((G$8-$C54)/30.4)>0,((G$8-$C54)/30.4),12+((G$8-$C54)/30.4))),0),CVMS!$D$19:$P$28,'Calcul CVMS VV'!$Q$2,FALSE))))/100*$D$2,"") ->  | H54: =IFERROR((IF($C54="","",(HLOOKUP(ROUNDUP((IF(((H$8-$C54)/30.4)>0,((H$8-$C54)/30.4),12+((H$8-$C54)/30.4))),0),CVMS!$D$19:$P$28,'Calcul CVMS VV'!$Q$2,FALSE))))/100*$D$2,"") ->  | I54: =IFERROR((IF($C54="","",(HLOOKUP(ROUNDUP((IF(((I$8-$C54)/30.4)>0,((I$8-$C54)/30.4),12+((I$8-$C54)/30.4))),0),CVMS!$D$19:$P$28,'Calcul CVMS VV'!$Q$2,FALSE))))/100*$D$2,"") ->  | J54: =IFERROR((IF($C54="","",(HLOOKUP(ROUNDUP((IF(((J$8-$C54)/30.4)>0,((J$8-$C54)/30.4),12+((J$8-$C54)/30.4))),0),CVMS!$D$19:$P$28,'Calcul CVMS VV'!$Q$2,FALSE))))/100*$D$2,"") ->  | K54: =IFERROR((IF($C54="","",(HLOOKUP(ROUNDUP((IF(((K$8-$C54)/30.4)>0,((K$8-$C54)/30.4),12+((K$8-$C54)/30.4))),0),CVMS!$D$19:$P$28,'Calcul CVMS VV'!$Q$2,FALSE))))/100*$D$2,"") ->  | L54: =IFERROR((IF($C54="","",(HLOOKUP(ROUNDUP((IF(((L$8-$C54)/30.4)>0,((L$8-$C54)/30.4),12+((L$8-$C54)/30.4))),0),CVMS!$D$19:$P$28,'Calcul CVMS VV'!$Q$2,FALSE))))/100*$D$2,"") ->  | M54: =IFERROR((IF($C54="","",(HLOOKUP(ROUNDUP((IF(((M$8-$C54)/30.4)>0,((M$8-$C54)/30.4),12+((M$8-$C54)/30.4))),0),CVMS!$D$19:$P$28,'Calcul CVMS VV'!$Q$2,FALSE))))/100*$D$2,"") ->  | N54: =IFERROR((IF($C54="","",(HLOOKUP(ROUNDUP((IF(((N$8-$C54)/30.4)>0,((N$8-$C54)/30.4),12+((N$8-$C54)/30.4))),0),CVMS!$D$19:$P$28,'Calcul CVMS VV'!$Q$2,FALSE))))/100*$D$2,"") ->  | O54: =IFERROR((IF($C54="","",(HLOOKUP(ROUNDUP((IF(((O$8-$C54)/30.4)>0,((O$8-$C54)/30.4),12+((O$8-$C54)/30.4))),0),CVMS!$D$19:$P$28,'Calcul CVMS VV'!$Q$2,FALSE))))/100*$D$2,"") ->  | P54: =IFERROR((IF($C54="","",(HLOOKUP(ROUNDUP((IF(((P$8-$C54)/30.4)>0,((P$8-$C54)/30.4),12+((P$8-$C54)/30.4))),0),CVMS!$D$19:$P$28,'Calcul CVMS VV'!$Q$2,FALSE))))/100*$D$2,"") -> 
E55: =IFERROR((IF($C55="","",(HLOOKUP(ROUNDUP((IF(((E$8-$C55)/30.4)>0,((E$8-$C55)/30.4),12+((E$8-$C55)/30.4))),0),CVMS!$D$19:$P$28,'Calcul CVMS VV'!$Q$2,FALSE))))/100*$D$2,"") ->  | F55: =IFERROR((IF($C55="","",(HLOOKUP(ROUNDUP((IF(((F$8-$C55)/30.4)>0,((F$8-$C55)/30.4),12+((F$8-$C55)/30.4))),0),CVMS!$D$19:$P$28,'Calcul CVMS VV'!$Q$2,FALSE))))/100*$D$2,"") ->  | G55: =IFERROR((IF($C55="","",(HLOOKUP(ROUNDUP((IF(((G$8-$C55)/30.4)>0,((G$8-$C55)/30.4),12+((G$8-$C55)/30.4))),0),CVMS!$D$19:$P$28,'Calcul CVMS VV'!$Q$2,FALSE))))/100*$D$2,"") ->  | H55: =IFERROR((IF($C55="","",(HLOOKUP(ROUNDUP((IF(((H$8-$C55)/30.4)>0,((H$8-$C55)/30.4),12+((H$8-$C55)/30.4))),0),CVMS!$D$19:$P$28,'Calcul CVMS VV'!$Q$2,FALSE))))/100*$D$2,"") ->  | I55: =IFERROR((IF($C55="","",(HLOOKUP(ROUNDUP((IF(((I$8-$C55)/30.4)>0,((I$8-$C55)/30.4),12+((I$8-$C55)/30.4))),0),CVMS!$D$19:$P$28,'Calcul CVMS VV'!$Q$2,FALSE))))/100*$D$2,"") ->  | J55: =IFERROR((IF($C55="","",(HLOOKUP(ROUNDUP((IF(((J$8-$C55)/30.4)>0,((J$8-$C55)/30.4),12+((J$8-$C55)/30.4))),0),CVMS!$D$19:$P$28,'Calcul CVMS VV'!$Q$2,FALSE))))/100*$D$2,"") ->  | K55: =IFERROR((IF($C55="","",(HLOOKUP(ROUNDUP((IF(((K$8-$C55)/30.4)>0,((K$8-$C55)/30.4),12+((K$8-$C55)/30.4))),0),CVMS!$D$19:$P$28,'Calcul CVMS VV'!$Q$2,FALSE))))/100*$D$2,"") ->  | L55: =IFERROR((IF($C55="","",(HLOOKUP(ROUNDUP((IF(((L$8-$C55)/30.4)>0,((L$8-$C55)/30.4),12+((L$8-$C55)/30.4))),0),CVMS!$D$19:$P$28,'Calcul CVMS VV'!$Q$2,FALSE))))/100*$D$2,"") ->  | M55: =IFERROR((IF($C55="","",(HLOOKUP(ROUNDUP((IF(((M$8-$C55)/30.4)>0,((M$8-$C55)/30.4),12+((M$8-$C55)/30.4))),0),CVMS!$D$19:$P$28,'Calcul CVMS VV'!$Q$2,FALSE))))/100*$D$2,"") ->  | N55: =IFERROR((IF($C55="","",(HLOOKUP(ROUNDUP((IF(((N$8-$C55)/30.4)>0,((N$8-$C55)/30.4),12+((N$8-$C55)/30.4))),0),CVMS!$D$19:$P$28,'Calcul CVMS VV'!$Q$2,FALSE))))/100*$D$2,"") ->  | O55: =IFERROR((IF($C55="","",(HLOOKUP(ROUNDUP((IF(((O$8-$C55)/30.4)>0,((O$8-$C55)/30.4),12+((O$8-$C55)/30.4))),0),CVMS!$D$19:$P$28,'Calcul CVMS VV'!$Q$2,FALSE))))/100*$D$2,"") ->  | P55: =IFERROR((IF($C55="","",(HLOOKUP(ROUNDUP((IF(((P$8-$C55)/30.4)>0,((P$8-$C55)/30.4),12+((P$8-$C55)/30.4))),0),CVMS!$D$19:$P$28,'Calcul CVMS VV'!$Q$2,FALSE))))/100*$D$2,"") -> 
E56: =IFERROR((IF($C56="","",(HLOOKUP(ROUNDUP((IF(((E$8-$C56)/30.4)>0,((E$8-$C56)/30.4),12+((E$8-$C56)/30.4))),0),CVMS!$D$19:$P$28,'Calcul CVMS VV'!$Q$2,FALSE))))/100*$D$2,"") ->  | F56: =IFERROR((IF($C56="","",(HLOOKUP(ROUNDUP((IF(((F$8-$C56)/30.4)>0,((F$8-$C56)/30.4),12+((F$8-$C56)/30.4))),0),CVMS!$D$19:$P$28,'Calcul CVMS VV'!$Q$2,FALSE))))/100*$D$2,"") ->  | G56: =IFERROR((IF($C56="","",(HLOOKUP(ROUNDUP((IF(((G$8-$C56)/30.4)>0,((G$8-$C56)/30.4),12+((G$8-$C56)/30.4))),0),CVMS!$D$19:$P$28,'Calcul CVMS VV'!$Q$2,FALSE))))/100*$D$2,"") ->  | H56: =IFERROR((IF($C56="","",(HLOOKUP(ROUNDUP((IF(((H$8-$C56)/30.4)>0,((H$8-$C56)/30.4),12+((H$8-$C56)/30.4))),0),CVMS!$D$19:$P$28,'Calcul CVMS VV'!$Q$2,FALSE))))/100*$D$2,"") ->  | I56: =IFERROR((IF($C56="","",(HLOOKUP(ROUNDUP((IF(((I$8-$C56)/30.4)>0,((I$8-$C56)/30.4),12+((I$8-$C56)/30.4))),0),CVMS!$D$19:$P$28,'Calcul CVMS VV'!$Q$2,FALSE))))/100*$D$2,"") ->  | J56: =IFERROR((IF($C56="","",(HLOOKUP(ROUNDUP((IF(((J$8-$C56)/30.4)>0,((J$8-$C56)/30.4),12+((J$8-$C56)/30.4))),0),CVMS!$D$19:$P$28,'Calcul CVMS VV'!$Q$2,FALSE))))/100*$D$2,"") ->  | K56: =IFERROR((IF($C56="","",(HLOOKUP(ROUNDUP((IF(((K$8-$C56)/30.4)>0,((K$8-$C56)/30.4),12+((K$8-$C56)/30.4))),0),CVMS!$D$19:$P$28,'Calcul CVMS VV'!$Q$2,FALSE))))/100*$D$2,"") ->  | L56: =IFERROR((IF($C56="","",(HLOOKUP(ROUNDUP((IF(((L$8-$C56)/30.4)>0,((L$8-$C56)/30.4),12+((L$8-$C56)/30.4))),0),CVMS!$D$19:$P$28,'Calcul CVMS VV'!$Q$2,FALSE))))/100*$D$2,"") ->  | M56: =IFERROR((IF($C56="","",(HLOOKUP(ROUNDUP((IF(((M$8-$C56)/30.4)>0,((M$8-$C56)/30.4),12+((M$8-$C56)/30.4))),0),CVMS!$D$19:$P$28,'Calcul CVMS VV'!$Q$2,FALSE))))/100*$D$2,"") ->  | N56: =IFERROR((IF($C56="","",(HLOOKUP(ROUNDUP((IF(((N$8-$C56)/30.4)>0,((N$8-$C56)/30.4),12+((N$8-$C56)/30.4))),0),CVMS!$D$19:$P$28,'Calcul CVMS VV'!$Q$2,FALSE))))/100*$D$2,"") ->  | O56: =IFERROR((IF($C56="","",(HLOOKUP(ROUNDUP((IF(((O$8-$C56)/30.4)>0,((O$8-$C56)/30.4),12+((O$8-$C56)/30.4))),0),CVMS!$D$19:$P$28,'Calcul CVMS VV'!$Q$2,FALSE))))/100*$D$2,"") ->  | P56: =IFERROR((IF($C56="","",(HLOOKUP(ROUNDUP((IF(((P$8-$C56)/30.4)>0,((P$8-$C56)/30.4),12+((P$8-$C56)/30.4))),0),CVMS!$D$19:$P$28,'Calcul CVMS VV'!$Q$2,FALSE))))/100*$D$2,"") -> 
E57: =IFERROR((IF($C57="","",(HLOOKUP(ROUNDUP((IF(((E$8-$C57)/30.4)>0,((E$8-$C57)/30.4),12+((E$8-$C57)/30.4))),0),CVMS!$D$19:$P$28,'Calcul CVMS VV'!$Q$2,FALSE))))/100*$D$2,"") ->  | F57: =IFERROR((IF($C57="","",(HLOOKUP(ROUNDUP((IF(((F$8-$C57)/30.4)>0,((F$8-$C57)/30.4),12+((F$8-$C57)/30.4))),0),CVMS!$D$19:$P$28,'Calcul CVMS VV'!$Q$2,FALSE))))/100*$D$2,"") ->  | G57: =IFERROR((IF($C57="","",(HLOOKUP(ROUNDUP((IF(((G$8-$C57)/30.4)>0,((G$8-$C57)/30.4),12+((G$8-$C57)/30.4))),0),CVMS!$D$19:$P$28,'Calcul CVMS VV'!$Q$2,FALSE))))/100*$D$2,"") ->  | H57: =IFERROR((IF($C57="","",(HLOOKUP(ROUNDUP((IF(((H$8-$C57)/30.4)>0,((H$8-$C57)/30.4),12+((H$8-$C57)/30.4))),0),CVMS!$D$19:$P$28,'Calcul CVMS VV'!$Q$2,FALSE))))/100*$D$2,"") ->  | I57: =IFERROR((IF($C57="","",(HLOOKUP(ROUNDUP((IF(((I$8-$C57)/30.4)>0,((I$8-$C57)/30.4),12+((I$8-$C57)/30.4))),0),CVMS!$D$19:$P$28,'Calcul CVMS VV'!$Q$2,FALSE))))/100*$D$2,"") ->  | J57: =IFERROR((IF($C57="","",(HLOOKUP(ROUNDUP((IF(((J$8-$C57)/30.4)>0,((J$8-$C57)/30.4),12+((J$8-$C57)/30.4))),0),CVMS!$D$19:$P$28,'Calcul CVMS VV'!$Q$2,FALSE))))/100*$D$2,"") ->  | K57: =IFERROR((IF($C57="","",(HLOOKUP(ROUNDUP((IF(((K$8-$C57)/30.4)>0,((K$8-$C57)/30.4),12+((K$8-$C57)/30.4))),0),CVMS!$D$19:$P$28,'Calcul CVMS VV'!$Q$2,FALSE))))/100*$D$2,"") ->  | L57: =IFERROR((IF($C57="","",(HLOOKUP(ROUNDUP((IF(((L$8-$C57)/30.4)>0,((L$8-$C57)/30.4),12+((L$8-$C57)/30.4))),0),CVMS!$D$19:$P$28,'Calcul CVMS VV'!$Q$2,FALSE))))/100*$D$2,"") ->  | M57: =IFERROR((IF($C57="","",(HLOOKUP(ROUNDUP((IF(((M$8-$C57)/30.4)>0,((M$8-$C57)/30.4),12+((M$8-$C57)/30.4))),0),CVMS!$D$19:$P$28,'Calcul CVMS VV'!$Q$2,FALSE))))/100*$D$2,"") ->  | N57: =IFERROR((IF($C57="","",(HLOOKUP(ROUNDUP((IF(((N$8-$C57)/30.4)>0,((N$8-$C57)/30.4),12+((N$8-$C57)/30.4))),0),CVMS!$D$19:$P$28,'Calcul CVMS VV'!$Q$2,FALSE))))/100*$D$2,"") ->  | O57: =IFERROR((IF($C57="","",(HLOOKUP(ROUNDUP((IF(((O$8-$C57)/30.4)>0,((O$8-$C57)/30.4),12+((O$8-$C57)/30.4))),0),CVMS!$D$19:$P$28,'Calcul CVMS VV'!$Q$2,FALSE))))/100*$D$2,"") ->  | P57: =IFERROR((IF($C57="","",(HLOOKUP(ROUNDUP((IF(((P$8-$C57)/30.4)>0,((P$8-$C57)/30.4),12+((P$8-$C57)/30.4))),0),CVMS!$D$19:$P$28,'Calcul CVMS VV'!$Q$2,FALSE))))/100*$D$2,"") -> 
E58: =IFERROR((IF($C58="","",(HLOOKUP(ROUNDUP((IF(((E$8-$C58)/30.4)>0,((E$8-$C58)/30.4),12+((E$8-$C58)/30.4))),0),CVMS!$D$19:$P$28,'Calcul CVMS VV'!$Q$2,FALSE))))/100*$D$2,"") ->  | F58: =IFERROR((IF($C58="","",(HLOOKUP(ROUNDUP((IF(((F$8-$C58)/30.4)>0,((F$8-$C58)/30.4),12+((F$8-$C58)/30.4))),0),CVMS!$D$19:$P$28,'Calcul CVMS VV'!$Q$2,FALSE))))/100*$D$2,"") ->  | G58: =IFERROR((IF($C58="","",(HLOOKUP(ROUNDUP((IF(((G$8-$C58)/30.4)>0,((G$8-$C58)/30.4),12+((G$8-$C58)/30.4))),0),CVMS!$D$19:$P$28,'Calcul CVMS VV'!$Q$2,FALSE))))/100*$D$2,"") ->  | H58: =IFERROR((IF($C58="","",(HLOOKUP(ROUNDUP((IF(((H$8-$C58)/30.4)>0,((H$8-$C58)/30.4),12+((H$8-$C58)/30.4))),0),CVMS!$D$19:$P$28,'Calcul CVMS VV'!$Q$2,FALSE))))/100*$D$2,"") ->  | I58: =IFERROR((IF($C58="","",(HLOOKUP(ROUNDUP((IF(((I$8-$C58)/30.4)>0,((I$8-$C58)/30.4),12+((I$8-$C58)/30.4))),0),CVMS!$D$19:$P$28,'Calcul CVMS VV'!$Q$2,FALSE))))/100*$D$2,"") ->  | J58: =IFERROR((IF($C58="","",(HLOOKUP(ROUNDUP((IF(((J$8-$C58)/30.4)>0,((J$8-$C58)/30.4),12+((J$8-$C58)/30.4))),0),CVMS!$D$19:$P$28,'Calcul CVMS VV'!$Q$2,FALSE))))/100*$D$2,"") ->  | K58: =IFERROR((IF($C58="","",(HLOOKUP(ROUNDUP((IF(((K$8-$C58)/30.4)>0,((K$8-$C58)/30.4),12+((K$8-$C58)/30.4))),0),CVMS!$D$19:$P$28,'Calcul CVMS VV'!$Q$2,FALSE))))/100*$D$2,"") ->  | L58: =IFERROR((IF($C58="","",(HLOOKUP(ROUNDUP((IF(((L$8-$C58)/30.4)>0,((L$8-$C58)/30.4),12+((L$8-$C58)/30.4))),0),CVMS!$D$19:$P$28,'Calcul CVMS VV'!$Q$2,FALSE))))/100*$D$2,"") ->  | M58: =IFERROR((IF($C58="","",(HLOOKUP(ROUNDUP((IF(((M$8-$C58)/30.4)>0,((M$8-$C58)/30.4),12+((M$8-$C58)/30.4))),0),CVMS!$D$19:$P$28,'Calcul CVMS VV'!$Q$2,FALSE))))/100*$D$2,"") ->  | N58: =IFERROR((IF($C58="","",(HLOOKUP(ROUNDUP((IF(((N$8-$C58)/30.4)>0,((N$8-$C58)/30.4),12+((N$8-$C58)/30.4))),0),CVMS!$D$19:$P$28,'Calcul CVMS VV'!$Q$2,FALSE))))/100*$D$2,"") ->  | O58: =IFERROR((IF($C58="","",(HLOOKUP(ROUNDUP((IF(((O$8-$C58)/30.4)>0,((O$8-$C58)/30.4),12+((O$8-$C58)/30.4))),0),CVMS!$D$19:$P$28,'Calcul CVMS VV'!$Q$2,FALSE))))/100*$D$2,"") ->  | P58: =IFERROR((IF($C58="","",(HLOOKUP(ROUNDUP((IF(((P$8-$C58)/30.4)>0,((P$8-$C58)/30.4),12+((P$8-$C58)/30.4))),0),CVMS!$D$19:$P$28,'Calcul CVMS VV'!$Q$2,FALSE))))/100*$D$2,"") -> 
E59: =IFERROR((IF($C59="","",(HLOOKUP(ROUNDUP((IF(((E$8-$C59)/30.4)>0,((E$8-$C59)/30.4),12+((E$8-$C59)/30.4))),0),CVMS!$D$19:$P$28,'Calcul CVMS VV'!$Q$2,FALSE))))/100*$D$2,"") ->  | F59: =IFERROR((IF($C59="","",(HLOOKUP(ROUNDUP((IF(((F$8-$C59)/30.4)>0,((F$8-$C59)/30.4),12+((F$8-$C59)/30.4))),0),CVMS!$D$19:$P$28,'Calcul CVMS VV'!$Q$2,FALSE))))/100*$D$2,"") ->  | G59: =IFERROR((IF($C59="","",(HLOOKUP(ROUNDUP((IF(((G$8-$C59)/30.4)>0,((G$8-$C59)/30.4),12+((G$8-$C59)/30.4))),0),CVMS!$D$19:$P$28,'Calcul CVMS VV'!$Q$2,FALSE))))/100*$D$2,"") ->  | H59: =IFERROR((IF($C59="","",(HLOOKUP(ROUNDUP((IF(((H$8-$C59)/30.4)>0,((H$8-$C59)/30.4),12+((H$8-$C59)/30.4))),0),CVMS!$D$19:$P$28,'Calcul CVMS VV'!$Q$2,FALSE))))/100*$D$2,"") ->  | I59: =IFERROR((IF($C59="","",(HLOOKUP(ROUNDUP((IF(((I$8-$C59)/30.4)>0,((I$8-$C59)/30.4),12+((I$8-$C59)/30.4))),0),CVMS!$D$19:$P$28,'Calcul CVMS VV'!$Q$2,FALSE))))/100*$D$2,"") ->  | J59: =IFERROR((IF($C59="","",(HLOOKUP(ROUNDUP((IF(((J$8-$C59)/30.4)>0,((J$8-$C59)/30.4),12+((J$8-$C59)/30.4))),0),CVMS!$D$19:$P$28,'Calcul CVMS VV'!$Q$2,FALSE))))/100*$D$2,"") ->  | K59: =IFERROR((IF($C59="","",(HLOOKUP(ROUNDUP((IF(((K$8-$C59)/30.4)>0,((K$8-$C59)/30.4),12+((K$8-$C59)/30.4))),0),CVMS!$D$19:$P$28,'Calcul CVMS VV'!$Q$2,FALSE))))/100*$D$2,"") ->  | L59: =IFERROR((IF($C59="","",(HLOOKUP(ROUNDUP((IF(((L$8-$C59)/30.4)>0,((L$8-$C59)/30.4),12+((L$8-$C59)/30.4))),0),CVMS!$D$19:$P$28,'Calcul CVMS VV'!$Q$2,FALSE))))/100*$D$2,"") ->  | M59: =IFERROR((IF($C59="","",(HLOOKUP(ROUNDUP((IF(((M$8-$C59)/30.4)>0,((M$8-$C59)/30.4),12+((M$8-$C59)/30.4))),0),CVMS!$D$19:$P$28,'Calcul CVMS VV'!$Q$2,FALSE))))/100*$D$2,"") ->  | N59: =IFERROR((IF($C59="","",(HLOOKUP(ROUNDUP((IF(((N$8-$C59)/30.4)>0,((N$8-$C59)/30.4),12+((N$8-$C59)/30.4))),0),CVMS!$D$19:$P$28,'Calcul CVMS VV'!$Q$2,FALSE))))/100*$D$2,"") ->  | O59: =IFERROR((IF($C59="","",(HLOOKUP(ROUNDUP((IF(((O$8-$C59)/30.4)>0,((O$8-$C59)/30.4),12+((O$8-$C59)/30.4))),0),CVMS!$D$19:$P$28,'Calcul CVMS VV'!$Q$2,FALSE))))/100*$D$2,"") ->  | P59: =IFERROR((IF($C59="","",(HLOOKUP(ROUNDUP((IF(((P$8-$C59)/30.4)>0,((P$8-$C59)/30.4),12+((P$8-$C59)/30.4))),0),CVMS!$D$19:$P$28,'Calcul CVMS VV'!$Q$2,FALSE))))/100*$D$2,"") -> 
E60: =IFERROR((IF($C60="","",(HLOOKUP(ROUNDUP((IF(((E$8-$C60)/30.4)>0,((E$8-$C60)/30.4),12+((E$8-$C60)/30.4))),0),CVMS!$D$19:$P$28,'Calcul CVMS VV'!$Q$2,FALSE))))/100*$D$2,"") ->  | F60: =IFERROR((IF($C60="","",(HLOOKUP(ROUNDUP((IF(((F$8-$C60)/30.4)>0,((F$8-$C60)/30.4),12+((F$8-$C60)/30.4))),0),CVMS!$D$19:$P$28,'Calcul CVMS VV'!$Q$2,FALSE))))/100*$D$2,"") ->  | G60: =IFERROR((IF($C60="","",(HLOOKUP(ROUNDUP((IF(((G$8-$C60)/30.4)>0,((G$8-$C60)/30.4),12+((G$8-$C60)/30.4))),0),CVMS!$D$19:$P$28,'Calcul CVMS VV'!$Q$2,FALSE))))/100*$D$2,"") ->  | H60: =IFERROR((IF($C60="","",(HLOOKUP(ROUNDUP((IF(((H$8-$C60)/30.4)>0,((H$8-$C60)/30.4),12+((H$8-$C60)/30.4))),0),CVMS!$D$19:$P$28,'Calcul CVMS VV'!$Q$2,FALSE))))/100*$D$2,"") ->  | I60: =IFERROR((IF($C60="","",(HLOOKUP(ROUNDUP((IF(((I$8-$C60)/30.4)>0,((I$8-$C60)/30.4),12+((I$8-$C60)/30.4))),0),CVMS!$D$19:$P$28,'Calcul CVMS VV'!$Q$2,FALSE))))/100*$D$2,"") ->  | J60: =IFERROR((IF($C60="","",(HLOOKUP(ROUNDUP((IF(((J$8-$C60)/30.4)>0,((J$8-$C60)/30.4),12+((J$8-$C60)/30.4))),0),CVMS!$D$19:$P$28,'Calcul CVMS VV'!$Q$2,FALSE))))/100*$D$2,"") ->  | K60: =IFERROR((IF($C60="","",(HLOOKUP(ROUNDUP((IF(((K$8-$C60)/30.4)>0,((K$8-$C60)/30.4),12+((K$8-$C60)/30.4))),0),CVMS!$D$19:$P$28,'Calcul CVMS VV'!$Q$2,FALSE))))/100*$D$2,"") ->  | L60: =IFERROR((IF($C60="","",(HLOOKUP(ROUNDUP((IF(((L$8-$C60)/30.4)>0,((L$8-$C60)/30.4),12+((L$8-$C60)/30.4))),0),CVMS!$D$19:$P$28,'Calcul CVMS VV'!$Q$2,FALSE))))/100*$D$2,"") ->  | M60: =IFERROR((IF($C60="","",(HLOOKUP(ROUNDUP((IF(((M$8-$C60)/30.4)>0,((M$8-$C60)/30.4),12+((M$8-$C60)/30.4))),0),CVMS!$D$19:$P$28,'Calcul CVMS VV'!$Q$2,FALSE))))/100*$D$2,"") ->  | N60: =IFERROR((IF($C60="","",(HLOOKUP(ROUNDUP((IF(((N$8-$C60)/30.4)>0,((N$8-$C60)/30.4),12+((N$8-$C60)/30.4))),0),CVMS!$D$19:$P$28,'Calcul CVMS VV'!$Q$2,FALSE))))/100*$D$2,"") ->  | O60: =IFERROR((IF($C60="","",(HLOOKUP(ROUNDUP((IF(((O$8-$C60)/30.4)>0,((O$8-$C60)/30.4),12+((O$8-$C60)/30.4))),0),CVMS!$D$19:$P$28,'Calcul CVMS VV'!$Q$2,FALSE))))/100*$D$2,"") ->  | P60: =IFERROR((IF($C60="","",(HLOOKUP(ROUNDUP((IF(((P$8-$C60)/30.4)>0,((P$8-$C60)/30.4),12+((P$8-$C60)/30.4))),0),CVMS!$D$19:$P$28,'Calcul CVMS VV'!$Q$2,FALSE))))/100*$D$2,"") -> 
E61: =IFERROR((IF($C61="","",(HLOOKUP(ROUNDUP((IF(((E$8-$C61)/30.4)>0,((E$8-$C61)/30.4),12+((E$8-$C61)/30.4))),0),CVMS!$D$19:$P$28,'Calcul CVMS VV'!$Q$2,FALSE))))/100*$D$2,"") ->  | F61: =IFERROR((IF($C61="","",(HLOOKUP(ROUNDUP((IF(((F$8-$C61)/30.4)>0,((F$8-$C61)/30.4),12+((F$8-$C61)/30.4))),0),CVMS!$D$19:$P$28,'Calcul CVMS VV'!$Q$2,FALSE))))/100*$D$2,"") ->  | G61: =IFERROR((IF($C61="","",(HLOOKUP(ROUNDUP((IF(((G$8-$C61)/30.4)>0,((G$8-$C61)/30.4),12+((G$8-$C61)/30.4))),0),CVMS!$D$19:$P$28,'Calcul CVMS VV'!$Q$2,FALSE))))/100*$D$2,"") ->  | H61: =IFERROR((IF($C61="","",(HLOOKUP(ROUNDUP((IF(((H$8-$C61)/30.4)>0,((H$8-$C61)/30.4),12+((H$8-$C61)/30.4))),0),CVMS!$D$19:$P$28,'Calcul CVMS VV'!$Q$2,FALSE))))/100*$D$2,"") ->  | I61: =IFERROR((IF($C61="","",(HLOOKUP(ROUNDUP((IF(((I$8-$C61)/30.4)>0,((I$8-$C61)/30.4),12+((I$8-$C61)/30.4))),0),CVMS!$D$19:$P$28,'Calcul CVMS VV'!$Q$2,FALSE))))/100*$D$2,"") ->  | J61: =IFERROR((IF($C61="","",(HLOOKUP(ROUNDUP((IF(((J$8-$C61)/30.4)>0,((J$8-$C61)/30.4),12+((J$8-$C61)/30.4))),0),CVMS!$D$19:$P$28,'Calcul CVMS VV'!$Q$2,FALSE))))/100*$D$2,"") ->  | K61: =IFERROR((IF($C61="","",(HLOOKUP(ROUNDUP((IF(((K$8-$C61)/30.4)>0,((K$8-$C61)/30.4),12+((K$8-$C61)/30.4))),0),CVMS!$D$19:$P$28,'Calcul CVMS VV'!$Q$2,FALSE))))/100*$D$2,"") ->  | L61: =IFERROR((IF($C61="","",(HLOOKUP(ROUNDUP((IF(((L$8-$C61)/30.4)>0,((L$8-$C61)/30.4),12+((L$8-$C61)/30.4))),0),CVMS!$D$19:$P$28,'Calcul CVMS VV'!$Q$2,FALSE))))/100*$D$2,"") ->  | M61: =IFERROR((IF($C61="","",(HLOOKUP(ROUNDUP((IF(((M$8-$C61)/30.4)>0,((M$8-$C61)/30.4),12+((M$8-$C61)/30.4))),0),CVMS!$D$19:$P$28,'Calcul CVMS VV'!$Q$2,FALSE))))/100*$D$2,"") ->  | N61: =IFERROR((IF($C61="","",(HLOOKUP(ROUNDUP((IF(((N$8-$C61)/30.4)>0,((N$8-$C61)/30.4),12+((N$8-$C61)/30.4))),0),CVMS!$D$19:$P$28,'Calcul CVMS VV'!$Q$2,FALSE))))/100*$D$2,"") ->  | O61: =IFERROR((IF($C61="","",(HLOOKUP(ROUNDUP((IF(((O$8-$C61)/30.4)>0,((O$8-$C61)/30.4),12+((O$8-$C61)/30.4))),0),CVMS!$D$19:$P$28,'Calcul CVMS VV'!$Q$2,FALSE))))/100*$D$2,"") ->  | P61: =IFERROR((IF($C61="","",(HLOOKUP(ROUNDUP((IF(((P$8-$C61)/30.4)>0,((P$8-$C61)/30.4),12+((P$8-$C61)/30.4))),0),CVMS!$D$19:$P$28,'Calcul CVMS VV'!$Q$2,FALSE))))/100*$D$2,"") -> 
E62: =IFERROR((IF($C62="","",(HLOOKUP(ROUNDUP((IF(((E$8-$C62)/30.4)>0,((E$8-$C62)/30.4),12+((E$8-$C62)/30.4))),0),CVMS!$D$19:$P$28,'Calcul CVMS VV'!$Q$2,FALSE))))/100*$D$2,"") ->  | F62: =IFERROR((IF($C62="","",(HLOOKUP(ROUNDUP((IF(((F$8-$C62)/30.4)>0,((F$8-$C62)/30.4),12+((F$8-$C62)/30.4))),0),CVMS!$D$19:$P$28,'Calcul CVMS VV'!$Q$2,FALSE))))/100*$D$2,"") ->  | G62: =IFERROR((IF($C62="","",(HLOOKUP(ROUNDUP((IF(((G$8-$C62)/30.4)>0,((G$8-$C62)/30.4),12+((G$8-$C62)/30.4))),0),CVMS!$D$19:$P$28,'Calcul CVMS VV'!$Q$2,FALSE))))/100*$D$2,"") ->  | H62: =IFERROR((IF($C62="","",(HLOOKUP(ROUNDUP((IF(((H$8-$C62)/30.4)>0,((H$8-$C62)/30.4),12+((H$8-$C62)/30.4))),0),CVMS!$D$19:$P$28,'Calcul CVMS VV'!$Q$2,FALSE))))/100*$D$2,"") ->  | I62: =IFERROR((IF($C62="","",(HLOOKUP(ROUNDUP((IF(((I$8-$C62)/30.4)>0,((I$8-$C62)/30.4),12+((I$8-$C62)/30.4))),0),CVMS!$D$19:$P$28,'Calcul CVMS VV'!$Q$2,FALSE))))/100*$D$2,"") ->  | J62: =IFERROR((IF($C62="","",(HLOOKUP(ROUNDUP((IF(((J$8-$C62)/30.4)>0,((J$8-$C62)/30.4),12+((J$8-$C62)/30.4))),0),CVMS!$D$19:$P$28,'Calcul CVMS VV'!$Q$2,FALSE))))/100*$D$2,"") ->  | K62: =IFERROR((IF($C62="","",(HLOOKUP(ROUNDUP((IF(((K$8-$C62)/30.4)>0,((K$8-$C62)/30.4),12+((K$8-$C62)/30.4))),0),CVMS!$D$19:$P$28,'Calcul CVMS VV'!$Q$2,FALSE))))/100*$D$2,"") ->  | L62: =IFERROR((IF($C62="","",(HLOOKUP(ROUNDUP((IF(((L$8-$C62)/30.4)>0,((L$8-$C62)/30.4),12+((L$8-$C62)/30.4))),0),CVMS!$D$19:$P$28,'Calcul CVMS VV'!$Q$2,FALSE))))/100*$D$2,"") ->  | M62: =IFERROR((IF($C62="","",(HLOOKUP(ROUNDUP((IF(((M$8-$C62)/30.4)>0,((M$8-$C62)/30.4),12+((M$8-$C62)/30.4))),0),CVMS!$D$19:$P$28,'Calcul CVMS VV'!$Q$2,FALSE))))/100*$D$2,"") ->  | N62: =IFERROR((IF($C62="","",(HLOOKUP(ROUNDUP((IF(((N$8-$C62)/30.4)>0,((N$8-$C62)/30.4),12+((N$8-$C62)/30.4))),0),CVMS!$D$19:$P$28,'Calcul CVMS VV'!$Q$2,FALSE))))/100*$D$2,"") ->  | O62: =IFERROR((IF($C62="","",(HLOOKUP(ROUNDUP((IF(((O$8-$C62)/30.4)>0,((O$8-$C62)/30.4),12+((O$8-$C62)/30.4))),0),CVMS!$D$19:$P$28,'Calcul CVMS VV'!$Q$2,FALSE))))/100*$D$2,"") ->  | P62: =IFERROR((IF($C62="","",(HLOOKUP(ROUNDUP((IF(((P$8-$C62)/30.4)>0,((P$8-$C62)/30.4),12+((P$8-$C62)/30.4))),0),CVMS!$D$19:$P$28,'Calcul CVMS VV'!$Q$2,FALSE))))/100*$D$2,"") -> 
E63: =IFERROR((IF($C63="","",(HLOOKUP(ROUNDUP((IF(((E$8-$C63)/30.4)>0,((E$8-$C63)/30.4),12+((E$8-$C63)/30.4))),0),CVMS!$D$19:$P$28,'Calcul CVMS VV'!$Q$2,FALSE))))/100*$D$2,"") ->  | F63: =IFERROR((IF($C63="","",(HLOOKUP(ROUNDUP((IF(((F$8-$C63)/30.4)>0,((F$8-$C63)/30.4),12+((F$8-$C63)/30.4))),0),CVMS!$D$19:$P$28,'Calcul CVMS VV'!$Q$2,FALSE))))/100*$D$2,"") ->  | G63: =IFERROR((IF($C63="","",(HLOOKUP(ROUNDUP((IF(((G$8-$C63)/30.4)>0,((G$8-$C63)/30.4),12+((G$8-$C63)/30.4))),0),CVMS!$D$19:$P$28,'Calcul CVMS VV'!$Q$2,FALSE))))/100*$D$2,"") ->  | H63: =IFERROR((IF($C63="","",(HLOOKUP(ROUNDUP((IF(((H$8-$C63)/30.4)>0,((H$8-$C63)/30.4),12+((H$8-$C63)/30.4))),0),CVMS!$D$19:$P$28,'Calcul CVMS VV'!$Q$2,FALSE))))/100*$D$2,"") ->  | I63: =IFERROR((IF($C63="","",(HLOOKUP(ROUNDUP((IF(((I$8-$C63)/30.4)>0,((I$8-$C63)/30.4),12+((I$8-$C63)/30.4))),0),CVMS!$D$19:$P$28,'Calcul CVMS VV'!$Q$2,FALSE))))/100*$D$2,"") ->  | J63: =IFERROR((IF($C63="","",(HLOOKUP(ROUNDUP((IF(((J$8-$C63)/30.4)>0,((J$8-$C63)/30.4),12+((J$8-$C63)/30.4))),0),CVMS!$D$19:$P$28,'Calcul CVMS VV'!$Q$2,FALSE))))/100*$D$2,"") ->  | K63: =IFERROR((IF($C63="","",(HLOOKUP(ROUNDUP((IF(((K$8-$C63)/30.4)>0,((K$8-$C63)/30.4),12+((K$8-$C63)/30.4))),0),CVMS!$D$19:$P$28,'Calcul CVMS VV'!$Q$2,FALSE))))/100*$D$2,"") ->  | L63: =IFERROR((IF($C63="","",(HLOOKUP(ROUNDUP((IF(((L$8-$C63)/30.4)>0,((L$8-$C63)/30.4),12+((L$8-$C63)/30.4))),0),CVMS!$D$19:$P$28,'Calcul CVMS VV'!$Q$2,FALSE))))/100*$D$2,"") ->  | M63: =IFERROR((IF($C63="","",(HLOOKUP(ROUNDUP((IF(((M$8-$C63)/30.4)>0,((M$8-$C63)/30.4),12+((M$8-$C63)/30.4))),0),CVMS!$D$19:$P$28,'Calcul CVMS VV'!$Q$2,FALSE))))/100*$D$2,"") ->  | N63: =IFERROR((IF($C63="","",(HLOOKUP(ROUNDUP((IF(((N$8-$C63)/30.4)>0,((N$8-$C63)/30.4),12+((N$8-$C63)/30.4))),0),CVMS!$D$19:$P$28,'Calcul CVMS VV'!$Q$2,FALSE))))/100*$D$2,"") ->  | O63: =IFERROR((IF($C63="","",(HLOOKUP(ROUNDUP((IF(((O$8-$C63)/30.4)>0,((O$8-$C63)/30.4),12+((O$8-$C63)/30.4))),0),CVMS!$D$19:$P$28,'Calcul CVMS VV'!$Q$2,FALSE))))/100*$D$2,"") ->  | P63: =IFERROR((IF($C63="","",(HLOOKUP(ROUNDUP((IF(((P$8-$C63)/30.4)>0,((P$8-$C63)/30.4),12+((P$8-$C63)/30.4))),0),CVMS!$D$19:$P$28,'Calcul CVMS VV'!$Q$2,FALSE))))/100*$D$2,"") -> 
E64: =IFERROR((IF($C64="","",(HLOOKUP(ROUNDUP((IF(((E$8-$C64)/30.4)>0,((E$8-$C64)/30.4),12+((E$8-$C64)/30.4))),0),CVMS!$D$19:$P$28,'Calcul CVMS VV'!$Q$2,FALSE))))/100*$D$2,"") ->  | F64: =IFERROR((IF($C64="","",(HLOOKUP(ROUNDUP((IF(((F$8-$C64)/30.4)>0,((F$8-$C64)/30.4),12+((F$8-$C64)/30.4))),0),CVMS!$D$19:$P$28,'Calcul CVMS VV'!$Q$2,FALSE))))/100*$D$2,"") ->  | G64: =IFERROR((IF($C64="","",(HLOOKUP(ROUNDUP((IF(((G$8-$C64)/30.4)>0,((G$8-$C64)/30.4),12+((G$8-$C64)/30.4))),0),CVMS!$D$19:$P$28,'Calcul CVMS VV'!$Q$2,FALSE))))/100*$D$2,"") ->  | H64: =IFERROR((IF($C64="","",(HLOOKUP(ROUNDUP((IF(((H$8-$C64)/30.4)>0,((H$8-$C64)/30.4),12+((H$8-$C64)/30.4))),0),CVMS!$D$19:$P$28,'Calcul CVMS VV'!$Q$2,FALSE))))/100*$D$2,"") ->  | I64: =IFERROR((IF($C64="","",(HLOOKUP(ROUNDUP((IF(((I$8-$C64)/30.4)>0,((I$8-$C64)/30.4),12+((I$8-$C64)/30.4))),0),CVMS!$D$19:$P$28,'Calcul CVMS VV'!$Q$2,FALSE))))/100*$D$2,"") ->  | J64: =IFERROR((IF($C64="","",(HLOOKUP(ROUNDUP((IF(((J$8-$C64)/30.4)>0,((J$8-$C64)/30.4),12+((J$8-$C64)/30.4))),0),CVMS!$D$19:$P$28,'Calcul CVMS VV'!$Q$2,FALSE))))/100*$D$2,"") ->  | K64: =IFERROR((IF($C64="","",(HLOOKUP(ROUNDUP((IF(((K$8-$C64)/30.4)>0,((K$8-$C64)/30.4),12+((K$8-$C64)/30.4))),0),CVMS!$D$19:$P$28,'Calcul CVMS VV'!$Q$2,FALSE))))/100*$D$2,"") ->  | L64: =IFERROR((IF($C64="","",(HLOOKUP(ROUNDUP((IF(((L$8-$C64)/30.4)>0,((L$8-$C64)/30.4),12+((L$8-$C64)/30.4))),0),CVMS!$D$19:$P$28,'Calcul CVMS VV'!$Q$2,FALSE))))/100*$D$2,"") ->  | M64: =IFERROR((IF($C64="","",(HLOOKUP(ROUNDUP((IF(((M$8-$C64)/30.4)>0,((M$8-$C64)/30.4),12+((M$8-$C64)/30.4))),0),CVMS!$D$19:$P$28,'Calcul CVMS VV'!$Q$2,FALSE))))/100*$D$2,"") ->  | N64: =IFERROR((IF($C64="","",(HLOOKUP(ROUNDUP((IF(((N$8-$C64)/30.4)>0,((N$8-$C64)/30.4),12+((N$8-$C64)/30.4))),0),CVMS!$D$19:$P$28,'Calcul CVMS VV'!$Q$2,FALSE))))/100*$D$2,"") ->  | O64: =IFERROR((IF($C64="","",(HLOOKUP(ROUNDUP((IF(((O$8-$C64)/30.4)>0,((O$8-$C64)/30.4),12+((O$8-$C64)/30.4))),0),CVMS!$D$19:$P$28,'Calcul CVMS VV'!$Q$2,FALSE))))/100*$D$2,"") ->  | P64: =IFERROR((IF($C64="","",(HLOOKUP(ROUNDUP((IF(((P$8-$C64)/30.4)>0,((P$8-$C64)/30.4),12+((P$8-$C64)/30.4))),0),CVMS!$D$19:$P$28,'Calcul CVMS VV'!$Q$2,FALSE))))/100*$D$2,"") -> 
E65: =IFERROR((IF($C65="","",(HLOOKUP(ROUNDUP((IF(((E$8-$C65)/30.4)>0,((E$8-$C65)/30.4),12+((E$8-$C65)/30.4))),0),CVMS!$D$19:$P$28,'Calcul CVMS VV'!$Q$2,FALSE))))/100*$D$2,"") ->  | F65: =IFERROR((IF($C65="","",(HLOOKUP(ROUNDUP((IF(((F$8-$C65)/30.4)>0,((F$8-$C65)/30.4),12+((F$8-$C65)/30.4))),0),CVMS!$D$19:$P$28,'Calcul CVMS VV'!$Q$2,FALSE))))/100*$D$2,"") ->  | G65: =IFERROR((IF($C65="","",(HLOOKUP(ROUNDUP((IF(((G$8-$C65)/30.4)>0,((G$8-$C65)/30.4),12+((G$8-$C65)/30.4))),0),CVMS!$D$19:$P$28,'Calcul CVMS VV'!$Q$2,FALSE))))/100*$D$2,"") ->  | H65: =IFERROR((IF($C65="","",(HLOOKUP(ROUNDUP((IF(((H$8-$C65)/30.4)>0,((H$8-$C65)/30.4),12+((H$8-$C65)/30.4))),0),CVMS!$D$19:$P$28,'Calcul CVMS VV'!$Q$2,FALSE))))/100*$D$2,"") ->  | I65: =IFERROR((IF($C65="","",(HLOOKUP(ROUNDUP((IF(((I$8-$C65)/30.4)>0,((I$8-$C65)/30.4),12+((I$8-$C65)/30.4))),0),CVMS!$D$19:$P$28,'Calcul CVMS VV'!$Q$2,FALSE))))/100*$D$2,"") ->  | J65: =IFERROR((IF($C65="","",(HLOOKUP(ROUNDUP((IF(((J$8-$C65)/30.4)>0,((J$8-$C65)/30.4),12+((J$8-$C65)/30.4))),0),CVMS!$D$19:$P$28,'Calcul CVMS VV'!$Q$2,FALSE))))/100*$D$2,"") ->  | K65: =IFERROR((IF($C65="","",(HLOOKUP(ROUNDUP((IF(((K$8-$C65)/30.4)>0,((K$8-$C65)/30.4),12+((K$8-$C65)/30.4))),0),CVMS!$D$19:$P$28,'Calcul CVMS VV'!$Q$2,FALSE))))/100*$D$2,"") ->  | L65: =IFERROR((IF($C65="","",(HLOOKUP(ROUNDUP((IF(((L$8-$C65)/30.4)>0,((L$8-$C65)/30.4),12+((L$8-$C65)/30.4))),0),CVMS!$D$19:$P$28,'Calcul CVMS VV'!$Q$2,FALSE))))/100*$D$2,"") ->  | M65: =IFERROR((IF($C65="","",(HLOOKUP(ROUNDUP((IF(((M$8-$C65)/30.4)>0,((M$8-$C65)/30.4),12+((M$8-$C65)/30.4))),0),CVMS!$D$19:$P$28,'Calcul CVMS VV'!$Q$2,FALSE))))/100*$D$2,"") ->  | N65: =IFERROR((IF($C65="","",(HLOOKUP(ROUNDUP((IF(((N$8-$C65)/30.4)>0,((N$8-$C65)/30.4),12+((N$8-$C65)/30.4))),0),CVMS!$D$19:$P$28,'Calcul CVMS VV'!$Q$2,FALSE))))/100*$D$2,"") ->  | O65: =IFERROR((IF($C65="","",(HLOOKUP(ROUNDUP((IF(((O$8-$C65)/30.4)>0,((O$8-$C65)/30.4),12+((O$8-$C65)/30.4))),0),CVMS!$D$19:$P$28,'Calcul CVMS VV'!$Q$2,FALSE))))/100*$D$2,"") ->  | P65: =IFERROR((IF($C65="","",(HLOOKUP(ROUNDUP((IF(((P$8-$C65)/30.4)>0,((P$8-$C65)/30.4),12+((P$8-$C65)/30.4))),0),CVMS!$D$19:$P$28,'Calcul CVMS VV'!$Q$2,FALSE))))/100*$D$2,"") -> 
E66: =IFERROR((IF($C66="","",(HLOOKUP(ROUNDUP((IF(((E$8-$C66)/30.4)>0,((E$8-$C66)/30.4),12+((E$8-$C66)/30.4))),0),CVMS!$D$19:$P$28,'Calcul CVMS VV'!$Q$2,FALSE))))/100*$D$2,"") ->  | F66: =IFERROR((IF($C66="","",(HLOOKUP(ROUNDUP((IF(((F$8-$C66)/30.4)>0,((F$8-$C66)/30.4),12+((F$8-$C66)/30.4))),0),CVMS!$D$19:$P$28,'Calcul CVMS VV'!$Q$2,FALSE))))/100*$D$2,"") ->  | G66: =IFERROR((IF($C66="","",(HLOOKUP(ROUNDUP((IF(((G$8-$C66)/30.4)>0,((G$8-$C66)/30.4),12+((G$8-$C66)/30.4))),0),CVMS!$D$19:$P$28,'Calcul CVMS VV'!$Q$2,FALSE))))/100*$D$2,"") ->  | H66: =IFERROR((IF($C66="","",(HLOOKUP(ROUNDUP((IF(((H$8-$C66)/30.4)>0,((H$8-$C66)/30.4),12+((H$8-$C66)/30.4))),0),CVMS!$D$19:$P$28,'Calcul CVMS VV'!$Q$2,FALSE))))/100*$D$2,"") ->  | I66: =IFERROR((IF($C66="","",(HLOOKUP(ROUNDUP((IF(((I$8-$C66)/30.4)>0,((I$8-$C66)/30.4),12+((I$8-$C66)/30.4))),0),CVMS!$D$19:$P$28,'Calcul CVMS VV'!$Q$2,FALSE))))/100*$D$2,"") ->  | J66: =IFERROR((IF($C66="","",(HLOOKUP(ROUNDUP((IF(((J$8-$C66)/30.4)>0,((J$8-$C66)/30.4),12+((J$8-$C66)/30.4))),0),CVMS!$D$19:$P$28,'Calcul CVMS VV'!$Q$2,FALSE))))/100*$D$2,"") ->  | K66: =IFERROR((IF($C66="","",(HLOOKUP(ROUNDUP((IF(((K$8-$C66)/30.4)>0,((K$8-$C66)/30.4),12+((K$8-$C66)/30.4))),0),CVMS!$D$19:$P$28,'Calcul CVMS VV'!$Q$2,FALSE))))/100*$D$2,"") ->  | L66: =IFERROR((IF($C66="","",(HLOOKUP(ROUNDUP((IF(((L$8-$C66)/30.4)>0,((L$8-$C66)/30.4),12+((L$8-$C66)/30.4))),0),CVMS!$D$19:$P$28,'Calcul CVMS VV'!$Q$2,FALSE))))/100*$D$2,"") ->  | M66: =IFERROR((IF($C66="","",(HLOOKUP(ROUNDUP((IF(((M$8-$C66)/30.4)>0,((M$8-$C66)/30.4),12+((M$8-$C66)/30.4))),0),CVMS!$D$19:$P$28,'Calcul CVMS VV'!$Q$2,FALSE))))/100*$D$2,"") ->  | N66: =IFERROR((IF($C66="","",(HLOOKUP(ROUNDUP((IF(((N$8-$C66)/30.4)>0,((N$8-$C66)/30.4),12+((N$8-$C66)/30.4))),0),CVMS!$D$19:$P$28,'Calcul CVMS VV'!$Q$2,FALSE))))/100*$D$2,"") ->  | O66: =IFERROR((IF($C66="","",(HLOOKUP(ROUNDUP((IF(((O$8-$C66)/30.4)>0,((O$8-$C66)/30.4),12+((O$8-$C66)/30.4))),0),CVMS!$D$19:$P$28,'Calcul CVMS VV'!$Q$2,FALSE))))/100*$D$2,"") ->  | P66: =IFERROR((IF($C66="","",(HLOOKUP(ROUNDUP((IF(((P$8-$C66)/30.4)>0,((P$8-$C66)/30.4),12+((P$8-$C66)/30.4))),0),CVMS!$D$19:$P$28,'Calcul CVMS VV'!$Q$2,FALSE))))/100*$D$2,"") -> 
E67: =IFERROR((IF($C67="","",(HLOOKUP(ROUNDUP((IF(((E$8-$C67)/30.4)>0,((E$8-$C67)/30.4),12+((E$8-$C67)/30.4))),0),CVMS!$D$19:$P$28,'Calcul CVMS VV'!$Q$2,FALSE))))/100*$D$2,"") ->  | F67: =IFERROR((IF($C67="","",(HLOOKUP(ROUNDUP((IF(((F$8-$C67)/30.4)>0,((F$8-$C67)/30.4),12+((F$8-$C67)/30.4))),0),CVMS!$D$19:$P$28,'Calcul CVMS VV'!$Q$2,FALSE))))/100*$D$2,"") ->  | G67: =IFERROR((IF($C67="","",(HLOOKUP(ROUNDUP((IF(((G$8-$C67)/30.4)>0,((G$8-$C67)/30.4),12+((G$8-$C67)/30.4))),0),CVMS!$D$19:$P$28,'Calcul CVMS VV'!$Q$2,FALSE))))/100*$D$2,"") ->  | H67: =IFERROR((IF($C67="","",(HLOOKUP(ROUNDUP((IF(((H$8-$C67)/30.4)>0,((H$8-$C67)/30.4),12+((H$8-$C67)/30.4))),0),CVMS!$D$19:$P$28,'Calcul CVMS VV'!$Q$2,FALSE))))/100*$D$2,"") ->  | I67: =IFERROR((IF($C67="","",(HLOOKUP(ROUNDUP((IF(((I$8-$C67)/30.4)>0,((I$8-$C67)/30.4),12+((I$8-$C67)/30.4))),0),CVMS!$D$19:$P$28,'Calcul CVMS VV'!$Q$2,FALSE))))/100*$D$2,"") ->  | J67: =IFERROR((IF($C67="","",(HLOOKUP(ROUNDUP((IF(((J$8-$C67)/30.4)>0,((J$8-$C67)/30.4),12+((J$8-$C67)/30.4))),0),CVMS!$D$19:$P$28,'Calcul CVMS VV'!$Q$2,FALSE))))/100*$D$2,"") ->  | K67: =IFERROR((IF($C67="","",(HLOOKUP(ROUNDUP((IF(((K$8-$C67)/30.4)>0,((K$8-$C67)/30.4),12+((K$8-$C67)/30.4))),0),CVMS!$D$19:$P$28,'Calcul CVMS VV'!$Q$2,FALSE))))/100*$D$2,"") ->  | L67: =IFERROR((IF($C67="","",(HLOOKUP(ROUNDUP((IF(((L$8-$C67)/30.4)>0,((L$8-$C67)/30.4),12+((L$8-$C67)/30.4))),0),CVMS!$D$19:$P$28,'Calcul CVMS VV'!$Q$2,FALSE))))/100*$D$2,"") ->  | M67: =IFERROR((IF($C67="","",(HLOOKUP(ROUNDUP((IF(((M$8-$C67)/30.4)>0,((M$8-$C67)/30.4),12+((M$8-$C67)/30.4))),0),CVMS!$D$19:$P$28,'Calcul CVMS VV'!$Q$2,FALSE))))/100*$D$2,"") ->  | N67: =IFERROR((IF($C67="","",(HLOOKUP(ROUNDUP((IF(((N$8-$C67)/30.4)>0,((N$8-$C67)/30.4),12+((N$8-$C67)/30.4))),0),CVMS!$D$19:$P$28,'Calcul CVMS VV'!$Q$2,FALSE))))/100*$D$2,"") ->  | O67: =IFERROR((IF($C67="","",(HLOOKUP(ROUNDUP((IF(((O$8-$C67)/30.4)>0,((O$8-$C67)/30.4),12+((O$8-$C67)/30.4))),0),CVMS!$D$19:$P$28,'Calcul CVMS VV'!$Q$2,FALSE))))/100*$D$2,"") ->  | P67: =IFERROR((IF($C67="","",(HLOOKUP(ROUNDUP((IF(((P$8-$C67)/30.4)>0,((P$8-$C67)/30.4),12+((P$8-$C67)/30.4))),0),CVMS!$D$19:$P$28,'Calcul CVMS VV'!$Q$2,FALSE))))/100*$D$2,"") -> 
E68: =IFERROR((IF($C68="","",(HLOOKUP(ROUNDUP((IF(((E$8-$C68)/30.4)>0,((E$8-$C68)/30.4),12+((E$8-$C68)/30.4))),0),CVMS!$D$19:$P$28,'Calcul CVMS VV'!$Q$2,FALSE))))/100*$D$2,"") ->  | F68: =IFERROR((IF($C68="","",(HLOOKUP(ROUNDUP((IF(((F$8-$C68)/30.4)>0,((F$8-$C68)/30.4),12+((F$8-$C68)/30.4))),0),CVMS!$D$19:$P$28,'Calcul CVMS VV'!$Q$2,FALSE))))/100*$D$2,"") ->  | G68: =IFERROR((IF($C68="","",(HLOOKUP(ROUNDUP((IF(((G$8-$C68)/30.4)>0,((G$8-$C68)/30.4),12+((G$8-$C68)/30.4))),0),CVMS!$D$19:$P$28,'Calcul CVMS VV'!$Q$2,FALSE))))/100*$D$2,"") ->  | H68: =IFERROR((IF($C68="","",(HLOOKUP(ROUNDUP((IF(((H$8-$C68)/30.4)>0,((H$8-$C68)/30.4),12+((H$8-$C68)/30.4))),0),CVMS!$D$19:$P$28,'Calcul CVMS VV'!$Q$2,FALSE))))/100*$D$2,"") ->  | I68: =IFERROR((IF($C68="","",(HLOOKUP(ROUNDUP((IF(((I$8-$C68)/30.4)>0,((I$8-$C68)/30.4),12+((I$8-$C68)/30.4))),0),CVMS!$D$19:$P$28,'Calcul CVMS VV'!$Q$2,FALSE))))/100*$D$2,"") ->  | J68: =IFERROR((IF($C68="","",(HLOOKUP(ROUNDUP((IF(((J$8-$C68)/30.4)>0,((J$8-$C68)/30.4),12+((J$8-$C68)/30.4))),0),CVMS!$D$19:$P$28,'Calcul CVMS VV'!$Q$2,FALSE))))/100*$D$2,"") ->  | K68: =IFERROR((IF($C68="","",(HLOOKUP(ROUNDUP((IF(((K$8-$C68)/30.4)>0,((K$8-$C68)/30.4),12+((K$8-$C68)/30.4))),0),CVMS!$D$19:$P$28,'Calcul CVMS VV'!$Q$2,FALSE))))/100*$D$2,"") ->  | L68: =IFERROR((IF($C68="","",(HLOOKUP(ROUNDUP((IF(((L$8-$C68)/30.4)>0,((L$8-$C68)/30.4),12+((L$8-$C68)/30.4))),0),CVMS!$D$19:$P$28,'Calcul CVMS VV'!$Q$2,FALSE))))/100*$D$2,"") ->  | M68: =IFERROR((IF($C68="","",(HLOOKUP(ROUNDUP((IF(((M$8-$C68)/30.4)>0,((M$8-$C68)/30.4),12+((M$8-$C68)/30.4))),0),CVMS!$D$19:$P$28,'Calcul CVMS VV'!$Q$2,FALSE))))/100*$D$2,"") ->  | N68: =IFERROR((IF($C68="","",(HLOOKUP(ROUNDUP((IF(((N$8-$C68)/30.4)>0,((N$8-$C68)/30.4),12+((N$8-$C68)/30.4))),0),CVMS!$D$19:$P$28,'Calcul CVMS VV'!$Q$2,FALSE))))/100*$D$2,"") ->  | O68: =IFERROR((IF($C68="","",(HLOOKUP(ROUNDUP((IF(((O$8-$C68)/30.4)>0,((O$8-$C68)/30.4),12+((O$8-$C68)/30.4))),0),CVMS!$D$19:$P$28,'Calcul CVMS VV'!$Q$2,FALSE))))/100*$D$2,"") ->  | P68: =IFERROR((IF($C68="","",(HLOOKUP(ROUNDUP((IF(((P$8-$C68)/30.4)>0,((P$8-$C68)/30.4),12+((P$8-$C68)/30.4))),0),CVMS!$D$19:$P$28,'Calcul CVMS VV'!$Q$2,FALSE))))/100*$D$2,"") -> 
E69: =IFERROR((IF($C69="","",(HLOOKUP(ROUNDUP((IF(((E$8-$C69)/30.4)>0,((E$8-$C69)/30.4),12+((E$8-$C69)/30.4))),0),CVMS!$D$19:$P$28,'Calcul CVMS VV'!$Q$2,FALSE))))/100*$D$2,"") ->  | F69: =IFERROR((IF($C69="","",(HLOOKUP(ROUNDUP((IF(((F$8-$C69)/30.4)>0,((F$8-$C69)/30.4),12+((F$8-$C69)/30.4))),0),CVMS!$D$19:$P$28,'Calcul CVMS VV'!$Q$2,FALSE))))/100*$D$2,"") ->  | G69: =IFERROR((IF($C69="","",(HLOOKUP(ROUNDUP((IF(((G$8-$C69)/30.4)>0,((G$8-$C69)/30.4),12+((G$8-$C69)/30.4))),0),CVMS!$D$19:$P$28,'Calcul CVMS VV'!$Q$2,FALSE))))/100*$D$2,"") ->  | H69: =IFERROR((IF($C69="","",(HLOOKUP(ROUNDUP((IF(((H$8-$C69)/30.4)>0,((H$8-$C69)/30.4),12+((H$8-$C69)/30.4))),0),CVMS!$D$19:$P$28,'Calcul CVMS VV'!$Q$2,FALSE))))/100*$D$2,"") ->  | I69: =IFERROR((IF($C69="","",(HLOOKUP(ROUNDUP((IF(((I$8-$C69)/30.4)>0,((I$8-$C69)/30.4),12+((I$8-$C69)/30.4))),0),CVMS!$D$19:$P$28,'Calcul CVMS VV'!$Q$2,FALSE))))/100*$D$2,"") ->  | J69: =IFERROR((IF($C69="","",(HLOOKUP(ROUNDUP((IF(((J$8-$C69)/30.4)>0,((J$8-$C69)/30.4),12+((J$8-$C69)/30.4))),0),CVMS!$D$19:$P$28,'Calcul CVMS VV'!$Q$2,FALSE))))/100*$D$2,"") ->  | K69: =IFERROR((IF($C69="","",(HLOOKUP(ROUNDUP((IF(((K$8-$C69)/30.4)>0,((K$8-$C69)/30.4),12+((K$8-$C69)/30.4))),0),CVMS!$D$19:$P$28,'Calcul CVMS VV'!$Q$2,FALSE))))/100*$D$2,"") ->  | L69: =IFERROR((IF($C69="","",(HLOOKUP(ROUNDUP((IF(((L$8-$C69)/30.4)>0,((L$8-$C69)/30.4),12+((L$8-$C69)/30.4))),0),CVMS!$D$19:$P$28,'Calcul CVMS VV'!$Q$2,FALSE))))/100*$D$2,"") ->  | M69: =IFERROR((IF($C69="","",(HLOOKUP(ROUNDUP((IF(((M$8-$C69)/30.4)>0,((M$8-$C69)/30.4),12+((M$8-$C69)/30.4))),0),CVMS!$D$19:$P$28,'Calcul CVMS VV'!$Q$2,FALSE))))/100*$D$2,"") ->  | N69: =IFERROR((IF($C69="","",(HLOOKUP(ROUNDUP((IF(((N$8-$C69)/30.4)>0,((N$8-$C69)/30.4),12+((N$8-$C69)/30.4))),0),CVMS!$D$19:$P$28,'Calcul CVMS VV'!$Q$2,FALSE))))/100*$D$2,"") ->  | O69: =IFERROR((IF($C69="","",(HLOOKUP(ROUNDUP((IF(((O$8-$C69)/30.4)>0,((O$8-$C69)/30.4),12+((O$8-$C69)/30.4))),0),CVMS!$D$19:$P$28,'Calcul CVMS VV'!$Q$2,FALSE))))/100*$D$2,"") ->  | P69: =IFERROR((IF($C69="","",(HLOOKUP(ROUNDUP((IF(((P$8-$C69)/30.4)>0,((P$8-$C69)/30.4),12+((P$8-$C69)/30.4))),0),CVMS!$D$19:$P$28,'Calcul CVMS VV'!$Q$2,FALSE))))/100*$D$2,"") -> 
E70: =IFERROR((IF($C70="","",(HLOOKUP(ROUNDUP((IF(((E$8-$C70)/30.4)>0,((E$8-$C70)/30.4),12+((E$8-$C70)/30.4))),0),CVMS!$D$19:$P$28,'Calcul CVMS VV'!$Q$2,FALSE))))/100*$D$2,"") ->  | F70: =IFERROR((IF($C70="","",(HLOOKUP(ROUNDUP((IF(((F$8-$C70)/30.4)>0,((F$8-$C70)/30.4),12+((F$8-$C70)/30.4))),0),CVMS!$D$19:$P$28,'Calcul CVMS VV'!$Q$2,FALSE))))/100*$D$2,"") ->  | G70: =IFERROR((IF($C70="","",(HLOOKUP(ROUNDUP((IF(((G$8-$C70)/30.4)>0,((G$8-$C70)/30.4),12+((G$8-$C70)/30.4))),0),CVMS!$D$19:$P$28,'Calcul CVMS VV'!$Q$2,FALSE))))/100*$D$2,"") ->  | H70: =IFERROR((IF($C70="","",(HLOOKUP(ROUNDUP((IF(((H$8-$C70)/30.4)>0,((H$8-$C70)/30.4),12+((H$8-$C70)/30.4))),0),CVMS!$D$19:$P$28,'Calcul CVMS VV'!$Q$2,FALSE))))/100*$D$2,"") ->  | I70: =IFERROR((IF($C70="","",(HLOOKUP(ROUNDUP((IF(((I$8-$C70)/30.4)>0,((I$8-$C70)/30.4),12+((I$8-$C70)/30.4))),0),CVMS!$D$19:$P$28,'Calcul CVMS VV'!$Q$2,FALSE))))/100*$D$2,"") ->  | J70: =IFERROR((IF($C70="","",(HLOOKUP(ROUNDUP((IF(((J$8-$C70)/30.4)>0,((J$8-$C70)/30.4),12+((J$8-$C70)/30.4))),0),CVMS!$D$19:$P$28,'Calcul CVMS VV'!$Q$2,FALSE))))/100*$D$2,"") ->  | K70: =IFERROR((IF($C70="","",(HLOOKUP(ROUNDUP((IF(((K$8-$C70)/30.4)>0,((K$8-$C70)/30.4),12+((K$8-$C70)/30.4))),0),CVMS!$D$19:$P$28,'Calcul CVMS VV'!$Q$2,FALSE))))/100*$D$2,"") ->  | L70: =IFERROR((IF($C70="","",(HLOOKUP(ROUNDUP((IF(((L$8-$C70)/30.4)>0,((L$8-$C70)/30.4),12+((L$8-$C70)/30.4))),0),CVMS!$D$19:$P$28,'Calcul CVMS VV'!$Q$2,FALSE))))/100*$D$2,"") ->  | M70: =IFERROR((IF($C70="","",(HLOOKUP(ROUNDUP((IF(((M$8-$C70)/30.4)>0,((M$8-$C70)/30.4),12+((M$8-$C70)/30.4))),0),CVMS!$D$19:$P$28,'Calcul CVMS VV'!$Q$2,FALSE))))/100*$D$2,"") ->  | N70: =IFERROR((IF($C70="","",(HLOOKUP(ROUNDUP((IF(((N$8-$C70)/30.4)>0,((N$8-$C70)/30.4),12+((N$8-$C70)/30.4))),0),CVMS!$D$19:$P$28,'Calcul CVMS VV'!$Q$2,FALSE))))/100*$D$2,"") ->  | O70: =IFERROR((IF($C70="","",(HLOOKUP(ROUNDUP((IF(((O$8-$C70)/30.4)>0,((O$8-$C70)/30.4),12+((O$8-$C70)/30.4))),0),CVMS!$D$19:$P$28,'Calcul CVMS VV'!$Q$2,FALSE))))/100*$D$2,"") ->  | P70: =IFERROR((IF($C70="","",(HLOOKUP(ROUNDUP((IF(((P$8-$C70)/30.4)>0,((P$8-$C70)/30.4),12+((P$8-$C70)/30.4))),0),CVMS!$D$19:$P$28,'Calcul CVMS VV'!$Q$2,FALSE))))/100*$D$2,"") -> 
E71: =IFERROR((IF($C71="","",(HLOOKUP(ROUNDUP((IF(((E$8-$C71)/30.4)>0,((E$8-$C71)/30.4),12+((E$8-$C71)/30.4))),0),CVMS!$D$19:$P$28,'Calcul CVMS VV'!$Q$2,FALSE))))/100*$D$2,"") ->  | F71: =IFERROR((IF($C71="","",(HLOOKUP(ROUNDUP((IF(((F$8-$C71)/30.4)>0,((F$8-$C71)/30.4),12+((F$8-$C71)/30.4))),0),CVMS!$D$19:$P$28,'Calcul CVMS VV'!$Q$2,FALSE))))/100*$D$2,"") ->  | G71: =IFERROR((IF($C71="","",(HLOOKUP(ROUNDUP((IF(((G$8-$C71)/30.4)>0,((G$8-$C71)/30.4),12+((G$8-$C71)/30.4))),0),CVMS!$D$19:$P$28,'Calcul CVMS VV'!$Q$2,FALSE))))/100*$D$2,"") ->  | H71: =IFERROR((IF($C71="","",(HLOOKUP(ROUNDUP((IF(((H$8-$C71)/30.4)>0,((H$8-$C71)/30.4),12+((H$8-$C71)/30.4))),0),CVMS!$D$19:$P$28,'Calcul CVMS VV'!$Q$2,FALSE))))/100*$D$2,"") ->  | I71: =IFERROR((IF($C71="","",(HLOOKUP(ROUNDUP((IF(((I$8-$C71)/30.4)>0,((I$8-$C71)/30.4),12+((I$8-$C71)/30.4))),0),CVMS!$D$19:$P$28,'Calcul CVMS VV'!$Q$2,FALSE))))/100*$D$2,"") ->  | J71: =IFERROR((IF($C71="","",(HLOOKUP(ROUNDUP((IF(((J$8-$C71)/30.4)>0,((J$8-$C71)/30.4),12+((J$8-$C71)/30.4))),0),CVMS!$D$19:$P$28,'Calcul CVMS VV'!$Q$2,FALSE))))/100*$D$2,"") ->  | K71: =IFERROR((IF($C71="","",(HLOOKUP(ROUNDUP((IF(((K$8-$C71)/30.4)>0,((K$8-$C71)/30.4),12+((K$8-$C71)/30.4))),0),CVMS!$D$19:$P$28,'Calcul CVMS VV'!$Q$2,FALSE))))/100*$D$2,"") ->  | L71: =IFERROR((IF($C71="","",(HLOOKUP(ROUNDUP((IF(((L$8-$C71)/30.4)>0,((L$8-$C71)/30.4),12+((L$8-$C71)/30.4))),0),CVMS!$D$19:$P$28,'Calcul CVMS VV'!$Q$2,FALSE))))/100*$D$2,"") ->  | M71: =IFERROR((IF($C71="","",(HLOOKUP(ROUNDUP((IF(((M$8-$C71)/30.4)>0,((M$8-$C71)/30.4),12+((M$8-$C71)/30.4))),0),CVMS!$D$19:$P$28,'Calcul CVMS VV'!$Q$2,FALSE))))/100*$D$2,"") ->  | N71: =IFERROR((IF($C71="","",(HLOOKUP(ROUNDUP((IF(((N$8-$C71)/30.4)>0,((N$8-$C71)/30.4),12+((N$8-$C71)/30.4))),0),CVMS!$D$19:$P$28,'Calcul CVMS VV'!$Q$2,FALSE))))/100*$D$2,"") ->  | O71: =IFERROR((IF($C71="","",(HLOOKUP(ROUNDUP((IF(((O$8-$C71)/30.4)>0,((O$8-$C71)/30.4),12+((O$8-$C71)/30.4))),0),CVMS!$D$19:$P$28,'Calcul CVMS VV'!$Q$2,FALSE))))/100*$D$2,"") ->  | P71: =IFERROR((IF($C71="","",(HLOOKUP(ROUNDUP((IF(((P$8-$C71)/30.4)>0,((P$8-$C71)/30.4),12+((P$8-$C71)/30.4))),0),CVMS!$D$19:$P$28,'Calcul CVMS VV'!$Q$2,FALSE))))/100*$D$2,"") -> 
E72: =IFERROR((IF($C72="","",(HLOOKUP(ROUNDUP((IF(((E$8-$C72)/30.4)>0,((E$8-$C72)/30.4),12+((E$8-$C72)/30.4))),0),CVMS!$D$19:$P$28,'Calcul CVMS VV'!$Q$2,FALSE))))/100*$D$2,"") ->  | F72: =IFERROR((IF($C72="","",(HLOOKUP(ROUNDUP((IF(((F$8-$C72)/30.4)>0,((F$8-$C72)/30.4),12+((F$8-$C72)/30.4))),0),CVMS!$D$19:$P$28,'Calcul CVMS VV'!$Q$2,FALSE))))/100*$D$2,"") ->  | G72: =IFERROR((IF($C72="","",(HLOOKUP(ROUNDUP((IF(((G$8-$C72)/30.4)>0,((G$8-$C72)/30.4),12+((G$8-$C72)/30.4))),0),CVMS!$D$19:$P$28,'Calcul CVMS VV'!$Q$2,FALSE))))/100*$D$2,"") ->  | H72: =IFERROR((IF($C72="","",(HLOOKUP(ROUNDUP((IF(((H$8-$C72)/30.4)>0,((H$8-$C72)/30.4),12+((H$8-$C72)/30.4))),0),CVMS!$D$19:$P$28,'Calcul CVMS VV'!$Q$2,FALSE))))/100*$D$2,"") ->  | I72: =IFERROR((IF($C72="","",(HLOOKUP(ROUNDUP((IF(((I$8-$C72)/30.4)>0,((I$8-$C72)/30.4),12+((I$8-$C72)/30.4))),0),CVMS!$D$19:$P$28,'Calcul CVMS VV'!$Q$2,FALSE))))/100*$D$2,"") ->  | J72: =IFERROR((IF($C72="","",(HLOOKUP(ROUNDUP((IF(((J$8-$C72)/30.4)>0,((J$8-$C72)/30.4),12+((J$8-$C72)/30.4))),0),CVMS!$D$19:$P$28,'Calcul CVMS VV'!$Q$2,FALSE))))/100*$D$2,"") ->  | K72: =IFERROR((IF($C72="","",(HLOOKUP(ROUNDUP((IF(((K$8-$C72)/30.4)>0,((K$8-$C72)/30.4),12+((K$8-$C72)/30.4))),0),CVMS!$D$19:$P$28,'Calcul CVMS VV'!$Q$2,FALSE))))/100*$D$2,"") ->  | L72: =IFERROR((IF($C72="","",(HLOOKUP(ROUNDUP((IF(((L$8-$C72)/30.4)>0,((L$8-$C72)/30.4),12+((L$8-$C72)/30.4))),0),CVMS!$D$19:$P$28,'Calcul CVMS VV'!$Q$2,FALSE))))/100*$D$2,"") ->  | M72: =IFERROR((IF($C72="","",(HLOOKUP(ROUNDUP((IF(((M$8-$C72)/30.4)>0,((M$8-$C72)/30.4),12+((M$8-$C72)/30.4))),0),CVMS!$D$19:$P$28,'Calcul CVMS VV'!$Q$2,FALSE))))/100*$D$2,"") ->  | N72: =IFERROR((IF($C72="","",(HLOOKUP(ROUNDUP((IF(((N$8-$C72)/30.4)>0,((N$8-$C72)/30.4),12+((N$8-$C72)/30.4))),0),CVMS!$D$19:$P$28,'Calcul CVMS VV'!$Q$2,FALSE))))/100*$D$2,"") ->  | O72: =IFERROR((IF($C72="","",(HLOOKUP(ROUNDUP((IF(((O$8-$C72)/30.4)>0,((O$8-$C72)/30.4),12+((O$8-$C72)/30.4))),0),CVMS!$D$19:$P$28,'Calcul CVMS VV'!$Q$2,FALSE))))/100*$D$2,"") ->  | P72: =IFERROR((IF($C72="","",(HLOOKUP(ROUNDUP((IF(((P$8-$C72)/30.4)>0,((P$8-$C72)/30.4),12+((P$8-$C72)/30.4))),0),CVMS!$D$19:$P$28,'Calcul CVMS VV'!$Q$2,FALSE))))/100*$D$2,"") -> 
E73: =IFERROR((IF($C73="","",(HLOOKUP(ROUNDUP((IF(((E$8-$C73)/30.4)>0,((E$8-$C73)/30.4),12+((E$8-$C73)/30.4))),0),CVMS!$D$19:$P$28,'Calcul CVMS VV'!$Q$2,FALSE))))/100*$D$2,"") ->  | F73: =IFERROR((IF($C73="","",(HLOOKUP(ROUNDUP((IF(((F$8-$C73)/30.4)>0,((F$8-$C73)/30.4),12+((F$8-$C73)/30.4))),0),CVMS!$D$19:$P$28,'Calcul CVMS VV'!$Q$2,FALSE))))/100*$D$2,"") ->  | G73: =IFERROR((IF($C73="","",(HLOOKUP(ROUNDUP((IF(((G$8-$C73)/30.4)>0,((G$8-$C73)/30.4),12+((G$8-$C73)/30.4))),0),CVMS!$D$19:$P$28,'Calcul CVMS VV'!$Q$2,FALSE))))/100*$D$2,"") ->  | H73: =IFERROR((IF($C73="","",(HLOOKUP(ROUNDUP((IF(((H$8-$C73)/30.4)>0,((H$8-$C73)/30.4),12+((H$8-$C73)/30.4))),0),CVMS!$D$19:$P$28,'Calcul CVMS VV'!$Q$2,FALSE))))/100*$D$2,"") ->  | I73: =IFERROR((IF($C73="","",(HLOOKUP(ROUNDUP((IF(((I$8-$C73)/30.4)>0,((I$8-$C73)/30.4),12+((I$8-$C73)/30.4))),0),CVMS!$D$19:$P$28,'Calcul CVMS VV'!$Q$2,FALSE))))/100*$D$2,"") ->  | J73: =IFERROR((IF($C73="","",(HLOOKUP(ROUNDUP((IF(((J$8-$C73)/30.4)>0,((J$8-$C73)/30.4),12+((J$8-$C73)/30.4))),0),CVMS!$D$19:$P$28,'Calcul CVMS VV'!$Q$2,FALSE))))/100*$D$2,"") ->  | K73: =IFERROR((IF($C73="","",(HLOOKUP(ROUNDUP((IF(((K$8-$C73)/30.4)>0,((K$8-$C73)/30.4),12+((K$8-$C73)/30.4))),0),CVMS!$D$19:$P$28,'Calcul CVMS VV'!$Q$2,FALSE))))/100*$D$2,"") ->  | L73: =IFERROR((IF($C73="","",(HLOOKUP(ROUNDUP((IF(((L$8-$C73)/30.4)>0,((L$8-$C73)/30.4),12+((L$8-$C73)/30.4))),0),CVMS!$D$19:$P$28,'Calcul CVMS VV'!$Q$2,FALSE))))/100*$D$2,"") ->  | M73: =IFERROR((IF($C73="","",(HLOOKUP(ROUNDUP((IF(((M$8-$C73)/30.4)>0,((M$8-$C73)/30.4),12+((M$8-$C73)/30.4))),0),CVMS!$D$19:$P$28,'Calcul CVMS VV'!$Q$2,FALSE))))/100*$D$2,"") ->  | N73: =IFERROR((IF($C73="","",(HLOOKUP(ROUNDUP((IF(((N$8-$C73)/30.4)>0,((N$8-$C73)/30.4),12+((N$8-$C73)/30.4))),0),CVMS!$D$19:$P$28,'Calcul CVMS VV'!$Q$2,FALSE))))/100*$D$2,"") ->  | O73: =IFERROR((IF($C73="","",(HLOOKUP(ROUNDUP((IF(((O$8-$C73)/30.4)>0,((O$8-$C73)/30.4),12+((O$8-$C73)/30.4))),0),CVMS!$D$19:$P$28,'Calcul CVMS VV'!$Q$2,FALSE))))/100*$D$2,"") ->  | P73: =IFERROR((IF($C73="","",(HLOOKUP(ROUNDUP((IF(((P$8-$C73)/30.4)>0,((P$8-$C73)/30.4),12+((P$8-$C73)/30.4))),0),CVMS!$D$19:$P$28,'Calcul CVMS VV'!$Q$2,FALSE))))/100*$D$2,"") -> 
E74: =IFERROR((IF($C74="","",(HLOOKUP(ROUNDUP((IF(((E$8-$C74)/30.4)>0,((E$8-$C74)/30.4),12+((E$8-$C74)/30.4))),0),CVMS!$D$19:$P$28,'Calcul CVMS VV'!$Q$2,FALSE))))/100*$D$2,"") ->  | F74: =IFERROR((IF($C74="","",(HLOOKUP(ROUNDUP((IF(((F$8-$C74)/30.4)>0,((F$8-$C74)/30.4),12+((F$8-$C74)/30.4))),0),CVMS!$D$19:$P$28,'Calcul CVMS VV'!$Q$2,FALSE))))/100*$D$2,"") ->  | G74: =IFERROR((IF($C74="","",(HLOOKUP(ROUNDUP((IF(((G$8-$C74)/30.4)>0,((G$8-$C74)/30.4),12+((G$8-$C74)/30.4))),0),CVMS!$D$19:$P$28,'Calcul CVMS VV'!$Q$2,FALSE))))/100*$D$2,"") ->  | H74: =IFERROR((IF($C74="","",(HLOOKUP(ROUNDUP((IF(((H$8-$C74)/30.4)>0,((H$8-$C74)/30.4),12+((H$8-$C74)/30.4))),0),CVMS!$D$19:$P$28,'Calcul CVMS VV'!$Q$2,FALSE))))/100*$D$2,"") ->  | I74: =IFERROR((IF($C74="","",(HLOOKUP(ROUNDUP((IF(((I$8-$C74)/30.4)>0,((I$8-$C74)/30.4),12+((I$8-$C74)/30.4))),0),CVMS!$D$19:$P$28,'Calcul CVMS VV'!$Q$2,FALSE))))/100*$D$2,"") ->  | J74: =IFERROR((IF($C74="","",(HLOOKUP(ROUNDUP((IF(((J$8-$C74)/30.4)>0,((J$8-$C74)/30.4),12+((J$8-$C74)/30.4))),0),CVMS!$D$19:$P$28,'Calcul CVMS VV'!$Q$2,FALSE))))/100*$D$2,"") ->  | K74: =IFERROR((IF($C74="","",(HLOOKUP(ROUNDUP((IF(((K$8-$C74)/30.4)>0,((K$8-$C74)/30.4),12+((K$8-$C74)/30.4))),0),CVMS!$D$19:$P$28,'Calcul CVMS VV'!$Q$2,FALSE))))/100*$D$2,"") ->  | L74: =IFERROR((IF($C74="","",(HLOOKUP(ROUNDUP((IF(((L$8-$C74)/30.4)>0,((L$8-$C74)/30.4),12+((L$8-$C74)/30.4))),0),CVMS!$D$19:$P$28,'Calcul CVMS VV'!$Q$2,FALSE))))/100*$D$2,"") ->  | M74: =IFERROR((IF($C74="","",(HLOOKUP(ROUNDUP((IF(((M$8-$C74)/30.4)>0,((M$8-$C74)/30.4),12+((M$8-$C74)/30.4))),0),CVMS!$D$19:$P$28,'Calcul CVMS VV'!$Q$2,FALSE))))/100*$D$2,"") ->  | N74: =IFERROR((IF($C74="","",(HLOOKUP(ROUNDUP((IF(((N$8-$C74)/30.4)>0,((N$8-$C74)/30.4),12+((N$8-$C74)/30.4))),0),CVMS!$D$19:$P$28,'Calcul CVMS VV'!$Q$2,FALSE))))/100*$D$2,"") ->  | O74: =IFERROR((IF($C74="","",(HLOOKUP(ROUNDUP((IF(((O$8-$C74)/30.4)>0,((O$8-$C74)/30.4),12+((O$8-$C74)/30.4))),0),CVMS!$D$19:$P$28,'Calcul CVMS VV'!$Q$2,FALSE))))/100*$D$2,"") ->  | P74: =IFERROR((IF($C74="","",(HLOOKUP(ROUNDUP((IF(((P$8-$C74)/30.4)>0,((P$8-$C74)/30.4),12+((P$8-$C74)/30.4))),0),CVMS!$D$19:$P$28,'Calcul CVMS VV'!$Q$2,FALSE))))/100*$D$2,"") -> 
E75: =IFERROR((IF($C75="","",(HLOOKUP(ROUNDUP((IF(((E$8-$C75)/30.4)>0,((E$8-$C75)/30.4),12+((E$8-$C75)/30.4))),0),CVMS!$D$19:$P$28,'Calcul CVMS VV'!$Q$2,FALSE))))/100*$D$2,"") ->  | F75: =IFERROR((IF($C75="","",(HLOOKUP(ROUNDUP((IF(((F$8-$C75)/30.4)>0,((F$8-$C75)/30.4),12+((F$8-$C75)/30.4))),0),CVMS!$D$19:$P$28,'Calcul CVMS VV'!$Q$2,FALSE))))/100*$D$2,"") ->  | G75: =IFERROR((IF($C75="","",(HLOOKUP(ROUNDUP((IF(((G$8-$C75)/30.4)>0,((G$8-$C75)/30.4),12+((G$8-$C75)/30.4))),0),CVMS!$D$19:$P$28,'Calcul CVMS VV'!$Q$2,FALSE))))/100*$D$2,"") ->  | H75: =IFERROR((IF($C75="","",(HLOOKUP(ROUNDUP((IF(((H$8-$C75)/30.4)>0,((H$8-$C75)/30.4),12+((H$8-$C75)/30.4))),0),CVMS!$D$19:$P$28,'Calcul CVMS VV'!$Q$2,FALSE))))/100*$D$2,"") ->  | I75: =IFERROR((IF($C75="","",(HLOOKUP(ROUNDUP((IF(((I$8-$C75)/30.4)>0,((I$8-$C75)/30.4),12+((I$8-$C75)/30.4))),0),CVMS!$D$19:$P$28,'Calcul CVMS VV'!$Q$2,FALSE))))/100*$D$2,"") ->  | J75: =IFERROR((IF($C75="","",(HLOOKUP(ROUNDUP((IF(((J$8-$C75)/30.4)>0,((J$8-$C75)/30.4),12+((J$8-$C75)/30.4))),0),CVMS!$D$19:$P$28,'Calcul CVMS VV'!$Q$2,FALSE))))/100*$D$2,"") ->  | K75: =IFERROR((IF($C75="","",(HLOOKUP(ROUNDUP((IF(((K$8-$C75)/30.4)>0,((K$8-$C75)/30.4),12+((K$8-$C75)/30.4))),0),CVMS!$D$19:$P$28,'Calcul CVMS VV'!$Q$2,FALSE))))/100*$D$2,"") ->  | L75: =IFERROR((IF($C75="","",(HLOOKUP(ROUNDUP((IF(((L$8-$C75)/30.4)>0,((L$8-$C75)/30.4),12+((L$8-$C75)/30.4))),0),CVMS!$D$19:$P$28,'Calcul CVMS VV'!$Q$2,FALSE))))/100*$D$2,"") ->  | M75: =IFERROR((IF($C75="","",(HLOOKUP(ROUNDUP((IF(((M$8-$C75)/30.4)>0,((M$8-$C75)/30.4),12+((M$8-$C75)/30.4))),0),CVMS!$D$19:$P$28,'Calcul CVMS VV'!$Q$2,FALSE))))/100*$D$2,"") ->  | N75: =IFERROR((IF($C75="","",(HLOOKUP(ROUNDUP((IF(((N$8-$C75)/30.4)>0,((N$8-$C75)/30.4),12+((N$8-$C75)/30.4))),0),CVMS!$D$19:$P$28,'Calcul CVMS VV'!$Q$2,FALSE))))/100*$D$2,"") ->  | O75: =IFERROR((IF($C75="","",(HLOOKUP(ROUNDUP((IF(((O$8-$C75)/30.4)>0,((O$8-$C75)/30.4),12+((O$8-$C75)/30.4))),0),CVMS!$D$19:$P$28,'Calcul CVMS VV'!$Q$2,FALSE))))/100*$D$2,"") ->  | P75: =IFERROR((IF($C75="","",(HLOOKUP(ROUNDUP((IF(((P$8-$C75)/30.4)>0,((P$8-$C75)/30.4),12+((P$8-$C75)/30.4))),0),CVMS!$D$19:$P$28,'Calcul CVMS VV'!$Q$2,FALSE))))/100*$D$2,"") -> 
E76: =IFERROR((IF($C76="","",(HLOOKUP(ROUNDUP((IF(((E$8-$C76)/30.4)>0,((E$8-$C76)/30.4),12+((E$8-$C76)/30.4))),0),CVMS!$D$19:$P$28,'Calcul CVMS VV'!$Q$2,FALSE))))/100*$D$2,"") ->  | F76: =IFERROR((IF($C76="","",(HLOOKUP(ROUNDUP((IF(((F$8-$C76)/30.4)>0,((F$8-$C76)/30.4),12+((F$8-$C76)/30.4))),0),CVMS!$D$19:$P$28,'Calcul CVMS VV'!$Q$2,FALSE))))/100*$D$2,"") ->  | G76: =IFERROR((IF($C76="","",(HLOOKUP(ROUNDUP((IF(((G$8-$C76)/30.4)>0,((G$8-$C76)/30.4),12+((G$8-$C76)/30.4))),0),CVMS!$D$19:$P$28,'Calcul CVMS VV'!$Q$2,FALSE))))/100*$D$2,"") ->  | H76: =IFERROR((IF($C76="","",(HLOOKUP(ROUNDUP((IF(((H$8-$C76)/30.4)>0,((H$8-$C76)/30.4),12+((H$8-$C76)/30.4))),0),CVMS!$D$19:$P$28,'Calcul CVMS VV'!$Q$2,FALSE))))/100*$D$2,"") ->  | I76: =IFERROR((IF($C76="","",(HLOOKUP(ROUNDUP((IF(((I$8-$C76)/30.4)>0,((I$8-$C76)/30.4),12+((I$8-$C76)/30.4))),0),CVMS!$D$19:$P$28,'Calcul CVMS VV'!$Q$2,FALSE))))/100*$D$2,"") ->  | J76: =IFERROR((IF($C76="","",(HLOOKUP(ROUNDUP((IF(((J$8-$C76)/30.4)>0,((J$8-$C76)/30.4),12+((J$8-$C76)/30.4))),0),CVMS!$D$19:$P$28,'Calcul CVMS VV'!$Q$2,FALSE))))/100*$D$2,"") ->  | K76: =IFERROR((IF($C76="","",(HLOOKUP(ROUNDUP((IF(((K$8-$C76)/30.4)>0,((K$8-$C76)/30.4),12+((K$8-$C76)/30.4))),0),CVMS!$D$19:$P$28,'Calcul CVMS VV'!$Q$2,FALSE))))/100*$D$2,"") ->  | L76: =IFERROR((IF($C76="","",(HLOOKUP(ROUNDUP((IF(((L$8-$C76)/30.4)>0,((L$8-$C76)/30.4),12+((L$8-$C76)/30.4))),0),CVMS!$D$19:$P$28,'Calcul CVMS VV'!$Q$2,FALSE))))/100*$D$2,"") ->  | M76: =IFERROR((IF($C76="","",(HLOOKUP(ROUNDUP((IF(((M$8-$C76)/30.4)>0,((M$8-$C76)/30.4),12+((M$8-$C76)/30.4))),0),CVMS!$D$19:$P$28,'Calcul CVMS VV'!$Q$2,FALSE))))/100*$D$2,"") ->  | N76: =IFERROR((IF($C76="","",(HLOOKUP(ROUNDUP((IF(((N$8-$C76)/30.4)>0,((N$8-$C76)/30.4),12+((N$8-$C76)/30.4))),0),CVMS!$D$19:$P$28,'Calcul CVMS VV'!$Q$2,FALSE))))/100*$D$2,"") ->  | O76: =IFERROR((IF($C76="","",(HLOOKUP(ROUNDUP((IF(((O$8-$C76)/30.4)>0,((O$8-$C76)/30.4),12+((O$8-$C76)/30.4))),0),CVMS!$D$19:$P$28,'Calcul CVMS VV'!$Q$2,FALSE))))/100*$D$2,"") ->  | P76: =IFERROR((IF($C76="","",(HLOOKUP(ROUNDUP((IF(((P$8-$C76)/30.4)>0,((P$8-$C76)/30.4),12+((P$8-$C76)/30.4))),0),CVMS!$D$19:$P$28,'Calcul CVMS VV'!$Q$2,FALSE))))/100*$D$2,"") -> 
E77: =IFERROR((IF($C77="","",(HLOOKUP(ROUNDUP((IF(((E$8-$C77)/30.4)>0,((E$8-$C77)/30.4),12+((E$8-$C77)/30.4))),0),CVMS!$D$19:$P$28,'Calcul CVMS VV'!$Q$2,FALSE))))/100*$D$2,"") ->  | F77: =IFERROR((IF($C77="","",(HLOOKUP(ROUNDUP((IF(((F$8-$C77)/30.4)>0,((F$8-$C77)/30.4),12+((F$8-$C77)/30.4))),0),CVMS!$D$19:$P$28,'Calcul CVMS VV'!$Q$2,FALSE))))/100*$D$2,"") ->  | G77: =IFERROR((IF($C77="","",(HLOOKUP(ROUNDUP((IF(((G$8-$C77)/30.4)>0,((G$8-$C77)/30.4),12+((G$8-$C77)/30.4))),0),CVMS!$D$19:$P$28,'Calcul CVMS VV'!$Q$2,FALSE))))/100*$D$2,"") ->  | H77: =IFERROR((IF($C77="","",(HLOOKUP(ROUNDUP((IF(((H$8-$C77)/30.4)>0,((H$8-$C77)/30.4),12+((H$8-$C77)/30.4))),0),CVMS!$D$19:$P$28,'Calcul CVMS VV'!$Q$2,FALSE))))/100*$D$2,"") ->  | I77: =IFERROR((IF($C77="","",(HLOOKUP(ROUNDUP((IF(((I$8-$C77)/30.4)>0,((I$8-$C77)/30.4),12+((I$8-$C77)/30.4))),0),CVMS!$D$19:$P$28,'Calcul CVMS VV'!$Q$2,FALSE))))/100*$D$2,"") ->  | J77: =IFERROR((IF($C77="","",(HLOOKUP(ROUNDUP((IF(((J$8-$C77)/30.4)>0,((J$8-$C77)/30.4),12+((J$8-$C77)/30.4))),0),CVMS!$D$19:$P$28,'Calcul CVMS VV'!$Q$2,FALSE))))/100*$D$2,"") ->  | K77: =IFERROR((IF($C77="","",(HLOOKUP(ROUNDUP((IF(((K$8-$C77)/30.4)>0,((K$8-$C77)/30.4),12+((K$8-$C77)/30.4))),0),CVMS!$D$19:$P$28,'Calcul CVMS VV'!$Q$2,FALSE))))/100*$D$2,"") ->  | L77: =IFERROR((IF($C77="","",(HLOOKUP(ROUNDUP((IF(((L$8-$C77)/30.4)>0,((L$8-$C77)/30.4),12+((L$8-$C77)/30.4))),0),CVMS!$D$19:$P$28,'Calcul CVMS VV'!$Q$2,FALSE))))/100*$D$2,"") ->  | M77: =IFERROR((IF($C77="","",(HLOOKUP(ROUNDUP((IF(((M$8-$C77)/30.4)>0,((M$8-$C77)/30.4),12+((M$8-$C77)/30.4))),0),CVMS!$D$19:$P$28,'Calcul CVMS VV'!$Q$2,FALSE))))/100*$D$2,"") ->  | N77: =IFERROR((IF($C77="","",(HLOOKUP(ROUNDUP((IF(((N$8-$C77)/30.4)>0,((N$8-$C77)/30.4),12+((N$8-$C77)/30.4))),0),CVMS!$D$19:$P$28,'Calcul CVMS VV'!$Q$2,FALSE))))/100*$D$2,"") ->  | O77: =IFERROR((IF($C77="","",(HLOOKUP(ROUNDUP((IF(((O$8-$C77)/30.4)>0,((O$8-$C77)/30.4),12+((O$8-$C77)/30.4))),0),CVMS!$D$19:$P$28,'Calcul CVMS VV'!$Q$2,FALSE))))/100*$D$2,"") ->  | P77: =IFERROR((IF($C77="","",(HLOOKUP(ROUNDUP((IF(((P$8-$C77)/30.4)>0,((P$8-$C77)/30.4),12+((P$8-$C77)/30.4))),0),CVMS!$D$19:$P$28,'Calcul CVMS VV'!$Q$2,FALSE))))/100*$D$2,"") -> 
E78: =IFERROR((IF($C78="","",(HLOOKUP(ROUNDUP((IF(((E$8-$C78)/30.4)>0,((E$8-$C78)/30.4),12+((E$8-$C78)/30.4))),0),CVMS!$D$19:$P$28,'Calcul CVMS VV'!$Q$2,FALSE))))/100*$D$2,"") ->  | F78: =IFERROR((IF($C78="","",(HLOOKUP(ROUNDUP((IF(((F$8-$C78)/30.4)>0,((F$8-$C78)/30.4),12+((F$8-$C78)/30.4))),0),CVMS!$D$19:$P$28,'Calcul CVMS VV'!$Q$2,FALSE))))/100*$D$2,"") ->  | G78: =IFERROR((IF($C78="","",(HLOOKUP(ROUNDUP((IF(((G$8-$C78)/30.4)>0,((G$8-$C78)/30.4),12+((G$8-$C78)/30.4))),0),CVMS!$D$19:$P$28,'Calcul CVMS VV'!$Q$2,FALSE))))/100*$D$2,"") ->  | H78: =IFERROR((IF($C78="","",(HLOOKUP(ROUNDUP((IF(((H$8-$C78)/30.4)>0,((H$8-$C78)/30.4),12+((H$8-$C78)/30.4))),0),CVMS!$D$19:$P$28,'Calcul CVMS VV'!$Q$2,FALSE))))/100*$D$2,"") ->  | I78: =IFERROR((IF($C78="","",(HLOOKUP(ROUNDUP((IF(((I$8-$C78)/30.4)>0,((I$8-$C78)/30.4),12+((I$8-$C78)/30.4))),0),CVMS!$D$19:$P$28,'Calcul CVMS VV'!$Q$2,FALSE))))/100*$D$2,"") ->  | J78: =IFERROR((IF($C78="","",(HLOOKUP(ROUNDUP((IF(((J$8-$C78)/30.4)>0,((J$8-$C78)/30.4),12+((J$8-$C78)/30.4))),0),CVMS!$D$19:$P$28,'Calcul CVMS VV'!$Q$2,FALSE))))/100*$D$2,"") ->  | K78: =IFERROR((IF($C78="","",(HLOOKUP(ROUNDUP((IF(((K$8-$C78)/30.4)>0,((K$8-$C78)/30.4),12+((K$8-$C78)/30.4))),0),CVMS!$D$19:$P$28,'Calcul CVMS VV'!$Q$2,FALSE))))/100*$D$2,"") ->  | L78: =IFERROR((IF($C78="","",(HLOOKUP(ROUNDUP((IF(((L$8-$C78)/30.4)>0,((L$8-$C78)/30.4),12+((L$8-$C78)/30.4))),0),CVMS!$D$19:$P$28,'Calcul CVMS VV'!$Q$2,FALSE))))/100*$D$2,"") ->  | M78: =IFERROR((IF($C78="","",(HLOOKUP(ROUNDUP((IF(((M$8-$C78)/30.4)>0,((M$8-$C78)/30.4),12+((M$8-$C78)/30.4))),0),CVMS!$D$19:$P$28,'Calcul CVMS VV'!$Q$2,FALSE))))/100*$D$2,"") ->  | N78: =IFERROR((IF($C78="","",(HLOOKUP(ROUNDUP((IF(((N$8-$C78)/30.4)>0,((N$8-$C78)/30.4),12+((N$8-$C78)/30.4))),0),CVMS!$D$19:$P$28,'Calcul CVMS VV'!$Q$2,FALSE))))/100*$D$2,"") ->  | O78: =IFERROR((IF($C78="","",(HLOOKUP(ROUNDUP((IF(((O$8-$C78)/30.4)>0,((O$8-$C78)/30.4),12+((O$8-$C78)/30.4))),0),CVMS!$D$19:$P$28,'Calcul CVMS VV'!$Q$2,FALSE))))/100*$D$2,"") ->  | P78: =IFERROR((IF($C78="","",(HLOOKUP(ROUNDUP((IF(((P$8-$C78)/30.4)>0,((P$8-$C78)/30.4),12+((P$8-$C78)/30.4))),0),CVMS!$D$19:$P$28,'Calcul CVMS VV'!$Q$2,FALSE))))/100*$D$2,"") -> 
E79: =IFERROR((IF($C79="","",(HLOOKUP(ROUNDUP((IF(((E$8-$C79)/30.4)>0,((E$8-$C79)/30.4),12+((E$8-$C79)/30.4))),0),CVMS!$D$19:$P$28,'Calcul CVMS VV'!$Q$2,FALSE))))/100*$D$2,"") ->  | F79: =IFERROR((IF($C79="","",(HLOOKUP(ROUNDUP((IF(((F$8-$C79)/30.4)>0,((F$8-$C79)/30.4),12+((F$8-$C79)/30.4))),0),CVMS!$D$19:$P$28,'Calcul CVMS VV'!$Q$2,FALSE))))/100*$D$2,"") ->  | G79: =IFERROR((IF($C79="","",(HLOOKUP(ROUNDUP((IF(((G$8-$C79)/30.4)>0,((G$8-$C79)/30.4),12+((G$8-$C79)/30.4))),0),CVMS!$D$19:$P$28,'Calcul CVMS VV'!$Q$2,FALSE))))/100*$D$2,"") ->  | H79: =IFERROR((IF($C79="","",(HLOOKUP(ROUNDUP((IF(((H$8-$C79)/30.4)>0,((H$8-$C79)/30.4),12+((H$8-$C79)/30.4))),0),CVMS!$D$19:$P$28,'Calcul CVMS VV'!$Q$2,FALSE))))/100*$D$2,"") ->  | I79: =IFERROR((IF($C79="","",(HLOOKUP(ROUNDUP((IF(((I$8-$C79)/30.4)>0,((I$8-$C79)/30.4),12+((I$8-$C79)/30.4))),0),CVMS!$D$19:$P$28,'Calcul CVMS VV'!$Q$2,FALSE))))/100*$D$2,"") ->  | J79: =IFERROR((IF($C79="","",(HLOOKUP(ROUNDUP((IF(((J$8-$C79)/30.4)>0,((J$8-$C79)/30.4),12+((J$8-$C79)/30.4))),0),CVMS!$D$19:$P$28,'Calcul CVMS VV'!$Q$2,FALSE))))/100*$D$2,"") ->  | K79: =IFERROR((IF($C79="","",(HLOOKUP(ROUNDUP((IF(((K$8-$C79)/30.4)>0,((K$8-$C79)/30.4),12+((K$8-$C79)/30.4))),0),CVMS!$D$19:$P$28,'Calcul CVMS VV'!$Q$2,FALSE))))/100*$D$2,"") ->  | L79: =IFERROR((IF($C79="","",(HLOOKUP(ROUNDUP((IF(((L$8-$C79)/30.4)>0,((L$8-$C79)/30.4),12+((L$8-$C79)/30.4))),0),CVMS!$D$19:$P$28,'Calcul CVMS VV'!$Q$2,FALSE))))/100*$D$2,"") ->  | M79: =IFERROR((IF($C79="","",(HLOOKUP(ROUNDUP((IF(((M$8-$C79)/30.4)>0,((M$8-$C79)/30.4),12+((M$8-$C79)/30.4))),0),CVMS!$D$19:$P$28,'Calcul CVMS VV'!$Q$2,FALSE))))/100*$D$2,"") ->  | N79: =IFERROR((IF($C79="","",(HLOOKUP(ROUNDUP((IF(((N$8-$C79)/30.4)>0,((N$8-$C79)/30.4),12+((N$8-$C79)/30.4))),0),CVMS!$D$19:$P$28,'Calcul CVMS VV'!$Q$2,FALSE))))/100*$D$2,"") ->  | O79: =IFERROR((IF($C79="","",(HLOOKUP(ROUNDUP((IF(((O$8-$C79)/30.4)>0,((O$8-$C79)/30.4),12+((O$8-$C79)/30.4))),0),CVMS!$D$19:$P$28,'Calcul CVMS VV'!$Q$2,FALSE))))/100*$D$2,"") ->  | P79: =IFERROR((IF($C79="","",(HLOOKUP(ROUNDUP((IF(((P$8-$C79)/30.4)>0,((P$8-$C79)/30.4),12+((P$8-$C79)/30.4))),0),CVMS!$D$19:$P$28,'Calcul CVMS VV'!$Q$2,FALSE))))/100*$D$2,"") -> 
E80: =IFERROR((IF($C80="","",(HLOOKUP(ROUNDUP((IF(((E$8-$C80)/30.4)>0,((E$8-$C80)/30.4),12+((E$8-$C80)/30.4))),0),CVMS!$D$19:$P$28,'Calcul CVMS VV'!$Q$2,FALSE))))/100*$D$2,"") ->  | F80: =IFERROR((IF($C80="","",(HLOOKUP(ROUNDUP((IF(((F$8-$C80)/30.4)>0,((F$8-$C80)/30.4),12+((F$8-$C80)/30.4))),0),CVMS!$D$19:$P$28,'Calcul CVMS VV'!$Q$2,FALSE))))/100*$D$2,"") ->  | G80: =IFERROR((IF($C80="","",(HLOOKUP(ROUNDUP((IF(((G$8-$C80)/30.4)>0,((G$8-$C80)/30.4),12+((G$8-$C80)/30.4))),0),CVMS!$D$19:$P$28,'Calcul CVMS VV'!$Q$2,FALSE))))/100*$D$2,"") ->  | H80: =IFERROR((IF($C80="","",(HLOOKUP(ROUNDUP((IF(((H$8-$C80)/30.4)>0,((H$8-$C80)/30.4),12+((H$8-$C80)/30.4))),0),CVMS!$D$19:$P$28,'Calcul CVMS VV'!$Q$2,FALSE))))/100*$D$2,"") ->  | I80: =IFERROR((IF($C80="","",(HLOOKUP(ROUNDUP((IF(((I$8-$C80)/30.4)>0,((I$8-$C80)/30.4),12+((I$8-$C80)/30.4))),0),CVMS!$D$19:$P$28,'Calcul CVMS VV'!$Q$2,FALSE))))/100*$D$2,"") ->  | J80: =IFERROR((IF($C80="","",(HLOOKUP(ROUNDUP((IF(((J$8-$C80)/30.4)>0,((J$8-$C80)/30.4),12+((J$8-$C80)/30.4))),0),CVMS!$D$19:$P$28,'Calcul CVMS VV'!$Q$2,FALSE))))/100*$D$2,"") ->  | K80: =IFERROR((IF($C80="","",(HLOOKUP(ROUNDUP((IF(((K$8-$C80)/30.4)>0,((K$8-$C80)/30.4),12+((K$8-$C80)/30.4))),0),CVMS!$D$19:$P$28,'Calcul CVMS VV'!$Q$2,FALSE))))/100*$D$2,"") ->  | L80: =IFERROR((IF($C80="","",(HLOOKUP(ROUNDUP((IF(((L$8-$C80)/30.4)>0,((L$8-$C80)/30.4),12+((L$8-$C80)/30.4))),0),CVMS!$D$19:$P$28,'Calcul CVMS VV'!$Q$2,FALSE))))/100*$D$2,"") ->  | M80: =IFERROR((IF($C80="","",(HLOOKUP(ROUNDUP((IF(((M$8-$C80)/30.4)>0,((M$8-$C80)/30.4),12+((M$8-$C80)/30.4))),0),CVMS!$D$19:$P$28,'Calcul CVMS VV'!$Q$2,FALSE))))/100*$D$2,"") ->  | N80: =IFERROR((IF($C80="","",(HLOOKUP(ROUNDUP((IF(((N$8-$C80)/30.4)>0,((N$8-$C80)/30.4),12+((N$8-$C80)/30.4))),0),CVMS!$D$19:$P$28,'Calcul CVMS VV'!$Q$2,FALSE))))/100*$D$2,"") ->  | O80: =IFERROR((IF($C80="","",(HLOOKUP(ROUNDUP((IF(((O$8-$C80)/30.4)>0,((O$8-$C80)/30.4),12+((O$8-$C80)/30.4))),0),CVMS!$D$19:$P$28,'Calcul CVMS VV'!$Q$2,FALSE))))/100*$D$2,"") ->  | P80: =IFERROR((IF($C80="","",(HLOOKUP(ROUNDUP((IF(((P$8-$C80)/30.4)>0,((P$8-$C80)/30.4),12+((P$8-$C80)/30.4))),0),CVMS!$D$19:$P$28,'Calcul CVMS VV'!$Q$2,FALSE))))/100*$D$2,"") -> 
E81: =IFERROR((IF($C81="","",(HLOOKUP(ROUNDUP((IF(((E$8-$C81)/30.4)>0,((E$8-$C81)/30.4),12+((E$8-$C81)/30.4))),0),CVMS!$D$19:$P$28,'Calcul CVMS VV'!$Q$2,FALSE))))/100*$D$2,"") ->  | F81: =IFERROR((IF($C81="","",(HLOOKUP(ROUNDUP((IF(((F$8-$C81)/30.4)>0,((F$8-$C81)/30.4),12+((F$8-$C81)/30.4))),0),CVMS!$D$19:$P$28,'Calcul CVMS VV'!$Q$2,FALSE))))/100*$D$2,"") ->  | G81: =IFERROR((IF($C81="","",(HLOOKUP(ROUNDUP((IF(((G$8-$C81)/30.4)>0,((G$8-$C81)/30.4),12+((G$8-$C81)/30.4))),0),CVMS!$D$19:$P$28,'Calcul CVMS VV'!$Q$2,FALSE))))/100*$D$2,"") ->  | H81: =IFERROR((IF($C81="","",(HLOOKUP(ROUNDUP((IF(((H$8-$C81)/30.4)>0,((H$8-$C81)/30.4),12+((H$8-$C81)/30.4))),0),CVMS!$D$19:$P$28,'Calcul CVMS VV'!$Q$2,FALSE))))/100*$D$2,"") ->  | I81: =IFERROR((IF($C81="","",(HLOOKUP(ROUNDUP((IF(((I$8-$C81)/30.4)>0,((I$8-$C81)/30.4),12+((I$8-$C81)/30.4))),0),CVMS!$D$19:$P$28,'Calcul CVMS VV'!$Q$2,FALSE))))/100*$D$2,"") ->  | J81: =IFERROR((IF($C81="","",(HLOOKUP(ROUNDUP((IF(((J$8-$C81)/30.4)>0,((J$8-$C81)/30.4),12+((J$8-$C81)/30.4))),0),CVMS!$D$19:$P$28,'Calcul CVMS VV'!$Q$2,FALSE))))/100*$D$2,"") ->  | K81: =IFERROR((IF($C81="","",(HLOOKUP(ROUNDUP((IF(((K$8-$C81)/30.4)>0,((K$8-$C81)/30.4),12+((K$8-$C81)/30.4))),0),CVMS!$D$19:$P$28,'Calcul CVMS VV'!$Q$2,FALSE))))/100*$D$2,"") ->  | L81: =IFERROR((IF($C81="","",(HLOOKUP(ROUNDUP((IF(((L$8-$C81)/30.4)>0,((L$8-$C81)/30.4),12+((L$8-$C81)/30.4))),0),CVMS!$D$19:$P$28,'Calcul CVMS VV'!$Q$2,FALSE))))/100*$D$2,"") ->  | M81: =IFERROR((IF($C81="","",(HLOOKUP(ROUNDUP((IF(((M$8-$C81)/30.4)>0,((M$8-$C81)/30.4),12+((M$8-$C81)/30.4))),0),CVMS!$D$19:$P$28,'Calcul CVMS VV'!$Q$2,FALSE))))/100*$D$2,"") ->  | N81: =IFERROR((IF($C81="","",(HLOOKUP(ROUNDUP((IF(((N$8-$C81)/30.4)>0,((N$8-$C81)/30.4),12+((N$8-$C81)/30.4))),0),CVMS!$D$19:$P$28,'Calcul CVMS VV'!$Q$2,FALSE))))/100*$D$2,"") ->  | O81: =IFERROR((IF($C81="","",(HLOOKUP(ROUNDUP((IF(((O$8-$C81)/30.4)>0,((O$8-$C81)/30.4),12+((O$8-$C81)/30.4))),0),CVMS!$D$19:$P$28,'Calcul CVMS VV'!$Q$2,FALSE))))/100*$D$2,"") ->  | P81: =IFERROR((IF($C81="","",(HLOOKUP(ROUNDUP((IF(((P$8-$C81)/30.4)>0,((P$8-$C81)/30.4),12+((P$8-$C81)/30.4))),0),CVMS!$D$19:$P$28,'Calcul CVMS VV'!$Q$2,FALSE))))/100*$D$2,"") -> 
E82: =IFERROR((IF($C82="","",(HLOOKUP(ROUNDUP((IF(((E$8-$C82)/30.4)>0,((E$8-$C82)/30.4),12+((E$8-$C82)/30.4))),0),CVMS!$D$19:$P$28,'Calcul CVMS VV'!$Q$2,FALSE))))/100*$D$2,"") ->  | F82: =IFERROR((IF($C82="","",(HLOOKUP(ROUNDUP((IF(((F$8-$C82)/30.4)>0,((F$8-$C82)/30.4),12+((F$8-$C82)/30.4))),0),CVMS!$D$19:$P$28,'Calcul CVMS VV'!$Q$2,FALSE))))/100*$D$2,"") ->  | G82: =IFERROR((IF($C82="","",(HLOOKUP(ROUNDUP((IF(((G$8-$C82)/30.4)>0,((G$8-$C82)/30.4),12+((G$8-$C82)/30.4))),0),CVMS!$D$19:$P$28,'Calcul CVMS VV'!$Q$2,FALSE))))/100*$D$2,"") ->  | H82: =IFERROR((IF($C82="","",(HLOOKUP(ROUNDUP((IF(((H$8-$C82)/30.4)>0,((H$8-$C82)/30.4),12+((H$8-$C82)/30.4))),0),CVMS!$D$19:$P$28,'Calcul CVMS VV'!$Q$2,FALSE))))/100*$D$2,"") ->  | I82: =IFERROR((IF($C82="","",(HLOOKUP(ROUNDUP((IF(((I$8-$C82)/30.4)>0,((I$8-$C82)/30.4),12+((I$8-$C82)/30.4))),0),CVMS!$D$19:$P$28,'Calcul CVMS VV'!$Q$2,FALSE))))/100*$D$2,"") ->  | J82: =IFERROR((IF($C82="","",(HLOOKUP(ROUNDUP((IF(((J$8-$C82)/30.4)>0,((J$8-$C82)/30.4),12+((J$8-$C82)/30.4))),0),CVMS!$D$19:$P$28,'Calcul CVMS VV'!$Q$2,FALSE))))/100*$D$2,"") ->  | K82: =IFERROR((IF($C82="","",(HLOOKUP(ROUNDUP((IF(((K$8-$C82)/30.4)>0,((K$8-$C82)/30.4),12+((K$8-$C82)/30.4))),0),CVMS!$D$19:$P$28,'Calcul CVMS VV'!$Q$2,FALSE))))/100*$D$2,"") ->  | L82: =IFERROR((IF($C82="","",(HLOOKUP(ROUNDUP((IF(((L$8-$C82)/30.4)>0,((L$8-$C82)/30.4),12+((L$8-$C82)/30.4))),0),CVMS!$D$19:$P$28,'Calcul CVMS VV'!$Q$2,FALSE))))/100*$D$2,"") ->  | M82: =IFERROR((IF($C82="","",(HLOOKUP(ROUNDUP((IF(((M$8-$C82)/30.4)>0,((M$8-$C82)/30.4),12+((M$8-$C82)/30.4))),0),CVMS!$D$19:$P$28,'Calcul CVMS VV'!$Q$2,FALSE))))/100*$D$2,"") ->  | N82: =IFERROR((IF($C82="","",(HLOOKUP(ROUNDUP((IF(((N$8-$C82)/30.4)>0,((N$8-$C82)/30.4),12+((N$8-$C82)/30.4))),0),CVMS!$D$19:$P$28,'Calcul CVMS VV'!$Q$2,FALSE))))/100*$D$2,"") ->  | O82: =IFERROR((IF($C82="","",(HLOOKUP(ROUNDUP((IF(((O$8-$C82)/30.4)>0,((O$8-$C82)/30.4),12+((O$8-$C82)/30.4))),0),CVMS!$D$19:$P$28,'Calcul CVMS VV'!$Q$2,FALSE))))/100*$D$2,"") ->  | P82: =IFERROR((IF($C82="","",(HLOOKUP(ROUNDUP((IF(((P$8-$C82)/30.4)>0,((P$8-$C82)/30.4),12+((P$8-$C82)/30.4))),0),CVMS!$D$19:$P$28,'Calcul CVMS VV'!$Q$2,FALSE))))/100*$D$2,"") -> 
E83: =IFERROR((IF($C83="","",(HLOOKUP(ROUNDUP((IF(((E$8-$C83)/30.4)>0,((E$8-$C83)/30.4),12+((E$8-$C83)/30.4))),0),CVMS!$D$19:$P$28,'Calcul CVMS VV'!$Q$2,FALSE))))/100*$D$2,"") ->  | F83: =IFERROR((IF($C83="","",(HLOOKUP(ROUNDUP((IF(((F$8-$C83)/30.4)>0,((F$8-$C83)/30.4),12+((F$8-$C83)/30.4))),0),CVMS!$D$19:$P$28,'Calcul CVMS VV'!$Q$2,FALSE))))/100*$D$2,"") ->  | G83: =IFERROR((IF($C83="","",(HLOOKUP(ROUNDUP((IF(((G$8-$C83)/30.4)>0,((G$8-$C83)/30.4),12+((G$8-$C83)/30.4))),0),CVMS!$D$19:$P$28,'Calcul CVMS VV'!$Q$2,FALSE))))/100*$D$2,"") ->  | H83: =IFERROR((IF($C83="","",(HLOOKUP(ROUNDUP((IF(((H$8-$C83)/30.4)>0,((H$8-$C83)/30.4),12+((H$8-$C83)/30.4))),0),CVMS!$D$19:$P$28,'Calcul CVMS VV'!$Q$2,FALSE))))/100*$D$2,"") ->  | I83: =IFERROR((IF($C83="","",(HLOOKUP(ROUNDUP((IF(((I$8-$C83)/30.4)>0,((I$8-$C83)/30.4),12+((I$8-$C83)/30.4))),0),CVMS!$D$19:$P$28,'Calcul CVMS VV'!$Q$2,FALSE))))/100*$D$2,"") ->  | J83: =IFERROR((IF($C83="","",(HLOOKUP(ROUNDUP((IF(((J$8-$C83)/30.4)>0,((J$8-$C83)/30.4),12+((J$8-$C83)/30.4))),0),CVMS!$D$19:$P$28,'Calcul CVMS VV'!$Q$2,FALSE))))/100*$D$2,"") ->  | K83: =IFERROR((IF($C83="","",(HLOOKUP(ROUNDUP((IF(((K$8-$C83)/30.4)>0,((K$8-$C83)/30.4),12+((K$8-$C83)/30.4))),0),CVMS!$D$19:$P$28,'Calcul CVMS VV'!$Q$2,FALSE))))/100*$D$2,"") ->  | L83: =IFERROR((IF($C83="","",(HLOOKUP(ROUNDUP((IF(((L$8-$C83)/30.4)>0,((L$8-$C83)/30.4),12+((L$8-$C83)/30.4))),0),CVMS!$D$19:$P$28,'Calcul CVMS VV'!$Q$2,FALSE))))/100*$D$2,"") ->  | M83: =IFERROR((IF($C83="","",(HLOOKUP(ROUNDUP((IF(((M$8-$C83)/30.4)>0,((M$8-$C83)/30.4),12+((M$8-$C83)/30.4))),0),CVMS!$D$19:$P$28,'Calcul CVMS VV'!$Q$2,FALSE))))/100*$D$2,"") ->  | N83: =IFERROR((IF($C83="","",(HLOOKUP(ROUNDUP((IF(((N$8-$C83)/30.4)>0,((N$8-$C83)/30.4),12+((N$8-$C83)/30.4))),0),CVMS!$D$19:$P$28,'Calcul CVMS VV'!$Q$2,FALSE))))/100*$D$2,"") ->  | O83: =IFERROR((IF($C83="","",(HLOOKUP(ROUNDUP((IF(((O$8-$C83)/30.4)>0,((O$8-$C83)/30.4),12+((O$8-$C83)/30.4))),0),CVMS!$D$19:$P$28,'Calcul CVMS VV'!$Q$2,FALSE))))/100*$D$2,"") ->  | P83: =IFERROR((IF($C83="","",(HLOOKUP(ROUNDUP((IF(((P$8-$C83)/30.4)>0,((P$8-$C83)/30.4),12+((P$8-$C83)/30.4))),0),CVMS!$D$19:$P$28,'Calcul CVMS VV'!$Q$2,FALSE))))/100*$D$2,"") -> 
E84: =IFERROR((IF($C84="","",(HLOOKUP(ROUNDUP((IF(((E$8-$C84)/30.4)>0,((E$8-$C84)/30.4),12+((E$8-$C84)/30.4))),0),CVMS!$D$19:$P$28,'Calcul CVMS VV'!$Q$2,FALSE))))/100*$D$2,"") ->  | F84: =IFERROR((IF($C84="","",(HLOOKUP(ROUNDUP((IF(((F$8-$C84)/30.4)>0,((F$8-$C84)/30.4),12+((F$8-$C84)/30.4))),0),CVMS!$D$19:$P$28,'Calcul CVMS VV'!$Q$2,FALSE))))/100*$D$2,"") ->  | G84: =IFERROR((IF($C84="","",(HLOOKUP(ROUNDUP((IF(((G$8-$C84)/30.4)>0,((G$8-$C84)/30.4),12+((G$8-$C84)/30.4))),0),CVMS!$D$19:$P$28,'Calcul CVMS VV'!$Q$2,FALSE))))/100*$D$2,"") ->  | H84: =IFERROR((IF($C84="","",(HLOOKUP(ROUNDUP((IF(((H$8-$C84)/30.4)>0,((H$8-$C84)/30.4),12+((H$8-$C84)/30.4))),0),CVMS!$D$19:$P$28,'Calcul CVMS VV'!$Q$2,FALSE))))/100*$D$2,"") ->  | I84: =IFERROR((IF($C84="","",(HLOOKUP(ROUNDUP((IF(((I$8-$C84)/30.4)>0,((I$8-$C84)/30.4),12+((I$8-$C84)/30.4))),0),CVMS!$D$19:$P$28,'Calcul CVMS VV'!$Q$2,FALSE))))/100*$D$2,"") ->  | J84: =IFERROR((IF($C84="","",(HLOOKUP(ROUNDUP((IF(((J$8-$C84)/30.4)>0,((J$8-$C84)/30.4),12+((J$8-$C84)/30.4))),0),CVMS!$D$19:$P$28,'Calcul CVMS VV'!$Q$2,FALSE))))/100*$D$2,"") ->  | K84: =IFERROR((IF($C84="","",(HLOOKUP(ROUNDUP((IF(((K$8-$C84)/30.4)>0,((K$8-$C84)/30.4),12+((K$8-$C84)/30.4))),0),CVMS!$D$19:$P$28,'Calcul CVMS VV'!$Q$2,FALSE))))/100*$D$2,"") ->  | L84: =IFERROR((IF($C84="","",(HLOOKUP(ROUNDUP((IF(((L$8-$C84)/30.4)>0,((L$8-$C84)/30.4),12+((L$8-$C84)/30.4))),0),CVMS!$D$19:$P$28,'Calcul CVMS VV'!$Q$2,FALSE))))/100*$D$2,"") ->  | M84: =IFERROR((IF($C84="","",(HLOOKUP(ROUNDUP((IF(((M$8-$C84)/30.4)>0,((M$8-$C84)/30.4),12+((M$8-$C84)/30.4))),0),CVMS!$D$19:$P$28,'Calcul CVMS VV'!$Q$2,FALSE))))/100*$D$2,"") ->  | N84: =IFERROR((IF($C84="","",(HLOOKUP(ROUNDUP((IF(((N$8-$C84)/30.4)>0,((N$8-$C84)/30.4),12+((N$8-$C84)/30.4))),0),CVMS!$D$19:$P$28,'Calcul CVMS VV'!$Q$2,FALSE))))/100*$D$2,"") ->  | O84: =IFERROR((IF($C84="","",(HLOOKUP(ROUNDUP((IF(((O$8-$C84)/30.4)>0,((O$8-$C84)/30.4),12+((O$8-$C84)/30.4))),0),CVMS!$D$19:$P$28,'Calcul CVMS VV'!$Q$2,FALSE))))/100*$D$2,"") ->  | P84: =IFERROR((IF($C84="","",(HLOOKUP(ROUNDUP((IF(((P$8-$C84)/30.4)>0,((P$8-$C84)/30.4),12+((P$8-$C84)/30.4))),0),CVMS!$D$19:$P$28,'Calcul CVMS VV'!$Q$2,FALSE))))/100*$D$2,"") -> 
E85: =IFERROR((IF($C85="","",(HLOOKUP(ROUNDUP((IF(((E$8-$C85)/30.4)>0,((E$8-$C85)/30.4),12+((E$8-$C85)/30.4))),0),CVMS!$D$19:$P$28,'Calcul CVMS VV'!$Q$2,FALSE))))/100*$D$2,"") ->  | F85: =IFERROR((IF($C85="","",(HLOOKUP(ROUNDUP((IF(((F$8-$C85)/30.4)>0,((F$8-$C85)/30.4),12+((F$8-$C85)/30.4))),0),CVMS!$D$19:$P$28,'Calcul CVMS VV'!$Q$2,FALSE))))/100*$D$2,"") ->  | G85: =IFERROR((IF($C85="","",(HLOOKUP(ROUNDUP((IF(((G$8-$C85)/30.4)>0,((G$8-$C85)/30.4),12+((G$8-$C85)/30.4))),0),CVMS!$D$19:$P$28,'Calcul CVMS VV'!$Q$2,FALSE))))/100*$D$2,"") ->  | H85: =IFERROR((IF($C85="","",(HLOOKUP(ROUNDUP((IF(((H$8-$C85)/30.4)>0,((H$8-$C85)/30.4),12+((H$8-$C85)/30.4))),0),CVMS!$D$19:$P$28,'Calcul CVMS VV'!$Q$2,FALSE))))/100*$D$2,"") ->  | I85: =IFERROR((IF($C85="","",(HLOOKUP(ROUNDUP((IF(((I$8-$C85)/30.4)>0,((I$8-$C85)/30.4),12+((I$8-$C85)/30.4))),0),CVMS!$D$19:$P$28,'Calcul CVMS VV'!$Q$2,FALSE))))/100*$D$2,"") ->  | J85: =IFERROR((IF($C85="","",(HLOOKUP(ROUNDUP((IF(((J$8-$C85)/30.4)>0,((J$8-$C85)/30.4),12+((J$8-$C85)/30.4))),0),CVMS!$D$19:$P$28,'Calcul CVMS VV'!$Q$2,FALSE))))/100*$D$2,"") ->  | K85: =IFERROR((IF($C85="","",(HLOOKUP(ROUNDUP((IF(((K$8-$C85)/30.4)>0,((K$8-$C85)/30.4),12+((K$8-$C85)/30.4))),0),CVMS!$D$19:$P$28,'Calcul CVMS VV'!$Q$2,FALSE))))/100*$D$2,"") ->  | L85: =IFERROR((IF($C85="","",(HLOOKUP(ROUNDUP((IF(((L$8-$C85)/30.4)>0,((L$8-$C85)/30.4),12+((L$8-$C85)/30.4))),0),CVMS!$D$19:$P$28,'Calcul CVMS VV'!$Q$2,FALSE))))/100*$D$2,"") ->  | M85: =IFERROR((IF($C85="","",(HLOOKUP(ROUNDUP((IF(((M$8-$C85)/30.4)>0,((M$8-$C85)/30.4),12+((M$8-$C85)/30.4))),0),CVMS!$D$19:$P$28,'Calcul CVMS VV'!$Q$2,FALSE))))/100*$D$2,"") ->  | N85: =IFERROR((IF($C85="","",(HLOOKUP(ROUNDUP((IF(((N$8-$C85)/30.4)>0,((N$8-$C85)/30.4),12+((N$8-$C85)/30.4))),0),CVMS!$D$19:$P$28,'Calcul CVMS VV'!$Q$2,FALSE))))/100*$D$2,"") ->  | O85: =IFERROR((IF($C85="","",(HLOOKUP(ROUNDUP((IF(((O$8-$C85)/30.4)>0,((O$8-$C85)/30.4),12+((O$8-$C85)/30.4))),0),CVMS!$D$19:$P$28,'Calcul CVMS VV'!$Q$2,FALSE))))/100*$D$2,"") ->  | P85: =IFERROR((IF($C85="","",(HLOOKUP(ROUNDUP((IF(((P$8-$C85)/30.4)>0,((P$8-$C85)/30.4),12+((P$8-$C85)/30.4))),0),CVMS!$D$19:$P$28,'Calcul CVMS VV'!$Q$2,FALSE))))/100*$D$2,"") -> 
